Workbook

Sheet оценка обеспеч.
A1: Оценка обеспеченности __1-11___ класса ____________Бетькинской_________________школы _______Тукаевского______________ муниципального района (города_________________). Численность детей на 2012/13 учебный год - ______.
A2: Предмет | B2: Автор | C2: Год издания | D2: по инвентарной ведомости | G2: по накладным | H2: по актам | I2: фактически в наличии
D3: в наличии | E3: недостаток | F3: излишки | G3: экз. | H3: экз. | I3: использованы | J3: новые
A4: Начальная школа 21 век | B4: 1класс
A5: Окружающий мир | B5: Виноградова Н.Ф. | C5: 2010 | D5: 26 | F5: 26 | G5: 26 | I5: 26
A6: Окружающий мир Ч.1 | B6: Виноградова Н.Ф. | C6: 2011 | D6: 25 | E6: 10 | G6: 25 | I6: 25
A7: Окружающий мир Ч.2 | B7: Виноградова Н.Ф. | C7: 2011 | D7: 25 | E7: 10 | G7: 25 | I7: 25
A8: Литературное чтение | B8: Ефросинина Л.А. | C8: 2010 | D8: 26 | F8: 26 | G8: 26 | I8: 26
A9: Литературное чтение | B9: Ефросинина Л.А. | C9: 2011 | D9: 25 | E9: 10 | G9: 25 | I9: 25
A10: Букварь. 1ч. | B10: Журова Л.Е. | C10: 2010 | D10: 26 | F10: 26 | G10: 26 | I10: 26
A11: Букварь. 2ч. | B11: Журова Л.Е. | C11: 2010 | D11: 26 | F11: 26 | G11: 26 | I11: 26
A12: Букварь. 1ч. | B12: Журова Л.Е. | C12: 2011 | D12: 25 | E12: 10 | G12: 25 | I12: 25
A13: Букварь. 2ч. | B13: Журова Л.Е. | C13: 2011 | D13: 25 | E13: 10 | G13: 25 | I13: 25
A14: Русский язык | B14: Иванов С.В. | C14: 2010 | D14: 26 | F14: 26 | G14: 26 | I14: 26
A15: Русский язык | B15: Иванов С.В. | C15: 2011 | D15: 25 | E15: 10 | G15: 25 | I15: 25
A16: Математика. Ч.1 | B16: Рудницкая В.Н. | C16: 2010 | D16: 26 | F16: 26 | G16: 26 | I16: 26
A17: Математика. Ч.2 | B17: Рудницкая В.Н. | C17: 2010 | D17: 26 | F17: 26 | G17: 26 | I17: 26
A18: Математика. Ч.1 | B18: Рудницкая В.Н. | C18: 2011 | D18: 25 | E18: 10 | G18: 25 | I18: 25
A19: Математика. Ч.2 | B19: Рудницкая В.Н. | C19: 2011 | D19: 25 | E19: 10 | G19: 25 | I19: 25
A21: Начальная школа ХХ1 | B21: 2класс
A22: Английский язык | B22: Биболетова М.З. | C22: 2005 | D22: 50 | F22: 16 | G22: 50 | I22: 50
A23: Окружающий мир. Ч.1 | B23: Виноградова Н.Ф. | C23: 2011 | D23: 25 | E23: 9 | G23: 25 | I23: 25
A24: Окружающий мир. Ч.2 | B24: Виноградова Н.Ф. | C24: 2011 | D24: 25 | E24: 9 | G24: 25 | I24: 25
A25: Литературн чтение Ч.1 | B25: Ефросинина Л.А. | C25: 2011 | D25: 25 | E25: 9 | G25: 25 | I25: 25
A26: Литературн чтение Ч.2 | B26: Ефросинина Л.А. | C26: 2011 | D26: 25 | E26: 9 | G26: 25 | I26: 25
A27: Русский язык. Ч.1 | B27: Иванов С.В. | C27: 2011 | D27: 25 | E27: 9 | G27: 25 | I27: 25
A28: Русский язык. Ч.2 | B28: Иванов С.В. | C28: 2011 | D28: 25 | E28: 9 | G28: 25 | I28: 25
A29: Математика. Ч.1 | B29: Рудницкая В.Н. | C29: 2011 | D29: 25 | E29: 9 | G29: 25 | I29: 25
A30: Математика. Ч.2 | B30: Рудницкая В.Н. | C30: 2011 | D30: 25 | E30: 9 | G30: 25 | I30: 25
A31: Татарский язык. Ч.1 | B31: Хайдарова Р.З. | C31: 2009 | D31: 63 | F31: 29 | G31: 63 | I31: 63
A32: Татарский язык. Ч.2 | B32: Хайдарова Р.З. | C32: 2009 | D32: 62 | F32: 28 | G32: 62 | I32: 62
A33: Школа России | B33: 2класс
A34: Русский язык.Ч.1 | B34: Зеленина Л.М. | C34: 2011 | D34: 15 | G34: 15 | I34: 15
A35: Русский язык.Ч.2 | B35: Зеленина Л.М. | C35: 2011 | D35: 15 | G35: 15 | I35: 15
A36: Родная речь. Ч.1 | B36: Климанова Л.Ф. | C36: 2006 | D36: 58 | G36: 58 | I36: 58
A37: Родная речь. Ч.2 | B37: Климанова Л.Ф. | C37: 2006 | D37: 62 | G37: 62 | I37: 62
A38: Математика.Ч.1 | B38: Моро М.И. | C38: 2006 | D38: 58 | G38: 58 | I38: 58
A39: Математика.Ч.2 | B39: Моро М.И. | C39: 2006 | D39: 58 | G39: 58 | I39: 58
A40: Окружающий мир. Ч.1 | B40: Плешаков А.А. | C40: 2007 | D40: 38 | G40: 38 | I40: 38
A41: Окружающий мир. Ч.2 | B41: Плешаков А.А. | C41: 2007 | D41: 9 | G41: 9 | I41: 9
A43: Школа России | B43: 3 класс
A44: Русский язык.Ч.1 | B44: Зеленина Л.М. | C44: 2009 | D44: 33 | G44: 33 | I44: 33
A45: Русский язык.Ч.2 | B45: Зеленина Л.М. | C45: 2009 | D45: 33 | G45: 33 | I45: 33
A46: Родная речь.Ч.1 | B46: Климанова Л.Ф. | C46: 2007 | D46: 50 | G46: 50 | I46: 50
A47: Родная речь.Ч.2 | B47: Климанова Л.Ф | C47: 2007 | D47: 50 | G47: 50 | I47: 50
A48: Математика.Ч.1 | B48: Моро М.И. | C48: 2007 | D48: 37 | G48: 37 | I48: 37
A49: Математика.Ч.2 | B49: Моро М.И. | C49: 2007 | D49: 37 | G49: 37 | I49: 37
A50: Окружающий мир.Ч.1 | B50: ПлешаковА.А. | C50: 2008 | D50: 35 | G50: 35 | I50: 35
A51: Окружающий мир.Ч.2 | B51: ПлешаковА.А. | C51: 2008 | D51: 35 | G51: 35 | I51: 35
A53: Начальн школа ХХ1 в | B53: 3 класс
A54: Английский язык | B54: Биболетова М.З. | C54: 2006 | D54: 29 | F54: 4 | G54: 29 | I54: 29
A55: Окружающий мир. Ч.1 | B55: Виноградова Н.Ф. | C55: нов | D55: 0 | E55: 25 | G55: 0 | I55: 0
A56: Окружающий мир. Ч.2 | B56: Виноградова Н.Ф. | C56: нов | D56: 0 | E56: 25 | G56: 0 | I56: 0
A57: Литер. чтение. Ч.1 | B57: Ефросинина Л.А. | C57: нов | D57: 0 | E57: 25 | G57: 0 | I57: 0
A58: Литер. чтение Ч.2 | B58: Ефросинина Л.А. | C58: нов | D58: 0 | E58: 25 | G58: 0 | I58: 0
A59: Русский язык. Ч.1 | B59: Иванов С.В. | C59: 2009 | D59: 21 | E59: 4 | G59: 21 | I59: 21
A60: Русский язык. Ч.2 | B60: Иванов С.В. | C60: 2009 | D60: 21 | E60: 4 | G60: 21 | I60: 21
A61: Математика.Ч.1 | B61: Рудницкая В.Н. | C61: нов | D61: 0 | E61: 25 | G61: 0 | I61: 0
A62: Математика.Ч.2 | B62: Рудницкая В.Н. | C62: нов | D62: 0 | E62: 25 | G62: 0 | I62: 0
A63: Татарский язык.Ч.1 | B63: Хайдарова Р.З. | C63: 2009 | D63: 38 | G63: 19 | I63: 19
A64: Татарский язык.Ч.2 | B64: Хайдарова Р.З. | C64: 2009 | D64: 38 | G64: 19 | I64: 19
A66: Начальная школа ХХ1 | B66: 4 класс
A67: Английский язык | B67: Биболетова М.З. | C67: 2007 | D67: 23 | F67: 7 | G67: 23 | I67: 23
A68: Окружающий мир. Ч.1 | B68: Виноградова Н.Ф. | C68: 2009 | D68: 21 | F68: 5 | G68: 21 | I68: 21
A69: Окружающий мир. Ч.2 | B69: Виноградова Н.Ф. | C69: 2009 | D69: 21 | F69: 5 | G69: 21 | I69: 21
A70: Литер. чтение. Ч.1 | B70: Ефросинина Л.А. | C70: 2009 | D70: 21 | F70: 5 | G70: 21 | I70: 21
A71: Литер. чтение. Ч.2 | B71: Ефросинина Л.А. | C71: 2009 | D71: 21 | F71: 5 | G71: 21 | I71: 21
A72: Русский язык. Ч.1 | B72: Иванов С.В. | C72: 2010 | D72: 30 | F72: 14 | G72: 30 | I72: 30
A73: Русский язык. Ч.2 | B73: Иванов С.В. | C73: 2010 | D73: 30 | F73: 14 | G73: 30 | I73: 30
A74: Математика.Ч.1 | B74: Рудницкая В.Н. | C74: 2010 | D74: 0 | F74: 0 | G74: 0 | I74: 0
A75: Математика.Ч.2 | B75: Рудницкая В.Н. | C75: 2010 | D75: 0 | F75: 0 | G75: 0 | I75: 0
A76: Татарский язык.Ч.1 | B76: Хайдарова Р.З. | C76: 2005 | D76: 32 | F76: 16 | G76: 32 | I76: 32
A77: Татарский язык.Ч.2 | B77: Хайдарова Р.З. | C77: 2005 | D77: 32 | F77: 16 | G77: 32 | I77: 32
A79: Школа России | B79: 4 класс
A80: Английский язык | B80: Биболетова М.З. | C80: 2007 | D80: 22 | F80: 3 | G80: 22 | I80: 22
A81: Русский язык. Ч1 | B81: Зеленина Л.М. | C81: 2010 | D81: 26 | F81: 7 | G81: 26 | I81: 26
A82: Русский язык. Ч2 | B82: Зеленина Л.М. | C82: 2010 | D82: 26 | F82: 7 | G82: 26 | I82: 26
A83: Родная речь. Ч.1 | B83: Климанова Л.Ф. | C83: 2009 | D83: 34 | F83: 15 | G83: 34 | I83: 34
A84: Родная речь. Ч.2 | B84: Климанова Л.Ф. | C84: 2009 | D84: 34 | F84: 15 | G84: 34 | I84: 34
A85: Математика.Ч.1 | B85: Моро М.И. | C85: 2008 | D85: 41 | F85: 22 | G85: 41 | I85: 41
A86: Математика.Ч.2 | B86: Моро М.И. | C86: 2008 | D86: 41 | F86: 22 | G86: 41 | I86: 41
A87: Окружающий мир.Ч.1 | B87: ПлешаковА.А. | C87: 2009 | D87: 32 | F87: 13 | G87: 32 | I87: 32
A88: Окружающий мир.Ч.2 | B88: ПлешаковА.А. | C88: 2009 | D88: 32 | F88: 13 | G88: 32 | I88: 32
A89: Татарский язык.Ч.1 | B89: Хайдарова Р.З. | C89: 2005 | D89: 32 | F89: 13 | G89: 32 | I89: 32
A90: Татарский язык.Ч.2 | B90: Хайдарова Р.З. | C90: 2005 | D90: 32 | F90: 13 | G90: 32 | I90: 32
B91: 5класс
A92: Англиийский язык | B92: Биболетова М.З. | C92: 2008 | D92: 47 | E92: 1 | G92: 47 | I92: 47
A93: История др.мира | B93: Вигасин А.А. | C93: 2006 | D93: 58 | F93: 10 | G93: 58 | I93: 58
A94: Математика | B94: Виленкин Н.Я. | C94: 2005 | D94: 50 | F94: 2 | G94: 50 | I94: 50
A95: Литература.Ч.1 | B95: Коровина В.Я. | C95: 2006 | D95: 58 | F95: 10 | G95: 58 | I95: 58
A96: Литература.Ч.2 | B96: Коровина В.Я. | C96: 2006 | D96: 58 | F96: 10 | G96: 58 | I96: 58
A97: Русский язык | B97: Ладыженская Т.А. | C97: 2007 | D97: 43 | E97: 5 | G97: 43 | I97: 43
A98: Технология (девочки) | B98: Павлова М.Б.Сасова И.А. | C98: 2006 | D98: 25 | G98: 25 | I98: 25
A99: Технология (мальчики | B99: Павлова М.Б.Сасова И.А. | C99: 2006 | D99: 25 | G99: 25 | I99: 25
A100: Природоведение | B100: Плешаков А.А. | C100: 2005 | D100: 50 | F100: 2 | G100: 50 | I100: 50
A101: Татарский язык. | B101: Хайдарова Р.З. | C101: 2011 | D101: 55 | F101: 7 | G101: 55 | I101: 55
B102: 6 класс
A103: Англиийский язык | B103: Биболетова М.З. | C103: 2009 | D103: 22 | E103: 5 | G103: 22 | I103: 22
A104: Русский язык | B104: Баранов М.Т. | C104: 2008 | D104: 40 | F104: 13 | G104: 40 | I104: 40
A105: История ср. веков | B105: Бойцов М.А. | C105: 2007 | D105: 45 | F105: 18 | G105: 45 | I105: 45
A106: Математика | B106: Виленкин Н.Я. | C106: 2006 | D106: 55 | F106: 28 | G106: 55 | I106: 55
A107: Технология д/мальч. | B107: Гуревич М.И. | C107: 2007 | D107: 15 | F107: 1 | G107: 15 | I107: 15
A108: История России | B108: Данилов А.А. | C108: 2009 | D108: 43 | F108: 16 | G108: 43 | I108: 43
A109: География России | B109: Дронов В.П. | C109: 2009 | D109: 40 | F109: 13 | G109: 40 | I109: 40
A110: Литература. Ч.1 | B110: Коровина В.Я. | C110: 2009 | D110: 45 | F110: 18 | G110: 45 | I110: 45
A111: Литература. Ч.2 | B111: Коровина В.Я. | C111: 2009 | D111: 45 | F111: 18 | G111: 45 | I111: 45
A112: Обществознание | B112: Кравченко А.И. | C112: 2006 | D112: 50 | F112: 23 | G112: 50 | I112: 50
A113: Технология д/девоч. | B113: Павлова М.Б. | C113: 2007 | D113: 15 | F113: 2 | G113: 15 | I113: 15
A114: Биология | B114: Сонин Н.И. | C114: 2005 | D114: 60 | F114: 33 | G114: 60 | I114: 60
A115: Татарский язык | B115: Хайдарова Р.З. | C115: 2007 | D115: 20 | E115: 7 | G115: 20 | I115: 20
A116: История Татарстана | B116: Хузин Ф.Ш. | C116: нов | D116: 0 | E116: 27 | G116: 0 | I116: 0
B117: 7класс
A118: Геометрия 7-9 | B118: Атанасян Л.С. | C118: нов | D118: 0 | E118: 29 | G118: 0 | I118: 0
A119: Русский язык | B119: Баранов М.Т. | C119: 2009 | D119: 38 | F119: 9 | G119: 38 | I119: 38
A120: Английский язык | B120: Биболетова М.З. | C120: 2010 | D120: 55 | F120: 26 | G120: 55 | I120: 55
A121: Технология д/мальч. | B121: Гуревич М.И. | C121: 2008 | D121: 25 | F121: 14 | G121: 25 | I121: 25
A122: История России | B122: Данилов А.А. | C122: 2010 | D122: 58 | F122: 29 | G122: 58 | I122: 58
A123: География | B123: Душина И.В. | C123: 2010 | D123: 56 | F123: 27 | G123: 56 | I123: 56
A124: Общая биология | B124: Захаров В.Б. | C124: 2006 | D124: 12 | E124: 17 | G124: 12 | I124: 12
A125: Литература. Ч.1 | B125: Коровина В.Я. | C125: нов | D125: 0 | E125: 29 | G125: 0 | I125: 0
A126: Литература. Ч.2 | B126: Коровина В.Я. | C126: нов | D126: 0 | E126: 29 | G126: 0 | I126: 0
A127: Обществознание | B127: Кравченко А.И. | C127: 2007 | D127: 30 | F127: 1 | G127: 30 | I127: 30
A128: Алгебра | B128: Макарычев Ю.Н. | C128: 2010 | D128: 52 | F128: 23 | G128: 52 | I128: 52
A129: Технология (девочки) | B129: Павлова М.Б. | C129: 2008 | D129: 25 | F129: 6 | G129: 25 | I129: 25
A130: Физика | B130: Пёрышкин А.Ф. | C130: 2008 | D130: 40 | F130: 11 | G130: 40 | I130: 40
A131: Новая история | B131: Юдовская А.Я. | C131: нов | D131: 0 | E131: 29 | G131: 0 | I131: 0
A132: Татарский язык | B132: Асылгараева Р.А. | C132: 2010 | D132: 23 | F132: 9 | G132: 23 | I132: 23
A133: История Татарстана | B133: Гилязов И.А. | C133: 2004 | D133: 50
A134: История Татарстана | B134: Гилязов И.А. | C134: 2005 | D134: 10 | E134: 19 | G134: 10 | I134: 10
A135: Татарский язык | B135: Хайдарова Р.З. | C135: 2007 | D135: 40 | F135: 25 | G135: 40 | I135: 40
A136: Татарская литература | B136: Мусин Ф.М. | C136: 2005 | D136: 5 | E136: 9 | G136: 5 | I136: 5
B137: 8 класс
A138: Геометрия | B138: Атанасян Л.С. | C138: нов | D138: 0 | E138: 41 | G138: 0 | I138: 0
A139: География России | B139: Баринова И.И. | C139: 2006 | D139: 36 | E139: 5 | G139: 36 | I139: 36
A140: Русский язык | B140: Бархударов С.Г. | C140: 2007 | D140: 40 | E140: 1 | G140: 40 | I140: 40
A141: Обществознание | B141: Боголюбов Л.Н. | C141: 2009 | D141: 7 | E141: 34 | G141: 7 | I141: 7
A142: Английский язык | B142: Биболетова М.В. | C142: 2011 | D142: 50 | F142: 9 | G142: 50 | I142: 50
A143: История России | B143: Данилов А.А. | C143: нов | D143: 0 | E143: 41 | G143: 0 | I143: 0
A144: Новая история | B144: Захарова Е.Н. | C144: 2007 | D144: 44 | F144: 3 | G144: 44 | I144: 44
A145: Литература.Ч.1. | B145: Коровина В.Я. | C145: 2010 | D145: 60 | F145: 19 | G145: 60 | I145: 60
A146: Литература.Ч.2. | B146: Коровина В.Я. | C146: 2010 | D146: 60 | F146: 19 | G146: 60 | I146: 60
A147: Технология дев. /мал | B147: Леонтьев А.В. | C147: 2010 | D147: 60 | F147: 41 | G147: 60 | I147: 60
A148: Алгебра | B148: Макарычев Ю.Н. | C148: 2005 | D148: 46 | F148: 5 | G148: 46 | I148: 46
A149: Химия | B149: Минченков Е.Е. | C149: 2006 | D149: 35 | E149: 6 | G149: 35 | I149: 35
A150: Физика | B150: Пёрышкин А.Ф. | C150: 2009 | D150: 22 | E150: 19 | G150: 22 | I150: 22
A151: Информатика | B151: Семакин И.Г. | C151: 2009 | D151: 41 | G151: 41 | I151: 41
A152: Биология | B152: Сонин Н.И. | C152: 2007 | D152: 55 | F152: 14 | G152: 55 | I152: 55
A153: ОБЖ | B153: Смирнов А.Т. | C153: 2010 | D153: 50 | F153: 9 | G153: 50 | I153: 50
A154: Татарский язык. | B154: Асылгараева Р.А. | C154: 2011 | D154: 20 | F154: 7 | G154: 20 | I154: 20
A155: История Татарстана | B155: Пискарёв В.И. | C155: 2005 | D155: 20 | E155: 21 | G155: 20 | I155: 20
A156: Татарская литература | B156: Хабибуллина З.Н. | C156: 2011 | D156: 20 | F156: 6 | G156: 20 | I156: 20
A157: Татарский язык | B157: Хайдарова Р.З. | C157: 2007 | D157: 30 | F157: 2 | G157: 30 | I157: 30
A158: География Татарстана | B158: Тайсин А.С | C158: 2009 | D158: 40 | E158: 1 | G158: 40 | I158: 40
A159: География Татарстана | B159: Тайсин А.С | C159: 2007 | D159: 20 | F159: 19 | G159: 20 | I159: 20
B160: 9 класс
A161: Новейшая история | B161: Алексашкина Л.Н. | C161: нов | D161: 0 | E161: 37 | G161: 0 | I161: 0
A162: География России | B162: Дронов В.П. | C162: нов | D162: 0 | E162: 37 | G162: 0 | I162: 0
A163: Геометрия | B163: Атанасян Л.С. | C163: нов | D163: 0 | E163: 37 | G163: 0 | I163: 0
A164: Русский язык | B164: Бархударов С.Г. | C164: 2005 | D164: 60 | F164: 23 | G164: 60 | I164: 60
A165: Литература. 19 век.Ч.1 | B165: Зинин С.А. | C165: 2007 | D165: 54 | F165: 17 | G165: 54 | I165: 54
A166: Литература. 19 век.Ч.2 | B166: Зинин С.А. | C166: 2007 | D166: 54 | F166: 17 | G166: 54 | I166: 54
A167: Биология | B167: Каменский А.А. | C167: 2009 | D167: 45 | F167: 8 | G167: 45 | I167: 45
A168: Английский язык | B168: Биболетова М.В. | C168: нов | D168: 0 | E168: 37 | G168: 0 | I168: 0
A169: Обществознание | B169: Боголюбов Л.Н. | C169: 2009 | D169: 37 | G169: 37 | I169: 37
A170: Алгебра | B170: Макарычев Ю.Н. | C170: нов | D170: 0 | E170: 37 | G170: 0 | I170: 0
A171: Химия | B171: Минченков Е.Е. | C171: 2006 | D171: 48 | F171: 11 | G171: 48 | I171: 48
A172: Физика | B172: Пёрышкин А.Ф. | C172: 2009 | D172: 45 | F172: 8 | G172: 45 | I172: 45
A173: Информатика | B173: Семакин И.Г. | C173: 2010 | D173: 51 | F173: 14 | G173: 51 | I173: 51
A174: История Отечества | B174: Шестаков В.А. | C174: нов | D174: 0 | E174: 37 | G174: 0 | I174: 0
A175: История Татарстана | B175: Султанбеков Б.Ф. | C175: 2006 | D175: 50 | F175: 13 | G175: 50 | I175: 50
A176: Татарский язык | B176: Хайдарова Р.З. | C176: 2008 | D176: 30 | E176: 7 | G176: 30 | I176: 30
A177: Татарский язык | B177: Зиннатуллина К.З. | C177: 2011 | D177: 20 | F177: 9 | G177: 20 | I177: 20
A178: Татарская литература | B178: Хабибуллина З.Н. | C178: 2011 | D178: 20 | F178: 9 | G178: 20 | I178: 20
B179: 10 класс
A180: Всеобщая история | B180: Алексашкина Л.Н. | C180: 2009 | D180: 29 | F180: 17 | G180: 29 | I180: 29
A181: Геометрия 10-11 | B181: Атанасян Л.С. | C181: 2010 | D181: 25 | F181: 13 | G181: 25 | I181: 25
A182: Общая биология 10-11 | B182: Беляев Д.К. | C182: 2005 | D182: 15 | F182: 3 | G182: 15 | I182: 15
A183: Введение в обществ. | B183: Боголюбов Л.Н. | C183: 2009 | D183: 28 | F183: 16 | G183: 28 | I183: 28
A184: Пособие по-рус. языку | B184: Греков В.Ф. | C184: 2011 | D184: 6 | E184: 6 | G184: 6 | I184: 6
A185: Рус. лит-ра. 19в.Хр.Ч.1 | B185: Зинин С.А. | C185: 2006 | D185: 50 | F185: 38 | G185: 50 | I185: 50
A186: Рус. лит-ра. 19в.Хр.Ч.2 | B186: Зинин С.А. | C186: 2006 | D186: 50 | F186: 38 | G186: 50 | I186: 50
A187: Рус. лит-ра.Учеб.Ч.1 | B187: Сахаров В.И. | C187: 2009 | D187: 22 | F187: 10 | G187: 22 | I187: 22
A188: Рус. лит-ра.Учеб.Ч.2 | B188: Сахаров В.И. | C188: 2009 | D188: 22 | F188: 10 | G188: 22 | I188: 22
A189: Основы эк. теор.Ч.1 | B189: Иванов С.И.. | C189: 2006 | D189: 25 | F189: 13 | G189: 25 | I189: 25
A190: Основы эк. теор. Ч.2 | B190: Иванов С.И. | C190: 2006 | D190: 25 | F190: 13 | G190: 25 | I190: 25
A191: Английский язык 10-11 | B191: Кузовлев В.П. | C191: 2008 | D191: 30 | F191: 18 | G191: 30 | I191: 30
A192: География | B192: Максаковский В.П. | C192: 2009 | D192: 15 | F192: 3 | G192: 15 | I192: 15
A193: Физика | B193: Мякишев Г.Я. | C193: 2008 | D193: 50 | F193: 38 | G193: 50 | I193: 50
A194: Право | B194: Никитин | C194: нов | D194: 0 | E194: 12 | G194: 0 | I194: 0
A195: Алгебра | B195: Никольский | C195: нов | D195: 0 | E195: 12 | G195: 0 | I195: 0
A196: Химия | B196: Рудзитис Г.Е. | C196: 2008 | D196: 60 | F196: 48 | G196: 60 | I196: 60
A197: История России.Ч.1 | B197: Сахаров А.Н. | C197: 2006 | D197: 50 | F197: 38 | G197: 50 | I197: 50
A198: История России.Ч.2 | B198: Сахаров А.Н. | C198: 2006 | D198: 50 | F198: 38 | G198: 50 | I198: 50
A199: Информатика 10-11 | B199: Семакин И.Г. | C199: 2009 | D199: 24 | F199: 12 | G199: 24 | I199: 24
A200: ОБЖ | B200: Смирнов А.Т. | C200: 2011 | D200: 21 | F200: 9 | G200: 21 | I200: 21
A201: История Татарстана | B201: Гилязов И.А. | C201: 2008 | D201: 45 | F201: 33 | G201: 45 | I201: 45
A202: Тат. яз. и лит.чтение | B202: Хайдарова Р.З. | C202: 2009 | D202: 31 | F202: 19 | G202: 31 | I202: 31
B203: 11 класс
A204: Всеобщая история | B204: Алексашкина Л.Н. | C204: 2010 | D204: 28 | F204: 15 | G204: 28 | I204: 28
A205: Геометрия | B205: Атанасян Л.С. | C205: 2010 | D205: 25 | F205: 12 | G205: 25 | I205: 25
... 17 more rows

Sheet наличие
A2: Предмет | B2: Автор | C2: Год издания | D2: по инвентарной ведомости | G2: по накладным | H2: по актам | I2: фактически в наличии
D3: в наличии | E3: недостаток | F3: излишки | G3: экз. | H3: экз. | I3: в фонде | J3: по классам | K3: всего | L3: инв. №
A4: Начальная школа 21 век | B4: 1класс
A5: Окружающий мир | B5: Виноградова Н.Ф. | C5: 2010 | D5: 26 | F5: 26 | G5: 26 | I5: 5 | L5: 686 | M5: №1 от 31.08.10
A6: Окружающий мир Ч.1 | B6: Виноградова Н.Ф. | C6: 2011 | D6: 25 | E6: 10 | G6: 25 | I6: 12 | L6: 730 | M6: №1 от 16.08.11
A7: Окружающий мир Ч.2 | B7: Виноградова Н.Ф. | C7: 2011 | D7: 25 | E7: 10 | G7: 25 | L7: 731 | M7: №1 от 16.08.11
A8: Литературное чтение | B8: Ефросинина Л.А. | C8: 2010 | D8: 26 | F8: 26 | G8: 26 | L8: 681 | M8: №1 от 31.08.10
A9: Литературное чтение | B9: Ефросинина Л.А. | C9: 2011 | D9: 25 | E9: 10 | G9: 25 | L9: 729 | M9: №1 от 16.08.11
A10: Букварь. 1ч. | B10: Журова Л.Е. | C10: 2011 | D10: 26 | F10: 26 | G10: 26 | L10: 727 | M10: №1 от 31.08.10
A11: Букварь. 2ч. | B11: Журова Л.Е. | C11: 2011 | D11: 26 | F11: 26 | G11: 26 | I11: 3 | L11: 728 | M11: №1 от 31.08.10
A12: Букварь. 1ч. | B12: Журова Л.Е. | C12: 2010 | D12: 25 | E12: 10 | G12: 25 | L12: 684 | M12: №1 от 16.08.11
A13: Букварь. 2ч. | B13: Журова Л.Е. | C13: 2010 | D13: 25 | E13: 10 | G13: 25 | I13: 3 | L13: 685 | M13: №1 от 16.08.11
A14: Русский язык | B14: Иванов С.В. | C14: 2010 | D14: 26 | F14: 26 | G14: 26 | L14: 687 | M14: №1 от 31.08.10
A15: Русский язык | B15: Иванов С.В. | C15: 2011 | D15: 25 | E15: 10 | G15: 25 | L15: 724 | M15: №1 от 16.08.11
A16: Математика. Ч.1 | B16: Рудницкая В.Н. | C16: 2010 | D16: 26 | F16: 26 | G16: 26 | L16: 682 | M16: №1 от 31.08.10
A17: Математика. Ч.2 | B17: Рудницкая В.Н. | C17: 2010 | D17: 26 | F17: 26 | G17: 26 | L17: 683 | M17: №1 от 31.08.10
A18: Математика. Ч.1 | B18: Рудницкая В.Н. | C18: 2011 | D18: 25 | E18: 10 | G18: 25 | I18: 12 | L18: 725 | M18: №1 от 16.08.11
A19: Математика. Ч.2 | B19: Рудницкая В.Н. | C19: 2011 | D19: 25 | E19: 10 | G19: 25 | L19: 726 | M19: №1 от 16.08.11
A20: Школа России
A21: Азбука | B21: Горецкий В.Г | C21: 2011 | D21: 25 | I21: 25 | K21: 25 | L21: 734
A22: Русский язык | B22: Канакина В.П | C22: 2011 | D22: 25 | K22: 25 | L22: 738
A23: Литературное чтение | B23: Климанова Л.Ф | C23: 2011 | D23: 25 | I23: 25 | K23: 25 | L23: 735
A24: Литературное чтение | B24: Меркин Г.С | C24: 2011 | D24: 5 | I24: 25 | L24: 743 | M24: №1 от 16.08.11
A25: Математика в 2х частях | B25: Моро М.И | C25: 2011 | D25: 25 | I25: 25 | K25: 25 | L25: 737
A26: Окружающий мир | B26: Плешаков А.А. | C26: 2011 | D26: 15 | I26: 15 | K26: 15 | L26: 736
A27: Мир вокруг нас | B27: Плешаков А.А. | C27: 2005 | D27: 50 | K27: 50 | L27: 438
A28: Русский язык | B28: Рамзаева Т.Г | C28: 2007 | D28: 40 | K28: 40 | L28: 545
A30: Региональные
A31: Азбука | B31: Ахиярова М.З | C31: 2009 | D31: 18 | I31: 18 | K31: 18 | L31: 662
A32: Музыкал.букварь 1кл. | B32: Бакиева Н.В., Гарипова Э.А | C32: 2007 | D32: 20 | I32: 20 | L32: 561
A33: Тат. яз. | B33: Валитова Р.Г. | C33: 2006 | D33: 10 | I33: 9 | K33: 10 | L33: 491
A34: Алифба | B34: Валитова Р.Г. | C34: 2007 | D34: 7 | I34: 7 | L34: 539
A35: Алифба | B35: Валитова Р.Г. | C35: 2009 | D35: 18 | L35: 630
A36: Азбука | B36: Нурмухаметова А. | C36: 2007 | D36: 15 | L36: 567
A37: Тат. яз. д/рус.яз. Ч 1 | B37: Сафиуллина Ф.С. | C37: 2008 | D37: 30 | I37: 29 | L37: 586
A38: Тат. яз. д/рус.яз. Ч 2 | B38: Сафиуллина Ф.С. | C38: 2009 | D38: 30 | I38: 27 | L38: 585
A39: Тат. яз для тат. шк. | B39: Харисов Ф.Ф. | C39: 2008 | D39: 50 | I39: 49 | L39: 582
A40: Азбука | B40: Ягафарова Р.Х. | C40: 2006 | D40: 10 | I40: 10 | K40: 10 | L40: 493
A42: Начальная школа ХХ1 | B42: 2класс | D42: в наличии | E42: недостаток | F42: излишки | G42: экз. | H42: экз. | I42: в фонде | J42: по классам | K42: всего
A43: Окружающий мир. Ч.1 | B43: Виноградова Н.Ф. | C43: 2011 | D43: 25 | E43: 9 | G43: 25 | L43: 715
A44: Окружающий мир. Ч.2 | B44: Виноградова Н.Ф. | C44: 2011 | D44: 25 | E44: 9 | G44: 25 | L44: 716
A45: Литературн чтение Ч.1 | B45: Ефросинина Л.А. | C45: 2011 | D45: 25 | E45: 9 | G45: 25 | L45: 719
A46: Литературн чтение Ч.2 | B46: Ефросинина Л.А. | C46: 2011 | D46: 25 | E46: 9 | G46: 25 | L46: 720
A47: Русский язык. Ч.1 | B47: Иванов С.В. | C47: 2011 | D47: 25 | E47: 9 | G47: 25 | L47: 717
A48: Русский язык. Ч.2 | B48: Иванов С.В. | C48: 2011 | D48: 25 | E48: 9 | G48: 25 | L48: 718
A49: Математика. Ч.1 | B49: Рудницкая В.Н. | C49: 2011 | D49: 25 | E49: 9 | G49: 25 | L49: 721
A50: Математика. Ч.2 | B50: Рудницкая В.Н. | C50: 2011 | D50: 25 | E50: 9 | G50: 25 | L50: 722
A51: Школа России | B51: 2класс | D51: в наличии | E51: недостаток | F51: излишки | G51: экз. | H51: экз. | I51: в фонде | J51: по классам | K51: всего
A52: Английский язык | B52: Биболетова М.З. | C52: 2005 | D52: 50 | F52: 16 | G52: 50 | I52: 45 | K52: 45 | L52: 436
A53: Русский язык.Ч.1-2 | B53: Зеленина Л.М. | C53: 2011 | D53: 15 | G53: 15 | L53: 723
A54: Родная речь. Ч.1 | B54: Климанова Л.Ф. | C54: 2006 | D54: 58 | G54: 58 | I54: 53 | K54: 53 | L54: 518
A55: Родная речь. Ч.2 | B55: Климанова Л.Ф. | C55: 2006 | D55: 62 | G55: 62 | I55: 53 | K55: 53 | L55: 519
A56: Математика.Ч.1 | B56: Моро М.И. | C56: 2006 | D56: 58 | G56: 58 | L56: 485
A57: Математика.Ч.2 | B57: Моро М.И. | C57: 2006 | D57: 58 | G57: 58 | L57: 486
A58: Окружающий мир. Ч.1 | B58: Плешаков А.А. | C58: 2007 | D58: 38 | G58: 38 | L58: 573
A59: Окружающий мир. Ч.2 | B59: Плешаков А.А. | C59: 2007 | D59: 9 | G59: 9 | L59: 560
A60: Русский язык Ч. 1 | B60: Рамзаева Т. Г | C60: 2008 | D60: 50 | G60: 50 | I60: 45 | K60: 45 | L60: 595
A61: Русский язык Ч. 2 | B61: Рамзаева Т. Г | C61: 2008 | D61: 50 | G61: 50 | I61: 45 | K61: 45 | L61: 596
A62: Английский язык Ч. 1 | B62: Верещагина И. Н | C62: 2005 | D62: 50 | G62: 50 | L62: 437
A63: Английский язык Ч. 2 | B63: Верещагина И. Н | C63: 2005 | D63: 50 | G63: 50 | I63: 45 | K63: 45 | L63: 439
A64: Родная речь | B64: Голованова М.В | C64: 2005 | D64: 15 | K64: 15 | L64: 457
A66: Региональные
A67: Книга для чтения Ч. 1 | B67: Вагизов С. Г | C67: 2007 | D67: 15 | I67: 15 | K67: 15 | L67: 575
A68: Книга для чтения Ч. 2 | B68: Вагизов С. Г | C68: 2007 | D68: 15 | I68: 15 | K68: 15 | L68: 576
A69: Волшебный лес 2 кл | B69: Иванова Л.Ф | C69: 2009 | D69: 32 | G69: 32 | L69: 670
A70: Татар Теле | B70: Нуриева А. Х | C70: 2007 | I70: 15 | K70: 15 | L70: 572
A71: Татарский язык ч 1 | B71: Хайдарова Р.З. | C71: 2009 | D71: 63 | K71: 63 | L71: 628
A72: Татарский язык ч 2 | B72: Хайдарова Р.З. | C72: 2009 | D72: 62 | K72: 62 | L72: 673
A73: Тат. яз. Для тат. школ | B73: Ягафарова Р.Х. | C73: 2008 | D73: 20 | I73: 20 | K73: 20 | L73: 584
A75: Школа России | B75: 3класс | D75: в наличии | E75: недостаток | F75: излишки | G75: экз. | H75: экз. | I75: в фонде | J75: по классам | K75: всего
A76: Русский язык.Ч.1 | B76: Зеленина Л.М. | C76: 2009 | D76: 33 | G76: 33 | I76: 17 | L76: 634
A77: Русский язык.Ч.2 | B77: Зеленина Л.М. | C77: 2009 | D77: 33 | G77: 33 | I77: 17 | L77: 635
A78: Родная речь.Ч.1 | B78: Климанова Л.Ф. | C78: 2007 | D78: 50 | G78: 50 | I78: 30 | L78: 531
A79: Родная речь.Ч.2 | B79: Климанова Л.Ф | C79: 2007 | D79: 50 | G79: 50 | I79: 32 | L79: 532
A80: Математика.Ч.1 | B80: Моро М.И. | C80: 2007 | D80: 37 | G80: 37 | I80: 22 | K80: 22 | L80: 534
A81: Математика.Ч.2 | B81: Моро М.И. | C81: 2007 | D81: 37 | G81: 37 | I81: 22 | K81: 22 | L81: 535
A82: Окружающий мир.Ч.1 | B82: ПлешаковА.А. | C82: 2008 | D82: 35 | G82: 35 | I82: 15 | L82: 599
A83: Окружающий мир.Ч.2 | B83: ПлешаковА.А. | C83: 2008 | D83: 35 | G83: 35 | I83: 17 | L83: 600
A85: Начальн школа ХХ1 в | B85: 3 класс | I85: в фонде | J85: по кл. | K85: всего
A86: Английский язык | B86: Биболетова М.З. | C86: 2006 | D86: 58 | F86: 4 | G86: 58 | I86: 8 | L86: 499
A87: Окружающий мир. Ч.1 | B87: Виноградова Н.Ф. | C87: нов | D87: 0 | E87: 25 | G87: 0
A88: Окружающий мир. Ч.2 | B88: Виноградова Н.Ф. | C88: нов | D88: 0 | E88: 25 | G88: 0
A89: Литер. чтение. Ч.1 | B89: Ефросинина Л.А. | C89: нов | D89: 0 | E89: 25 | G89: 0
A90: Литер. чтение Ч.2 | B90: Ефросинина Л.А. | C90: нов | D90: 0 | E90: 25 | G90: 0
A91: Русский язык. Ч.1 | B91: Иванов С.В. | C91: 2009 | D91: 21 | E91: 4 | G91: 21 | I91: 21 | K91: 21 | L91: 636
A92: Русский язык. Ч.2 | B92: Иванов С.В. | C92: 2009 | D92: 21 | E92: 4 | G92: 21 | I92: 21 | K92: 21 | L92: 637
A93: Математика.Ч.1 | B93: Рудницкая В.Н. | C93: нов | D93: 0 | E93: 25 | G93: 0
A94: Математика.Ч.2 | B94: Рудницкая В.Н. | C94: нов | D94: 0 | E94: 25 | G94: 0
A96: Региональные
A97: Уроки музыки 3 кл | B97: Асылгараева Р.А | C97: 2009 | D97: 1 | G97: 1 | L97: 705
A98: Волшебн.истории 3 кл | B98: Иванова Л.Ф | C98: 2010 | D98: 10 | G98: 10 | L98: 703
A99: Татарский язык.Ч.1 | B99: Хайдарова Р.З. | C99: 2009 | D99: 38 | G99: 38 | I99: 10 | L99: 665
A100: Тат. яз. Для тат. | B100: Харисов Ф.Ф. | C100: 2009 | D100: 30 | I100: 27 | K100: 27 | L100: 663
A101: Литературн. Чт | B101: Ягафарова Р.Х. | C101: 2009 | D101: 33 | G101: 33 | I101: 33 | L101: 629
A102: Литературн. Чт | B102: Яхин А. Г | C102: 2007 | D102: 20 | G102: 20 | I102: 14 | K102: 14 | L102: 577
A104: Начальная школа ХХ1 | B104: 4класс | D104: в наличии | E104: недостаток | F104: излишки | G104: экз. | H104: экз. | I104: в фонде | J104: по классам | K104: всего
A105: Английский язык | B105: Биболетова М.З. | C105: 2007 | D105: 23 | F105: 7 | G105: 23 | I105: 18 | L105: 538
A106: Окружающий мир. Ч.1 | B106: Виноградова Н.Ф. | C106: 2009 | D106: 21 | F106: 5 | G106: 21 | L106: 642
A107: Окружающий мир. Ч.2 | B107: Виноградова Н.Ф. | C107: 2009 | D107: 21 | F107: 5 | G107: 21 | L107: 643
A108: Литер. чтение. Ч.1 | B108: Ефросинина Л.А. | C108: 2009 | D108: 21 | F108: 5 | G108: 21 | L108: 638
A109: Литер. чтение. Ч.2 | B109: Ефросинина Л.А. | C109: 2009 | D109: 21 | F109: 5 | G109: 21 | L109: 639
A110: Русский язык. Ч.1 | B110: Иванов С.В. | C110: 2010 | D110: 30 | F110: 14 | G110: 30 | L110: 697
A111: Русский язык. Ч.2 | B111: Иванов С.В. | C111: 2010 | D111: 30 | F111: 14 | G111: 30 | L111: 698
A112: Основы религии | B112: Сахаров А.Н. | C112: 2011 | D112: 57 | G112: 57 | I112: 57 | L112: 732
A114: Региональные
A115: Музыка | B115: Бакиева Н.В. | C115: 2005 | D115: 25 | G115: 25 | I115: 23 | L115: 483
A116: Татарский язык | B116: Сафиуллина Ф.С. | C116: 2005 | D116: 36 | G116: 36 | I116: 6 | L116: 455
A117: Татарский язык.Ч.1 | B117: Хайдарова Р.З. | C117: 2005 | D117: 32 | F117: 16 | G117: 38 | I117: 30 | L117: 453
A118: Татарский язык.Ч.2 | B118: Хайдарова Р.З. | C118: 2005 | D118: 32 | F118: 16 | G118: 36 | L118: 454
A119: Татарский язык.Ч.1 | B119: Хайдарова Р.З. | C119: 2010 | D119: 64 | F119: 13 | G119: 64 | L119: 701
A120: Татарский язык.Ч.2 | B120: Хайдарова Р.З. | C120: 2010 | D120: 64 | F120: 13 | G120: 64 | L120: 702
A121: Тат. яз. Для тат. | B121: Харисов Ф.Ф. | C121: 2009 | D121: 22 | G121: 22 | I121: 22 | L121: 664
A122: Тат. лит для тат.шк. | B122: Яхин А.Г. | C122: 2008 | D122: 18 | G122: 18 | L122: 621
A123: Литерат. чтение Ч.2. | B123: Ягафарова Р.Х. | C123: 2006 | D123: 15 | G123: 15 | I123: 15 | L123: 529
A124: Книга для чтения | B124: Ягафарова Р.Х. | C124: 2009 | D124: 24 | G124: 24 | I124: 20 | L124: 674
A125: Литературн. чтение ч1 | B125: Ягафарова Р.Х. | C125: 2005 | D125: 20 | G125: 20 | K125: 20 | L125: 484
A127: Школа России | B127: 4класс | D127: в наличии | E127: недостаток | F127: излишки | G127: экз. | H127: экз. | I127: в фонде | J127: по классам | K127: всего
A128: Русский язык. Ч1 | B128: Зеленина Л.М. | C128: 2010 | D128: 26 | F128: 7 | G128: 26 | I128: 10 | L128: 679
A129: Русский язык. Ч2 | B129: Зеленина Л.М. | C129: 2010 | D129: 26 | F129: 7 | G129: 26 | L129: 680
A130: Родная речь. Ч.1 | B130: Климанова Л.Ф. | C130: 2009 | D130: 34 | F130: 15 | G130: 34 | L130: 640
A131: Родная речь. Ч.2 | B131: Климанова Л.Ф. | C131: 2009 | D131: 34 | F131: 15 | G131: 34 | L131: 641
A132: Математика.Ч.1 | B132: Моро М.И. | C132: 2008 | D132: 41 | F132: 22 | G132: 41 | I132: 10 | L132: 597
A133: Математика.Ч.2 | B133: Моро М.И. | C133: 2008 | D133: 41 | F133: 22 | G133: 41 | I133: 7 | L133: 598
A134: Окружающий мир.Ч.1 | B134: ПлешаковА.А. | C134: 2009 | D134: 32 | F134: 13 | G134: 32 | L134: 644
A135: Окружающий мир.Ч.2 | B135: ПлешаковА.А. | C135: 2009 | D135: 32 | F135: 13 | G135: 32 | L135: 645
B137: 5класс | D137: в наличии | E137: недостаток | F137: излишки | G137: экз. | H137: экз. | I137: в фонде | J137: по классам | K137: всего
A138: История др.мира | B138: Андреевская Т.П. | C138: 2011 | D138: 26 | L138: 739
A139: Англиийский язык | B139: Биболетова М.З. | C139: 2008 | D139: 47 | E139: 1 | G139: 47 | I139: 26 | L139: 601
A140: Англиийский язык | B140: Биболетова М.З. | C140: 2009 | D140: 22 | G140: 22 | I140: 6 | L140: 632
A141: История др.мира | B141: Вигасин А.А. | C141: 2006 | D141: 58 | F141: 10 | G141: 58 | I141: 24 | L141: 514
A142: Математика | B142: Виленкин Н.Я. | C142: 2005 | D142: 50 | F142: 2 | G142: 50 | I142: 12 | L142: 443
A143: Литература.Ч.1 | B143: Коровина В.Я. | C143: 2006 | D143: 58 | F143: 10 | G143: 58 | I143: 23 | L143: 515
A144: Литература.Ч.2 | B144: Коровина В.Я. | C144: 2006 | D144: 58 | F144: 10 | G144: 58 | I144: 23 | L144: 516
A145: Русский язык | B145: Ладыженская Т.А. | C145: 2007 | D145: 43 | E145: 5 | G145: 43 | I145: 8 | L145: 556
A146: Технология (д.,м.) | B146: Павлова М.Б.Сасова И.А. | C146: 2006 | D146: 25 | G146: 25 | I146: 2 | J146: 23 | L146: 512
A147: Природоведение | B147: Плешаков А.А. | C147: 2005 | D147: 50 | F147: 2 | G147: 50 | I147: 15 | L147: 442
A149: Литература.Ч.1. | B149: Бунеев Р.Н. | C149: 2006 | D149: 20 | G149: 20 | I149: 1 | L149: 496
A150: Литература.Ч.2. | B150: Бунеев Р.Н. | C150: 2006 | D150: 20 | G150: 20 | I150: 1 | L150: 497
A152: Региональные
A153: Литература | B153: Залялеева М.Ш. | C153: 2006 | D153: 5 | G153: 5 | I153: 1 | L153: 487
A154: Татарский язык. | B154: Хайдарова Р.З. | C154: 2007 | D154: 30 | F154: 7 | G154: 55 | K154: 30 | L154: 578
A155: Татарский язык. | B155: Хайдарова Р.З. | C155: 2006 | D155: 28 | G155: 30 | I155: 12 | K155: 28 | L155: 520
A156: Татарский язык | B156: Хасаншина Р.Г. | C156: 2007 | G156: 30 | I156: 30 | L156: 587
A157: Татарский язык | B157: Хайдарова Р.З. | C157: 2011 | D157: 55 | G157: 55 | L157: 755
B159: 6 класс | D159: в наличии | E159: недостаток | F159: излишки | G159: экз. | H159: экз. | I159: в фонде | J159: по классам | K159: всего
A160: Русский язык | B160: Баранов М.Т. | C160: 2008 | D160: 40 | F160: 13 | G160: 40 | L160: 602
A161: История ср. веков | B161: Бойцов М.А. | C161: 2007 | D161: 45 | F161: 18 | G161: 45 | L161: 548
A162: Математика | B162: Виленкин Н.Я. | C162: 2006 | D162: 55 | F162: 28 | G162: 55 | L162: 500
A163: Технология д/мальч. | B163: Гуревич М.И. | C163: 2007 | D163: 15 | F163: 1 | G163: 15 | L163: 554
A164: История России | B164: Данилов А.А. | C164: 2009 | D164: 43 | F164: 16 | G164: 43 | L164: 650
A165: География России | B165: Дронов В.П. | C165: 2009 | D165: 40 | F165: 13 | G165: 40 | L165: 652
A166: Счастливый англ. | B166: Кауфман К.И | C166: 2009 | D166: 20 | K166: 20 | L166: 647
A167: Литература. Ч.1 | B167: Коровина В.Я. | C167: 2009 | D167: 45 | F167: 18 | G167: 45 | L167: 661
A168: Литература. Ч.2 | B168: Коровина В.Я. | C168: 2009 | D168: 45 | F168: 18 | G168: 45 | L168: 661
A169: Обществознание | B169: Кравченко А.И. | C169: 2006 | D169: 50 | F169: 23 | G169: 50 | L169: 504
A170: Технология д/девоч. | B170: Павлова М.Б. | C170: 2007 | D170: 15 | F170: 2 | G170: 15 | L170: 555
A171: Биология | B171: Сонин Н.И. | C171: 2005 | D171: 60 | F171: 33 | G171: 60 | L171: 441
A173: Региональные
A174: Татарская литература | B174: Ганиева Ф.А | C174: 2006 | D174: 10 | K174: 10 | L174: 488
A175: Татарская литература | B175: Галимуллин | C175: 2005 | D175: 5 | K175: 5 | L175: 462
A176: Татарский язык | B176: Максимов Н.В | C176: 2005 | D176: 5 | K176: 5 | L176: 463
A177: Татарский язык | B177: Хайдарова Р.З. | C177: 2007 | D177: 20 | E177: 7 | G177: 20 | L177: 550
A178: История Татарстана | B178: Хузин Ф.Ш. | C178: нов | D178: 0 | E178: 27 | G178: 0
B180: 7класс | D180: в наличии | E180: недостаток | F180: излишки | G180: экз. | H180: экз. | I180: в фонде | J180: по классам | K180: всего
A181: Геометрия 7-9 | B181: Атанасян Л.С. | C181: нов | D181: 0 | E181: о | G181: 0
A182: Русский язык | B182: Баранов М.Т. | C182: 2009 | D182: 38 | F182: 9 | G182: 38 | L182: 646
A183: Английский язык | B183: Биболетова М.З. | C183: 2010 | D183: 55 | F183: 26 | G183: 55 | K183: 55 | L183: 677
A184: Технология д/мальч. | B184: Гуревич М.И. | C184: 2008 | D184: 25 | F184: 14 | G184: 25 | L184: 617
A185: Новая история | B185: Дмитриева О.В | C185: 2007 | D185: 3 | K185: 3 | L185: 546
A186: История России | B186: Данилов А.А. | C186: 2010 | D186: 58 | F186: 29 | G186: 58 | L186: 690
A187: География | B187: Душина И.В. | C187: 2010 | D187: 56 | F187: 27 | G187: 56 | L187: 688
A188: Общая биология | B188: Захаров В.Б. | C188: 2006 | D188: 12 | E188: 17 | G188: 12 | L188: 498
A189: Счастливый англ. | B189: Кауфман К.И | C189: 2010 | D189: 5 | K189: 5 | L189: 696
A190: Литература. Ч.1 | B190: Коровина В.Я. | C190: нов | D190: 0 | E190: 29 | G190: 0
A191: Литература. Ч.2 | B191: Коровина В.Я. | C191: нов | D191: 0 | E191: 29 | G191: 0
A192: Обществознание | B192: Кравченко А.И. | C192: 2007 | D192: 30 | F192: 1 | G192: 30 | L192: 551
A193: Алгебра | B193: Макарычев Ю.Н. | C193: 2010 | D193: 52 | F193: 23 | G193: 52 | L193: 689
A194: Технология (девочки) | B194: Павлова М.Б. | C194: 2008 | D194: 25 | F194: 6 | G194: 25 | L194: 616
A195: Физика | B195: Пёрышкин А.Ф. | C195: 2008 | D195: 40 | F195: 11 | G195: 40 | L195: 608
A196: Новая история | B196: Юдовская А.Я. | C196: нов | D196: 0 | E196: 29 | G196: 0
A198: Черчение | B198: Ботвинников А.Д | C198: 2005 | D198: 20 | K198: 20 | L198: 450
A199: Геометрия 7-9 | B199: Погорелов А.В. | C199: 2009 | D199: 52 | L199: 648
A201: Региональные
A202: Татарский язык | B202: Асылгараева Р.А. | C202: 2010 | D202: 23 | F202: 9 | G202: 23 | L202: 706
A203: Татарский язык | B203: Асылгараева Р.А. | C203: 2005 | D203: 20 | K203: 20 | L203: 480
A204: Татарская литература | B204: Мусин Ф.М. | C204: 2005 | D204: 5 | E204: 9 | G204: 5 | L204: 464
A205: Татарская литература | B205: Мусин Ф.М. | C205: 2011 | D205: 20 | G205: 20 | L205: 745
A207: Татарская литература ч1 | B207: Ахметзянов М.Г | C207: 2007 | D207: 20 | K207: 20 | L207: 564
A208: Татарская литература ч2 | B208: Ахметзянов М.Г | C208: 2007 | D208: 20 | K208: 20 | L208: 565
A209: История Татарстана | B209: Гилязов И.А. | C209: 2004 | D209: 50 | L209: 440
A210: История Татарстана | B210: Гилязов И.А. | C210: 2005 | D210: 10 | E210: 19 | G210: 10 | L210: 482
A211: Англ.яз 7-9 №916 | B211: Иванова Л.Ф | C211: 2007 | D211: 80 | G211: 80 | L211: 549
A212: Татарский язык | B212: Хайдарова Р.З. | C212: 2007 | D212: 40 | F212: 25 | G212: 40 | L212: 571
A213: Литература | B213: Хатипов Ф.М | C213: 2006 | D213: 15 | K213: 15 | L213: 489
B214: 8 класс | D214: в наличии | E214: недостаток | F214: излишки | G214: экз. | H214: экз. | I214: в фонде | J214: по классам | K214: всего
A215: Геометрия | B215: Атанасян Л.С. | C215: нов | D215: 0 | E215: 41 | G215: 0
A216: География России | B216: Баринова И.И. | C216: 2006 | D216: 36 | E216: 5 | G216: 36 | L216: 494
A217: Русский язык | B217: Бархударов С.Г. | C217: 2007 | D217: 40 | E217: 1 | G217: 40 | L217: 536
A218: Обществознание 8-9 | B218: Боголюбов Л.Н. | C218: 2009 | D218: 44 | E218: 34 | G218: 44 | L218: 651
A219: Обществознание | B219: Кравченко А.И | C219: 2008 | D219: 50 | K219: 50 | L219: 604
... 136 more rows

Sheet Лист3
B1: Инвентаризационная опись учебной литературы МБОУ "Бетькинская СОШ" по состоянию на 31.05.2012 года
A4: инв. № | B4: автор | C4: наименование | D4: класс | E4: язык изложения | F4: год издания | G4: кол-во учебников | H4: контингент | I4: в наличии | J4: нехватка | K4: излишки | L4: номер и дата накладной | M4: списать
A5: 466 | B5: Пискарёв В.И. | C5: История Татарстана | D5: 8 | F5: 2005 | G5: 20 | L5: 09,03,2006 | M5: списать
A6: 467 | B6: Архипов А.П. | C6: Азбука страхования | D6: 0 | F6: 2005 | G6: 25 | L6: 09,03,2006 | M6: списать
A7: 468 | B7: Гараева и др. | C7: Язык-ключ к знанию | D7: 0 | F7: 2005 | G7: 30 | L7: 09,03,2006 | M7: списать
A8: 469 | B8: Миннуллин К.М. | C8: Песня сквозь годы | D8: 0 | F8: 2004 | G8: 15 | L8: 09,03,2006 | M8: списать
A9: 470 | B9: Хабибуллина З.Н. | C9: Тат.лит | D9: 9 | F9: 2005 | G9: 49 | L9: 09,03,2006 | M9: списать
A10: 471 | B10: Сафиуллина Ф.С | C10: Татарский язык | D10: 11 | F10: 2005 | G10: 20 | L10: 25,03,2006 | M10: списать
A11: 472 | B11: Васильева | C11: Книга для чтения | D11: 0 | F11: 2005 | G11: 20 | L11: 27,03,2006 | M11: списать
A12: 473 | B12: Васильева | C12: Методич. Пособие | D12: 0 | F12: 2005 | G12: 25 | L12: 27,03,2006 | M12: списать
A13: 474 | B13: Абзалов Ф. | C13: Физическая культура | D13: 0 | F13: 2005 | G13: 10 | L13: 27,03,2006 | M13: списать
A14: 475 | B14: Васильева | C14: Учебник | D14: 0 | F14: 2005 | G14: 25 | L14: 27,03,2006 | M14: списать
A15: 476 | B15: Харисова Л.А. | C15: Культура народов Татарстана | D15: 0 | F15: 2005 | G15: 20 | L15: 27,03,2006 | M15: списать
A16: 477 | B16: Беляев Д.К. | C16: Общая биология | D16: 10 | F16: 2005 | G16: 58 | L16: 26,04,2006 | M16: списать
A17: 478 | B17: Захаров В.Б. | C17: Общая биология | D17: 10 | F17: 2006 | G17: 58 | L17: 26,04,2006 | M17: списать
A18: 479 | B18: Асылгараева Р.А. | C18: Татарский язык | D18: 8 | F18: 2005 | G18: 5 | L18: 09,06,2006 | M18: списать
A19: 480 | B19: Асылгараева Р.А. | C19: Татарский язык | D19: 7 | F19: 2005 | G19: 10 | L19: 09,06,2006 | M19: списать
A20: 481 | B20: Зиннатуллина К.З. | C20: Тат.яз | D20: 9 | F20: 2005 | G20: 15 | L20: 09,06,2006 | M20: списать
A21: 482 | B21: Гилязов И.А. | C21: История Татарстана | D21: 7 | F21: 2005 | G21: 18 | L21: 09,06,2006 | M21: списать
A22: 483 | B22: Бакиева Н.В. | C22: Музыка | D22: 4 | F22: 2005 | G22: 10 | L22: 12,06,2006 | M22: списать
A23: 484 | B23: Ягафарова Р.Х. | C23: Литературн. чтение ч1 | D23: 4 | F23: 2005 | G23: 10 | L23: 12,06,2006 | M23: списать
A24: 485 | B24: Моро М.И. | C24: Математика.Ч.1 | D24: 2 | F24: 2006 | G24: 36 | L24: 20,09,2006 | M24: списать
A25: 486 | B25: Моро М.И. | C25: Математика.Ч.2 | D25: 2 | F25: 2006 | G25: 15 | L25: 20,09,2006 | M25: списать
A26: 487 | B26: Залялеева М.Ш. | C26: Литература | D26: 5 | F26: 2006 | G26: 20 | L26: 20,09,2006
A27: 488 | B27: Ганиева Ф.А | C27: Татарская литература | D27: 6 | F27: 2006 | G27: 20 | L27: 20,09,2006
A28: 489 | B28: Хатипов Ф.М | C28: Литература | D28: 7 | F28: 2006 | G28: 12 | L28: 20,09,2006
A29: 490 | B29: Ахмадуллин А.Г | C29: Татарская литература | D29: 8 | F29: 2006 | G29: 58 | L29: 20,09,2006
A30: 491 | B30: Валитова Р.Г. | C30: Тат. яз. | D30: 1 | F30: 2006 | G30: 55 | L30: 20,09,2006
A31: 493 | B31: Ягафарова Р.Х. | C31: Азбука | D31: 1 | F31: 2006 | G31: 50 | L31: 20,09,2006
A32: 494 | B32: Баринова И.И. | C32: География России | D32: 8 | F32: 2006 | G32: 50 | L32: 20,09,2006
A33: 495 | B33: Раковская Э.В | C33: География .Прир.Рос. | D33: 8 | F33: 2006 | G33: 25 | L33: 20,09,2006
A34: 496 | B34: Бунеев Р.Н. | C34: Литература.Ч.1. | D34: 5 | F34: 2006 | G34: 25 | L34: 20,09,2006
A35: 497 | B35: Бунеев Р.Н. | C35: Литература.Ч.2. | D35: 5 | F35: 2006 | G35: 30 | L35: 20,09,2006
A36: 498 | B36: Захаров В.Б. | C36: Общая биология | D36: 7 | F36: 2006 | G36: 50 | L36: 20,09,2006
A37: 499 | B37: Биболетова М.З. | C37: Английский язык | D37: 3 | F37: 2006 | G37: 50 | L37: 20,09,2006
A38: 500 | B38: Виленкин Н.Я. | C38: Математика | D38: 6 | F38: 2006 | G38: 50 | L38: 20,09,2006
A39: 501 | B39: Захаров В.Б | C39: Общая биология | D39: 11 | F39: 2006 | G39: 50 | L39: 20,09,2006
A40: 504 | B40: Кравченко А.И. | C40: Обществознание | D40: 6 | F40: 2006 | G40: 25 | L40: 2006-10-19
A41: 505 | B41: Иванов С.И.. | C41: Основы эк. теор.Ч.1 | D41: 10 | F41: 2006 | G41: 25 | L41: 2006-10-19
A42: 506 | B42: Иванов С.И. | C42: Основы эк. теор. Ч.2 | D42: 10 | F42: 2006 | G42: 58 | L42: 2006-10-19
A43: 507 | B43: Каменский А.А | C43: Общая биология | D43: 10 | F43: 2006 | G43: 58 | L43: 2006-11-14
A44: 508 | B44: Зинин С.А. | C44: Рус. лит-ра. 19в.Хр.Ч.1 | D44: 10 | F44: 2006 | G44: 58 | L44: 2006-11-14
A45: 509 | B45: Зинин С.А. | C45: Рус. лит-ра. 19в.Хр.Ч.2 | D45: 10 | F45: 2006 | G45: 20 | L45: 2006-11-14
A46: 510 | B46: Сахаров А.Н. | C46: История России.Ч.2 | D46: 10 | F46: 2006 | G46: 58 | L46: 2006-11-14
A47: 511 | B47: Сахаров А.Н. | C47: История России.Ч.1 | D47: 10 | F47: 2006 | G47: 62 | L47: 2006-11-14
A48: 512 | B48: Павлова М.Б.Сасова И.А. | C48: Технология (д.,м.) | D48: 5 | F48: 2006 | G48: 28 | L48: 2006-11-14
A49: 513 | B49: Симоненко В.Д | C49: Технология | D49: 10 | F49: 2006 | G49: 10 | L49: 2006-11-14
A50: 514 | B50: Вигасин А.А. | C50: История др.мира | D50: 5 | F50: 2006 | G50: 50 | L50: 2006-11-14
A51: 515 | B51: Коровина В.Я. | C51: Литература.Ч.1 | D51: 5 | F51: 2006 | G51: 15 | L51: 2006-11-14
A52: 516 | B52: Коровина В.Я. | C52: Литература.Ч.2 | D52: 5 | F52: 2006 | G52: 50 | L52: 2006-11-14
A53: 517 | B53: Сафиуллина Ф.С | C53: Татарский язык | D53: 11 | F53: 2006 | G53: 50 | L53: 2006-11-15
A54: 518 | B54: Климанова Л.Ф. | C54: Родная речь. Ч.1 | D54: 2 | F54: 2006 | G54: 55 | L54: 2007-03-13
A55: 519 | B55: Климанова Л.Ф. | C55: Родная речь. Ч.2 | D55: 2 | F55: 2006 | G55: 37 | L55: 2007-03-13
A56: 520 | B56: Хайдарова Р.З. | C56: Татарский язык. | D56: 5 | F56: 2006 | G56: 37 | L56: 2007-03-13
A57: 521 | B57: Мусин Ф.М | C57: Тат. лит. | D57: 11 | F57: 2006 | G57: 40 | L57: 2007-03-15
A58: 522 | B58: Без автора | C58: Учебник англ.яз. | D58: 0 | F58: 2006 | G58: 20 | L58: 2007-06-09
A59: 523 | B59: Без автора | C59: Учебник англ.яз. | D59: 0 | F59: 2006 | G59: 45 | L59: 2007-06-09
A60: 524 | B60: Без автора | C60: Учебник англ.яз. | D60: 0 | F60: 2006 | G60: 7 | L60: 2007-06-09
A61: 525 | B61: Без автора | C61: Учебник англ.яз. | D61: 0 | F61: 2006 | G61: 37 | L61: 2007-06-09
A62: 526 | B62: Султанбеков Б.Ф. | C62: История Татарстана | D62: 9 | F62: 2006 | G62: 40 | L62: 2007-06-10
A63: 527 | B63: Валитова Р.Г. | C63: Алифба | D63: 1 | F63: 2004 | G63: 3 | L63: 2007-06-12
A64: 528 | B64: Мустафин | C64: История Татарстана | D64: 8 | F64: 2003 | G64: 20 | L64: 2077-06-12
A65: 529 | B65: Ягафарова Р.Х. | C65: Литерат. чтение Ч.2. | D65: 4 | F65: 2006 | G65: 45 | L65: 2007-06-13
A66: 530 | B66: Рахимов И.И. | C66: Растит.и животный мир | D66: 0 | F66: 2006 | G66: 80 | L66: 2007-06-13
A67: 531 | B67: Климанова Л.Ф. | C67: Родная речь.Ч.1 | D67: 3 | F67: 2007 | G67: 20 | L67: 2007-08-15
A68: 532 | B68: Климанова Л.Ф | C68: Родная речь.Ч.2 | D68: 3 | F68: 2007 | G68: 30 | L68: 2007-08-15
A69: 533 | B69: Сонин Н.И. | C69: Биология | D69: 8 | F69: 2007 | G69: 15 | L69: 2007-08-15
A70: 534 | B70: Моро М.И. | C70: Математика.Ч.1 | D70: 3 | F70: 2007 | G70: 49 | L70: 2007-08-15
A71: 535 | B71: Моро М.И. | C71: Математика.Ч.2 | D71: 3 | F71: 2007 | G71: 15 | L71: 2007-08-15
A72: 536 | B72: Бархударов С.Г. | C72: Русский язык | D72: 8 | F72: 2007 | G72: 15 | L72: 2007-09-14
A73: 537 | B73: Закиев М.З | C73: Татарский язык | D73: 8 | F73: 2007 | G73: 43 | L73: 2007-09-15
A74: 538 | B74: Биболетова М.З. | C74: Английский язык | D74: 4 | F74: 2007 | G74: 54 | L74: 2007-09-16
A75: 539 | B75: Валитова Р.Г. | C75: Алифба | D75: 1 | F75: 2007 | G75: 54 | L75: 2007-09-17
A76: 540 | B76: Мухерджее | C76: Хартия Земли | D76: 0 | F76: 2007 | G76: 30 | L76: 2007-10-04
A77: 541 | B77: Мухерджее | C77: Хартия Земли | D77: 0 | F77: 2007 | G77: 9 | L77: 2007-10-04
A78: 542 | B78: Мухерджее | C78: Хартия Земли | D78: 0 | F78: 2007 | G78: 20 | L78: 2007-10-04
A79: 543 | B79: Ислаев Ф.Г. | C79: Хартия Земли | D79: 0 | F79: 2007 | G79: 20 | L79: 2007-10-04
A80: 544 | B80: Колмогоров А.Н | C80: Алгебра | D80: 10 | F80: 2007 | G80: 20 | L80: 2007-10-05
A81: 545 | B81: Рамзаева Т.Г | C81: Русский язык | D81: 1 | F81: 2007 | G81: 20 | L81: 2007-10-05
A82: 546 | B82: Дмитриева О.В | C82: Новая история | D82: 7 | F82: 2007 | G82: 20 | L82: 2007-10-06
A83: 547 | B83: Семакин И.Г. | C83: Информатика | D83: 9 | F83: 2007 | G83: 15 | L83: 2007-10-06
A84: 548 | B84: Бойцов М.А. | C84: История ср. веков | D84: 6 | F84: 2007 | G84: 15 | L84: 2007-10-06
A85: 549 | B85: Иванова Л.Ф | C85: Англ.яз 7,8,9 №916 | D85: 7 | F85: 2007 | G85: 15 | L85: 2007-10-07
A86: 550 | B86: Хайдарова Р.З. | C86: Татарский язык | D86: 6 | F86: 2007 | G86: 40 | L86: 2007-11-13
A87: 551 | B87: Кравченко А.И. | C87: Обществознание | D87: 7 | F87: 2007 | G87: 15 | L87: 2007-11-13
A88: 552 | B88: Яхин А.Г. | C88: Тат. лит. | D88: 8 | F88: 2007 | G88: 38 | L88: 2007-11-13
A89: 553 | B89: Кузнецов Л.М | C89: Химия | D89: 8 | F89: 2007 | G89: 15 | L89: 2007-11-13
A90: 554 | B90: Гуревич М.И. | C90: Технология д/мальч. | D90: 6 | F90: 2007 | G90: 15 | L90: 2007-11-13
A91: 555 | B91: Павлова М.Б. | C91: Технология д/девоч. | D91: 6 | F91: 2007 | G91: 20 | L91: 2007-11-13
A92: 556 | B92: Ладыженская Т.А. | C92: Русский язык | D92: 5 | F92: 2007 | G92: 30 | L92: 2007-11-13
A93: 557 | B93: Зинин С.А. | C93: Литература. 19 век.Ч.1 | D93: 9 | F93: 2007 | G93: 45 | L93: 2007-11-13
A94: 558 | B94: Зинин С.А. | C94: Литература. 19 век.Ч.2 | D94: 9 | F94: 2007 | G94: 25 | L94: 2007-11-13
A95: 559 | B95: Кузнецова М.А | C95: Химия | D95: 10 | F95: 2007 | G95: 24 | L95: 2007-11-13
A96: 560 | B96: Плешаков А.А. | C96: Окружающий мир. Ч.2 | D96: 2 | F96: 2007 | G96: 50 | L96: 2007-11-13
A97: 561 | B97: Бакиева Н.В., Гарипова | C97: Музыкал.букварь1кл. | D97: 1 | F97: 2007 | G97: 20 | H97: н/д | L97: 2007-12-29
A98: 562 | B98: Ахметзянов М.Г | C98: Татарская литер. ч 1 | D98: 8 | F98: 2007 | G98: 20 | L98: 2007-12-29
A99: 563 | B99: Ахметзянов М.Г | C99: Татарская литер. ч 2 | D99: 8 | F99: 2007 | G99: 30 | L99: 2007-12-29
A100: 564 | B100: Ахметзянов М.Г | C100: Татарская литература ч1 | D100: 7 | F100: 2007 | G100: 30 | L100: 2007-12-29
A101: 565 | B101: Ахметзянов М.Г | C101: Татарская литература ч2 | D101: 7 | F101: 2007 | L101: 2007-12-29
A102: 566 | B102: Коллектив | C102: Сборник осн.док.по ГО | D102: 0 | F102: 2007 | G102: 20 | L102: №25 11.03.2008
A103: 567 | B103: Нурмухаметова А. | C103: Азбука | D103: 1 | F103: 2007 | G103: 20 | L103: №1от 11.03.08
A104: 568 | B104: Тагиров И.Р. | C104: История ХХ века | D104: 0 | F104: 2005 | G104: 30 | L104: №1от 11.03.08
A105: 569 | B105: Яхин А.Г. | C105: Тат.лит | D105: 10 | F105: 2007 | G105: 25 | L105: №1от 11.03.08
A106: 570 | B106: Яхин А.Г. | C106: Тат. лит. | D106: 9 | F106: 2007 | G106: 45 | L106: №1от 11.03.08
A107: 571 | B107: Хайдарова Р.З. | C107: Татарский язык | D107: 7 | F107: 2007 | G107: 50 | L107: №1от 11.03.08
A108: 572 | B108: Нуриева А. Х | C108: Татар Теле | D108: 2 | F108: 2007 | G108: 50 | L108: №1от 11.03.08
A109: 573 | B109: Плешаков А.А. | C109: Окружающий мир. Ч.1 | D109: 2 | F109: 2007 | G109: 41 | L109: №1от 11.03.08
A110: 574 | B110: Сахаров А.Н. | C110: История религий | D110: 10 | F110: 2007 | G110: 41 | L110: №1от 11.03.08
A111: 575 | B111: Вагизов С. Г | C111: Книга для чтения 2клЧ. 1 | D111: 2 | F111: 2007 | G111: 35 | L111: 2008-03-17
A112: 576 | B112: Вагизов С. Г | C112: Книга для чтения Ч. 2 | D112: 2 | F112: 2007 | G112: 35 | L112: 2008-03-17
A113: 577 | B113: Яхин А. Г | C113: Литературн. Чт | D113: 3 | F113: 2007 | G113: 47 | L113: 2008-03-17
A114: 578 | B114: Хайдарова Р.З. | C114: Татарский язык. | D114: 5 | F114: 2007 | G114: 40 | L114: 2008-03-17
A115: 579 | B115: Сафиуллина Ф.с | C115: Татарский язык | D115: 10 | F115: 2007 | G115: 44 | L115: 2008-03-17
A116: 580 | B116: Сафиуллина Ф.С | C116: Татарский язык | D116: 11 | F116: 2007 | G116: 50 | L116: 2008-03-17
A117: 581 | B117: Сафиуллина Ф.С | C117: Татарский язык | D117: 9 | F117: 2008 | G117: 50 | L117: 2008-03-17
A118: 582 | B118: Харисов Ф.Ф. | C118: Тат. яз для тат. шк. | D118: 1 | F118: 2008 | G118: 35 | L118: 2008-09-09
A119: 583 | B119: Ягафарова Р.Х. | C119: Тат. яз. Для тат. школ | D119: 1 | F119: 2008 | G119: 48 | L119: 2008-09-09
A120: 584 | B120: Ягафарова Р.Х. | C120: Тат. яз. Для тат. школ | D120: 2 | F120: 2008 | G120: 40 | L120: 2008-09-09
A121: 585 | B121: Сафиуллина Ф.С. | C121: Тат. яз. д/рус.яз. Ч 1 | D121: 1 | F121: 2009 | G121: 48 | L121: 2008-09-09
A122: 586 | B122: Сафиуллина Ф.С. | C122: Тат. яз. д/рус.яз. Ч2 | D122: 1 | F122: 2008 | G122: 43 | L122: 2008-09-09
A123: 587 | B123: Хасаншина Р.Г. | C123: Татарский язык | D123: 5 | F123: 2007 | G123: 50 | L123: 2008-09-09
A124: 588 | B124: Закиев М.З | C124: Татарский язык | D124: 9 | F124: 2008 | G124: 60 | L124: 2008-09-09
A125: 589 | B125: Андромонова Н.А | C125: Русская речь | D125: 9 | F125: 2008 | G125: 30 | L125: 2008-09-09
A126: 590 | B126: Сафиуллина Ф.С. | C126: Тат. яз. Для р/яз. | D126: 8 | F126: 2008 | G126: 25 | L126: 2008-09-09
A127: 591 | B127: Яхин А.Г. | C127: Тат. лит. | D127: 11 | F127: 2008 | G127: 25 | L127: 2008-09-09
A128: 592 | B128: Гилязов И.А. | C128: История Татарстана | D128: 10 | F128: 2008 | G128: 51 | L128: 2008-09-09
A129: 593 | B129: Хасаншина Р.Г. | C129: Уроки татарского | D129: 0 | F129: 2007 | G129: 18 | L129: 2008-09-09
A130: 594 | B130: Смыков | C130: История России | D130: 0 | F130: 2007 | G130: 30 | L130: 2008-09-09
A131: 595 | B131: Рамзаева Т. Г | C131: Русский язык Ч. 1 | D131: 2 | F131: 2008 | G131: 30 | L131: №25от 22.09.08
A132: 596 | B132: Рамзаева Т. Г | C132: Русский язык Ч. 2 | D132: 2 | F132: 2008 | G132: 30 | L132: №25от 22.09.08
A133: 597 | B133: Моро М.И. | C133: Математика.Ч.1 | D133: 4 | F133: 2008 | G133: 4 | L133: №25от 22.09.08
A134: 598 | B134: Моро М.И. | C134: Математика.Ч.2 | D134: 4 | F134: 2008 | G134: 4 | L134: №25от 22.09.08
A135: 599 | B135: ПлешаковА.А. | C135: Окружающий мир.Ч.1 | D135: 3 | F135: 2008 | G135: 63 | L135: №25от 22.09.08
A136: 600 | B136: ПлешаковА.А. | C136: Окружающий мир.Ч.2 | D136: 3 | F136: 2008 | G136: 33 | L136: №25от 22.09.08
A137: 601 | B137: Биболетова М.З. | C137: Англиийский язык | D137: 5 | F137: 2008 | G137: 18 | L137: №25от 22.09.08
A138: 602 | B138: Баранов М.Т. | C138: Русский язык | D138: 6 | F138: 2008 | G138: 20 | L138: №25от 22.09.08
A139: 603 | B139: Захарова Е.Н. | C139: Новая история | D139: 8 | F139: 2007 | G139: 22 | L139: №25от 22.09.08
A140: 604 | B140: Кравченко А.И | C140: Обществознание | D140: 8 | F140: 2008 | G140: 20 | L140: №25от 22.09.08
A141: 605 | B141: Алексеев А.И | C141: География России | D141: 9 | F141: 2008 | G141: 33 | L141: №25от 22.09.08
A142: 606 | B142: Минченков Е.Е. | C142: Химия | D142: 8 | F142: 2006 | G142: 33 | L142: №25от 22.09.08
A143: 607 | B143: Минченков Е.Е. | C143: Химия | D143: 9 | F143: 2006 | G143: 21 | L143: №25от 22.09.08
A144: 608 | B144: Пёрышкин А.Ф. | C144: Физика | D144: 7 | F144: 2008 | G144: 21 | L144: №25от 22.09.08
A145: 609 | B145: Семакин И.Г. | C145: Информатика 10-11 | D145: 10 | F145: 2008 | G145: 21 | L145: №25от 22.09.08
A146: 610 | B146: Колмогоров А.Н | C146: Алгебра | D146: 10 | F146: 2008 | G146: 21 | L146: №25от 22.09.08
A147: 611 | B147: Мякишев Г.Я. | C147: Физика | D147: 10 | F147: 2008 | G147: 34 | L147: №25от 22.09.08
A148: 612 | B148: Рудзитис Г.Е. | C148: Химия | D148: 10 | F148: 2008 | G148: 34 | L148: №25от 22.09.08
A149: 613 | B149: Кузовлев В.П. | C149: Английский язык 10-11 | D149: 10 | F149: 2008 | G149: 21 | L149: №25от 22.09.08
A150: 614 | B150: Филиппов Л.В. | C150: Новйшая история | D150: 0 | F150: 2008 | G150: 21 | L150: №25от 22.09.08
A151: 615 | B151: Поляков Л.В. | C151: О/знание | D151: 0 | F151: 2008 | G151: 32 | L151: №25от 22.09.08
A152: 616 | B152: Павлова М.Б. | C152: Технология (девочки) | D152: 7 | F152: 2008 | G152: 32 | L152: №25от 22.09.08
A153: 617 | B153: Гуревич М.И. | C153: Технология д/мальч. | D153: 7 | F153: 2008 | G153: 38 | L153: №25от 22.09.08
A154: 620 | B154: Волобуев О.В | C154: История России | D154: 11 | F154: 2008 | G154: 22 | L154: №68 от19.12.2008
A155: 621 | B155: Яхин А.Г. | C155: Тат. лит для тат.шк. | D155: 4 | F155: 2008 | G155: 52 | L155: № 46 от19.12.2008
A156: 622 | B156: Хайдарова Р.З. | C156: Татарский язык | D156: 8 | F156: 2007 | G156: 41 | L156: № 46 от19.12.2008
A157: 623 | B157: Сафиуллина Ф.С | C157: Татарский язык | D157: 9 | F157: 2008 | G157: 43 | L157: № 46 от19.12.2008
A158: 624 | B158: Хайдарова Р.З. | C158: Татарский язык | D158: 9 | F158: 2008 | G158: 44 | L158: № 46 от19.12.2008
A159: 625 | B159: Поляков Л.В | C159: Обществознание | D159: 11 | F159: 2008 | G159: 40 | L159: № 46 от19.12.2008
A160: 626 | B160: Уткин А.И | C160: История России | D160: 11 | F160: 2008 | G160: 45 | L160: № 46 от19.12.2008
A161: 628 | B161: Хайдарова Р.З. | C161: Татарский язык. Ч.1 2 кл | D161: 2 | F161: 2009 | G161: 22 | L161: № 147 от 09.09.2009
A162: 629 | B162: Ягафарова Р.Х. | C162: Литературн. Чт | D162: 3 | F162: 2009 | G162: 22 | L162: № 147 от 09.09.2009
A163: 630 | B163: Валитова Р.Г. | C163: Алифба | D163: 1 | F163: 2009 | G163: 49 | L163: № 147 от 09.09.2009
A164: 631 | B164: Кузовлев В.П. | C164: Английский язык 10-11 | D164: 10 | F164: 2009 | G164: 29 | L164: № 147 от 09.09.2009
A165: 632 | B165: Биболетова М.З. | C165: Англиийский язык | D165: 5 | F165: 2009 | G165: 28 | L165: 213 от 12.12.2009
A166: 633 | B166: Мякишев Г.Я. | C166: Физика | D166: 11 | F166: 2009 | G166: 31 | L166: 213 от 12.12.2009
A167: 634 | B167: Зеленина Л.М. | C167: Русский язык.Ч.1 | D167: 3 | F167: 2009 | G167: 20 | L167: 213 от 12.12.2009
A168: 635 | B168: Зеленина Л.М. | C168: Русский язык.Ч.2 | D168: 3 | F168: 2009 | G168: 45 | L168: 213 от 12.12.2009
A169: 636 | B169: Иванов С.В. | C169: Русский язык. Ч.1 | D169: 3 | F169: 2009 | G169: 18 | L169: 213 от 12.12.2009
A170: 637 | B170: Иванов С.В. | C170: Русский язык. Ч.2 | D170: 3 | F170: 2009 | G170: 30 | L170: 213 от 12.12.2009
A171: 638 | B171: Ефросинина Л.А. | C171: Литер. чтение. Ч.1 | D171: 4 | F171: 2009 | G171: 22 | L171: 213 от 12.12.2009
A172: 639 | B172: Ефросинина Л.А. | C172: Литер. чтение. Ч.2 | D172: 4 | F172: 2009 | G172: 38 | L172: 213 от 12.12.2009
A173: 640 | B173: Климанова Л.Ф. | C173: Родная речь. Ч.1 | D173: 4 | F173: 2009 | G173: 4 | L173: 213 от 12.12.2009
A174: 641 | B174: Климанова Л.Ф. | C174: Родная речь. Ч.2 | D174: 4 | F174: 2009 | G174: 31 | L174: 213 от 12.12.2009
A175: 642 | B175: Виноградова Н.Ф. | C175: Окружающий мир. Ч.1 | D175: 4 | F175: 2009 | G175: 40 | L175: 213 от 12.12.2009
A176: 643 | B176: Виноградова Н.Ф. | C176: Окружающий мир. Ч.2 | D176: 4 | F176: 2009 | G176: 2 | L176: 213 от 12.12.2009
A177: 644 | B177: ПлешаковА.А. | C177: Окружающий мир.Ч.1 | D177: 4 | F177: 2009 | G177: 32 | L177: 213 от 12.12.2009
A178: 645 | B178: ПлешаковА.А. | C178: Окружающий мир.Ч.2 | D178: 4 | F178: 2009 | G178: 22 | L178: 213 от 12.12.2009
A179: 646 | B179: Баранов М.Т. | C179: Русский язык | D179: 7 | F179: 2009 | G179: 45 | L179: 213 от 12.12.2009
A180: 647 | B180: Кауфман К.И | C180: Счастливый англ. | D180: 6 | F180: 2009 | G180: 62 | L180: 213 от 12.12.2009
A181: 648 | B181: Погорелов А.В. | C181: Геометрия 7-9 | D181: 7 | F181: 2009 | G181: 24 | L181: 213 от 12.12.2009
A182: 649 | B182: Семакин И.Г. | C182: Информатика | D182: 8 | F182: 2009 | G182: 55 | L182: 213 от 12.12.2009
A183: 650 | B183: Данилов А.А. | C183: История России | D183: 6 | F183: 2009 | G183: 60 | L183: 213 от 12.12.2009
A184: 651 | B184: Боголюбов Л.Н. | C184: Обществознание 8-9 | D184: 8 | F184: 2009 | G184: 26 | L184: 213 от 12.12.2009
A185: 652 | B185: Дронов В.П. | C185: География России | D185: 6 | F185: 2009 | G185: 26 | L185: 213 от 12.12.2009
A186: 653 | B186: Каменский А.А. | C186: Биология | D186: 9 | F186: 2009 | G186: 26 | L186: 213 от 12.12.2009
A187: 654 | B187: Сахаров В.И. | C187: Рус. лит-ра.Учеб.Ч.1 | D187: 10 | F187: 2009 | G187: 26 | L187: 213 от 12.12.2009
A188: 655 | B188: Сахаров В.И. | C188: Рус. лит-ра.Учеб.Ч.2 | D188: 10 | F188: 2009 | G188: 26 | L188: 213 от 12.12.2009
A189: 656 | B189: Семакин И.Г. | C189: Информатика 10-11 | D189: 10 | F189: 2009 | G189: 26 | L189: 213 от 12.12.2009
A190: 657 | B190: Алексашкина Л.Н. | C190: Всеобщая история | D190: 10 | F190: 2009 | G190: 26 | L190: 213 от 12.12.2009
A191: 658 | B191: Боголюбов Л.Н. | C191: Введение в обществ. | D191: 10 | F191: 2009 | G191: 26 | L191: 213 от 12.12.2009
A192: 659 | B192: Максаковский В.П. | C192: География | D192: 10 | F192: 2009 | G192: 26 | L192: 213 от 12.12.2009
A193: 660 | B193: Рудзитис Г.Е. | C193: Химия | D193: 11 | F193: 2009 | G193: 56 | L193: 213 от 12.12.2009
A194: 661 | B194: Коровина В.Я. | C194: Литература в 2-х ч. | D194: 6 | F194: 2009 | G194: 52 | L194: 213 от 12.12.2009
A195: 662 | B195: Ахиярова М.З | C195: Азбука | D195: 1 | F195: 2009 | G195: 58 | L195: 213 от 12.12.2009
A196: 663 | B196: Харисов Ф.Ф. | C196: Тат. яз. Для тат. | D196: 3 | F196: 2009 | G196: 50 | L196: 213 от 12.12.2009
A197: 664 | B197: Харисов Ф.Ф. | C197: Тат. яз. Для тат. | D197: 4 | F197: 2009 | G197: 60 | L197: 213 от 12.12.2009
A198: 665 | B198: Хайдарова Р.З. | C198: Татарский язык.Ч.1 | D198: 3 | F198: 2009 | G198: 50 | L198: 213 от 12.12.2009
A199: 666 | B199: Нигматуллина Р.Р | C199: Татарский язык | D199: 9 | F199: 2009 | G199: 51 | L199: 213 от 12.12.2009
A200: 667 | B200: Хайдарова Р.З. | C200: Тат. яз. и лит.чтение | D200: 10 | F200: 2009 | G200: 22 | L200: 213 от 12.12.2009
A201: 668 | B201: Тайсин А.С | C201: География Татарстана | D201: 8 | F201: 2009 | G201: 5 | L201: 213 от 12.12.2009
A202: 669 | B202: Ислаев | C202: Я и моя род.10-11 кл | D202: 10 | F202: 2009 | G202: 30 | L202: 213 от 12.12.2009
... 140 more rows

Sheet инвен.опись
B1: Инвентаризационная опись учебной литературы МБОУ "Бетькинская СОШ" по состоянию на 31.05.2012 года
A4: инв. № | B4: автор | C4: наименование | D4: класс | E4: язык изложения | F4: год издания | G4: кол-во учебников | H4: контингент | I4: в наличии | J4: нехватка | K4: излишки | L4: номер и дата накладной
A5: 432 | B5: Власенков А.И | C5: Русский язык | D5: 10 | F5: 2005 | G5: 90
A6: 433 | B6: Левитан Е.П | C6: Астрономия | D6: 11 | F6: 2005 | G6: 43
A7: 434 | B7: Макарычев Ю.Н. | C7: Алгебра | D7: 8 | F7: 2005 | G7: 46
A8: 435 | B8: Пискарёв В.И. | C8: История Татарстана | D8: 8 | F8: 2004 | G8: 30
A9: 436 | B9: Биболетова М.З. | C9: Английский язык | D9: 2 | F9: 2005 | G9: 50
A10: 437 | B10: Верещагина И. Н | C10: Английский язык Ч. 1 | D10: 2 | F10: 2005 | G10: 50
A11: 438 | B11: Плешаков А.А. | C11: Мир вокруг нас | D11: 1 | F11: 2005 | G11: 50
A12: 439 | B12: Верещагина И. Н | C12: Английский язык Ч. 2 | D12: 2 | F12: 2005 | G12: 50
A13: 440 | B13: Гилязов И.А. | C13: История Татарстана | D13: 7 | F13: 2004 | G13: 50
A14: 441 | B14: Сонин Н.И. | C14: Биология | D14: 6 | F14: 2005 | G14: 60
A15: 442 | B15: Плешаков А.А. | C15: Природоведение | D15: 5 | F15: 2005 | G15: 50
A16: 443 | B16: Виленкин Н.Я. | C16: Математика | D16: 5 | F16: 2005 | G16: 50
A17: 444 | B17: Бархударов С.Г. | C17: Русский язык | D17: 9 | F17: 2005 | G17: 60
A18: 446 | B18: Чалмаев В.А. | C18: Рус. Лит. Хрестом. Ч.1 | D18: 11 | F18: 2005 | G18: 70
A19: 447 | B19: Чалмаев В.А. | C19: Рус. Лит. Хрестом. Ч.2 | D19: 11 | F19: 2005 | G19: 72
A20: 450 | B20: Ботвинников а.Д | C20: Черчение | D20: 7 | F20: 2005 | G20: 20
A21: 453 | B21: Хайдарова Р.З. | C21: Татарский язык.Ч.1 | D21: 4 | F21: 2005 | G21: 32
A22: 454 | B22: Хайдарова Р.З. | C22: Татарский язык.Ч.2 | D22: 4 | F22: 2005 | G22: 32
A23: 455 | B23: Сафиуллина Ф.С. | C23: Татарский язык | D23: 4 | F23: 2005 | G23: 36
A24: 456 | B24: Ахмадуллина А.Г | C24: Тат. лит. | D24: 11 | F24: 2005 | G24: 26
A25: 457 | B25: Голованова М.В | C25: Родная речь | D25: 2 | F25: 2005 | G25: 15
A26: 458 | B26: Ахмадуллин А.Г | C26: Хрестомати тат.литер. | D26: 10 | F26: 2005 | G26: 10
A27: 459 | B27: Сафиуллина Ф.с | C27: Татарский язык | D27: 10 | F27: 2005 | G27: 32
A28: 460 | B28: Хасанов | C28: Татрская литература | D28: 10 | F28: 2005 | G28: 10
A29: 461 | B29: Хабибуллина З.Н. | C29: Татарская литература | D29: 8 | F29: 2005 | G29: 12
A30: 462 | B30: Галимуллин | C30: Татарская литература | D30: 6 | F30: 2005 | G30: 5
A31: 463 | B31: Максимов Н.В | C31: татарский язык | D31: 6 | F31: 2005 | G31: 5
A32: 464 | B32: Мусин Ф.М. | C32: Татарская литература | D32: 7 | F32: 2005 | G32: 5
A33: 466 | B33: Пискарёв В.И. | C33: История Татарстана | D33: 8 | F33: 2005 | G33: 20
A34: 470 | B34: Хабибуллина З.Н. | C34: Тат.лит | D34: 9 | F34: 2005 | G34: 25
A35: 471 | B35: Сафиуллина Ф.С | C35: Татарский язык | D35: 11 | F35: 2005 | G35: 30
A36: 477 | B36: Беляев Д.К. | C36: Общая биология 10-11 | D36: 10 | F36: 2005 | G36: 15
A37: 478 | B37: Захаров В.Б | C37: Общая биология | D37: 10 | F37: 2006 | G37: 49
A38: 479 | B38: Асылгараева Р.А. | C38: Татарский язык. | D38: 8 | F38: 2005 | G38: 20
A39: 480 | B39: Асылгараева Р.А. | C39: Татарский язык | D39: 7 | F39: 2005 | G39: 20
A40: 481 | B40: Зинатуллина Х.З | C40: Тат.яз | D40: 9 | F40: 2005 | G40: 25
A41: 482 | B41: Гилязов И.А. | C41: История Татарстана | D41: 7 | F41: 2005 | G41: 10
A42: 483 | B42: Бакиева Н.В. | C42: Музыка | D42: 4 | F42: 2005 | G42: 25
A43: 484 | B43: Ягафарова Р.Х. | C43: Литературн. чтение ч1 | D43: 4 | F43: 2005 | G43: 20
A44: 485 | B44: Моро М.И. | C44: Математика.Ч.1 | D44: 2 | F44: 2006 | G44: 58
A45: 486 | B45: Моро М.И. | C45: Математика.Ч.2 | D45: 2 | F45: 2006 | G45: 58
A46: 487 | B46: Залялеева М.Ш. | C46: Литература | D46: 5 | F46: 2006 | G46: 5
A47: 488 | B47: Ганиева Ф.А | C47: Татарская литература | D47: 6 | F47: 2006 | G47: 10
A48: 489 | B48: Хатипов Ф.М | C48: Литература | D48: 7 | F48: 2006 | G48: 15
A49: 490 | B49: Ахмадуллин А.Г | C49: Татарская литература | D49: 8 | F49: 2006 | G49: 18
A50: 491 | B50: Валитова Р.Г. | C50: Тат. яз. | D50: 1 | F50: 2006 | G50: 10
A51: 493 | B51: Ягафарова Р.Х. | C51: Азбука | D51: 1 | F51: 2006 | G51: 10
A52: 494 | B52: Баринова И.И. | C52: География России | D52: 8 | F52: 2006 | G52: 36
A53: 495 | B53: Раковская Э.В | C53: География .Прир.Рос. | D53: 8 | F53: 2006 | G53: 15
A54: 496 | B54: Бунеев Р.Н. | C54: Литература.Ч.1. | D54: 5 | F54: 2006 | G54: 20
A55: 497 | B55: Бунеев Р.Н. | C55: Литература.Ч.2. | D55: 5 | F55: 2006 | G55: 20
A56: 498 | B56: Захаров В.Б. | C56: Общая биология | D56: 7 | F56: 2006 | G56: 12
A57: 499 | B57: Биболетова М.З. | C57: Английский язык | D57: 3 | F57: 2006 | G57: 58
A58: 500 | B58: Виленкин Н.Я. | C58: Математика | D58: 6 | F58: 2006 | G58: 55
A59: 501 | B59: Захаров В.Б | C59: Общая биология | D59: 11 | F59: 2006 | G59: 50
A60: 504 | B60: Кравченко А.И. | C60: Обществознание | D60: 6 | F60: 2006 | G60: 50
A61: 505 | B61: Иванов С.И.. | C61: Основы эк. теор.Ч.1 | D61: 10 | F61: 2006 | G61: 25
A62: 506 | B62: Иванов С.И. | C62: Основы эк. теор. Ч.2 | D62: 10 | F62: 2006 | G62: 25
A63: 507 | B63: Каменский А.А | C63: Общая биология | D63: 10 | F63: 2006 | G63: 30
A64: 508 | B64: Зинин С.А. | C64: Рус. лит-ра. 19в.Хр.Ч.1 | D64: 10 | F64: 2006 | G64: 50
A65: 509 | B65: Зинин С.А. | C65: Рус. лит-ра. 19в.Хр.Ч.2 | D65: 10 | F65: 2006 | G65: 50
A66: 510 | B66: Сахаров А.Н. | C66: История России.Ч.2 | D66: 10 | F66: 2006 | G66: 50
A67: 511 | B67: Сахаров А.Н. | C67: История России.Ч.1 | D67: 10 | F67: 2006 | G67: 50
A68: 512 | B68: Павлова М.Б.Сасова И.А. | C68: Технология (д.,м.) | D68: 5 | F68: 2006 | G68: 25
A69: 513 | B69: Симоненко В.Д | C69: Технология | D69: 10 | F69: 2006 | G69: 25
A70: 514 | B70: Вигасин А.А. | C70: История др.мира | D70: 5 | F70: 2006 | G70: 58
A71: 515 | B71: Коровина В.Я. | C71: Литература.Ч.1 | D71: 5 | F71: 2006 | G71: 58
A72: 516 | B72: Коровина В.Я. | C72: Литература.Ч.2 | D72: 5 | F72: 2006 | G72: 58
A73: 517 | B73: Сафиуллина Ф.С | C73: Татарский язык | D73: 11 | F73: 2006 | G73: 20
A74: 518 | B74: Климанова Л.Ф. | C74: Родная речь. Ч.1 | D74: 2 | F74: 2006 | G74: 58
A75: 519 | B75: Климанова Л.Ф. | C75: Родная речь. Ч.2 | D75: 2 | F75: 2006 | G75: 62
A76: 520 | B76: Хайдарова Р.З. | C76: Татарский язык. | D76: 5 | F76: 2006 | G76: 28
A77: 521 | B77: Мусин Ф.М | C77: Тат. лит. | D77: 11 | F77: 2006 | G77: 10
A78: 526 | B78: Султанбеков Б.Ф. | C78: История Татарстана | D78: 9 | F78: 2006 | G78: 50
A79: 529 | B79: Ягафарова Р.Х. | C79: Литерат. чтение Ч.2. | D79: 4 | F79: 2006 | G79: 15
A80: 531 | B80: Климанова Л.Ф. | C80: Родная речь.Ч.1 | D80: 3 | F80: 2007 | G80: 50
A81: 532 | B81: Климанова Л.Ф | C81: Родная речь.Ч.2 | D81: 3 | F81: 2007 | G81: 50
A82: 533 | B82: Сонин Н.И. | C82: Биология | D82: 8 | F82: 2007 | G82: 55
A83: 534 | B83: Моро М.И. | C83: Математика.Ч.1 | D83: 3 | F83: 2007 | G83: 37
A84: 535 | B84: Моро М.И. | C84: Математика.Ч.2 | D84: 3 | F84: 2007 | G84: 37
A85: 536 | B85: Бархударов С.Г. | C85: Русский язык | D85: 8 | F85: 2007 | G85: 40
A86: 537 | B86: Закиев М.З | C86: Татарский язык | D86: 8 | F86: 2007 | G86: 20
A87: 538 | B87: Биболетова М.З. | C87: Английский язык | D87: 4 | F87: 2007 | G87: 45
A88: 539 | B88: Валитова Р.Г. | C88: Алифба | D88: 1 | F88: 2007 | G88: 7
A89: 544 | B89: Колмогоров А.Н | C89: Алгебра | D89: 10 | F89: 2007 | G89: 37
A90: 545 | B90: Рамзаева Т.Г | C90: Русский язык | D90: 1 | F90: 2007 | G90: 40
A91: 546 | B91: Дмитриева О.В | C91: Новая история | D91: 7 | F91: 2007 | G91: 3
A92: 547 | B92: Семакин И.Г. | C92: Информатика | D92: 9 | F92: 2007 | G92: 20
A93: 548 | B93: Бойцов М.А. | C93: История ср. веков | D93: 6 | F93: 2007 | G93: 45
A94: 549 | B94: Иванова Л.Ф | C94: Англ.яз 7,8,9 №916 | D94: 7 | F94: 2007 | G94: 80
A95: 550 | B95: Хайдарова Р.З. | C95: Татарский язык | D95: 6 | F95: 2007 | G95: 20
A96: 551 | B96: Кравченко А.И. | C96: Обществознание | D96: 7 | F96: 2007 | G96: 30
A97: 552 | B97: Яхин А.Г. | C97: Тат. лит. | D97: 8 | F97: 2007 | G97: 15
A98: 553 | B98: Кузнецов Л.М | C98: Химия | D98: 8 | F98: 2007 | G98: 49
A99: 554 | B99: Гуревич М.И. | C99: Технология д/мальч. | D99: 6 | F99: 2007 | G99: 15
A100: 555 | B100: Павлова М.Б. | C100: Технология д/девоч. | D100: 6 | F100: 2007 | G100: 15
A101: 556 | B101: Ладыженская Т.А. | C101: Русский язык | D101: 5 | F101: 2007 | G101: 43
A102: 557 | B102: Зинин С.А. | C102: Литература. 19 век.Ч.1 | D102: 9 | F102: 2007 | G102: 54
A103: 558 | B103: Зинин С.А. | C103: Литература. 19 век.Ч.2 | D103: 9 | F103: 2007 | G103: 54
A104: 559 | B104: Кузнецова М.А | C104: Химия | D104: 10 | F104: 2007 | G104: 30
A105: 560 | B105: Плешаков А.А. | C105: Окружающий мир. Ч.2 | D105: 2 | F105: 2007 | G105: 9
A106: 561 | B106: Бакиева Н.В., Гарипова Э.А | C106: Музыкал.букварь1кл. | D106: 1 | F106: 2007 | G106: 20
A107: 562 | B107: Ахметзянов М.Г | C107: Татарская литер. ч 1 | D107: 8 | F107: 2007 | G107: 20
A108: 563 | B108: Ахметзянов М.Г | C108: Татарская литер. ч 2 | D108: 8 | F108: 2007 | G108: 20
A109: 564 | B109: Ахметзянов М.Г | C109: Татарская литература ч1 | D109: 7 | F109: 2007 | G109: 20
A110: 565 | B110: Ахметзянов М.Г | C110: Татарская литература ч2 | D110: 7 | F110: 2007 | G110: 20
A111: 567 | B111: Нурмухаметова А. | C111: Азбука | D111: 1 | F111: 2007 | G111: 15
A112: 569 | B112: Яхин А.Г. | C112: Тат.лит | D112: 10 | F112: 2007 | G112: 15
A113: 570 | B113: Яхин А.Г. | C113: Тат. лит. | D113: 9 | F113: 2007 | G113: 15
A114: 571 | B114: Хайдарова Р.З. | C114: Татарский язык | D114: 7 | F114: 2007 | G114: 40
A115: 572 | B115: Нуриева А. Х | C115: Татар Теле | D115: 2 | F115: 2007 | G115: 15
A116: 573 | B116: Плешаков А.А. | C116: Окружающий мир. Ч.1 | D116: 2 | F116: 2007 | G116: 38
A117: 575 | B117: Вагизов С. Г | C117: Книга для чтения 2клЧ. 1 | D117: 2 | F117: 2007 | G117: 15
A118: 576 | B118: Вагизов С. Г | C118: Книга для чтения Ч. 2 | D118: 2 | F118: 2007 | G118: 15
A119: 577 | B119: Яхин А. Г | C119: Литературн. Чт | D119: 3 | F119: 2007 | G119: 20
A120: 578 | B120: Хайдарова Р.З. | C120: Татарский язык. | D120: 5 | F120: 2007 | G120: 30
A121: 579 | B121: Сафиуллина Ф.с | C121: Татарский язык | D121: 10 | F121: 2007 | G121: 45
A122: 580 | B122: Сафиуллина Ф.С | C122: Татарский язык | D122: 11 | F122: 2007 | G122: 25
A123: 581 | B123: Сафиуллина Ф.С | C123: Татарский язык | D123: 9 | F123: 2008 | G123: 24
A124: 582 | B124: Харисов Ф.Ф. | C124: Тат. яз для тат. шк. | D124: 1 | F124: 2008 | G124: 50
A125: 583 | B125: Ягафарова Р.Х. | C125: Тат. яз. Для тат. школ | D125: 1 | F125: 2008 | G125: 20 | H125: н/д
A126: 584 | B126: Ягафарова Р.Х. | C126: Тат. яз. Для тат. школ | D126: 2 | F126: 2008 | G126: 20
A127: 585 | B127: Сафиуллина Ф.С. | C127: Тат. яз. д/рус.яз. Ч 1 | D127: 1 | F127: 2009 | G127: 30
A128: 586 | B128: Сафиуллина Ф.С. | C128: Тат. яз. д/рус.яз. Ч2 | D128: 1 | F128: 2008 | G128: 30
A129: 587 | B129: Хасаншина Р.Г. | C129: Татарский язык | D129: 5 | F129: 2007
A130: 588 | B130: Закиев М.З | C130: Татарский язык | D130: 9 | F130: 2008 | G130: 20
A131: 589 | B131: Андромонова Н.А | C131: Русская речь | D131: 9 | F131: 2008 | G131: 20
A132: 590 | B132: Сафиуллина Ф.С. | C132: Тат. яз. Для р/яз. | D132: 8 | F132: 2008 | G132: 30
A133: 591 | B133: Яхин А.Г. | C133: Тат. лит. | D133: 11 | F133: 2008 | G133: 25
A134: 592 | B134: Гилязов И.А. | C134: История Татарстана | D134: 10 | F134: 2008 | G134: 45
A135: 595 | B135: Рамзаева Т. Г | C135: Русский язык Ч. 1 | D135: 2 | F135: 2008 | G135: 50
A136: 596 | B136: Рамзаева Т. Г | C136: Русский язык Ч. 2 | D136: 2 | F136: 2008 | G136: 50
A137: 597 | B137: Моро М.И. | C137: Математика.Ч.1 | D137: 4 | F137: 2008 | G137: 41
A138: 598 | B138: Моро М.И. | C138: Математика.Ч.2 | D138: 4 | F138: 2008 | G138: 41
A139: 599 | B139: ПлешаковА.А. | C139: Окружающий мир.Ч.1 | D139: 3 | F139: 2008 | G139: 35
A140: 600 | B140: ПлешаковА.А. | C140: Окружающий мир.Ч.2 | D140: 3 | F140: 2008 | G140: 35
A141: 601 | B141: Биболетова М.З. | C141: Англиийский язык | D141: 5 | F141: 2008 | G141: 47
A142: 602 | B142: Баранов М.Т. | C142: Русский язык | D142: 6 | F142: 2008 | G142: 40
A143: 603 | B143: Захарова Е.Н. | C143: Новая история | D143: 8 | F143: 2007 | G143: 44
A144: 604 | B144: Кравченко А.И | C144: Обществознание | D144: 8 | F144: 2008 | G144: 50
A145: 605 | B145: Алексеев А.И | C145: География России | D145: 9 | F145: 2008 | G145: 50
A146: 606 | B146: Минченков Е.Е. | C146: Химия | D146: 8 | F146: 2006 | G146: 35
A147: 607 | B147: Минченков Е.Е. | C147: Химия | D147: 9 | F147: 2006 | G147: 48
A148: 608 | B148: Пёрышкин А.Ф. | C148: Физика | D148: 7 | F148: 2008 | G148: 40
A149: 609 | B149: Семакин И.Г. | C149: Информатика 10-11 | D149: 10 | F149: 2008 | G149: 48
A150: 610 | B150: Колмогоров А.Н | C150: Алгебра | D150: 10 | F150: 2008 | G150: 43
A151: 611 | B151: Мякишев Г.Я. | C151: Физика | D151: 10 | F151: 2008 | G151: 50
A152: 612 | B152: Рудзитис Г.Е. | C152: Химия | D152: 10 | F152: 2008 | G152: 60
A153: 613 | B153: Кузовлев В.П. | C153: Английский язык 10-11 | D153: 10 | F153: 2008 | G153: 30
A154: 616 | B154: Павлова М.Б. | C154: Технология (девочки) | D154: 7 | F154: 2008 | G154: 25
A155: 617 | B155: Гуревич М.И. | C155: Технология д/мальч. | D155: 7 | F155: 2008 | G155: 25
A156: 620 | B156: Волобуев О.В | C156: История России | D156: 11 | F156: 2008 | G156: 51
A157: 621 | B157: Яхин А.Г. | C157: Тат. лит для тат.шк. | D157: 4 | F157: 2008 | G157: 18
A158: 622 | B158: Хайдарова Р.З. | C158: Татарский язык | D158: 8 | F158: 2007 | G158: 30
A159: 623 | B159: Сафиуллина Ф.С | C159: Татарский язык | D159: 9 | F159: 2008 | G159: 30
A160: 624 | B160: Хайдарова Р.З. | C160: Татарский язык | D160: 9 | F160: 2008 | G160: 30
A161: 625 | B161: Поляков Л.В | C161: Обществознание | D161: 11 | F161: 2008 | G161: 4
A162: 626 | B162: Уткин А.И | C162: История России | D162: 10 | F162: 2008 | G162: 4
A163: 628 | B163: Хайдарова Р.З. | C163: Татарский язык. Ч.1 2 кл | D163: 2 | F163: 2009 | G163: 63
A164: 629 | B164: Ягафарова Р.Х. | C164: Литературн. Чт | D164: 3 | F164: 2009 | G164: 33
A165: 630 | B165: Валитова Р.Г. | C165: Алифба | D165: 1 | F165: 2009 | G165: 18
A166: 631 | B166: Кузовлев В.П. | C166: Английский язык 10-11 | D166: 10 | F166: 2009 | G166: 20
A167: 632 | B167: Биболетова М.З. | C167: Англиийский язык | D167: 5 | F167: 2009 | G167: 22
A168: 633 | B168: Мякишев Г.Я. | C168: Физика | D168: 11 | F168: 2009 | G168: 20
A169: 634 | B169: Зеленина Л.М. | C169: Русский язык.Ч.1 | D169: 3 | F169: 2009 | G169: 33
A170: 635 | B170: Зеленина Л.М. | C170: Русский язык.Ч.2 | D170: 3 | F170: 2009 | G170: 33
A171: 636 | B171: Иванов С.В. | C171: Русский язык. Ч.1 | D171: 3 | F171: 2009 | G171: 21
A172: 637 | B172: Иванов С.В. | C172: Русский язык. Ч.2 | D172: 3 | F172: 2009 | G172: 21
A173: 638 | B173: Ефросинина Л.А. | C173: Литер. чтение. Ч.1 | D173: 4 | F173: 2009 | G173: 21
A174: 639 | B174: Ефросинина Л.А. | C174: Литер. чтение. Ч.2 | D174: 4 | F174: 2009 | G174: 21
A175: 640 | B175: Климанова Л.Ф. | C175: Родная речь. Ч.1 | D175: 4 | F175: 2009 | G175: 34
A176: 641 | B176: Климанова Л.Ф. | C176: Родная речь. Ч.2 | D176: 4 | F176: 2009 | G176: 34
A177: 642 | B177: Виноградова Н.Ф. | C177: Окружающий мир. Ч.1 | D177: 4 | F177: 2009 | G177: 21
A178: 643 | B178: Виноградова Н.Ф. | C178: Окружающий мир. Ч.2 | D178: 4 | F178: 2009 | G178: 21
A179: 644 | B179: ПлешаковА.А. | C179: Окружающий мир.Ч.1 | D179: 4 | F179: 2009 | G179: 32
A180: 645 | B180: ПлешаковА.А. | C180: Окружающий мир.Ч.2 | D180: 4 | F180: 2009 | G180: 32
A181: 646 | B181: Баранов М.Т. | C181: Русский язык | D181: 7 | F181: 2009 | G181: 38
A182: 647 | B182: Кауфман К.И | C182: Счастливый англ. | D182: 6 | F182: 2009 | G182: 22
A183: 648 | B183: Погорелов А.В. | C183: Геометрия 7-9 | D183: 7 | F183: 2009 | G183: 52
A184: 649 | B184: Семакин И.Г. | C184: Информатика | D184: 8 | F184: 2009 | G184: 41
A185: 650 | B185: Данилов А.А. | C185: История России | D185: 6 | F185: 2009 | G185: 43
A186: 651 | B186: Боголюбов Л.Н. | C186: Обществознание 8-9 | D186: 8 | F186: 2009 | G186: 44
A187: 652 | B187: Дронов В.П. | C187: География России | D187: 6 | F187: 2009 | G187: 40
A188: 653 | B188: Каменский А.А. | C188: Биология | D188: 9 | F188: 2009 | G188: 45
A189: 654 | B189: Сахаров В.И. | C189: Рус. лит-ра.Учеб.Ч.1 | D189: 10 | F189: 2009 | G189: 22
A190: 655 | B190: Сахаров В.И. | C190: Рус. лит-ра.Учеб.Ч.2 | D190: 10 | F190: 2009 | G190: 22
A191: 656 | B191: Семакин И.Г. | C191: Информатика 10-11 | D191: 10 | F191: 2009 | G191: 49
A192: 657 | B192: Алексашкина Л.Н. | C192: Всеобщая история | D192: 10 | F192: 2009 | G192: 29
A193: 658 | B193: Боголюбов Л.Н. | C193: Введение в обществ. | D193: 10 | F193: 2009 | G193: 28
A194: 659 | B194: Максаковский В.П. | C194: География | D194: 10 | F194: 2009 | G194: 31
A195: 660 | B195: Рудзитис Г.Е. | C195: Химия | D195: 11 | F195: 2009 | G195: 20
A196: 661 | B196: Коровина В.Я. | C196: Литература. Ч.1 | D196: 6 | F196: 2009 | G196: 45
A197: 662 | B197: Ахиярова М.З | C197: Азбука | D197: 1 | F197: 2009 | G197: 18
A198: 663 | B198: Харисов Ф.Ф. | C198: Тат. яз. Для тат. | D198: 3 | F198: 2009 | G198: 30
A199: 664 | B199: Харисов Ф.Ф. | C199: Тат. яз. Для тат. | D199: 4 | F199: 2009 | G199: 22
A200: 665 | B200: Хайдарова Р.З. | C200: Татарский язык.Ч.1 | D200: 3 | F200: 2009 | G200: 38
A201: 666 | B201: Нигматуллина Р.Р | C201: Татарский язык | D201: 9 | F201: 2009 | G201: 4
A202: 667 | B202: Хайдарова Р.З. | C202: Тат. яз. и лит.чтение | D202: 10 | F202: 2009 | G202: 31
... 130 more rows

Sheet ЭФУЛ
A1: Учебники, включённые в ЭФУЛ /федеральные и региональные/
A3: инв. № | B3: автор | C3: заглавие | D3: год изд. | E3: класс | F3: кол-во
A4: 432 | B4: Власенков А.И | C4: Русский язык | D4: 2005 | E4: 10 | F4: 90
A5: 433 | B5: Левитан Е.П | C5: Астрономия | D5: 2005 | E5: 11 | F5: 43
A6: 434 | B6: Макарычев Ю.Н. | C6: Алгебра | D6: 2005 | E6: 8 | F6: 46
A7: 435 | B7: Пискарёв В.И. | C7: История Татарстана | D7: 2004 | E7: 8 | F7: 30
A8: 436 | B8: Биболетова М.З. | C8: Английский язык | D8: 2005 | E8: 2 | F8: 50
A9: 437 | B9: Верещагина И. Н | C9: Английский язык Ч. 1 | D9: 2005 | E9: 2 | F9: 50
A10: 438 | B10: Плешаков А.А. | C10: Мир вокруг нас | D10: 2005 | E10: 1 | F10: 50 | G10: н/д ?
A11: 439 | B11: Верещагина И. Н | C11: Английский язык Ч. 2 | D11: 2005 | E11: 2 | F11: 50
A12: 440 | B12: Гилязов И.А. | C12: История Татарстана | D12: 2004 | E12: 7 | F12: 50 | H12: Гилязов И.А. | I12: 2004 | J12: 440 | K12: 7 | L12: 50
A13: 441 | B13: Сонин Н.И. | C13: Биология | D13: 2005 | E13: 6 | F13: 60
A14: 442 | B14: Плешаков А.А. | C14: Природоведение | D14: 2005 | E14: 5 | F14: 50
A15: 443 | B15: Виленкин Н.Я. | C15: Математика | D15: 2005 | E15: 5 | F15: 50
A16: 444 | B16: Бархударов С.Г. | C16: Русский язык | D16: 2005 | E16: 9 | F16: 60
A17: 446 | B17: Чалмаев В.А. | C17: Рус. Лит. Хрестом. Ч.1 | D17: 2005 | E17: 11 | F17: 70
A18: 447 | B18: Чалмаев В.А. | C18: Рус. Лит. Хрестом. Ч.2 | D18: 2005 | E18: 11 | F18: 72
A19: 450 | B19: Ботвинников А.Д | C19: Черчение | D19: 2005 | E19: 7 | F19: 20
A20: 453 | B20: Хайдарова Р.З. | C20: Татарский язык.Ч.1 | D20: 2005 | E20: 4 | F20: 32 | H20: Хайдарова Р.З. | I20: 2005 | J20: 453 | K20: 4 | L20: 32
A21: 454 | B21: Хайдарова Р.З. | C21: Татарский язык.Ч.2 | D21: 2005 | E21: 4 | F21: 32 | H21: Хайдарова Р.З. | I21: 2005 | J21: 454 | K21: 4 | L21: 32
A22: 455 | B22: Сафиуллина Ф.С. | C22: Татарский язык | D22: 2005 | E22: 4 | F22: 36 | H22: Сафиуллина Ф.С. | I22: 2005 | J22: 455 | K22: 4 | L22: 36
A23: 456 | B23: Ахмадуллина А.Г | C23: Тат. лит. | D23: 2005 | E23: 11 | F23: 26 | H23: Ахмадуллина А.Г | I23: 2005 | J23: 456 | K23: 11 | L23: 26
A24: 457 | B24: Голованова М.В | C24: Родная речь | D24: 2005 | E24: 2 | F24: 15
A25: 458 | B25: Ахмадуллин А.Г | C25: Хрестоматия.Тат.литер. | D25: 2005 | E25: 10 | F25: 10 | H25: Ахмадуллин А.Г | I25: 2005 | J25: 458 | K25: 10 | L25: 10
A26: 459 | B26: Сафиуллина Ф.с | C26: Татарский язык | D26: 2005 | E26: 10 | F26: 32 | H26: Сафиуллина Ф.с | I26: 2005 | J26: 459 | K26: 10 | L26: 32
A27: 460 | B27: Хасанов | C27: Татрская литература | D27: 2005 | E27: 10 | F27: 10 | H27: Хасанов | I27: 2005 | J27: 460 | K27: 10 | L27: 10
A28: 461 | B28: Хабибуллина З.Н. | C28: Татарская литература | D28: 2005 | E28: 8 | F28: 12 | H28: Хабибуллина З.Н. | I28: 2005 | J28: 461 | K28: 8 | L28: 12
A29: 462 | B29: Галимуллин | C29: Татарская литература | D29: 2005 | E29: 6 | F29: 5 | H29: Галимуллин | I29: 2005 | J29: 462 | K29: 6 | L29: 5
A30: 463 | B30: Максимов Н.В | C30: татарский язык | D30: 2005 | E30: 6 | F30: 5 | H30: Максимов Н.В | I30: 2005 | J30: 463 | K30: 6 | L30: 5
A31: 464 | B31: Мусин Ф.М. | C31: Татарская литература | D31: 2005 | E31: 7 | F31: 5 | H31: Мусин Ф.М. | I31: 2005 | J31: 464 | K31: 7 | L31: 5
A32: 466 | B32: Пискарёв В.И. | C32: История Татарстана | D32: 2005 | E32: 8 | F32: 20 | H32: Пискарёв В.И. | I32: 2005 | J32: 466 | K32: 8 | L32: 20
A33: 470 | B33: Хабибуллина З.Н. | C33: Тат.лит | D33: 2005 | E33: 9 | F33: 25 | H33: Хабибуллина З.Н. | I33: 2005 | J33: 470 | K33: 9 | L33: 25
A34: 471 | B34: Сафиуллина Ф.С | C34: Татарский язык | D34: 2005 | E34: 11 | F34: 30 | H34: Сафиуллина Ф.С | I34: 2005 | J34: 471 | K34: 11 | L34: 30
A35: 477 | B35: Беляев Д.К. | C35: Общая биология 10-11 | D35: 2005 | E35: 10 | F35: 15
A36: 478 | B36: Захаров В.Б | C36: Общая биология | D36: 2006 | E36: 10 | F36: 49
A37: 479 | B37: Асылгараева Р.А. | C37: Татарский язык. | D37: 2005 | E37: 8 | F37: 20 | H37: Асылгараева Р.А. | I37: 2005 | J37: 479 | K37: 8 | L37: 20
A38: 480 | B38: Асылгараева Р.А. | C38: Татарский язык | D38: 2005 | E38: 7 | F38: 20 | H38: Асылгараева Р.А. | I38: 2005 | J38: 480 | K38: 7 | L38: 20
A39: 481 | B39: Зиннатуллина К.З. | C39: Тат.яз | D39: 2005 | E39: 9 | F39: 25 | H39: Зиннатуллина К.З. | I39: 2005 | J39: 481 | K39: 9 | L39: 25
A40: 482 | B40: Гилязов И.А. | C40: История Татарстана | D40: 2005 | E40: 7 | F40: 10 | H40: Гилязов И.А. | I40: 2005 | J40: 482 | K40: 7 | L40: 10
A41: 483 | B41: Бакиева Н.В. | C41: Музыка | D41: 2005 | E41: 4 | F41: 25 | H41: Бакиева Н.В. | I41: 2005 | J41: 483 | K41: 4 | L41: 25
A42: 484 | B42: Ягафарова Р.Х. | C42: Литературн. чтение ч1 | D42: 2005 | E42: 4 | F42: 20 | H42: Ягафарова Р.Х. | I42: 2005 | J42: 484 | K42: 4 | L42: 20
A43: 485 | B43: Моро М.И. | C43: Математика.Ч.1 | D43: 2006 | E43: 2 | F43: 58
A44: 486 | B44: Моро М.И. | C44: Математика.Ч.2 | D44: 2006 | E44: 2 | F44: 58
A45: 487 | B45: Залялеева М.Ш. | C45: Литература | D45: 2006 | E45: 5 | F45: 5 | H45: Залялеева М.Ш. | I45: 2006 | J45: 487 | K45: 5 | L45: 5
A46: 488 | B46: Ганиева Ф.А | C46: Татарская литература | D46: 2006 | E46: 6 | F46: 10 | H46: Ганиева Ф.А | I46: 2006 | J46: 488 | K46: 6 | L46: 10
A47: 489 | B47: Хатипов Ф.М | C47: Литература | D47: 2006 | E47: 7 | F47: 15 | H47: Хатипов Ф.М | I47: 2006 | J47: 489 | K47: 7 | L47: 15
A48: 490 | B48: Ахмадуллин А.Г | C48: Татарская литература | D48: 2006 | E48: 8 | F48: 18 | H48: Ахмадуллин А.Г | I48: 2006 | J48: 490 | K48: 8 | L48: 18
A49: 491 | B49: Валитова Р.Г. | C49: Тат. яз. | D49: 2006 | E49: 1 | F49: 10 | H49: Валитова Р.Г. | I49: 2006 | J49: 491 | K49: 1 | L49: 10
A50: 493 | B50: Ягафарова Р.Х. | C50: Азбука | D50: 2006 | E50: 1 | F50: 10 | H50: Ягафарова Р.Х. | I50: 2006 | J50: 493 | K50: 1 | L50: 10
A51: 494 | B51: Баринова И.И. | C51: География России | D51: 2006 | E51: 8 | F51: 36
A52: 495 | B52: Раковская Э.В | C52: География .Прир.Рос. | D52: 2006 | E52: 8 | F52: 15
A53: 496 | B53: Бунеев Р.Н. | C53: Литература.Ч.1. | D53: 2006 | E53: 5 | F53: 20
A54: 497 | B54: Бунеев Р.Н. | C54: Литература.Ч.2. | D54: 2006 | E54: 5 | F54: 20
A55: 498 | B55: Захаров В.Б. | C55: Общая биология | D55: 2006 | E55: 7 | F55: 12
A56: 499 | B56: Биболетова М.З. | C56: Английский язык | D56: 2006 | E56: 3 | F56: 58
A57: 500 | B57: Виленкин Н.Я. | C57: Математика | D57: 2006 | E57: 6 | F57: 55
A58: 501 | B58: Захаров В.Б | C58: Общая биология | D58: 2006 | E58: 11 | F58: 50
A59: 504 | B59: Кравченко А.И. | C59: Обществознание | D59: 2006 | E59: 6 | F59: 50
A60: 505 | B60: Иванов С.И.. | C60: Основы эк. теор.Ч.1 | D60: 2006 | E60: 10 | F60: 50
A61: 506 | B61: Иванов С.И. | C61: Основы эк. теор. Ч.2 | D61: 2006 | E61: 10 | F61: 50
A62: 507 | B62: Каменский А.А | C62: Общая биология | D62: 2006 | E62: 10 | F62: 30
A63: 508 | B63: Зинин С.А. | C63: Рус. лит-ра. 19в.Хр.Ч.1 | D63: 2006 | E63: 10 | F63: 50
A64: 509 | B64: Зинин С.А. | C64: Рус. лит-ра. 19в.Хр.Ч.2 | D64: 2006 | E64: 10 | F64: 50
A65: 510 | B65: Сахаров А.Н. | C65: История России.Ч.2 | D65: 2006 | E65: 10 | F65: 50
A66: 511 | B66: Сахаров А.Н. | C66: История России.Ч.1 | D66: 2006 | E66: 10 | F66: 50
A67: 512 | B67: Павлова М.Б.Сасова И.А. | C67: Технология (д.,м.) | D67: 2006 | E67: 5 | F67: 25
A68: 513 | B68: Симоненко В.Д | C68: Технология | D68: 2006 | E68: 10 | F68: 25
A69: 514 | B69: Вигасин А.А. | C69: История др.мира | D69: 2006 | E69: 5 | F69: 58
A70: 515 | B70: Коровина В.Я. | C70: Литература.Ч.1 | D70: 2006 | E70: 5 | F70: 58
A71: 516 | B71: Коровина В.Я. | C71: Литература.Ч.2 | D71: 2006 | E71: 5 | F71: 58
A72: 517 | B72: Сафиуллина Ф.С | C72: Татарский язык | D72: 2006 | E72: 11 | F72: 20 | H72: Сафиуллина Ф.С | I72: 2006 | J72: 517 | K72: 11 | L72: 20
A73: 518 | B73: Климанова Л.Ф. | C73: Родная речь. Ч.1 | D73: 2006 | E73: 2 | F73: 58
A74: 519 | B74: Климанова Л.Ф. | C74: Родная речь. Ч.2 | D74: 2006 | E74: 2 | F74: 62
A75: 520 | B75: Хайдарова Р.З. | C75: Татарский язык. | D75: 2006 | E75: 5 | F75: 28 | H75: Хайдарова Р.З. | I75: 2006 | J75: 520 | K75: 5 | L75: 28
A76: 521 | B76: Мусин Ф.М | C76: Тат. лит. | D76: 2006 | E76: 11 | F76: 10 | H76: Мусин Ф.М | I76: 2006 | J76: 521 | K76: 11 | L76: 10
A77: 526 | B77: Султанбеков Б.Ф. | C77: История Татарстана | D77: 2006 | E77: 9 | F77: 50 | H77: Султанбеков Б.Ф. | I77: 2006 | J77: 526 | K77: 9 | L77: 50
A78: 529 | B78: Ягафарова Р.Х. | C78: Литерат. чтение Ч.2. | D78: 2006 | E78: 4 | F78: 15 | H78: Ягафарова Р.Х. | I78: 2006 | J78: 529 | K78: 4 | L78: 15
A79: 531 | B79: Климанова Л.Ф. | C79: Родная речь.Ч.1 | D79: 2007 | E79: 3 | F79: 50
A80: 532 | B80: Климанова Л.Ф | C80: Родная речь.Ч.2 | D80: 2007 | E80: 3 | F80: 50
A81: 533 | B81: Сонин Н.И. | C81: Биология | D81: 2007 | E81: 8 | F81: 55
A82: 534 | B82: Моро М.И. | C82: Математика.Ч.1 | D82: 2007 | E82: 3 | F82: 37
A83: 535 | B83: Моро М.И. | C83: Математика.Ч.2 | D83: 2007 | E83: 3 | F83: 37
A84: 536 | B84: Бархударов С.Г. | C84: Русский язык | D84: 2007 | E84: 8 | F84: 40
A85: 537 | B85: Закиев М.З | C85: Татарский язык | D85: 2007 | E85: 8 | F85: 20 | H85: Закиев М.З | I85: 2007 | J85: 537 | K85: 8 | L85: 20
A86: 538 | B86: Биболетова М.З. | C86: Английский язык | D86: 2007 | E86: 4 | F86: 45
A87: 539 | B87: Валитова Р.Г. | C87: Алифба | D87: 2007 | E87: 1 | F87: 7 | H87: Валитова Р.Г. | I87: 2007 | J87: 539 | K87: 1 | L87: 7
A88: 544 | B88: Колмогоров А.Н | C88: Алгебра | D88: 2007 | E88: 10 | F88: 37
A89: 545 | B89: Рамзаева Т.Г | C89: Русский язык | D89: 2007 | E89: 1 | F89: 40
A90: 546 | B90: Дмитриева О.В | C90: Новая история | D90: 2007 | E90: 7 | F90: 3
A91: 547 | B91: Семакин И.Г. | C91: Информатика | D91: 2007 | E91: 9 | F91: 20
A92: 548 | B92: Бойцов М.А. | C92: История ср. веков | D92: 2007 | E92: 6 | F92: 45
A93: 549 | B93: Иванова Л.Ф | C93: Англ.яз 7,8,9 №916 | D93: 2007 | E93: 7 | F93: 80
A94: 550 | B94: Хайдарова Р.З. | C94: Татарский язык | D94: 2007 | E94: 6 | F94: 20 | H94: Хайдарова Р.З. | I94: 2007 | J94: 550 | K94: 6 | L94: 20
A95: 551 | B95: Кравченко А.И. | C95: Обществознание | D95: 2007 | E95: 7 | F95: 30
A96: 552 | B96: Яхин А.Г. | C96: Тат. лит. | D96: 2007 | E96: 8 | F96: 15 | H96: Яхин А.Г. | I96: 2007 | J96: 552 | K96: 8 | L96: 15
A97: 553 | B97: Кузнецов Л.М | C97: Химия | D97: 2007 | E97: 8 | F97: 49
A98: 554 | B98: Гуревич М.И. | C98: Технология д/мальч. | D98: 2007 | E98: 6 | F98: 15
A99: 555 | B99: Павлова М.Б. | C99: Технология д/девоч. | D99: 2007 | E99: 6 | F99: 15
A100: 556 | B100: Ладыженская Т.А. | C100: Русский язык | D100: 2007 | E100: 5 | F100: 43
A101: 557 | B101: Зинин С.А. | C101: Литература. 19 век.Ч.1 | D101: 2007 | E101: 9 | F101: 54
A102: 558 | B102: Зинин С.А. | C102: Литература. 19 век.Ч.2 | D102: 2007 | E102: 9 | F102: 54
A103: 559 | B103: Кузнецова М.А | C103: Химия | D103: 2007 | E103: 10 | F103: 30
A104: 560 | B104: Плешаков А.А. | C104: Окружающий мир. Ч.2 | D104: 2007 | E104: 2 | F104: 9
A105: 561 | B105: Бакиева Н.В., Гарипова | C105: Музыкал.букварь1кл. | D105: 2007 | E105: 1 | F105: 20 | H105: Бакиева Н.В., Гарипова Э.А | I105: 2007 | J105: 561 | K105: 1 | L105: 20
A106: 562 | B106: Ахметзянов М.Г | C106: Татарская литер. ч 1 | D106: 2007 | E106: 8 | F106: 20 | H106: Ахметзянов М.Г | I106: 2007 | J106: 562 | K106: 8 | L106: 20
A107: 563 | B107: Ахметзянов М.Г | C107: Татарская литер. ч 2 | D107: 2007 | E107: 8 | F107: 20 | H107: Ахметзянов М.Г | I107: 2007 | J107: 563 | K107: 8 | L107: 20
A108: 564 | B108: Ахметзянов М.Г | C108: Татарская литература ч1 | D108: 2007 | E108: 7 | F108: 20 | H108: Ахметзянов М.Г | I108: 2007 | J108: 564 | K108: 7 | L108: 20
A109: 565 | B109: Ахметзянов М.Г | C109: Татарская литература ч2 | D109: 2007 | E109: 7 | F109: 20 | H109: Ахметзянов М.Г | I109: 2007 | J109: 565 | K109: 7 | L109: 20
A110: 567 | B110: Нурмухаметова А. | C110: Азбука | D110: 2007 | E110: 1 | F110: 15 | H110: Нурмухаметова А. | I110: 2007 | J110: 567 | K110: 1 | L110: 15
A111: 569 | B111: Яхин А.Г. | C111: Тат.лит | D111: 2007 | E111: 10 | F111: 15 | H111: Яхин А.Г. | I111: 2007 | J111: 569 | K111: 10 | L111: 15
A112: 570 | B112: Яхин А.Г. | C112: Тат. лит. | D112: 2007 | E112: 9 | F112: 15 | H112: Яхин А.Г. | I112: 2007 | J112: 570 | K112: 9 | L112: 15
A113: 571 | B113: Хайдарова Р.З. | C113: Татарский язык | D113: 2007 | E113: 7 | F113: 40 | H113: Хайдарова Р.З. | I113: 2007 | J113: 571 | K113: 7 | L113: 40
A114: 572 | B114: Нуриева А. Х | C114: Татар Теле | D114: 2007 | E114: 2 | F114: 15 | H114: Нуриева А. Х | I114: 2007 | J114: 572 | K114: 2 | L114: 15
A115: 573 | B115: Плешаков А.А. | C115: Окружающий мир. Ч.1 | D115: 2007 | E115: 2 | F115: 38
A116: 575 | B116: Вагизов С. Г | C116: Книга для чтения 2клЧ. 1 | D116: 2007 | E116: 2 | F116: 15 | H116: Вагизов С. Г | I116: 2007 | J116: 575 | K116: 2 | L116: 15
A117: 576 | B117: Вагизов С. Г | C117: Книга для чтения Ч. 2 | D117: 2007 | E117: 2 | F117: 15 | H117: Вагизов С. Г | I117: 2007 | J117: 576 | K117: 2 | L117: 15
A118: 577 | B118: Яхин А. Г | C118: Литературн. Чт | D118: 2007 | E118: 3 | F118: 20 | H118: Яхин А. Г | I118: 2007 | J118: 577 | K118: 3 | L118: 20
A119: 578 | B119: Хайдарова Р.З. | C119: Татарский язык. | D119: 2007 | E119: 5 | F119: 30 | H119: Хайдарова Р.З. | I119: 2007 | J119: 578 | K119: 5 | L119: 30
A120: 579 | B120: Сафиуллина Ф.с | C120: Татарский язык | D120: 2007 | E120: 10 | F120: 45 | H120: Сафиуллина Ф.с | I120: 2007 | J120: 579 | K120: 10 | L120: 45
A121: 580 | B121: Сафиуллина Ф.С | C121: Татарский язык | D121: 2007 | E121: 11 | F121: 25 | H121: Сафиуллина Ф.С | I121: 2007 | J121: 580 | K121: 11 | L121: 25
A122: 581 | B122: Сафиуллина Ф.С | C122: Татарский язык | D122: 2008 | E122: 9 | F122: 24 | H122: Сафиуллина Ф.С | I122: 2008 | J122: 581 | K122: 9 | L122: 24
A123: 582 | B123: Харисов Ф.Ф. | C123: Тат. яз для тат. шк. | D123: 2008 | E123: 1 | F123: 50 | H123: Харисов Ф.Ф. | I123: 2008 | J123: 582 | K123: 1 | L123: 50
A124: 584 | B124: Ягафарова Р.Х. | C124: Тат. яз. Для тат. школ | D124: 2008 | E124: 2 | F124: 20 | H124: Ягафарова Р.Х. | I124: 2008 | J124: 584 | K124: 2 | L124: 20
A125: 585 | B125: Сафиуллина Ф.С. | C125: Тат. яз. д/рус.яз. Ч 1 | D125: 2009 | E125: 1 | F125: 30 | H125: Сафиуллина Ф.С. | I125: 2009 | J125: 585 | K125: 1 | L125: 30
A126: 586 | B126: Сафиуллина Ф.С. | C126: Тат. яз. д/рус.яз. Ч2 | D126: 2008 | E126: 1 | F126: 30 | H126: Сафиуллина Ф.С. | I126: 2008 | J126: 586 | K126: 1 | L126: 30
A127: 587 | B127: Хасаншина Р.Г. | C127: Татарский язык | D127: 2007 | E127: 5 | H127: Хасаншина Р.Г. | I127: 2007 | J127: 587 | K127: 5
A128: 588 | B128: Закиев М.З | C128: Татарский язык | D128: 2008 | E128: 9 | F128: 20 | H128: Закиев М.З | I128: 2008 | J128: 588 | K128: 9 | L128: 20
A129: 589 | B129: Андромонова Н.А | C129: Русская речь | D129: 2008 | E129: 9 | F129: 20 | H129: Андромонова Н.А | I129: 2008 | J129: 589 | K129: 9 | L129: 20
A130: 590 | B130: Сафиуллина Ф.С. | C130: Тат. яз. Для р/яз. | D130: 2008 | E130: 8 | F130: 30 | H130: Сафиуллина Ф.С. | I130: 2008 | J130: 590 | K130: 8 | L130: 30
A131: 591 | B131: Яхин А.Г. | C131: Тат. лит. | D131: 2008 | E131: 11 | F131: 25 | H131: Яхин А.Г. | I131: 2008 | J131: 591 | K131: 11 | L131: 25
A132: 592 | B132: Гилязов И.А. | C132: История Татарстана | D132: 2008 | E132: 10 | F132: 45 | H132: Гилязов И.А. | I132: 2008 | J132: 592 | K132: 10 | L132: 45
A133: 595 | B133: Рамзаева Т. Г | C133: Русский язык Ч. 1 | D133: 2008 | E133: 2 | F133: 50
A134: 596 | B134: Рамзаева Т. Г | C134: Русский язык Ч. 2 | D134: 2008 | E134: 2 | F134: 50
A135: 597 | B135: Моро М.И. | C135: Математика.Ч.1 | D135: 2008 | E135: 4 | F135: 41
A136: 598 | B136: Моро М.И. | C136: Математика.Ч.2 | D136: 2008 | E136: 4 | F136: 41
A137: 599 | B137: ПлешаковА.А. | C137: Окружающий мир.Ч.1 | D137: 2008 | E137: 3 | F137: 35
A138: 600 | B138: ПлешаковА.А. | C138: Окружающий мир.Ч.2 | D138: 2008 | E138: 3 | F138: 35
A139: 601 | B139: Биболетова М.З. | C139: Англиийский язык | D139: 2008 | E139: 5 | F139: 47
A140: 602 | B140: Баранов М.Т. | C140: Русский язык | D140: 2008 | E140: 6 | F140: 40
A141: 603 | B141: Захарова Е.Н. | C141: Новая история | D141: 2007 | E141: 8 | F141: 44
A142: 604 | B142: Кравченко А.И | C142: Обществознание | D142: 2008 | E142: 8 | F142: 50
A143: 605 | B143: Алексеев А.И | C143: География России | D143: 2008 | E143: 9 | F143: 50
A144: 606 | B144: Минченков Е.Е. | C144: Химия | D144: 2006 | E144: 8 | F144: 35
A145: 607 | B145: Минченков Е.Е. | C145: Химия | D145: 2006 | E145: 9 | F145: 48
A146: 608 | B146: Пёрышкин А.Ф. | C146: Физика | D146: 2008 | E146: 7 | F146: 40
A147: 609 | B147: Семакин И.Г. | C147: Информатика 10-11 | D147: 2008 | E147: 10 | F147: 48
A148: 610 | B148: Колмогоров А.Н | C148: Алгебра | D148: 2008 | E148: 10 | F148: 43
A149: 611 | B149: Мякишев Г.Я. | C149: Физика | D149: 2008 | E149: 10 | F149: 50
A150: 612 | B150: Рудзитис Г.Е. | C150: Химия | D150: 2008 | E150: 10 | F150: 60
A151: 613 | B151: Кузовлев В.П. | C151: Английский язык 10-11 | D151: 2008 | E151: 10 | F151: 30
A152: 616 | B152: Павлова М.Б. | C152: Технология (девочки) | D152: 2008 | E152: 7 | F152: 25
A153: 617 | B153: Гуревич М.И. | C153: Технология д/мальч. | D153: 2008 | E153: 7 | F153: 25
A154: 620 | B154: Волобуев О.В | C154: История России | D154: 2008 | E154: 11 | F154: 51
A155: 621 | B155: Яхин А.Г. | C155: Тат. лит для тат.шк. | D155: 2008 | E155: 4 | F155: 18 | H155: Яхин А.Г. | I155: 2008 | J155: 621 | K155: 4 | L155: 18
A156: 622 | B156: Хайдарова Р.З. | C156: Татарский язык | D156: 2007 | E156: 8 | F156: 30 | H156: Хайдарова Р.З. | I156: 2007 | J156: 622 | K156: 8 | L156: 30
A157: 623 | B157: Сафиуллина Ф.С | C157: Татарский язык | D157: 2008 | E157: 9 | F157: 30 | H157: Сафиуллина Ф.С | I157: 2008 | J157: 623 | K157: 9 | L157: 30
A158: 624 | B158: Хайдарова Р.З. | C158: Татарский язык | D158: 2008 | E158: 9 | F158: 30 | H158: Хайдарова Р.З. | I158: 2008 | J158: 624 | K158: 9 | L158: 30
A159: 625 | B159: Поляков Л.В | C159: Обществознание | D159: 2008 | E159: 11 | F159: 4
A160: 626 | B160: Уткин А.И | C160: История России | D160: 2008 | E160: 10 | F160: 4
A161: 628 | B161: Хайдарова Р.З. | C161: Татарский язык. Ч.1 2 кл | D161: 2009 | E161: 2 | F161: 63 | H161: Хайдарова Р.З. | I161: 2009 | J161: 628 | K161: 2 | L161: 63
A162: 629 | B162: Ягафарова Р.Х. | C162: Литературн. Чт | D162: 2009 | E162: 3 | F162: 33 | H162: Ягафарова Р.Х. | I162: 2009 | J162: 629 | K162: 3 | L162: 33
A163: 630 | B163: Валитова Р.Г. | C163: Алифба | D163: 2009 | E163: 1 | F163: 18 | H163: Валитова Р.Г. | I163: 2009 | J163: 630 | K163: 1 | L163: 18
A164: 631 | B164: Кузовлев В.П. | C164: Английский язык 10-11 | D164: 2009 | E164: 10 | F164: 20
A165: 632 | B165: Биболетова М.З. | C165: Англиийский язык | D165: 2009 | E165: 5 | F165: 22
A166: 633 | B166: Мякишев Г.Я. | C166: Физика | D166: 2009 | E166: 11 | F166: 20
A167: 634 | B167: Зеленина Л.М. | C167: Русский язык.Ч.1 | D167: 2009 | E167: 3 | F167: 33
A168: 635 | B168: Зеленина Л.М. | C168: Русский язык.Ч.2 | D168: 2009 | E168: 3 | F168: 33
A169: 636 | B169: Иванов С.В. | C169: Русский язык. Ч.1 | D169: 2009 | E169: 3 | F169: 21
A170: 637 | B170: Иванов С.В. | C170: Русский язык. Ч.2 | D170: 2009 | E170: 3 | F170: 21
A171: 638 | B171: Ефросинина Л.А. | C171: Литер. чтение. Ч.1 | D171: 2009 | E171: 4 | F171: 21
A172: 639 | B172: Ефросинина Л.А. | C172: Литер. чтение. Ч.2 | D172: 2009 | E172: 4 | F172: 21
A173: 640 | B173: Климанова Л.Ф. | C173: Родная речь. Ч.1 | D173: 2009 | E173: 4 | F173: 34
A174: 641 | B174: Климанова Л.Ф. | C174: Родная речь. Ч.2 | D174: 2009 | E174: 4 | F174: 34
A175: 642 | B175: Виноградова Н.Ф. | C175: Окружающий мир. Ч.1 | D175: 2009 | E175: 4 | F175: 21
A176: 643 | B176: Виноградова Н.Ф. | C176: Окружающий мир. Ч.2 | D176: 2009 | E176: 4 | F176: 21
A177: 644 | B177: ПлешаковА.А. | C177: Окружающий мир.Ч.1 | D177: 2009 | E177: 4 | F177: 32
A178: 645 | B178: ПлешаковА.А. | C178: Окружающий мир.Ч.2 | D178: 2009 | E178: 4 | F178: 32
A179: 646 | B179: Баранов М.Т. | C179: Русский язык | D179: 2009 | E179: 7 | F179: 38
A180: 647 | B180: Кауфман К.И | C180: Счастливый англ. | D180: 2009 | E180: 6 | F180: 22
A181: 648 | B181: Погорелов А.В. | C181: Геометрия 7-9 | D181: 2009 | E181: 7 | F181: 52
A182: 649 | B182: Семакин И.Г. | C182: Информатика | D182: 2009 | E182: 8 | F182: 41
A183: 650 | B183: Данилов А.А. | C183: История России | D183: 2009 | E183: 6 | F183: 43
A184: 651 | B184: Боголюбов Л.Н. | C184: Обществознание 8-9 | D184: 2009 | E184: 8 | F184: 44
A185: 652 | B185: Дронов В.П. | C185: География России | D185: 2009 | E185: 6 | F185: 40
A186: 653 | B186: Каменский А.А. | C186: Биология | D186: 2009 | E186: 9 | F186: 45
A187: 654 | B187: Сахаров В.И. | C187: Рус. лит-ра.Учеб.Ч.1 | D187: 2009 | E187: 10 | F187: 22
A188: 655 | B188: Сахаров В.И. | C188: Рус. лит-ра.Учеб.Ч.2 | D188: 2009 | E188: 10 | F188: 22
A189: 656 | B189: Семакин И.Г. | C189: Информатика 10-11 | D189: 2009 | E189: 10 | F189: 49
A190: 657 | B190: Алексашкина Л.Н. | C190: Всеобщая история | D190: 2009 | E190: 10 | F190: 29
A191: 658 | B191: Боголюбов Л.Н. | C191: Введение в обществ. | D191: 2009 | E191: 10 | F191: 28
A192: 659 | B192: Максаковский В.П. | C192: География | D192: 2009 | E192: 10 | F192: 31
A193: 660 | B193: Рудзитис Г.Е. | C193: Химия | D193: 2009 | E193: 11 | F193: 20
A194: 661 | B194: Коровина В.Я. | C194: Литература. Ч.1 | D194: 2009 | E194: 6 | F194: 45
A195: 662 | B195: Ахиярова М.З | C195: Азбука | D195: 2009 | E195: 1 | F195: 18 | H195: Ахиярова М.З | I195: 2009 | J195: 662 | K195: 1 | L195: 18
A196: 663 | B196: Харисов Ф.Ф. | C196: Тат. яз. Для тат. | D196: 2009 | E196: 3 | F196: 30 | H196: Харисов Ф.Ф. | I196: 2009 | J196: 663 | K196: 3 | L196: 30
A197: 664 | B197: Харисов Ф.Ф. | C197: Тат. яз. Для тат. | D197: 2009 | E197: 4 | F197: 22 | H197: Харисов Ф.Ф. | I197: 2009 | J197: 664 | K197: 4 | L197: 22
A198: 665 | B198: Хайдарова Р.З. | C198: Татарский язык.Ч.1 | D198: 2009 | E198: 3 | F198: 38 | H198: Хайдарова Р.З. | I198: 2009 | J198: 665 | K198: 3 | L198: 38
A199: 666 | B199: Нигматуллина Р.Р | C199: Татарский язык | D199: 2009 | E199: 9 | F199: 4 | H199: Нигматуллина Р.Р | I199: 2009 | J199: 666 | K199: 9 | L199: 4
A200: 667 | B200: Хайдарова Р.З. | C200: Тат. яз. и лит.чтение | D200: 2009 | E200: 10 | F200: 31 | H200: Хайдарова Р.З. | I200: 2009 | J200: 667 | K200: 10 | L200: 31
A201: 668 | B201: Тайсин А.С | C201: География Татарстана | D201: 2009 | E201: 8 | F201: 40 | H201: Тайсин А.С | I201: 2009 | J201: 668 | K201: 8 | L201: 40
... 129 more rows

Sheet инв.кн.05-12
A1: Инвентарная книга 2005-2012г.г.
A3: инв. № | B3: автор | C3: заглавие | D3: год изд. | E3: изд-во | F3: класс | G3: кол-во | H3: цена | I3: сумма | J3: № накладной | K3: нет данн
A4: 432 | B4: Власенков А.И | C4: Русский язык | D4: 2005 | E4: Просвещение | F4: 10 | G4: 90 | H4: 57.09 | I4: =G4*H4 -> 5138.10 | J4: 2005-09-14 | L4: списать
A5: 433 | B5: Левитан Е.П | C5: Астрономия | D5: 2005 | E5: Просвещение | F5: 11 | G5: 43 | H5: 65.00 | I5: 2795.00 | J5: 2005-09-14 | L5: списать
A6: 434 | B6: Макарычев Ю.Н. | C6: Алгебра | D6: 2005 | E6: Просвещение | F6: 8 | G6: 46 | H6: 55.41 | I6: 2548.86 | J6: 2005-09-14 | L6: списать
A7: 435 | B7: Пискарёв В.И. | C7: История Татарстана | D7: 2004 | E7: Хэтер | F7: 8 | G7: 30 | H7: 30.80 | I7: 924.00 | J7: 2005-09-13 | L7: списать
A8: 436 | B8: Биболетова М.З. | C8: Английский язык | D8: 2005 | E8: Титул | F8: 2 | G8: 50 | H8: 81.20 | I8: 4060.00 | J8: 2005-09-14 | L8: списать
A9: 437 | B9: Верещагина И. Н | C9: Английск. яз.Ч. 1 | D9: 2005 | E9: Просвещение | F9: 2 | G9: 50 | H9: 57.09 | I9: 2854.50 | J9: 2005-09-14 | L9: списать
A10: 438 | B10: Плешаков А.А. | C10: Мир вокруг нас | D10: 2005 | E10: Просвещение | F10: 1 | G10: 50 | H10: 71.36 | I10: 3568.00 | J10: 2005-09-14 | K10: н/д ? | L10: списать
A11: 439 | B11: Верещагина И. Н | C11: Английский язык Ч. 2 | D11: 2005 | E11: Просвещение | F11: 2 | G11: 50 | H11: 57.09 | I11: 2854.50 | J11: 2005-09-14 | L11: списать
A12: 440 | B12: Гилязов И.А. | C12: История Татарстана | D12: 2004 | E12: Тарих | F12: 7 | G12: 50 | H12: 28.60 | I12: 1430.00 | J12: нет записи в КСУ | L12: списать
A13: 441 | B13: Сонин Н.И. | C13: Биология | D13: 2005 | E13: Дрофа | F13: 6 | G13: 60 | H13: 75.25 | I13: 4515.00 | J13: 2005-11-20 | L13: списать
A14: 442 | B14: Плешаков А.А. | C14: Природоведение | D14: 2005 | E14: Дрофа | F14: 5 | G14: 50 | H14: 75.25 | I14: 3762.50 | J14: 2005-11-20 | L14: списать
A15: 443 | B15: Виленкин Н.Я. | C15: Математика | D15: 2005 | E15: Мнемозина | F15: 5 | G15: 50 | H15: 92.57 | I15: 4628.50 | J15: 20,11,2005, | L15: списать
A16: 444 | B16: Бархударов С.Г. | C16: Русский язык | D16: 2005 | E16: Просвещение | F16: 9 | G16: 60 | H16: 47.58 | I16: 2854.80 | J16: 20,11,2005, | L16: списать
A17: 445 | B17: Сахипова З.Г. | C17: Солнышко | D17: 2005 | E17: С-Петербург | F17: 1 | G17: 42 | H17: 66.51 | I17: 2793.42 | J17: 20,11,2005, | K17: н/д | L17: списать
A18: 446 | B18: Чалмаев В.А. | C18: Рус. Лит. Хрестом. Ч.1 | D18: 2005 | E18: Рус.слово | F18: 11 | G18: 70 | H18: 87.00 | I18: 6090.00 | J18: 20,11,2005, | L18: списать
A19: 447 | B19: Чалмаев В.А. | C19: Рус. Лит. Хрестом. Ч.2 | D19: 2005 | E19: Рус.слово | F19: 11 | G19: 72 | H19: 87.00 | I19: 6264.00 | J19: 20,11,2005, | L19: списать
A20: 448 | B20: Коровина В.Я. | C20: Литература Ч.1 | D20: 2003 | E20: Просвещение | F20: 8 | G20: 17 | H20: 44.00 | I20: 748.00 | J20: 20,11,2005, | K20: н/д | L20: списать
A21: 449 | B21: Коровина В.Я. | C21: Литература Ч.2 | D21: 2003 | E21: Просвещение | F21: 8 | G21: 17 | H21: 44.00 | I21: 748.00 | J21: 20,11,2005, | K21: н/д | L21: списать
A22: 450 | B22: Ботвинников А.Д | C22: Черчение | D22: 2005 | E22: АСТ | F22: 7 | G22: 20 | H22: 56.80 | I22: 1136.00 | J22: 20,11,2005, | L22: списать
A23: 451 | B23: Ахметзянов М.Г | C23: Литература Ч.1 | D23: 2002 | E23: С-Петербург | F23: 5 | G23: 24 | H23: 53.46 | I23: 1283.04 | J23: 20,11,2005, | K23: н/д | L23: списать
A24: 452 | B24: Ахметзянов М.Г | C24: Литература Ч.2 | D24: 2002 | E24: С-Петербург | F24: 5 | G24: 24 | H24: 50.00 | I24: 1200.00 | J24: 20,11,2005, | K24: н/д | L24: списать
A25: 453 | B25: Хайдарова Р.З. | C25: Татарский язык.Ч.1 | D25: 2005 | E25: Магариф | F25: 4 | G25: 38 | H25: 35.00 | I25: 1330.00 | J25: 03,12,2005, | L25: списать
A26: 454 | B26: Хайдарова Р.З. | C26: Татарский язык.Ч.2 | D26: 2005 | E26: Магариф | F26: 4 | G26: 36 | H26: 31.00 | I26: 1116.00 | J26: 03,12,2005, | L26: списать
A27: 455 | B27: Сафиуллина Ф.С. | C27: Татарский язык | D27: 2005 | E27: Магариф | F27: 4 | G27: 36 | H27: 49.10 | I27: 1767.60 | J27: 03,12,2005, | L27: списать
A28: 456 | B28: Ахмадуллина А.Г | C28: Тат. лит. | D28: 2005 | E28: Магариф | F28: 11 | G28: 26 | H28: 58.00 | I28: 1508.00 | J28: 03,12,2005, | L28: списать
A29: 457 | B29: Голованова М.В | C29: Родная речь | D29: 2005 | E29: Просвещение | F29: 2 | G29: 15 | H29: 49.50 | I29: 742.50 | J29: 20,11,2005, | L29: списать
A30: 458 | B30: Ахмадуллин А.Г | C30: Хрестоматия.Тат.литер. | D30: 2005 | E30: Магариф | F30: 10 | G30: 10 | H30: 53.00 | I30: 530.00 | J30: 04,12,2005 | L30: списать
A31: 459 | B31: Сафиуллина Ф.с | C31: Татарский язык | D31: 2005 | E31: Магариф | F31: 10 | G31: 32 | H31: 48.00 | I31: 1536.00 | J31: 04,12,2005 | L31: списать
A32: 460 | B32: Хасанов | C32: Татарская литература | D32: 2005 | E32: Магариф | F32: 10 | G32: 10 | H32: 45.00 | I32: 450.00 | J32: 04,12,2005 | L32: списать
A33: 461 | B33: Хабибуллина З.Н. | C33: Татарская литература | D33: 2005 | E33: Магариф | F33: 8 | G33: 12 | H33: 32.00 | I33: 384.00 | J33: 04,12,2005 | L33: списать
A34: 462 | B34: Галимуллин | C34: Татарская литература | D34: 2005 | E34: Магариф | F34: 6 | G34: 5 | H34: 35.00 | I34: 175.00 | J34: 04,12,2005 | L34: списать
A35: 463 | B35: Максимов Н.В | C35: татарский язык | D35: 2005 | E35: Магариф | F35: 6 | G35: 5 | H35: 33.00 | I35: 165.00 | J35: 04,12,2005 | L35: списать
A36: 464 | B36: Мусин Ф.М. | C36: Татарская литература | D36: 2005 | E36: Магариф | F36: 7 | G36: 5 | H36: 30.00 | I36: 150.00 | J36: 04,12,2005 | L36: списать
A37: 465 | B37: Кашапова М.Ф. | C37: Методич. Пособие | D37: 2004 | E37: Магариф | F37: 0 | G37: 1 | H37: 58.00 | I37: 58.00 | J37: 04,12,2005 | L37: списать
A38: 466 | B38: Пискарёв В.И. | C38: История Татарстана | D38: 2005 | E38: Магариф | F38: 8 | G38: 20 | H38: 38.50 | I38: 770.00 | J38: 09,03,2006 | K38: н/д | L38: списать
A39: 467 | B39: Архипов А.П. | C39: Азбука страхования | D39: 2005 | E39: Магариф | F39: 0 | G39: 1 | H39: 55.00 | I39: 55.00 | J39: 09,03,2006 | L39: списать
A40: 468 | B40: Гараева и др. | C40: Язык-ключ к знанию | D40: 2005 | E40: Магариф | F40: 0 | G40: 1 | H40: 30.50 | I40: 30.50 | J40: 09,03,2006 | L40: списать
A41: 469 | B41: Миннуллин К.М. | C41: Песня сквозь годы | D41: 2004 | E41: Магариф | F41: 0 | G41: 1 | H41: 30.00 | I41: 30.00 | J41: 09,03,2006 | L41: списать
A42: 470 | B42: Хабибуллина З.Н. | C42: Тат.лит | D42: 2005 | E42: Магариф | F42: 9 | G42: 25 | H42: 46.00 | I42: 1150.00 | J42: 09,03,2006 | L42: списать
A43: 471 | B43: Сафиуллина Ф.С | C43: Татарский язык | D43: 2005 | E43: Магариф | F43: 11 | G43: 30 | H43: 44.00 | I43: 1320.00 | J43: 25,03,2006 | L43: списать
A44: 472 | B44: Васильева | C44: Книга для чтения | D44: 2005 | E44: Магариф | F44: 0 | G44: 2 | H44: 74.80 | I44: 149.60 | J44: 27,03,2006 | K44: н/д | L44: списать
A45: 473 | B45: Васильева | C45: Методич. Пособие | D45: 2005 | E45: Магариф | F45: 0 | G45: 2 | H45: 64.90 | I45: 129.80 | J45: 27,03,2006 | K45: н/д | L45: списать
A46: 474 | B46: Абзалов Ф. | C46: Физическая культура | D46: 2005 | E46: Магариф | F46: 0 | G46: 2 | H46: 56.00 | I46: 112.00 | J46: 27,03,2006 | K46: н/д | L46: списать
A47: 475 | B47: Васильева | C47: Учебник | D47: 2005 | E47: Магариф | F47: 0 | G47: 2 | H47: 79.75 | I47: 159.50 | J47: 27,03,2006 | K47: н/д | L47: списать
A48: 476 | B48: Харисова Л.А. | C48: Культура народов Татарстана | D48: 2005 | E48: Магариф | F48: 0 | G48: 10 | H48: 70.00 | I48: 700.00 | J48: 27,03,2006 | K48: н/д | L48: списать
A49: 477 | B49: Беляев Д.К. | C49: Общая биология | D49: 2005 | E49: Просвещение | F49: 10 | G49: 30 | H49: 83.60 | I49: 2508.00 | J49: 26,04,2006 | L49: списать
A50: 478 | B50: Захаров В.Б. | C50: Общая биология | D50: 2006 | E50: Дрофа | F50: 10 | G50: 49 | H50: 64.30 | I50: 3150.70 | J50: 26,04,2006 | L50: списать
A51: 479 | B51: Асылгараева Р.А. | C51: Татарский язык | D51: 2005 | E51: Магариф | F51: 8 | G51: 20 | H51: 27.00 | I51: 540.00 | J51: 09,06,2006 | L51: списать
A52: 480 | B52: Асылгараева Р.А. | C52: Татарский язык | D52: 2005 | E52: Магариф | F52: 7 | G52: 20 | H52: 41.00 | I52: 820.00 | J52: 09,06,2006 | L52: списать
A53: 481 | B53: Зиннатуллина К.З. | C53: Тат.яз | D53: 2005 | E53: Магариф | F53: 9 | G53: 25 | H53: 25.00 | I53: 625.00 | J53: 09,06,2006 | L53: списать
A54: 482 | B54: Гилязов И.А. | C54: История Татарстана | D54: 2005 | E54: Магариф | F54: 7 | G54: 10 | H54: 48.40 | I54: 484.00 | J54: 09,06,2006 | L54: списать
A55: 483 | B55: Бакиева Н.В. | C55: Музыка | D55: 2005 | E55: Магариф | F55: 4 | G55: 25 | H55: 32.00 | I55: 800.00 | J55: 12,06,2006 | L55: списать
A56: 484 | B56: Ягафарова Р.Х. | C56: Литературн. чтение ч1 | D56: 2005 | E56: Магариф | F56: 4 | G56: 20 | H56: 34.00 | I56: 680.00 | J56: 12,06,2006 | L56: списать
A57: 485 | B57: Моро М.И. | C57: Математика.Ч.1 | D57: 2006 | E57: Просвещение | F57: 2 | G57: 58 | H57: 60.01 | I57: 3480.58 | J57: 20,09,2006 | L57: списать
A58: 486 | B58: Моро М.И. | C58: Математика.Ч.2 | D58: 2006 | E58: Просвещение | F58: 2 | G58: 58 | H58: 60.01 | I58: 3480.58 | J58: 20,09,2006 | L58: списать
A59: 487 | B59: Залялеева М.Ш. | C59: Литература | D59: 2006 | E59: Магариф | F59: 5 | G59: 5 | H59: 53.00 | I59: 265.00 | J59: 20,09,2006
A60: 488 | B60: Ганиева Ф.А | C60: Татарская литература | D60: 2006 | E60: Магариф | F60: 6 | G60: 10 | H60: 54.00 | I60: 540.00 | J60: 20,09,2006
A61: 489 | B61: Хатипов Ф.М | C61: Литература | D61: 2006 | E61: Магариф | F61: 7 | G61: 15 | H61: 57.00 | I61: 855.00 | J61: 20,09,2006
A62: 490 | B62: Ахмадуллин А.Г | C62: Татарская литература | D62: 2006 | E62: Магариф | F62: 8 | G62: 18 | H62: 56.00 | I62: 1008.00 | J62: 20,09,2006
A63: 491 | B63: Валитова Р.Г. | C63: Тат. яз. | D63: 2006 | E63: Магариф | F63: 1 | G63: 10 | H63: 37.00 | I63: 370.00 | J63: 20,09,2006
A64: 493 | B64: Ягафарова Р.Х. | C64: Азбука | D64: 2006 | E64: Магариф | F64: 1 | G64: 10 | H64: 57.00 | I64: 570.00 | J64: 20,09,2006 | K64: нет инв №
A65: 494 | B65: Баринова И.И. | C65: География России | D65: 2006 | E65: Дрофа | F65: 8 | G65: 36 | H65: 81.60 | I65: 2937.60 | J65: 20,09,2006
A66: 495 | B66: Раковская Э.В | C66: География .Прир.Рос. | D66: 2006 | E66: Просвещение | F66: 8 | G66: 15 | H66: 86.32 | I66: 1294.80 | J66: 20,09,2006
A67: 496 | B67: Бунеев Р.Н. | C67: Литература.Ч.1. | D67: 2006 | E67: Баласс | F67: 5 | G67: 20 | H67: 88.00 | I67: 1760.00 | J67: 20,09,2006
A68: 497 | B68: Бунеев Р.Н. | C68: Литература.Ч.2. | D68: 2006 | E68: Баласс | F68: 5 | G68: 20 | H68: 88.00 | I68: 1760.00 | J68: 20,09,2006
A69: 498 | B69: Захаров В.Б. | C69: Общая биология | D69: 2006 | E69: Дрофа | F69: 7 | G69: 12 | H69: 89.76 | I69: 1077.12 | J69: 20,09,2006
A70: 499 | B70: Биболетова М.З. | C70: Английский язык | D70: 2006 | E70: Титул | F70: 3 | G70: 58 | H70: 89.00 | I70: 5162.00 | J70: 20,09,2006
A71: 500 | B71: Виленкин Н.Я. | C71: Математика | D71: 2006 | E71: Мнемозина | F71: 6 | G71: 55 | H71: 87.78 | I71: 4827.90 | J71: 20,09,2006
A72: 501 | B72: Захаров В.Б | C72: Общая биология | D72: 2006 | E72: Дрофа | F72: 11 | G72: 50 | H72: 73.92 | I72: 3696.00 | J72: 20,09,2006 | K72: нет инв №
A73: 504 | B73: Кравченко А.И. | C73: Обществознание | D73: 2006 | E73: Рус.слово | F73: 6 | G73: 50 | H73: 51.00 | I73: 2550.00 | J73: 2006-10-19
A74: 505 | B74: Иванов С.И.. | C74: Основы эк. теор.Ч.1 | D74: 2006 | E74: Вита | F74: 10 | G74: 50 | H74: 87.98 | I74: 4399.00 | J74: 2006-10-19
A75: 506 | B75: Иванов С.И. | C75: Основы эк. теор. Ч.2 | D75: 2006 | E75: Вита | F75: 10 | G75: 50 | H75: 87.98 | I75: 4399.00 | J75: 2006-10-19
A76: 507 | B76: Каменский А.А | C76: Общая биология | D76: 2006 | E76: Дрофа | F76: 10 | G76: 30 | H76: 88.70 | I76: 2661.00 | J76: 2006-11-14
A77: 508 | B77: Зинин С.А. | C77: Рус. лит-ра. 19в.Хр.Ч.1 | D77: 2006 | E77: Рус.слово | F77: 10 | G77: 50 | H77: 90.00 | I77: 4500.00 | J77: 2006-11-14
A78: 509 | B78: Зинин С.А. | C78: Рус. лит-ра. 19в.Хр.Ч.2 | D78: 2006 | E78: Рус.слово | F78: 10 | G78: 50 | H78: 90.00 | I78: 4500.00 | J78: 2006-11-14
A79: 510 | B79: Сахаров А.Н. | C79: История России.Ч.2 | D79: 2006 | E79: Рус.слово | F79: 10 | G79: 50 | H79: 109.00 | I79: 5450.00 | J79: 2006-11-14
A80: 511 | B80: Сахаров А.Н. | C80: История России.Ч.1 | D80: 2006 | E80: Рус.слово | F80: 10 | G80: 50 | H80: 105.00 | I80: 5250.00 | J80: 2006-11-14
A81: 512 | B81: Павлова М.Б.Сасова И.А. | C81: Технология (д.,м.) | D81: 2006 | E81: В-Граф | F81: 5 | G81: 25 | H81: 68.00 | I81: 1700.00 | J81: 2006-11-14
A82: 513 | B82: Симоненко В.Д | C82: Технология | D82: 2006 | E82: В-Граф | F82: 10 | G82: 25 | H82: 67.83 | I82: =G82*H82 -> 1695.75 | J82: 2006-11-14
A83: 514 | B83: Вигасин А.А. | C83: История др.мира | D83: 2006 | E83: Просвещение | F83: 5 | G83: 58 | H83: 84.22 | I83: 4884.76 | J83: 2006-11-14
A84: 515 | B84: Коровина В.Я. | C84: Литература.Ч.1 | D84: 2006 | E84: Просвещение | F84: 5 | G84: 58 | H84: 68.43 | I84: 3968.94 | J84: 2006-11-14
A85: 516 | B85: Коровина В.Я. | C85: Литература.Ч.2 | D85: 2006 | E85: Просвещение | F85: 5 | G85: 58 | H85: 68.43 | I85: 3968.94 | J85: 2006-11-14
A86: 517 | B86: Сафиуллина Ф.С | C86: Татарский язык | D86: 2006 | E86: Магариф | F86: 11 | G86: 20 | H86: 36.00 | I86: 720.00 | J86: 2006-11-15
A87: 518 | B87: Климанова Л.Ф. | C87: Родная речь. Ч.1 | D87: 2006 | E87: Просвещение | F87: 2 | G87: 58 | H87: 71.59 | I87: 4152.22 | J87: 2007-03-13
A88: 519 | B88: Климанова Л.Ф. | C88: Родная речь. Ч.2 | D88: 2006 | E88: Просвещение | F88: 2 | G88: 62 | H88: 71.59 | I88: 4438.58 | J88: 2007-03-13
A89: 520 | B89: Хайдарова Р.З. | C89: Татарский язык. | D89: 2006 | E89: Магариф | F89: 5 | G89: 28 | H89: 54.00 | I89: 1512.00 | J89: 2007-03-13
A90: 521 | B90: Мусин Ф.М | C90: Тат. лит. | D90: 2006 | E90: Магариф | F90: 11 | G90: 10 | H90: 53.00 | I90: 530.00 | J90: 2007-03-15
A91: 522 | B91: Без автора | C91: Учебник англ.яз. | D91: 2006 | E91: Магариф | F91: 0 | G91: 1 | H91: 241.40 | I91: 241.40 | K91: н/д
A92: 523 | B92: Без автора | C92: Учебник англ.яз. | D92: 2006 | E92: Магариф | F92: 0 | G92: 1 | H92: 241.40 | I92: 241.40 | K92: н/д
A93: 524 | B93: Без автора | C93: Учебник англ.яз. | D93: 2006 | E93: Магариф | F93: 0 | G93: 1 | H93: 241.40 | I93: 241.40 | K93: н/д
A94: 525 | B94: Без автора | C94: Учебник англ.яз. | D94: 2006 | E94: Магариф | F94: 0 | G94: 1 | H94: 241.40 | I94: 241.40 | K94: н/д
A95: 526 | B95: Султанбеков Б.Ф. | C95: История Татарстана | D95: 2006 | E95: Магариф | F95: 9 | G95: 50 | H95: 68.20 | I95: 3410.00 | J95: 2007-06-10
A96: 527 | B96: Валитова Р.Г. | C96: Алифба | D96: 2004 | E96: Магариф | F96: 1 | G96: 2 | H96: 25.00 | I96: 50.00 | J96: 2007-06-12 | K96: н/д
A97: 528 | B97: Мустафин | C97: История Татарстана | D97: 2003 | E97: Магариф | F97: 8 | G97: 2 | H97: 17.00 | I97: 34.00 | J97: 2077-06-12
A98: 529 | B98: Ягафарова Р.Х. | C98: Литерат. чтение Ч.2. | D98: 2006 | E98: Магариф | F98: 4 | G98: 15 | H98: 34.00 | I98: 510.00 | J98: 2007-06-13
A99: 530 | B99: Рахимов И.И. | C99: Растит.и животный мир | D99: 2006 | E99: Магариф | F99: 0 | G99: 2 | H99: 100.00 | I99: 200.00 | J99: 2007-06-13 | K99: н/д
A100: 531 | B100: Климанова Л.Ф. | C100: Родная речь.Ч.1 | D100: 2007 | E100: Просвещение | F100: 3 | G100: 50 | H100: 81.05 | I100: 4052.50 | J100: 2007-08-15
A101: 532 | B101: Климанова Л.Ф | C101: Родная речь.Ч.2 | D101: 2007 | E101: Просвещение | F101: 3 | G101: 50 | H101: 81.05 | I101: 4052.50 | J101: 2007-08-15
A102: 533 | B102: Сонин Н.И. | C102: Биология | D102: 2007 | E102: Дрофа | F102: 8 | G102: 55 | H102: 90.90 | I102: 4999.50 | J102: 2007-08-15
A103: 534 | B103: Моро М.И. | C103: Математика.Ч.1 | D103: 2007 | E103: Просвещение | F103: 3 | G103: 37 | H103: 67.97 | I103: 2514.89 | J103: 2007-08-15
A104: 535 | B104: Моро М.И. | C104: Математика.Ч.2 | D104: 2007 | E104: Просвещение | F104: 3 | G104: 37 | H104: 67.97 | I104: 2514.89 | J104: 2007-08-15
A105: 536 | B105: Бархударов С.Г. | C105: Русский язык | D105: 2007 | E105: Просвещение | F105: 8 | G105: 40 | H105: 67.94 | I105: 2717.60 | J105: 2007-09-14
A106: 537 | B106: Закиев М.З | C106: Татарский язык | D106: 2007 | E106: Магариф | F106: 8 | G106: 20 | H106: 37.00 | I106: 740.00 | J106: 2007-09-15
A107: 538 | B107: Биболетова М.З. | C107: Английский язык | D107: 2007 | E107: Титул | F107: 4 | G107: 45 | H107: 109.45 | I107: 4925.25 | J107: 2007-09-16
A108: 539 | B108: Валитова Р.Г. | C108: Алифба | D108: 2007 | E108: Магариф | F108: 1 | G108: 7 | H108: 42.00 | I108: 294.00 | J108: 2007-09-17
A109: 540 | B109: Мухерджее | C109: Хартия Земли | D109: 2007 | E109: Магариф | F109: 0 | G109: 11 | H109: 51.00 | I109: 561.00 | J109: 2007-10-04
A110: 541 | B110: Мухерджее | C110: Хартия Земли | D110: 2007 | E110: Магариф | F110: 0 | G110: 11 | H110: 51.00 | I110: 561.00 | J110: 2007-10-04
A111: 542 | B111: Мухерджее | C111: Хартия Земли | D111: 2007 | E111: Магариф | F111: 0 | G111: 11 | H111: 51.00 | I111: 561.00 | J111: 2007-10-04
A112: 543 | B112: Ислаев Ф.Г. | C112: Хартия Земли | D112: 2007 | E112: Магариф | F112: 0 | G112: 11 | H112: 51.00 | I112: 561.00 | J112: 2007-10-04
A113: 544 | B113: Колмогоров А.Н | C113: Алгебра | D113: 2007 | E113: Просвещение | F113: 10 | G113: 37 | H113: 101.31 | I113: 3748.47 | J113: 2007-10-05
A114: 545 | B114: Рамзаева Т.Г | C114: Русский язык | D114: 2007 | E114: Дрофа | F114: 1 | G114: 40 | H114: 51.54 | I114: 2061.60 | J114: 2007-10-05
A115: 546 | B115: Дмитриева О.В | C115: Новая история | D115: 2007 | E115: Рус.слово | F115: 7 | G115: 3 | H115: 110.00 | I115: 330.00 | J115: 2007-10-06
A116: 547 | B116: Семакин И.Г. | C116: Информатика | D116: 2007 | E116: Бином | F116: 9 | G116: 20 | H116: 72.00 | I116: 1440.00 | J116: 2007-10-06
A117: 548 | B117: Бойцов М.А. | C117: История ср. веков | D117: 2007 | E117: Рус.слово | F117: 6 | G117: 45 | H117: 110.00 | I117: 4950.00 | J117: 2007-10-06
A118: 549 | B118: Иванова Л.Ф | C118: Англ.яз 7,8,9 №916 | D118: 2007 | E118: ТАИ | F118: 7 | G118: 80 | H118: 43.20 | I118: 3456.00 | J118: 2007-10-07
A119: 550 | B119: Хайдарова Р.З. | C119: Татарский язык | D119: 2007 | E119: Магариф | F119: 6 | G119: 20 | H119: 57.00 | I119: 1140.00 | J119: 2007-11-13
A120: 551 | B120: Кравченко А.И. | C120: Обществознание | D120: 2007 | E120: Рус.слово | F120: 7 | G120: 30 | H120: 85.00 | I120: 2550.00 | J120: 2007-11-13
A121: 552 | B121: Яхин А.Г. | C121: Тат. лит. | D121: 2007 | E121: Магариф | F121: 8 | G121: 15 | H121: 96.01 | I121: 1440.15 | J121: 2007-11-13
A122: 553 | B122: Кузнецов Л.М | C122: Химия | D122: 2007 | E122: Мнемозина | F122: 8 | G122: 49 | H122: 100.00 | I122: 4900.00 | J122: 2007-11-13
A123: 554 | B123: Гуревич М.И. | C123: Технология д/мальч. | D123: 2007 | E123: В-Граф | F123: 6 | G123: 15 | H123: 100.00 | I123: 1500.00 | J123: 2007-11-13
A124: 555 | B124: Павлова М.Б. | C124: Технология д/девоч. | D124: 2007 | E124: В-Граф | F124: 6 | G124: 15 | H124: 100.00 | I124: 1500.00 | J124: 2007-11-13
A125: 556 | B125: Ладыженская Т.А. | C125: Русский язык | D125: 2007 | E125: Просвещение | F125: 5 | G125: 43 | H125: 81.05 | I125: 3485.15 | J125: 2007-11-13
A126: 557 | B126: Зинин С.А. | C126: Литература. 19 век.Ч.1 | D126: 2007 | E126: Рус.слово | F126: 9 | G126: 54 | H126: 109.00 | I126: 5886.00 | J126: 2007-11-13
A127: 558 | B127: Зинин С.А. | C127: Литература. 19 век.Ч.2 | D127: 2007 | E127: Рус.слово | F127: 9 | G127: 54 | H127: 101.00 | I127: 5454.00 | J127: 2007-11-13
A128: 559 | B128: Кузнецова М.А | C128: Химия | D128: 2007 | E128: Мнемозина | F128: 10 | G128: 30 | H128: 124.30 | I128: 3729.00 | J128: 2007-11-13
A129: 560 | B129: Плешаков А.А. | C129: Окружающий мир. Ч.2 | D129: 2007 | E129: Просвещение | F129: 2 | G129: 9 | H129: 71.51 | I129: 643.59 | J129: 2007-11-13
A130: 561 | B130: Бакиева Н.В., Гарипова | C130: Музыкал.букварь1кл. | D130: 2007 | E130: Магариф | F130: 1 | G130: 20 | H130: 55.20 | I130: 1104.00 | J130: 2007-12-29
A131: 562 | B131: Ахметзянов М.Г | C131: Татарская литер. ч 1 | D131: 2007 | E131: Магариф | F131: 8 | G131: 20 | H131: 53.00 | I131: 1060.00 | J131: 2007-12-29
A132: 563 | B132: Ахметзянов М.Г | C132: Татарская литер. ч 2 | D132: 2007 | E132: Магариф | F132: 8 | G132: 20 | H132: 53.00 | I132: 1060.00 | J132: 2007-12-29
A133: 564 | B133: Ахметзянов М.Г | C133: Татарская литература ч1 | D133: 2007 | E133: Магариф | F133: 7 | G133: 20 | H133: 51.00 | I133: 1020.00 | J133: 2007-12-29
A134: 565 | B134: Ахметзянов М.Г | C134: Татарская литература ч2 | D134: 2007 | E134: Магариф | F134: 7 | G134: 20 | H134: 51.00 | I134: 1020.00 | J134: 2007-12-29
A135: 566 | B135: Коллектив | C135: Сборник осн.док.по ГО | D135: 2007 | E135: Казань | F135: 0 | G135: 4 | H135: 40.00 | I135: 160.00 | J135: 2008-03-11
A136: 567 | B136: Нурмухаметова А. | C136: Азбука | D136: 2007 | E136: Магариф | F136: 1 | G136: 15 | H136: 80.00 | I136: 1200.00 | J136: 2008-03-11
A137: 568 | B137: Тагиров И.Р. | C137: История ХХ века | D137: 2005 | E137: Гасыр | F137: 0 | G137: 1 | H137: 150.00 | I137: 150.00 | J137: 2008-03-11 | L137: списать
A138: 569 | B138: Яхин А.Г. | C138: Тат.лит | D138: 2007 | E138: Магариф | F138: 10 | G138: 15 | H138: 115.00 | I138: 1725.00 | J138: 2008-03-11
A139: 570 | B139: Яхин А.Г. | C139: Тат. лит. | D139: 2007 | E139: Магариф | F139: 9 | G139: 15 | H139: 121.00 | I139: 1815.00 | J139: 2008-03-11
A140: 571 | B140: Хайдарова Р.З. | C140: Татарский язык | D140: 2007 | E140: Магариф | F140: 7 | G140: 40 | H140: 42.00 | I140: 1680.00 | J140: 2008-03-11
A141: 572 | B141: Нуриева А. Х | C141: Татар Теле | D141: 2007 | E141: Магариф | F141: 2 | G141: 15 | H141: 37.00 | I141: 555.00 | J141: 2008-03-11
A142: 573 | B142: Плешаков А.А. | C142: Окружающий мир. Ч.1 | D142: 2007 | E142: Просвещение | F142: 2 | G142: 38 | H142: 71.51 | I142: 2717.38 | J142: 2008-03-11
A143: 574 | B143: Сахаров А.Н. | C143: История религий | D143: 2007 | E143: Рус.слово | F143: 10 | G143: 20 | H143: 160.00 | I143: 3200.00 | J143: 2008-03-11
A144: 575 | B144: Вагизов С. Г | C144: Книга для чтения 2клЧ. 1 | D144: 2007 | E144: Магариф | F144: 2 | G144: 15 | H144: 36.00 | I144: 540.00 | J144: 2008-03-17
A145: 576 | B145: Вагизов С. Г | C145: Книга для чтения Ч. 2 | D145: 2007 | E145: Магариф | F145: 2 | G145: 15 | H145: 36.00 | I145: 540.00 | J145: 2008-03-17
A146: 577 | B146: Яхин А. Г | C146: Литературн. Чт | D146: 2007 | E146: Магариф | F146: 3 | G146: 20 | H146: 57.00 | I146: 1140.00 | J146: 2008-03-17
A147: 578 | B147: Хайдарова Р.З. | C147: Татарский язык. | D147: 2007 | E147: Магариф | F147: 5 | G147: 30 | H147: 54.00 | I147: 1620.00 | J147: 2008-03-17
A148: 579 | B148: Сафиуллина Ф.с | C148: Татарский язык | D148: 2007 | E148: Магариф | F148: 10 | G148: 45 | H148: 35.00 | I148: 1575.00 | J148: 2008-03-17
A149: 580 | B149: Сафиуллина Ф.С | C149: Татарский язык | D149: 2007 | E149: Магариф | F149: 11 | G149: 25 | H149: 44.00 | I149: 1100.00 | J149: 2008-03-17
A150: 581 | B150: Сафиуллина Ф.С | C150: Татарский язык | D150: 2008 | E150: Магариф | F150: 9 | G150: 24 | H150: 38.00 | I150: 912.00 | J150: 2008-03-17
A151: 582 | B151: Харисов Ф.Ф. | C151: Тат. яз для тат. шк. | D151: 2008 | E151: Магариф | F151: 1 | G151: 50 | H151: 41.00 | I151: 2050.00 | J151: 2008-09-09
A152: 583 | B152: Ягафарова Р.Х. | C152: Тат. яз. Для тат. школ | D152: 2008 | E152: Магариф | F152: 1 | G152: 20 | H152: 41.00 | I152: 820.00 | J152: 2008-09-09
A153: 584 | B153: Ягафарова Р.Х. | C153: Тат. яз. Для тат. школ | D153: 2008 | E153: Магариф | F153: 2 | G153: 20 | H153: 61.00 | I153: 1220.00 | J153: 2008-09-09
A154: 585 | B154: Сафиуллина Ф.С. | C154: Тат. яз. д/рус.яз. Ч 1 | D154: 2009 | E154: Магариф | F154: 1 | G154: 30 | H154: 30.00 | I154: 900.00 | J154: 2008-09-09
A155: 586 | B155: Сафиуллина Ф.С. | C155: Тат. яз. д/рус.яз. Ч2 | D155: 2008 | E155: Магариф | F155: 1 | G155: 30 | H155: 86.00 | I155: 2580.00 | J155: 2008-09-09
A156: 587 | B156: Хасаншина Р.Г. | C156: Татарский язык | D156: 2007 | E156: Магариф | F156: 5 | G156: 30 | H156: 102.00 | I156: 3060.00 | J156: 2008-09-09
A157: 588 | B157: Закиев М.З | C157: Татарский язык | D157: 2008 | E157: Магариф | F157: 9 | G157: 20 | H157: 50.00 | I157: 1000.00 | J157: 2008-09-09
A158: 589 | B158: Андромонова Н.А | C158: Русская речь | D158: 2008 | E158: Магариф | F158: 9 | G158: 20 | H158: 56.00 | I158: 1120.00 | J158: 2008-09-09
A159: 590 | B159: Сафиуллина Ф.С. | C159: Тат. яз. Для р/яз. | D159: 2008 | E159: Магариф | F159: 8 | G159: 30 | H159: 69.00 | I159: 2070.00 | J159: 2008-09-09
A160: 591 | B160: Яхин А.Г. | C160: Тат. лит. | D160: 2008 | E160: Магариф | F160: 11 | G160: 25 | H160: 139.00 | I160: 3475.00 | J160: 2008-09-09
A161: 592 | B161: Гилязов И.А. | C161: История Татарстана | D161: 2008 | E161: Магариф | F161: 10 | G161: 45 | H161: 84.00 | I161: =G161*H161 -> 3780.00 | J161: 2008-09-09
A162: 593 | B162: Хасаншина Р.Г. | C162: Уроки татарского | D162: 2007 | E162: Магариф | F162: 0 | G162: 8 | H162: 39.00 | I162: 312.00 | J162: 2008-09-09
A163: 594 | B163: Смыков | C163: История России | D163: 2007 | E163: Магариф | F163: 0 | G163: 1 | H163: 280.00 | I163: 280.00 | J163: 2008-09-09
A164: 595 | B164: Рамзаева Т. Г | C164: Русский язык Ч. 1 | D164: 2008 | E164: Дрофа | F164: 2 | G164: 50 | H164: 76.00 | I164: 3800.00 | J164: 2008-09-22
A165: 596 | B165: Рамзаева Т. Г | C165: Русский язык Ч. 2 | D165: 2008 | E165: Дрофа | F165: 2 | G165: 50 | H165: 76.00 | I165: 3800.00 | J165: 2008-09-22
A166: 597 | B166: Моро М.И. | C166: Математика.Ч.1 | D166: 2008 | E166: Просвещение | F166: 4 | G166: 41 | H166: 74.30 | I166: 3046.30 | J166: 2008-09-22
A167: 598 | B167: Моро М.И. | C167: Математика.Ч.2 | D167: 2008 | E167: Просвещение | F167: 4 | G167: 41 | H167: 74.30 | I167: 3046.30 | J167: 2008-09-22
A168: 599 | B168: ПлешаковА.А. | C168: Окружающий мир.Ч.1 | D168: 2008 | E168: Просвещение | F168: 3 | G168: 35 | H168: 76.90 | I168: 2691.50 | J168: 2008-09-22
A169: 600 | B169: ПлешаковА.А. | C169: Окружающий мир.Ч.2 | D169: 2008 | E169: Просвещение | F169: 3 | G169: 35 | H169: 76.90 | I169: 2691.50 | J169: 2008-09-22
A170: 601 | B170: Биболетова М.З. | C170: Англиийский язык | D170: 2008 | E170: Титул | F170: 5 | G170: 47 | H170: 152.00 | I170: 7144.00 | J170: 2008-09-22
A171: 602 | B171: Баранов М.Т. | C171: Русский язык | D171: 2008 | E171: Просвещение | F171: 6 | G171: 40 | H171: 78.00 | I171: 3120.00 | J171: 2008-09-22
A172: 603 | B172: Захарова Е.Н. | C172: Новая история | D172: 2007 | E172: Мнемозина | F172: 8 | G172: 44 | H172: 121.70 | I172: 5354.80 | J172: 2008-09-22
A173: 604 | B173: Кравченко А.И | C173: Обществознание | D173: 2008 | E173: Рус.слово | F173: 8 | G173: 50 | H173: 70.00 | I173: 3500.00 | J173: 2008-09-22
A174: 605 | B174: Алексеев А.И | C174: География России | D174: 2008 | E174: Просвещение | F174: 9 | G174: 50 | H174: 125.00 | I174: 6250.00 | J174: 2008-09-22
A175: 606 | B175: Минченков Е.Е. | C175: Химия | D175: 2006 | E175: Школа-Пресс | F175: 8 | G175: 35 | H175: 106.00 | I175: 3710.00 | J175: 2008-09-22
A176: 607 | B176: Минченков Е.Е. | C176: Химия | D176: 2006 | E176: Школа-Пресс | F176: 9 | G176: 48 | H176: 105.00 | I176: 5040.00 | J176: 2008-09-22
A177: 608 | B177: Пёрышкин А.Ф. | C177: Физика | D177: 2008 | E177: Дрофа | F177: 7 | G177: 40 | H177: 87.00 | I177: 3480.00 | J177: 2008-09-22
A178: 609 | B178: Семакин И.Г. | C178: Информатика 10-11 | D178: 2008 | E178: Бином | F178: 10 | G178: 48 | H178: 85.50 | I178: 4104.00 | J178: 2008-09-22
A179: 610 | B179: Колмогоров А.Н | C179: Алгебра | D179: 2008 | E179: Просвещение | F179: 10 | G179: 43 | H179: 104.00 | I179: 4472.00 | J179: 2008-09-22
A180: 611 | B180: Мякишев Г.Я. | C180: Физика | D180: 2008 | E180: Просвещение | F180: 10 | G180: 50 | H180: 86.30 | I180: 4315.00 | J180: 2008-09-22
A181: 612 | B181: Рудзитис Г.Е. | C181: Химия | D181: 2008 | E181: АСТ | F181: 10 | G181: 60 | H181: 83.20 | I181: 4992.00 | J181: 2008-09-22
A182: 613 | B182: Кузовлев В.П. | C182: Английский язык 10-11 | D182: 2008 | E182: Просвещение | F182: 10 | G182: 30 | H182: 124.70 | I182: 3741.00 | J182: 2008-09-22
A183: 614 | B183: Филиппов Л.В. | C183: Новйшая история | D183: 2008 | E183: Просвещение | F183: 0 | G183: 1 | H183: 102.10 | I183: 102.10 | J183: 2008-09-22
A184: 615 | B184: Поляков Л.В. | C184: О/знание | D184: 2008 | E184: Просвещение | F184: 0 | G184: 1 | H184: 82.60 | I184: 82.60 | J184: 2008-09-22
A185: 616 | B185: Павлова М.Б. | C185: Технология (девочки) | D185: 2008 | E185: В-Граф | F185: 7 | G185: 25 | H185: 116.00 | I185: 2900.00 | J185: 2008-09-22
A186: 617 | B186: Гуревич М.И. | C186: Технология д/мальч. | D186: 2008 | E186: В-Граф | F186: 7 | G186: 25 | H186: 116.00 | I186: 2900.00 | J186: 2008-09-22
A187: 620 | B187: Волобуев О.В | C187: История России | D187: 2008 | E187: Мнемозина | F187: 11 | G187: 51 | H187: 130.40 | I187: 6650.40 | J187: 2008-12-19
A188: 621 | B188: Яхин А.Г. | C188: Тат. лит для тат.шк. | D188: 2008 | E188: Магариф | F188: 4 | G188: 18 | H188: 95.00 | I188: 1710.00 | J188: 2008-12-19
A189: 622 | B189: Хайдарова Р.З. | C189: Татарский язык | D189: 2007 | E189: Магариф | F189: 8 | G189: 30 | H189: 53.00 | I189: 1590.00 | J189: 2008-12-19
A190: 623 | B190: Сафиуллина Ф.С | C190: Татарский язык | D190: 2008 | E190: Магариф | F190: 9 | G190: 30 | H190: 63.00 | I190: 1890.00 | J190: 2008-12-19
A191: 624 | B191: Хайдарова Р.З. | C191: Татарский язык | D191: 2008 | E191: Магариф | F191: 9 | G191: 30 | H191: 53.00 | I191: 1590.00 | J191: 2008-12-19
A192: 625 | B192: Поляков Л.В | C192: Обществознание | D192: 2008 | E192: Просвещение | F192: 11 | G192: 4 | H192: 99.00 | I192: 396.00 | J192: 2008-12-19
A193: 626 | B193: Уткин А.И | C193: История России | D193: 2008 | E193: Просвещение | F193: 11 | G193: 4 | H193: 121.00 | I193: 484.00 | J193: 2008-12-19 | K193: нет инв
A194: 628 | B194: Хайдарова Р.З. | C194: Татарский язык. Ч.1 2 кл | D194: 2009 | E194: Магариф | F194: 2 | G194: 63 | H194: 53.99 | I194: 3401.37 | J194: 2009-09-09
A195: 629 | B195: Ягафарова Р.Х. | C195: Литературн. Чт | D195: 2009 | E195: Магариф | F195: 3 | G195: 33 | H195: 58.03 | I195: 1914.99 | J195: 2009-09-09
A196: 630 | B196: Валитова Р.Г. | C196: Алифба | D196: 2009 | E196: Магариф | F196: 1 | G196: 18 | H196: 59.04 | I196: 1062.72 | J196: 2009-09-09
A197: 631 | B197: Кузовлев В.П. | C197: Английский язык 10-11 | D197: 2009 | E197: Просвещение | F197: 10 | G197: 20 | H197: 148.05 | I197: 2961.00 | J197: 2009-09-09
A198: 632 | B198: Биболетова М.З. | C198: Англиийский язык | D198: 2009 | E198: Титул | F198: 5 | G198: 22 | H198: 174.60 | I198: 3841.20 | J198: 2009-12-12
A199: 633 | B199: Мякишев Г.Я. | C199: Физика | D199: 2009 | E199: Просвещение | F199: 11 | G199: 20 | H199: 87.99 | I199: 1759.80 | J199: 2009-12-12
A200: 634 | B200: Зеленина Л.М. | C200: Русский язык.Ч.1 | D200: 2009 | E200: Просвещение | F200: 3 | G200: 33 | H200: 100.00 | I200: 3300.00 | J200: 2009-12-12
A201: 635 | B201: Зеленина Л.М. | C201: Русский язык.Ч.2 | D201: 2009 | E201: Просвещение | F201: 3 | G201: 33 | H201: 100.00 | I201: 3300.00 | J201: 2009-12-12
... 174 more rows

Sheet КСУ 05-13
A1: КСУ 05-12
A3: инв. № | B3: автор | C3: заглавие | D3: год изд. | E3: изд-во | F3: класс | H3: по годам | I3: кол-во | J3: цена | K3: сумма | L3: по годам | M3: всего с нараст | N3: № накладной
A4: 432 | B4: Власенков А.И | C4: Русский язык | D4: 2005 | E4: Просвещение | F4: 10 | I4: 90 | J4: 57.09 | K4: =I4*J4 -> 5138.10 | N4: 2005-02-14
A5: 433 | B5: Левитан Е.П | C5: Астрономия | D5: 2005 | E5: Просвещение | F5: 11 | I5: 43 | J5: 65.00 | K5: =I5*J5 -> 2795.00 | N5: 2005-02-14
A6: 434 | B6: Макарычев Ю.Н. | C6: Алгебра | D6: 2005 | E6: Просвещение | F6: 8 | I6: 46 | J6: 55.41 | K6: =I6*J6 -> 2548.86 | N6: 2005-02-14
H7: 179 | I7: =SUM(I4:I6) -> 179 | K7: =SUM(K4:K6) -> 10481.96 | L7: 10481.96 | N7: =SUM(L4:L6) -> 0.00
A8: 435 | B8: Пискарёв В.И. | C8: История Татарстана | D8: 2004 | E8: Хэтер | F8: 8 | I8: 30 | J8: 30.80 | K8: =I8*J8 -> 924.00 | N8: 2005-09-23
H9: 30 | I9: 30 | K9: =SUM(K8) -> 924.00 | L9: 924.00
A10: 436 | B10: Биболетова М.З. | C10: Английский язык | D10: 2005 | E10: Титул | F10: 2 | I10: 50 | J10: 81.20 | K10: =I10*J10 -> 4060.00 | N10: 2005-10-14
A11: 437 | B11: Верещагина И. Н | C11: Английск. яз.Ч. 1 | D11: 2005 | E11: Просвещение | F11: 2 | I11: 50 | J11: 57.09 | K11: =I11*J11 -> 2854.50 | N11: 2005-10-14
A12: 438 | B12: Плешаков А.А. | C12: Мир вокруг нас | D12: 2005 | E12: Просвещение | F12: 1 | I12: 50 | J12: 71.36 | K12: =I12*J12 -> 3568.00 | N12: 2005-10-14
A13: 439 | B13: Верещагина И. Н | C13: Английский язык Ч. 2 | D13: 2005 | E13: Просвещение | F13: 2 | I13: 50 | J13: 57.09 | K13: =I13*J13 -> 2854.50 | N13: 2005-10-14
H14: 200 | I14: =SUM(I10:I13) -> 200 | K14: =SUM(K10:K13) -> 13337.00 | L14: 13337.00
A15: 440 | B15: Гилязов И.А. | C15: История Татарстана | D15: 2004 | E15: Тарих | F15: 7 | I15: 50 | J15: 28.60 | K15: =I15*J15 -> 1430.00 | N15: 2005-11-03
H16: 50 | I16: 50 | K16: =SUM(K15) -> 1430.00 | L16: 1430.00
A17: 441 | B17: Сонин Н.И. | C17: Биология | D17: 2005 | E17: Дрофа | F17: 6 | I17: 60 | J17: 75.25 | K17: =I17*J17 -> 4515.00 | N17: 2005-11-20
A18: 442 | B18: Плешаков А.А. | C18: Природоведение | D18: 2005 | E18: Дрофа | F18: 5 | I18: 50 | J18: 75.25 | K18: 3762.50 | N18: 2005-11-20
A19: 443 | B19: Виленкин Н.Я. | C19: Математика | D19: 2005 | E19: Мнемозина | F19: 5 | I19: 50 | J19: 92.57 | K19: 4628.50 | N19: 2005-11-20
A20: 444 | B20: Бархударов С.Г. | C20: Русский язык | D20: 2005 | E20: Просвещение | F20: 9 | I20: 60 | J20: 47.58 | K20: 2854.80 | N20: 2005-11-20
A21: 445 | B21: Сахипова З.Г. | C21: Солнышко | D21: 2005 | E21: С-Петербург | F21: 1 | I21: 42 | J21: 66.51 | K21: 2793.42 | N21: 2005-11-20
A22: 446 | B22: Чалмаев В.А. | C22: Рус. Лит. Хрестом. Ч.1 | D22: 2005 | E22: Рус.слово | F22: 11 | I22: 70 | J22: 87.00 | K22: 6090.00 | N22: 2005-11-20
A23: 447 | B23: Чалмаев В.А. | C23: Рус. Лит. Хрестом. Ч.2 | D23: 2005 | E23: Рус.слово | F23: 11 | I23: 72 | J23: 87.00 | K23: 6264.00 | N23: 2005-11-20
A24: 448 | B24: Коровина В.Я. | C24: Литература Ч.1 | D24: 2003 | E24: Просвещение | F24: 8 | I24: 17 | J24: 44.00 | K24: 748.00 | N24: 2005-11-20
A25: 449 | B25: Коровина В.Я. | C25: Литература Ч.2 | D25: 2003 | E25: Просвещение | F25: 8 | I25: 17 | J25: 44.00 | K25: 748.00 | N25: 2005-11-20
A26: 450 | B26: Ботвинников А.Д | C26: Черчение | D26: 2005 | E26: АСТ | F26: 7 | I26: 20 | J26: 56.80 | K26: 1136.00 | N26: 2005-11-20
A27: 451 | B27: Ахметзянов М.Г | C27: Литература Ч.1 | D27: 2002 | E27: С-Петербург | F27: 5 | I27: 24 | J27: 53.46 | K27: 1283.04 | N27: 2005-11-20
A28: 452 | B28: Ахметзянов М.Г | C28: Литература Ч.2 | D28: 2002 | E28: С-Петербург | F28: 5 | I28: 24 | J28: 50.00 | K28: 1200.00 | N28: 2005-11-20
H29: 506 | I29: =SUM(I17:I28) -> 506 | K29: =SUM(K17:K28) -> 36023.26 | L29: 36023.26
A30: 453 | B30: Хайдарова Р.З. | C30: Татарский язык.Ч.1 | D30: 2005 | E30: Магариф | F30: 4 | I30: 38 | J30: 35.00 | K30: =I30*J30 -> 1330.00 | N30: 2005-11-23
A31: 454 | B31: Хайдарова Р.З. | C31: Татарский язык.Ч.2 | D31: 2005 | E31: Магариф | F31: 4 | I31: 36 | J31: 31.00 | K31: =I31*J31 -> 1116.00 | N31: 2005-11-23
A32: 455 | B32: Сафиуллина Ф.С. | C32: Татарский язык | D32: 2005 | E32: Магариф | F32: 4 | I32: 36 | J32: 49.10 | K32: 1767.60 | N32: 2005-11-23
A33: 456 | B33: Ахмадуллина А.Г | C33: Тат. лит. | D33: 2005 | E33: Магариф | F33: 11 | I33: 26 | J33: 58.00 | K33: =I33*J33 -> 1508.00 | N33: 2005-11-23
H34: 136 | I34: =SUM(I30:I33) -> 136 | K34: =SUM(K30:K33) -> 5721.60 | L34: 5721.60
A35: 457 | B35: Голованова М.В | C35: Родная речь | D35: 2005 | E35: Просвещение | F35: 2 | I35: 15 | J35: 49.50 | K35: =I35*J35 -> 742.50 | N35: 2005-12-03
H36: 15 | I36: 15 | K36: =SUM(K35) -> 742.50 | L36: 742.50
A37: 458 | B37: Ахмадуллин А.Г | C37: Хрестоматия.Тат.литер. | D37: 2005 | E37: Магариф | F37: 10 | I37: 10 | J37: 53.00 | K37: =I37*J37 -> 530.00 | N37: 04,12,2005
A38: 459 | B38: Сафиуллина Ф.с | C38: Татарский язык | D38: 2005 | E38: Магариф | F38: 10 | I38: 32 | J38: 48.00 | K38: 1536.00 | N38: 04,12,2005
A39: 460 | B39: Хасанов | C39: Татарская литература | D39: 2005 | E39: Магариф | F39: 10 | I39: 10 | J39: 45.00 | K39: 450.00 | N39: 04,12,2005
A40: 461 | B40: Хабибуллина З.Н. | C40: Татарская литература | D40: 2005 | E40: Магариф | F40: 8 | I40: 12 | J40: 32.00 | K40: 384.00 | N40: 04,12,2005
A41: 462 | B41: Галимуллин | C41: Татарская литература | D41: 2005 | E41: Магариф | F41: 6 | I41: 5 | J41: 35.00 | K41: 175.00 | N41: 04,12,2005
A42: 463 | B42: Максимов Н.В | C42: татарский язык | D42: 2005 | E42: Магариф | F42: 6 | I42: 5 | J42: 33.00 | K42: 165.00 | N42: 04,12,2005
A43: 464 | B43: Мусин Ф.М. | C43: Татарская литература | D43: 2005 | E43: Магариф | F43: 7 | I43: 5 | J43: 30.00 | K43: 150.00 | N43: 04,12,2005
A44: 465 | B44: Кашапова М.Ф. | C44: Методич. Пособие | D44: 2004 | E44: Магариф | F44: 0 | I44: 1 | J44: 58.00 | K44: 58.00 | N44: 04,12,2005
H45: 80 | I45: =SUM(I37:I44) -> 80 | K45: =SUM(K37:K44) -> 3448.00 | L45: 3448.00
G46: 1196 | H46: =SUM(H7:H45) -> 1196 | L46: =SUM(L7:L45) -> 72108.32 | M46: 72108.32
A47: 466 | B47: Пискарёв В.И. | C47: История Татарстана | D47: 2005 | E47: Магариф | F47: 8 | I47: 20 | J47: 38.50 | K47: =I47*J47 -> 770.00 | N47: 09,03,2006
A48: 467 | B48: Архипов А.П. | C48: Азбука страхования | D48: 2005 | E48: Магариф | F48: 0 | I48: 1 | J48: 55.00 | K48: =I48*J48 -> 55.00 | N48: 09,03,2006
A49: 468 | B49: Гараева и др. | C49: Язык-ключ к знанию | D49: 2005 | E49: Магариф | F49: 0 | I49: 1 | J49: 30.50 | K49: =I49*J49 -> 30.50 | N49: 09,03,2006
A50: 469 | B50: Миннуллин К.М. | C50: Песня сквозь годы | D50: 2004 | E50: Магариф | F50: 0 | I50: 1 | J50: 30.00 | K50: =I50*J50 -> 30.00 | N50: 09,03,2006
A51: 470 | B51: Хабибуллина З.Н. | C51: Тат.лит | D51: 2005 | E51: Магариф | F51: 9 | I51: 25 | J51: 46.00 | K51: =I51*J51 -> 1150.00 | N51: 09,03,2006
H52: 48 | I52: =SUM(I47:I51) -> 48 | K52: =SUM(K47:K51) -> 2035.50 | L52: 2035.50
A53: 471 | B53: Сафиуллина Ф.С | C53: Татарский язык | D53: 2005 | E53: Магариф | F53: 11 | I53: 30 | J53: 44.00 | K53: =I53*J53 -> 1320.00 | N53: 25,03,2006
H54: 30 | I54: 30 | K54: =AVERAGE(K53) -> 1320.00 | L54: 1320.00
A55: 472 | B55: Васильева | C55: Книга для чтения | D55: 2005 | E55: Магариф | F55: 0 | I55: 2 | J55: 74.80 | K55: =I55*J55 -> 149.60 | N55: 27,03,2006
A56: 473 | B56: Васильева | C56: Методич. Пособие | D56: 2005 | E56: Магариф | F56: 0 | I56: 2 | J56: 64.90 | K56: =I56*J56 -> 129.80 | N56: 27,03,2006
A57: 474 | B57: Абзалов Ф. | C57: Физическая культура | D57: 2005 | E57: Магариф | F57: 0 | I57: 2 | J57: 56.00 | K57: =I57*J57 -> 112.00 | N57: 27,03,2006
A58: 475 | B58: Васильева | C58: Учебник | D58: 2005 | E58: Магариф | F58: 0 | I58: 2 | J58: 79.75 | K58: =I58*J58 -> 159.50 | N58: 27,03,2006
A59: 476 | B59: Харисова Л.А. | C59: Культура народов Татарстана | D59: 2005 | E59: Магариф | F59: 0 | I59: 10 | J59: 70.00 | K59: =I59*J59 -> 700.00 | N59: 27,03,2006
H60: 18 | I60: =SUM(I55:I59) -> 18 | K60: =SUM(K55:K59) -> 1250.90 | L60: 1250.90
A61: 477 | B61: Беляев Д.К. | C61: Общая биология | D61: 2005 | E61: Просвещение | F61: 10 | I61: 30 | J61: 83.60 | K61: =I61*J61 -> 2508.00 | N61: 26,04,2006
A62: 478 | B62: Захаров В.Б. | C62: Общая биология | D62: 2006 | E62: Дрофа | F62: 10 | I62: 49 | J62: 64.30 | K62: 3142.37 | N62: 26,04,2006
H63: 79 | I63: =SUM(I61:I62) -> 79 | K63: =SUM(K61:K62) -> 5650.37 | L63: 5650.37
A64: 479 | B64: Асылгараева Р.А. | C64: Татарский язык | D64: 2005 | E64: Магариф | F64: 8 | I64: 20 | J64: 27.00 | K64: =I64*J64 -> 540.00 | N64: 09,06,2006
A65: 480 | B65: Асылгараева Р.А. | C65: Татарский язык | D65: 2005 | E65: Магариф | F65: 7 | I65: 20 | J65: 41.00 | K65: =I65*J65 -> 820.00 | N65: 09,06,2006
A66: 481 | B66: Зиннатуллина К.З. | C66: Тат.яз | D66: 2005 | E66: Магариф | F66: 9 | I66: 25 | J66: 25.00 | K66: =I66*J66 -> 625.00 | N66: 09,06,2006
A67: 482 | B67: Гилязов И.А. | C67: История Татарстана | D67: 2005 | E67: Магариф | F67: 7 | I67: 10 | J67: 48.40 | K67: =I67*J67 -> 484.00 | N67: 09,06,2006
H68: 75 | I68: =SUM(I64:I67) -> 75 | K68: =SUM(K64:K67) -> 2469.00 | L68: 2469.00
A69: 483 | B69: Бакиева Н.В. | C69: Музыка | D69: 2005 | E69: Магариф | F69: 4 | I69: 25 | J69: 32.00 | K69: =I69*J69 -> 800.00 | N69: 12,06,2006
A70: 484 | B70: Ягафарова Р.Х. | C70: Литературн. чтение ч1 | D70: 2005 | E70: Магариф | F70: 4 | I70: 20 | J70: 34.00 | K70: =I70*J70 -> 680.00 | N70: 12,06,2006
H71: 45 | I71: =SUM(I69:I70) -> 45 | K71: =SUM(K69:K70) -> 1480.00 | L71: 1480.00
A72: 485 | B72: Моро М.И. | C72: Математика.Ч.1 | D72: 2006 | E72: Просвещение | F72: 2 | I72: 58 | J72: 60.01 | K72: =I72*J72 -> 3480.58 | N72: 20,09,2006
A73: 486 | B73: Моро М.И. | C73: Математика.Ч.2 | D73: 2006 | E73: Просвещение | F73: 2 | I73: 58 | J73: 60.01 | K73: 3480.58 | N73: 20,09,2006
A74: 487 | B74: Залялеева М.Ш. | C74: Литература | D74: 2006 | E74: Магариф | F74: 5 | I74: 5 | J74: 53.00 | K74: 265.00 | N74: 20,09,2006
A75: 488 | B75: Ганиева Ф.А | C75: Татарская литература | D75: 2006 | E75: Магариф | F75: 6 | I75: 10 | J75: 54.00 | K75: 540.00 | N75: 20,09,2006
A76: 489 | B76: Хатипов Ф.М | C76: Литература | D76: 2006 | E76: Магариф | F76: 7 | I76: 15 | J76: 57.00 | K76: 855.00 | N76: 20,09,2006
A77: 490 | B77: Ахмадуллин А.Г | C77: Татарская литература | D77: 2006 | E77: Магариф | F77: 8 | I77: 18 | J77: 56.00 | K77: 1008.00 | N77: 20,09,2006
A78: 491 | B78: Валитова Р.Г. | C78: Тат. яз. | D78: 2006 | E78: Магариф | F78: 1 | I78: 10 | J78: 37.00 | K78: 370.00 | N78: 20,09,2006
A79: 493 | B79: Ягафарова Р.Х. | C79: Азбука | D79: 2006 | E79: Магариф | F79: 1 | I79: 10 | J79: 57.00 | K79: 570.00 | N79: 20,09,2006
A80: 494 | B80: Баринова И.И. | C80: География России | D80: 2006 | E80: Дрофа | F80: 8 | I80: 36 | J80: 81.60 | K80: 2937.60 | N80: 20,09,2006
A81: 495 | B81: Раковская Э.В | C81: География .Прир.Рос. | D81: 2006 | E81: Просвещение | F81: 8 | I81: 15 | J81: 86.32 | K81: 1294.80 | N81: 20,09,2006
A82: 496 | B82: Бунеев Р.Н. | C82: Литература.Ч.1. | D82: 2006 | E82: Баласс | F82: 5 | I82: 20 | J82: 88.00 | K82: 1760.00 | N82: 20,09,2006
A83: 497 | B83: Бунеев Р.Н. | C83: Литература.Ч.2. | D83: 2006 | E83: Баласс | F83: 5 | I83: 20 | J83: 88.00 | K83: 1760.00 | N83: 20,09,2006
A84: 498 | B84: Захаров В.Б. | C84: Общая биология | D84: 2006 | E84: Дрофа | F84: 7 | I84: 12 | J84: 89.76 | K84: 1077.12 | N84: 20,09,2006
A85: 499 | B85: Биболетова М.З. | C85: Английский язык | D85: 2006 | E85: Титул | F85: 3 | I85: 58 | J85: 89.00 | K85: 5162.00 | N85: 20,09,2006
A86: 500 | B86: Виленкин Н.Я. | C86: Математика | D86: 2006 | E86: Мнемозина | F86: 6 | I86: 55 | J86: 87.78 | K86: 4827.90 | N86: 20,09,2006
A87: 501 | B87: Захаров В.Б | C87: Общая биология | D87: 2006 | E87: Дрофа | F87: 11 | I87: 50 | J87: 73.92 | K87: 3696.00 | N87: 20,09,2006
H88: 450 | I88: =SUM(I72:I87) -> 450 | K88: =SUM(K72:K87) -> 33084.58 | L88: 33084.58
A89: 504 | B89: Кравченко А.И. | C89: Обществознание | D89: 2006 | E89: Рус.слово | F89: 6 | I89: 50 | J89: 51.00 | K89: =I89*J89 -> 2550.00 | N89: 2006-10-19
A90: 505 | B90: Иванов С.И.. | C90: Основы эк. теор.Ч.1 | D90: 2006 | E90: Вита | F90: 10 | I90: 50 | J90: 87.98 | K90: =I90*J90 -> 4399.00 | N90: 2006-10-19
A91: 506 | B91: Иванов С.И. | C91: Основы эк. теор. Ч.2 | D91: 2006 | E91: Вита | F91: 10 | I91: 50 | J91: 87.98 | K91: =I91*J91 -> 4399.00 | N91: 2006-10-19
H92: 150 | I92: =SUM(I89:I91) -> 150 | K92: =SUM(K89:K91) -> 11348.00 | L92: 11348.00
A93: 507 | B93: Каменский А.А | C93: Общая биология | D93: 2006 | E93: Дрофа | F93: 10 | I93: 30 | J93: 88.70 | K93: =I93*J93 -> 2661.00 | N93: 2006-11-14
A94: 508 | B94: Зинин С.А. | C94: Рус. лит-ра. 19в.Хр.Ч.1 | D94: 2006 | E94: Рус.слово | F94: 10 | I94: 50 | J94: 90.00 | K94: 4500.00 | N94: 2006-11-14
A95: 509 | B95: Зинин С.А. | C95: Рус. лит-ра. 19в.Хр.Ч.2 | D95: 2006 | E95: Рус.слово | F95: 10 | I95: 50 | J95: 90.00 | K95: 4500.00 | N95: 2006-11-14
A96: 510 | B96: Сахаров А.Н. | C96: История России.Ч.2 | D96: 2006 | E96: Рус.слово | F96: 10 | I96: 50 | J96: 105.00 | K96: 5250.00 | N96: 2006-11-14
A97: 511 | B97: Сахаров А.Н. | C97: История России.Ч.1 | D97: 2006 | E97: Рус.слово | F97: 10 | I97: 50 | J97: 109.00 | K97: 5450.00 | N97: 2006-11-14
A98: 512 | B98: Павлова М.Б.Сасова И.А. | C98: Технология (д.,м.) | D98: 2006 | E98: В-Граф | F98: 5 | I98: 25 | J98: 68.00 | K98: 1700.00 | N98: 2006-11-14
A99: 513 | B99: Симоненко В.Д | C99: Технология | D99: 2006 | E99: В-Граф | F99: 10 | I99: 25 | J99: 67.83 | K99: 1695.75 | N99: 2006-11-14
A100: 514 | B100: Вигасин А.А. | C100: История др.мира | D100: 2006 | E100: Просвещение | F100: 5 | I100: 58 | J100: 84.22 | K100: 4884.76 | N100: 2006-11-14
A101: 515 | B101: Коровина В.Я. | C101: Литература.Ч.1 | D101: 2006 | E101: Просвещение | F101: 5 | I101: 58 | J101: 68.43 | K101: 3968.94 | N101: 2006-11-14
A102: 516 | B102: Коровина В.Я. | C102: Литература.Ч.2 | D102: 2006 | E102: Просвещение | F102: 5 | I102: 58 | J102: 68.43 | K102: 3968.94 | N102: 2006-11-14
H103: 454 | I103: =SUM(I93:I102) -> 454 | K103: =SUM(K93:K102) -> 38579.39 | L103: 38579.39
A104: 517 | B104: Сафиуллина Ф.С | C104: Татарский язык | D104: 2006 | E104: Магариф | F104: 11 | I104: 20 | J104: 36.00 | K104: =I104*J104 -> 720.00 | N104: 2006-11-15
H105: 20 | I105: 20 | K105: =SUM(K104) -> 720.00 | L105: 720.00
G106: 1369 | H106: =SUM(H52:H105) -> 1369 | L106: =SUM(L52:L105) -> 97937.74 | M106: 97937.74
A107: 518 | B107: Климанова Л.Ф. | C107: Родная речь. Ч.1 | D107: 2006 | E107: Просвещение | F107: 2 | I107: 58 | J107: 71.59 | K107: =I107*J107 -> 4152.22 | N107: 2007-03-13
A108: 519 | B108: Климанова Л.Ф. | C108: Родная речь. Ч.2 | D108: 2006 | E108: Просвещение | F108: 2 | I108: 62 | J108: 71.59 | K108: =I108*J108 -> 4438.58 | N108: 2007-03-13
A109: 520 | B109: Хайдарова Р.З. | C109: Татарский язык. | D109: 2006 | E109: Магариф | F109: 5 | I109: 28 | J109: 54.00 | K109: =I109*J109 -> 1512.00 | N109: 2007-03-13
H110: 148 | I110: =SUM(I107:I109) -> 148 | K110: =SUM(K107:K109) -> 10102.80 | L110: 10102.80
A111: 521 | B111: Мусин Ф.М | C111: Тат. лит. | D111: 2006 | E111: Магариф | F111: 11 | I111: 10 | J111: 53.00 | K111: =I111*J111 -> 530.00 | N111: 2007-03-15
H112: 10 | I112: 10 | K112: =SUM(K111) -> 530.00 | L112: 530.00
A113: 522 | B113: Без автора | C113: Учебник англ.яз. | D113: 2006 | E113: Магариф | F113: 0 | I113: 1 | J113: 241.40 | K113: =I113*J113 -> 241.40 | N113: 2007-06-09
A114: 523 | B114: Без автора | C114: Учебник англ.яз. | D114: 2006 | E114: Магариф | F114: 0 | I114: 1 | J114: 241.40 | K114: =I114*J114 -> 241.40 | N114: 2007-06-09
A115: 524 | B115: Без автора | C115: Учебник англ.яз. | D115: 2006 | E115: Магариф | F115: 0 | I115: 1 | J115: 241.40 | K115: =I115*J115 -> 241.40 | N115: 2007-06-09
A116: 525 | B116: Без автора | C116: Учебник англ.яз. | D116: 2006 | E116: Магариф | F116: 0 | I116: 1 | J116: 241.40 | K116: =I116*J116 -> 241.40 | N116: 2007-06-09
H117: 4 | I117: =SUM(I113:I116) -> 4 | K117: =SUM(K113:K116) -> 965.60 | L117: 965.60
A118: 526 | B118: Султанбеков Б.Ф. | C118: История Татарстана | D118: 2006 | E118: Магариф | F118: 9 | I118: 50 | J118: 68.20 | K118: =I118*J118 -> 3410.00 | N118: 2007-06-10
H119: 50 | I119: 50 | K119: =SUM(K118) -> 3410.00 | L119: 3410.00
A120: 527 | B120: Валитова Р.Г. | C120: Алифба | D120: 2004 | E120: Магариф | F120: 1 | I120: 2 | J120: 25.00 | K120: =I120*J120 -> 50.00 | N120: 2007-06-12
A121: 528 | B121: Мустафин | C121: История Татарстана | D121: 2003 | E121: Магариф | F121: 8 | I121: 2 | J121: 17.00 | K121: =I121*J121 -> 34.00 | N121: 2077-06-12
H122: 4 | I122: =SUM(I120:I121) -> 4 | K122: =SUM(K120:K121) -> 84.00 | L122: 84.00
A123: 529 | B123: Ягафарова Р.Х. | C123: Литерат. чтение Ч.2. | D123: 2006 | E123: Магариф | F123: 4 | I123: 15 | J123: 34.00 | K123: =I123*J123 -> 510.00 | N123: 2007-06-13
A124: 530 | B124: Рахимов И.И. | C124: Растит.и животный мир | D124: 2006 | E124: Магариф | F124: 0 | I124: 2 | J124: 100.00 | K124: =I124*J124 -> 200.00 | N124: 2007-06-13
H125: 17 | I125: =SUM(I123:I124) -> 17 | K125: =SUM(K123:K124) -> 710.00 | L125: 710.00
A126: 531 | B126: Климанова Л.Ф. | C126: Родная речь.Ч.1 | D126: 2007 | E126: Просвещение | F126: 3 | I126: 50 | J126: 81.05 | K126: =I126*J126 -> 4052.50 | N126: 2007-08-15
A127: 532 | B127: Климанова Л.Ф | C127: Родная речь.Ч.2 | D127: 2007 | E127: Просвещение | F127: 3 | I127: 50 | J127: 81.05 | K127: =I127*J127 -> 4052.50 | N127: 2007-08-15
A128: 533 | B128: Сонин Н.И. | C128: Биология | D128: 2007 | E128: Дрофа | F128: 8 | I128: 55 | J128: 90.90 | K128: =I128*J128 -> 4999.50 | N128: 2007-08-15
A129: 534 | B129: Моро М.И. | C129: Математика.Ч.1 | D129: 2007 | E129: Просвещение | F129: 3 | I129: 37 | J129: 67.97 | K129: =I129*J129 -> 2514.89 | N129: 2007-08-15
A130: 535 | B130: Моро М.И. | C130: Математика.Ч.2 | D130: 2007 | E130: Просвещение | F130: 3 | I130: 37 | J130: 67.97 | K130: =I130*J130 -> 2514.89 | N130: 2007-08-15
H131: 229 | I131: =SUM(I126:I130) -> 229 | K131: =SUM(K126:K130) -> 18134.28 | L131: 18134.28
A132: 536 | B132: Бархударов С.Г. | C132: Русский язык | D132: 2007 | E132: Просвещение | F132: 8 | I132: 40 | J132: 67.94 | K132: =I132*J132 -> 2717.60 | N132: 2007-09-14
H133: 40 | I133: 40 | K133: =SUM(K132) -> 2717.60 | L133: 2717.60
A134: 537 | B134: Закиев М.З | C134: Татарский язык | D134: 2007 | E134: Магариф | F134: 8 | I134: 20 | J134: 37.00 | K134: =I134*J134 -> 740.00 | N134: 2007-09-15
H135: 20 | I135: 20 | K135: =SUM(K134) -> 740.00 | L135: 740.00
A136: 538 | B136: Биболетова М.З. | C136: Английский язык | D136: 2007 | E136: Титул | F136: 4 | I136: 45 | J136: 109.45 | K136: =I136*J136 -> 4925.25 | N136: 2007-09-16
H137: 45 | I137: 45 | K137: =SUM(K136) -> 4925.25 | L137: 4925.25
A138: 539 | B138: Валитова Р.Г. | C138: Алифба | D138: 2007 | E138: Магариф | F138: 1 | I138: 7 | J138: 42.00 | K138: =I138*J138 -> 294.00 | N138: 2007-09-17
H139: 7 | I139: 7 | K139: =SUM(K138) -> 294.00 | L139: 294.00
A140: 540 | B140: Мухерджее | C140: Хартия Земли | D140: 2007 | E140: Магариф | F140: 0 | I140: 11 | J140: 51.00 | K140: =I140*J140 -> 561.00 | N140: 2007-10-04
A141: 541 | B141: Мухерджее | C141: Хартия Земли | D141: 2007 | E141: Магариф | F141: 0 | I141: 11 | J141: 91.00 | K141: =I141*J141 -> 1001.00 | N141: 2007-10-04
A142: 542 | B142: Мухерджее | C142: Хартия Земли | D142: 2007 | E142: Магариф | F142: 0 | I142: 11 | J142: 115.00 | K142: =I142*J142 -> 1265.00 | N142: 2007-10-04
A143: 543 | B143: Ислаев Ф.Г. | C143: Хартия Земли | D143: 2007 | E143: Магариф | F143: 0 | I143: 11 | J143: 43.00 | K143: =I143*J143 -> 473.00 | N143: 2007-10-04
H144: 44 | I144: =SUM(I140:I143) -> 44 | K144: =SUM(K140:K143) -> 3300.00 | L144: 3300.00
A145: 544 | B145: Колмогоров А.Н | C145: Алгебра | D145: 2007 | E145: Просвещение | F145: 10 | I145: 37 | J145: 101.31 | K145: =I145*J145 -> 3748.47 | N145: 2007-10-05
A146: 545 | B146: Рамзаева Т.Г | C146: Русский язык | D146: 2007 | E146: Дрофа | F146: 1 | I146: 40 | J146: 51.54 | K146: =I146*J146 -> 2061.60 | N146: 2007-10-05
H147: 77 | I147: =SUM(I145:I146) -> 77 | K147: =SUM(K145:K146) -> 5810.07 | L147: 5810.07
A148: 546 | B148: Дмитриева О.В | C148: Новая история | D148: 2007 | E148: Рус.слово | F148: 7 | I148: 3 | J148: 110.00 | K148: =I148*J148 -> 330.00 | N148: 2007-10-06
A149: 547 | B149: Семакин И.Г. | C149: Информатика | D149: 2007 | E149: Бином | F149: 9 | I149: 20 | J149: 72.00 | K149: =I149*J149 -> 1440.00 | N149: 2007-10-06
A150: 548 | B150: Бойцов М.А. | C150: История ср. веков | D150: 2007 | E150: Рус.слово | F150: 6 | I150: 45 | J150: 110.00 | K150: =I150*J150 -> 4950.00 | N150: 2007-10-06
H151: 68 | I151: =SUM(I148:I150) -> 68 | K151: =SUM(K148:K150) -> 6720.00 | L151: 6720.00
A152: 549 | B152: Иванова Л.Ф | C152: Англ.яз 7,8,9 №916 | D152: 2007 | E152: ТАИ | F152: 7 | I152: 80 | J152: 43.20 | K152: =I152*J152 -> 3456.00 | N152: 2007-10-07
H153: 80 | I153: 80 | K153: =SUM(K152) -> 3456.00 | L153: 3456.00
A154: 550 | B154: Хайдарова Р.З. | C154: Татарский язык | D154: 2007 | E154: Магариф | F154: 6 | I154: 20 | J154: 57.00 | K154: =I154*J154 -> 1140.00 | N154: 2007-11-13
A155: 551 | B155: Кравченко А.И. | C155: Обществознание | D155: 2007 | E155: Рус.слово | F155: 7 | I155: 30 | J155: 85.00 | K155: 2550.00 | N155: 2007-11-13
A156: 552 | B156: Яхин А.Г. | C156: Тат. лит. | D156: 2007 | E156: Магариф | F156: 8 | I156: 15 | J156: 96.01 | K156: 1440.15 | N156: 2007-11-13
A157: 553 | B157: Кузнецов Л.М | C157: Химия | D157: 2007 | E157: Мнемозина | F157: 8 | I157: 49 | J157: 100.00 | K157: 4900.00 | N157: 2007-11-13
A158: 554 | B158: Гуревич М.И. | C158: Технология д/мальч. | D158: 2007 | E158: В-Граф | F158: 6 | I158: 15 | J158: 100.00 | K158: 1500.00 | N158: 2007-11-13
A159: 555 | B159: Павлова М.Б. | C159: Технология д/девоч. | D159: 2007 | E159: В-Граф | F159: 6 | I159: 15 | J159: 100.00 | K159: 1500.00 | N159: 2007-11-13
A160: 556 | B160: Ладыженская Т.А. | C160: Русский язык | D160: 2007 | E160: Просвещение | F160: 5 | I160: 43 | J160: 81.05 | K160: 3485.15 | N160: 2007-11-13
A161: 557 | B161: Зинин С.А. | C161: Литература. 19 век.Ч.1 | D161: 2007 | E161: Рус.слово | F161: 9 | I161: 54 | J161: 109.00 | K161: 5886.00 | N161: 2007-11-13
A162: 558 | B162: Зинин С.А. | C162: Литература. 19 век.Ч.2 | D162: 2007 | E162: Рус.слово | F162: 9 | I162: 54 | J162: 101.00 | K162: 5454.00 | N162: 2007-11-13
A163: 559 | B163: Кузнецова М.А | C163: Химия | D163: 2007 | E163: Мнемозина | F163: 10 | I163: 30 | J163: 124.30 | K163: 3729.00 | N163: 2007-11-13
A164: 560 | B164: Плешаков А.А. | C164: Окружающий мир. Ч.2 | D164: 2007 | E164: Просвещение | F164: 2 | I164: 9 | J164: 71.51 | K164: 643.59 | N164: 2007-11-13
H165: 334 | I165: =SUM(I154:I164) -> 334 | K165: =SUM(K154:K164) -> 32227.89 | L165: 32227.89
A166: 561 | B166: Бакиева Н.В., Гарипова | C166: Музыкал.букварь1кл. | D166: 2007 | E166: Магариф | F166: 1 | I166: 20 | J166: 55.20 | K166: =I166*J166 -> 1104.00 | N166: 2007-12-29
A167: 562 | B167: Ахметзянов М.Г | C167: Татарская литер. ч 1 | D167: 2007 | E167: Магариф | F167: 8 | I167: 20 | J167: 53.00 | K167: =I167*J167 -> 1060.00 | N167: 2007-12-29
A168: 563 | B168: Ахметзянов М.Г | C168: Татарская литер. ч 2 | D168: 2007 | E168: Магариф | F168: 8 | I168: 20 | J168: 53.00 | K168: =I168*J168 -> 1060.00 | N168: 2007-12-29
A169: 564 | B169: Ахметзянов М.Г | C169: Татарская литература ч1 | D169: 2007 | E169: Магариф | F169: 7 | I169: 20 | J169: 51.00 | K169: =I169*J169 -> 1020.00 | N169: 2007-12-29
A170: 565 | B170: Ахметзянов М.Г | C170: Татарская литература ч2 | D170: 2007 | E170: Магариф | F170: 7 | I170: 20 | J170: 51.00 | K170: =I170*J170 -> 1020.00 | N170: 2007-12-29
H171: 100 | I171: =SUM(I166:I170) -> 100 | K171: =SUM(K166:K170) -> 5264.00 | L171: 5264.00
G172: 1277 | H172: =SUM(H110:H171) -> 1277 | L172: =SUM(L110:L171) -> 99391.49 | M172: 99391.49
A173: 566 | B173: Коллектив | C173: Сборник осн.док.по ГО | D173: 2007 | E173: Казань | F173: 0 | I173: 4 | J173: 40.00 | K173: =I173*J173 -> 160.00 | N173: №25 11.03.2008
H174: 4 | I174: 4 | K174: =SUM(K173) -> 160.00 | L174: 160.00
A175: 567 | B175: Нурмухаметова А. | C175: Азбука | D175: 2007 | E175: Магариф | F175: 1 | I175: 15 | J175: 80.00 | K175: =I175*J175 -> 1200.00 | N175: №1от 11.03.08
A176: 568 | B176: Тагиров И.Р. | C176: История ХХ века | D176: 2005 | E176: Гасыр | F176: 0 | I176: 1 | J176: 150.00 | K176: 150.00 | N176: №1от 11.03.08
A177: 569 | B177: Яхин А.Г. | C177: Тат.лит | D177: 2007 | E177: Магариф | F177: 10 | I177: 15 | J177: 115.00 | K177: 1725.00 | N177: №1от 11.03.08
A178: 570 | B178: Яхин А.Г. | C178: Тат. лит. | D178: 2007 | E178: Магариф | F178: 9 | I178: 15 | J178: 121.00 | K178: 1815.00 | N178: №1от 11.03.08
A179: 571 | B179: Хайдарова Р.З. | C179: Татарский язык | D179: 2007 | E179: Магариф | F179: 7 | I179: 40 | J179: 42.00 | K179: 1680.00 | N179: №1от 11.03.08
A180: 572 | B180: Нуриева А. Х | C180: Татар Теле | D180: 2007 | E180: Магариф | F180: 2 | I180: 15 | J180: 37.00 | K180: 555.00 | N180: №1от 11.03.08
A181: 573 | B181: Плешаков А.А. | C181: Окружающий мир. Ч.1 | D181: 2007 | E181: Просвещение | F181: 2 | I181: 38 | J181: 71.51 | K181: 2717.38 | N181: №1от 11.03.08
A182: 574 | B182: Сахаров А.Н. | C182: История религий | D182: 2007 | E182: Рус.слово | F182: 10 | I182: 20 | J182: 160.00 | K182: 3200.00 | N182: №1от 11.03.08
H183: 159 | I183: =SUM(I175:I182) -> 159 | K183: =SUM(K175:K182) -> 13042.38 | L183: 13042.38
A184: 575 | B184: Вагизов С. Г | C184: Книга для чтения 2клЧ. 1 | D184: 2007 | E184: Магариф | F184: 2 | I184: 15 | J184: 36.00 | K184: =I184*J184 -> 540.00 | N184: 2008-03-17
A185: 576 | B185: Вагизов С. Г | C185: Книга для чтения Ч. 2 | D185: 2007 | E185: Магариф | F185: 2 | I185: 15 | J185: 36.00 | K185: 540.00 | N185: 2008-03-17
A186: 577 | B186: Яхин А. Г | C186: Литературн. Чт | D186: 2007 | E186: Магариф | F186: 3 | I186: 20 | J186: 57.00 | K186: 1140.00 | N186: 2008-03-17
A187: 578 | B187: Хайдарова Р.З. | C187: Татарский язык. | D187: 2007 | E187: Магариф | F187: 5 | I187: 30 | J187: 54.00 | K187: 1620.00 | N187: 2008-03-17
A188: 579 | B188: Сафиуллина Ф.с | C188: Татарский язык | D188: 2007 | E188: Магариф | F188: 10 | I188: 45 | J188: 35.00 | K188: 1575.00 | N188: 2008-03-17
A189: 580 | B189: Сафиуллина Ф.С | C189: Татарский язык | D189: 2007 | E189: Магариф | F189: 11 | I189: 25 | J189: 44.00 | K189: 1100.00 | N189: 2008-03-17
A190: 581 | B190: Сафиуллина Ф.С | C190: Татарский язык | D190: 2008 | E190: Магариф | F190: 9 | I190: 24 | J190: 38.00 | K190: 912.00 | N190: 2008-03-17
H191: 174 | I191: =SUM(I184:I190) -> 174 | K191: =SUM(K184:K190) -> 7427.00 | L191: 7427.00
A192: 582 | B192: Харисов Ф.Ф. | C192: Тат. яз для тат. шк. | D192: 2008 | E192: Магариф | F192: 1 | I192: 50 | J192: 41.00 | K192: =I192*J192 -> 2050.00 | N192: 2008-09-09
A193: 583 | B193: Ягафарова Р.Х. | C193: Тат. яз. Для тат. школ | D193: 2008 | E193: Магариф | F193: 1 | I193: 20 | J193: 41.00 | K193: 820.00 | N193: 2008-09-09
A194: 584 | B194: Ягафарова Р.Х. | C194: Тат. яз. Для тат. школ | D194: 2008 | E194: Магариф | F194: 2 | I194: 20 | J194: 61.00 | K194: 1220.00 | N194: 2008-09-09
A195: 585 | B195: Сафиуллина Ф.С. | C195: Тат. яз. д/рус.яз. Ч 1 | D195: 2009 | E195: Магариф | F195: 1 | I195: 30 | J195: 30.00 | K195: 900.00 | N195: 2008-09-09
A196: 586 | B196: Сафиуллина Ф.С. | C196: Тат. яз. д/рус.яз. Ч2 | D196: 2008 | E196: Магариф | F196: 1 | I196: 30 | J196: 86.00 | K196: 2580.00 | N196: 2008-09-09
A197: 587 | B197: Хасаншина Р.Г. | C197: Татарский язык | D197: 2007 | E197: Магариф | F197: 5 | I197: 30 | J197: 102.00 | K197: 3060.00 | N197: 2008-09-09
A198: 588 | B198: Закиев М.З | C198: Татарский язык | D198: 2008 | E198: Магариф | F198: 9 | I198: 20 | J198: 50.00 | K198: 1000.00 | N198: 2008-09-09
A199: 589 | B199: Андромонова Н.А | C199: Русская речь | D199: 2008 | E199: Магариф | F199: 9 | I199: 20 | J199: 56.00 | K199: 1120.00 | N199: 2008-09-09
A200: 590 | B200: Сафиуллина Ф.С. | C200: Тат. яз. Для р/яз. | D200: 2008 | E200: Магариф | F200: 8 | I200: 30 | J200: 69.00 | K200: 2070.00 | N200: 2008-09-09
A201: 591 | B201: Яхин А.Г. | C201: Тат. лит. | D201: 2008 | E201: Магариф | F201: 11 | I201: 25 | J201: 139.00 | K201: 3475.00 | N201: 2008-09-09
... 328 more rows

Sheet табл.2
A1: 15 | B1: 10 | C1: =A1*B1 -> 150
C2: 0
C3: 0
C4: 0
C5: 0
C6: 0
C7: 0
C8: 0
C9: 0
C10: 0
C11: 0
C12: 0
C13: 0
C14: 0
C15: 0
C16: 0
C17: 0
C18: 0
C19: 0
C20: 0
C21: 0
C22: 0
C23: 0
C24: 0
C25: 0
C26: 0
C27: 0
C28: 0
C29: 0
C30: 0
C31: 0
C32: 0
C33: 0
C34: 0
C35: 0
C36: 0
C37: 0
C38: 0
C39: 0
C40: 0
C41: 0
C42: 0
C43: 0
C44: 0
C45: 0
C46: 0
C47: 0
C48: 0
C49: 0
C50: 0
C51: 0
C52: 0
C53: 0
C54: 0
C55: 0
C56: 0
C57: 0
C58: 0
C59: 0
C60: 0
C61: 0
C62: 0
C63: 0
C64: 0
C65: =A65*B65 -> 0
C66: 0
C67: 0
C68: 0
C69: 0
C70: 0
C71: 0
C72: 0
C73: 0
C74: 0
C75: 0
C76: 0
C77: 0
C78: 0
C79: 0
C80: 0
C81: 0
C82: 0
C83: 0
C84: 0
C85: 0
C86: 0
C87: 0
C88: 0
C89: 0
C90: =A90*B90 -> 0

Sheet по авторам
A1: по авторам
A3: инв. № | B3: автор | C3: заглавие | D3: год изд. | E3: изд-во | F3: класс | G3: кол-во
A4: 564 | B4: Ахметзянов М.Г | C4: Татарская литература ч1 | D4: 2007 | E4: Магариф | F4: 7 | G4: 20
A5: 614 | B5: Филиппов Л.В. | C5: Новйшая история | D5: 2008 | E5: Просвещение | F5: 0 | G5: 1
A6: 756 | B6: Абдуллин и др. | C6: Основы нанотех.10-11 кл | D6: 2011 | E6: Казань | F6: 10 | G6: 5
A7: 785 | B7: Абдуллина Р.С.Шайхиева и др. | C7: Тат. яз.10кл. | D7: 2012 | E7: ТКИ | F7: 10 | G7: 10
A8: 474 | B8: Абзалов Ф. | C8: Физическая культура | D8: 2005 | E8: Магариф | F8: 0 | G8: 2
A9: 657 | B9: Алексашкина Л.Н. | C9: Всеобщая история | D9: 2009 | E9: Мнемозина | F9: 10 | G9: 29
A10: 699 | B10: Алексашкина Л.Н. | C10: Всеобщая история | D10: 2010 | E10: Мнемозина | F10: 11 | G10: 28
A11: 605 | B11: Алексеев А.И | C11: География России | D11: 2008 | E11: Просвещение | F11: 9 | G11: 50
A12: 781 | B12: Алексеева Л.Л.,Школяр | C12: Музыка 2кл. | D12: 2012 | E12: Мнемозина | F12: 2 | G12: 44
A13: 758 | B13: Амиров К.Ф | C13: А/коррупц.и прав 10-11 | D13: 2011 | E13: М-Вакыт | F13: 10 | G13: 4
A14: 714 | B14: Амиров К.Ф.,Амирова Д.К. | C14: А/коррупц.и прав.восп | D14: 2010 | E14: Магариф | F14: 10 | G14: 27
A15: 739 | B15: Андреевская Т.П. | C15: История др. мира 5кл. | D15: 2011 | E15: В-Граф | F15: 5 | G15: 26
A16: 589 | B16: Андромонова Н.А | C16: Русская речь | D16: 2008 | E16: Магариф | F16: 9 | G16: 20
A17: 467 | B17: Архипов А.П. | C17: Азбука страхования | D17: 2005 | E17: Магариф | F17: 0 | G17: 1
A18: 479 | B18: Асылгараева Р.А. | C18: Татарский язык | D18: 2005 | E18: Магариф | F18: 8 | G18: 20
A19: 480 | B19: Асылгараева Р.А. | C19: Татарский язык | D19: 2005 | E19: Магариф | F19: 7 | G19: 20
A20: 706 | B20: Асылгараева Р.А. | C20: Татарский язык | D20: 2010 | E20: Магариф | F20: 7 | G20: 23
A21: 746 | B21: Асылгараева Р.А. | C21: Татарский язык. | D21: 2011 | E21: ТКИ | F21: 8 | G21: 20
A22: 693 | B22: Атанасян Л.С. | C22: Геометрия 10-11 | D22: 2010 | E22: Просвещение | F22: 10 | G22: 50
A23: 662 | B23: Ахиярова М.З | C23: Азбука | D23: 2009 | E23: Магариф | F23: 1 | G23: 18
A24: 458 | B24: Ахмадуллин А.Г | C24: Хрестоматия.Тат.литер. | D24: 2005 | E24: Магариф | F24: 10 | G24: 10
A25: 490 | B25: Ахмадуллин А.Г | C25: Татарская литература | D25: 2006 | E25: Магариф | F25: 8 | G25: 18
A26: 753 | B26: Ахмадуллин А.Г | C26: Литература 11 кл | D26: 2011 | E26: ТКИ | F26: 11 | G26: 5
A27: 456 | B27: Ахмадуллина А.Г | C27: Тат. лит. | D27: 2005 | E27: Магариф | F27: 11 | G27: 26
A28: 451 | B28: Ахметзянов М.Г | C28: Литература Ч.1 | D28: 2002 | E28: С-Петербург | F28: 5 | G28: 24
A29: 452 | B29: Ахметзянов М.Г | C29: Литература Ч.2 | D29: 2002 | E29: С-Петербург | F29: 5 | G29: 24
A30: 562 | B30: Ахметзянов М.Г | C30: Татарская литер. ч 1 | D30: 2007 | E30: Магариф | F30: 8 | G30: 20
A31: 563 | B31: Ахметзянов М.Г | C31: Татарская литер. ч 2 | D31: 2007 | E31: Магариф | F31: 8 | G31: 20
A32: 565 | B32: Ахметзянов М.Г | C32: Татарская литература ч2 | D32: 2007 | E32: Магариф | F32: 7 | G32: 20
A33: 483 | B33: Бакиева Н.В. | C33: Музыка | D33: 2005 | E33: Магариф | F33: 4 | G33: 25
A34: 561 | B34: Бакиева Н.В., Гарипова | C34: Музыкал.букварь1кл. | D34: 2007 | E34: Магариф | F34: 1 | G34: 20
A35: 705 | B35: Бакиева Н.В.и др. | C35: Уроки музыки 3 кл | D35: 2009 | E35: Магариф | F35: 3 | G35: 1
A36: 602 | B36: Баранов М.Т. | C36: Русский язык | D36: 2008 | E36: Просвещение | F36: 6 | G36: 40
A37: 646 | B37: Баранов М.Т. | C37: Русский язык | D37: 2009 | E37: Просвещение | F37: 7 | G37: 38
A38: 494 | B38: Баринова И.И. | C38: География России | D38: 2006 | E38: Дрофа | F38: 8 | G38: 36
A39: 444 | B39: Бархударов С.Г. | C39: Русский язык | D39: 2005 | E39: Просвещение | F39: 9 | G39: 60
A40: 536 | B40: Бархударов С.Г. | C40: Русский язык | D40: 2007 | E40: Просвещение | F40: 8 | G40: 40
A41: 522 | B41: Без автора | C41: Учебник англ.яз. | D41: 2006 | E41: Магариф | F41: 0 | G41: 1
A42: 523 | B42: Без автора | C42: Учебник англ.яз. | D42: 2006 | E42: Магариф | F42: 0 | G42: 1
A43: 524 | B43: Без автора | C43: Учебник англ.яз. | D43: 2006 | E43: Магариф | F43: 0 | G43: 1
A44: 525 | B44: Без автора | C44: Учебник англ.яз. | D44: 2006 | E44: Магариф | F44: 0 | G44: 1
A45: 477 | B45: Беляев Д.К. | C45: Общая биология | D45: 2005 | E45: Просвещение | F45: 10 | G45: 30
A46: 733 | B46: Биболетова М.В. | C46: Английский язык | D46: 2011 | E46: Титул | F46: 8 | G46: 50
A47: 436 | B47: Биболетова М.З. | C47: Английский язык | D47: 2005 | E47: Титул | F47: 2 | G47: 50
A48: 499 | B48: Биболетова М.З. | C48: Английский язык | D48: 2006 | E48: Титул | F48: 3 | G48: 58
A49: 538 | B49: Биболетова М.З. | C49: Английский язык | D49: 2007 | E49: Титул | F49: 4 | G49: 45
A50: 601 | B50: Биболетова М.З. | C50: Англиийский язык | D50: 2008 | E50: Титул | F50: 5 | G50: 47
A51: 632 | B51: Биболетова М.З. | C51: Англиийский язык | D51: 2009 | E51: Титул | F51: 5 | G51: 22
A52: 677 | B52: Биболетова М.З. | C52: Английский язык | D52: 2010 | E52: Титул | F52: 7 | G52: 55
A53: 768 | B53: Биболетова М.З.,Денисенко | C53: Английский яз. 5кл. | D53: 2012 | E53: В-Граф | F53: 5 | G53: 50
A54: 651 | B54: Боголюбов Л.Н. | C54: Обществознание 8-9 | D54: 2009 | E54: Просвещение | F54: 8 | G54: 44
A55: 658 | B55: Боголюбов Л.Н. | C55: Введение в обществ. | D55: 2009 | E55: Просвещение | F55: 10 | G55: 28
A56: 695 | B56: Боголюбов Л.Н. | C56: Обществознание | D56: 2010 | E56: Просвещение | F56: 11 | G56: 22
A57: 548 | B57: Бойцов М.А. | C57: История ср. веков | D57: 2007 | E57: Рус.слово | F57: 6 | G57: 45
A58: 450 | B58: Ботвинников А.Д | C58: Черчение | D58: 2005 | E58: АСТ | F58: 7 | G58: 20
A59: 496 | B59: Бунеев Р.Н. | C59: Литература.Ч.1. | D59: 2006 | E59: Баласс | F59: 5 | G59: 20
A60: 497 | B60: Бунеев Р.Н. | C60: Литература.Ч.2. | D60: 2006 | E60: Баласс | F60: 5 | G60: 20
A61: 575 | B61: Вагизов С. Г | C61: Книга для чтения 2клЧ. 1 | D61: 2007 | E61: Магариф | F61: 2 | G61: 15
A62: 576 | B62: Вагизов С. Г | C62: Книга для чтения Ч. 2 | D62: 2007 | E62: Магариф | F62: 2 | G62: 15
A63: 491 | B63: Валитова Р.Г. | C63: Тат. яз. | D63: 2006 | E63: Магариф | F63: 1 | G63: 10
A64: 527 | B64: Валитова Р.Г. | C64: Алифба | D64: 2004 | E64: Магариф | F64: 1 | G64: 2
A65: 539 | B65: Валитова Р.Г. | C65: Алифба | D65: 2007 | E65: Магариф | F65: 1 | G65: 7
A66: 630 | B66: Валитова Р.Г. | C66: Алифба | D66: 2009 | E66: Магариф | F66: 1 | G66: 18
A67: 472 | B67: Васильева | C67: Книга для чтения | D67: 2005 | E67: Магариф | F67: 0 | G67: 2
A68: 473 | B68: Васильева | C68: Методич. Пособие | D68: 2005 | E68: Магариф | F68: 0 | G68: 2
A69: 475 | B69: Васильева | C69: Учебник | D69: 2005 | E69: Магариф | F69: 0 | G69: 2
A70: 761 | B70: Вербицкая Н.В.,Эббс Б | C70: Английский яз 5кл. Ч1 | D70: 2012 | E70: В-Граф | F70: 5 | G70: 14
A71: 762 | B71: Вербицкая Н.В.,Эббс Б | C71: Английский яз 5кл. Ч2 | D71: 2012 | E71: В-Граф | F71: 5 | G71: 14
A72: 775 | B72: Вербицкая Н.В.,Эббс Б | C72: Английский яз. 2кл.Ч.1 | D72: 2012 | E72: В-Граф | F72: 2 | G72: 34
A73: 776 | B73: Вербицкая Н.В.,Эббс Б | C73: Английский яз. 2кл.Ч.2 | D73: 2012 | E73: В-Граф | F73: 2 | G73: 34
A74: 437 | B74: Верещагина И. Н | C74: Английск. яз.Ч. 1 | D74: 2005 | E74: Просвещение | F74: 2 | G74: 50
A75: 439 | B75: Верещагина И. Н | C75: Английский язык Ч. 2 | D75: 2005 | E75: Просвещение | F75: 2 | G75: 50
A76: 514 | B76: Вигасин А.А. | C76: История др.мира | D76: 2006 | E76: Просвещение | F76: 5 | G76: 58
A77: 500 | B77: Виленкин Н.Я. | C77: Математика | D77: 2006 | E77: Мнемозина | F77: 6 | G77: 55
A78: 443 | B78: Виленкин Н.Я. | C78: Математика | D78: 2005 | E78: Мнемозина | F78: 5 | G78: 50
A79: 797 | B79: Виленкин Н.Я. И др. | C79: Математика 5кл | D79: 2012 | E79: В-Граф | F79: 5 | G79: 41
A80: 642 | B80: Виноградова Н.Ф. | C80: Окружающий мир. Ч.1 | D80: 2009 | E80: В-Граф | F80: 4 | G80: 21
A81: 643 | B81: Виноградова Н.Ф. | C81: Окружающий мир. Ч.2 | D81: 2009 | E81: В-Граф | F81: 4 | G81: 21
A82: 686 | B82: Виноградова Н.Ф. | C82: Окружающий мир | D82: 2010 | E82: В-Граф | F82: 1 | G82: 26
A83: 715 | B83: Виноградова Н.Ф. | C83: Окружающий мир. Ч.1 | D83: 2011 | E83: В-Граф | F83: 2 | G83: 25
A84: 716 | B84: Виноградова Н.Ф. | C84: Окружающий мир. Ч.2 | D84: 2011 | E84: В-Граф | F84: 2 | G84: 25
A85: 730 | B85: Виноградова Н.Ф. | C85: Окружающий мир Ч.1 | D85: 2011 | E85: В-Граф | F85: 1 | G85: 25
A86: 731 | B86: Виноградова Н.Ф. | C86: Окружающий мир Ч.2 | D86: 2011 | E86: В-Граф | F86: 1 | G86: 25
A87: 779 | B87: Виноградова Н.Ф. | C87: Окруж. мир 2кл. Ч.1 | D87: 2012 | E87: В-Граф | F87: 2 | G87: 34
A88: 780 | B88: Виноградова Н.Ф. | C88: Окруж. мир 2кл. Ч.2 | D88: 2012 | E88: В-Граф | F88: 2 | G88: 34
A89: 765 | B89: Виноградова Н.Ф.,Калинова | C89: Окружающий мир 3кл.ч1 | D89: 2012 | E89: В-Граф | F89: 3 | G89: 14
A90: 766 | B90: Виноградова Н.Ф.,Калинова | C90: Окружающий мир 3кл.ч2 | D90: 2012 | E90: В-Граф | F90: 3 | G90: 14
A91: 432 | B91: Власенков А.И | C91: Русский язык | D91: 2005 | E91: Просвещение | F91: 10 | G91: 90
A92: 620 | B92: Волобуев О.В | C92: История России | D92: 2008 | E92: Мнемозина | F92: 11 | G92: 51
A93: 462 | B93: Галимуллин | C93: Татарская литература | D93: 2005 | E93: Магариф | F93: 6 | G93: 5
A94: 711 | B94: Галиуллин К.Р.,Раскулова Р.И. | C94: Орф.слов.тат.яз | D94: 2010 | E94: Магариф | F94: 0 | G94: 100
A95: 700 | B95: Галлямова А.Г. и др. | C95: История Татарстана | D95: 2009 | E95: Магариф | F95: 11 | G95: 22
A96: 792 | B96: Галлямова А.Г.,Кабирова А.Ш. | C96: История тат.народа 11кл | D96: 2012 | E96: Хэтер | F96: 11 | G96: 13
A97: 488 | B97: Ганиева Ф.А | C97: Татарская литература | D97: 2006 | E97: Магариф | F97: 6 | G97: 10
A98: 468 | B98: Гараева и др. | C98: Язык-ключ к знанию | D98: 2005 | E98: Магариф | F98: 0 | G98: 1
A99: 712 | B99: Гарифуллин С.Ф. | C99: Рус.тат.англ.слов. | D99: 2010 | E99: Хэтер | F99: 0 | G99: 50
A100: 440 | B100: Гилязов И.А. | C100: История Татарстана | D100: 2004 | E100: Тарих | F100: 7 | G100: 50
A101: 482 | B101: Гилязов И.А. | C101: История Татарстана | D101: 2005 | E101: Магариф | F101: 7 | G101: 10
A102: 592 | B102: Гилязов И.А. | C102: История Татарстана | D102: 2008 | E102: Магариф | F102: 10 | G102: 45
A103: 790 | B103: Гилязов И.А.,Пискарёв В.И. | C103: История Татарстана 7кл | D103: 2012 | E103: Хэтер | F103: 7 | G103: 32
A104: 457 | B104: Голованова М.В | C104: Родная речь | D104: 2005 | E104: Просвещение | F104: 2 | G104: 15
A105: 734 | B105: Горецкий В.Г | C105: Азбука | D105: 2011 | E105: Просвещение | F105: 1 | G105: 25
A106: 744 | B106: Греков В.Ф. | C106: Пособие по-рус. языку | D106: 2011 | E106: Просвещение | F106: 10 | G106: 6
A107: 554 | B107: Гуревич М.И. | C107: Технология д/мальч. | D107: 2007 | E107: В-Граф | F107: 6 | G107: 15
A108: 617 | B108: Гуревич М.И. | C108: Технология д/мальч. | D108: 2008 | E108: В-Граф | F108: 7 | G108: 25
A109: 741 | B109: Гусарова И.В | C109: Рус.яз.10 кл.(проф) | D109: 2011 | E109: В-Граф | F109: 10 | G109: 2
A110: 650 | B110: Данилов А.А. | C110: История России | D110: 2009 | E110: Рус.слово | F110: 6 | G110: 43
A111: 690 | B111: Данилов А.А. | C111: История России | D111: 2010 | E111: Рус.слово | F111: 7 | G111: 58
A112: 546 | B112: Дмитриева О.В | C112: Новая история | D112: 2007 | E112: Рус.слово | F112: 7 | G112: 3
A113: 652 | B113: Дронов В.П. | C113: География России | D113: 2009 | E113: Просвещение | F113: 6 | G113: 40
A114: 688 | B114: Душина И.В. | C114: География | D114: 2010 | E114: Дрофа | F114: 7 | G114: 56
A115: 638 | B115: Ефросинина Л.А. | C115: Литер. чтение. Ч.1 | D115: 2009 | E115: В-Граф | F115: 4 | G115: 21
A116: 639 | B116: Ефросинина Л.А. | C116: Литер. чтение. Ч.2 | D116: 2009 | E116: В-Граф | F116: 4 | G116: 21
A117: 681 | B117: Ефросинина Л.А. | C117: Литературное чтение | D117: 2010 | E117: В-Граф | F117: 1 | G117: 26
A118: 719 | B118: Ефросинина Л.А. | C118: Литературн чтение Ч.1 | D118: 2011 | E118: В-Граф | F118: 2 | G118: 25
A119: 720 | B119: Ефросинина Л.А. | C119: Литературн чтение Ч.2 | D119: 2011 | E119: В-Граф | F119: 2 | G119: 25
A120: 729 | B120: Ефросинина Л.А. | C120: Литературное чтение | D120: 2011 | E120: В-Граф | F120: 1 | G120: 25
A121: 773 | B121: Ефросинина Л.А. | C121: Литер.чтение 2кл Ч.1 | D121: 2012 | E121: В-Граф | F121: 2 | G121: 34
A122: 774 | B122: Ефросинина Л.А. | C122: Литер.чтение 2кл Ч.2 | D122: 2012 | E122: В-Граф | F122: 2 | G122: 34
A123: 793 | B123: Ефросинина Л.А. | C123: Литературное чт.3кл.Ч1 | D123: 2012 | E123: В-Граф | F123: 3 | G123: 14
A124: 794 | B124: Ефросинина Л.А. | C124: Литературное чт.3кл.Ч2 | D124: 2012 | E124: В-Граф | F124: 3 | G124: 14
A125: 684 | B125: Журова Л.Е. | C125: Букварь. 1ч. | D125: 2010 | E125: В-Граф | F125: 1 | G125: 26
A126: 685 | B126: Журова Л.Е. | C126: Букварь. 2ч. | D126: 2010 | E126: В-Граф | F126: 1 | G126: 26
A127: 727 | B127: Журова Л.Е. | C127: Букварь. 1ч. | D127: 2011 | E127: В-Граф | F127: 1 | G127: 26
A128: 728 | B128: Журова Л.Е. | C128: Букварь. 2ч. | D128: 2011 | E128: В-Граф | F128: 1 | G128: 26
A129: 710 | B129: Загидуллин И.К | C129: Ист.тат.нар.18-19 в.11 кл | D129: 2010 | E129: Магариф | F129: 11 | G129: 3
A130: 537 | B130: Закиев М.З | C130: Татарский язык | D130: 2007 | E130: Магариф | F130: 8 | G130: 20
A131: 588 | B131: Закиев М.З | C131: Татарский язык | D131: 2008 | E131: Магариф | F131: 9 | G131: 20
A132: 487 | B132: Залялеева М.Ш. | C132: Литература | D132: 2006 | E132: Магариф | F132: 5 | G132: 5
A133: 713 | B133: Замалетдинов Р.Р.и др. | C133: Формир.а/коррупц | D133: 2010 | E133: Магариф | F133: 10 | G133: 25
A134: 501 | B134: Захаров В.Б | C134: Общая биология | D134: 2006 | E134: Дрофа | F134: 11 | G134: 50
A135: 478 | B135: Захаров В.Б. | C135: Общая биология | D135: 2006 | E135: Дрофа | F135: 10 | G135: 49
A136: 498 | B136: Захаров В.Б. | C136: Общая биология | D136: 2006 | E136: Дрофа | F136: 7 | G136: 12
A137: 603 | B137: Захарова Е.Н. | C137: Новая история | D137: 2007 | E137: Мнемозина | F137: 8 | G137: 44
A138: 634 | B138: Зеленина Л.М. | C138: Русский язык.Ч.1 | D138: 2009 | E138: Просвещение | F138: 3 | G138: 33
A139: 679 | B139: Зеленина Л.М. | C139: Русский язык. Ч1 | D139: 2010 | E139: Просвещение | F139: 4 | G139: 26
A140: 680 | B140: Зеленина Л.М. | C140: Русский язык. Ч2 | D140: 2010 | E140: Просвещение | F140: 4 | G140: 26
A141: 723 | B141: Зеленина Л.М. | C141: Русский язык.Ч.1 | D141: 2011 | E141: В-Граф | F141: 2 | G141: 15
A142: 635 | B142: Зеленина Л.М. | C142: Русский язык.Ч.2 | D142: 2009 | E142: Просвещение | F142: 3 | G142: 33
A143: 508 | B143: Зинин С.А. | C143: Рус. лит-ра. 19в.Хр.Ч.1 | D143: 2006 | E143: Рус.слово | F143: 10 | G143: 50
A144: 509 | B144: Зинин С.А. | C144: Рус. лит-ра. 19в.Хр.Ч.2 | D144: 2006 | E144: Рус.слово | F144: 10 | G144: 50
A145: 557 | B145: Зинин С.А. | C145: Литература. 19 век.Ч.1 | D145: 2007 | E145: Рус.слово | F145: 9 | G145: 54
A146: 558 | B146: Зинин С.А. | C146: Литература. 19 век.Ч.2 | D146: 2007 | E146: Рус.слово | F146: 9 | G146: 54
A147: 481 | B147: Зиннатуллина К.З. | C147: Тат.яз | D147: 2005 | E147: Магариф | F147: 9 | G147: 25
A148: 748 | B148: Зиннатуллина К.З. | C148: Татарский язык | D148: 2011 | E148: ТКИ | F148: 9 | G148: 20
A149: 798 | B149: Зубарева И.И., Мордкович | C149: Математика 5кл | D149: 2012 | E149: Мнемозина | F149: 5 | G149: 58
A150: 636 | B150: Иванов С.В. | C150: Русский язык. Ч.1 | D150: 2009 | E150: В-Граф | F150: 3 | G150: 21
A151: 637 | B151: Иванов С.В. | C151: Русский язык. Ч.2 | D151: 2009 | E151: В-Граф | F151: 3 | G151: 21
A152: 697 | B152: Иванов С.В. | C152: Русский язык. Ч.1 | D152: 2010 | E152: В-Граф | F152: 4 | G152: 30
A153: 698 | B153: Иванов С.В. | C153: Русский язык. Ч.2 | D153: 2010 | E153: В-Граф | F153: 4 | G153: 30
A154: 718 | B154: Иванов С.В. | C154: Русский язык. Ч.2 | D154: 2011 | E154: В-Граф | F154: 2 | G154: 25
A155: 759 | B155: Иванов С.В. | C155: Рус.яз.3кл.ч1 | D155: 2012 | E155: В-Граф | F155: 3 | G155: 14
A156: 687 | B156: Иванов С.В. | C156: Русский язык | D156: 2010 | E156: В-Граф | F156: 1 | G156: 26
A157: 717 | B157: Иванов С.В. | C157: Русский язык. Ч.1 | D157: 2011 | E157: В-Граф | F157: 2 | G157: 25
A158: 724 | B158: Иванов С.В. | C158: Русский язык | D158: 2011 | E158: В-Граф | F158: 1 | G158: 25
A159: 760 | B159: Иванов С.В.,Евдокимова | C159: Рус.яз.3кл.ч2 | D159: 2012 | E159: В-Граф | F159: 3 | G159: 14
A160: 771 | B160: Иванов С.В.,Евдокимова | C160: Русский язык 2кл.Ч.1 | D160: 2012 | E160: В-Граф | F160: 2 | G160: 20
A161: 772 | B161: Иванов С.В.,Евдокимова | C161: Русский язык 2кл.Ч.2 | D161: 2012 | E161: В-Граф | F161: 2 | G161: 20
A162: 506 | B162: Иванов С.И. | C162: Основы эк. теор. Ч.2 | D162: 2006 | E162: Вита | F162: 10 | G162: 50
A163: 505 | B163: Иванов С.И.. | C163: Основы эк. теор.Ч.1 | D163: 2006 | E163: Вита | F163: 10 | G163: 50
A164: 549 | B164: Иванова Л.Ф | C164: Англ.яз 7,8,9 №916 | D164: 2007 | E164: ТАИ | F164: 7 | G164: 80
A165: 670 | B165: Иванова Л.Ф | C165: Волшебный лес 2 кл | D165: 2009 | E165: Магариф | F165: 2 | G165: 32
A166: 703 | B166: Иванова Л.Ф | C166: Волшебн.истории 3 кл | D166: 2010 | E166: Магариф | F166: 3 | G166: 10
A167: 704 | B167: Иванова Л.Ф | C167: Татарстан и мир 10-11 | D167: 2010 | E167: Магариф | F167: 10 | G167: 10
A168: 669 | B168: Ислаев | C168: Я и моя род.10-11 кл | D168: 2009 | E168: Магариф | F168: 10 | G168: 2
A169: 543 | B169: Ислаев Ф.Г. | C169: Хартия Земли | D169: 2007 | E169: Магариф | F169: 0 | G169: 11
A170: 507 | B170: Каменский А.А | C170: Общая биология | D170: 2006 | E170: Дрофа | F170: 10 | G170: 30
A171: 653 | B171: Каменский А.А. | C171: Биология | D171: 2009 | E171: Дрофа | F171: 9 | G171: 45
A172: 738 | B172: Канакина В.П | C172: Русский язык | D172: 2011 | E172: Просвещение | F172: 1 | G172: 25
A173: 647 | B173: Кауфман К.И | C173: Счастливый англ. | D173: 2009 | E173: Титул | F173: 6 | G173: 22
A174: 696 | B174: Кауфман К.И | C174: Счастливый англ. | D174: 2010 | E174: Титул | F174: 7 | G174: 5
A175: 465 | B175: Кашапова М.Ф. | C175: Методич. Пособие | D175: 2004 | E175: Магариф | F175: 0 | G175: 1
A176: 757 | B176: Кириллова Л.Е | C176: Профилактика наруш. | D176: 2011 | E176: М-Вакыт | F176: 10 | G176: 6
A177: 532 | B177: Климанова Л.Ф | C177: Родная речь.Ч.2 | D177: 2007 | E177: Просвещение | F177: 3 | G177: 50
A178: 735 | B178: Климанова Л.Ф | C178: Литературное чтение | D178: 2011 | E178: Просвещение | F178: 1 | G178: 25
A179: 518 | B179: Климанова Л.Ф. | C179: Родная речь. Ч.1 | D179: 2006 | E179: Просвещение | F179: 2 | G179: 58
A180: 519 | B180: Климанова Л.Ф. | C180: Родная речь. Ч.2 | D180: 2006 | E180: Просвещение | F180: 2 | G180: 62
A181: 531 | B181: Климанова Л.Ф. | C181: Родная речь.Ч.1 | D181: 2007 | E181: Просвещение | F181: 3 | G181: 50
A182: 640 | B182: Климанова Л.Ф. | C182: Родная речь. Ч.1 | D182: 2009 | E182: Просвещение | F182: 4 | G182: 34
A183: 641 | B183: Климанова Л.Ф. | C183: Родная речь. Ч.2 | D183: 2009 | E183: Просвещение | F183: 4 | G183: 34
A184: 566 | B184: Коллектив | C184: Сборник осн.док.по ГО | D184: 2007 | E184: Казань | F184: 0 | G184: 4
A185: 544 | B185: Колмогоров А.Н | C185: Алгебра | D185: 2007 | E185: Просвещение | F185: 10 | G185: 37
A186: 610 | B186: Колмогоров А.Н | C186: Алгебра | D186: 2008 | E186: Просвещение | F186: 10 | G186: 43
A187: 448 | B187: Коровина В.Я. | C187: Литература Ч.1 | D187: 2003 | E187: Просвещение | F187: 8 | G187: 17
A188: 449 | B188: Коровина В.Я. | C188: Литература Ч.2 | D188: 2003 | E188: Просвещение | F188: 8 | G188: 17
A189: 515 | B189: Коровина В.Я. | C189: Литература.Ч.1 | D189: 2006 | E189: Просвещение | F189: 5 | G189: 58
A190: 516 | B190: Коровина В.Я. | C190: Литература.Ч.2 | D190: 2006 | E190: Просвещение | F190: 5 | G190: 58
A191: 661 | B191: Коровина В.Я. | C191: Литература в 2-х ч. | D191: 2009 | E191: Просвещение | F191: 6 | G191: 45
A192: 678 | B192: Коровина В.Я. | C192: Литература.Ч.1 и 2 | D192: 2010 | E192: Просвещение | F192: 8 | G192: 60
A193: 604 | B193: Кравченко А.И | C193: Обществознание | D193: 2008 | E193: Рус.слово | F193: 8 | G193: 50
A194: 504 | B194: Кравченко А.И. | C194: Обществознание | D194: 2006 | E194: Рус.слово | F194: 6 | G194: 50
A195: 551 | B195: Кравченко А.И. | C195: Обществознание | D195: 2007 | E195: Рус.слово | F195: 7 | G195: 30
A196: 553 | B196: Кузнецов Л.М | C196: Химия | D196: 2007 | E196: Мнемозина | F196: 8 | G196: 49
A197: 559 | B197: Кузнецова М.А | C197: Химия | D197: 2007 | E197: Мнемозина | F197: 10 | G197: 30
A198: 613 | B198: Кузовлев В.П. | C198: Английский язык 10-11 | D198: 2008 | E198: Просвещение | F198: 10 | G198: 30
A199: 631 | B199: Кузовлев В.П. | C199: Английский язык 10-11 | D199: 2009 | E199: Просвещение | F199: 10 | G199: 20
A200: 556 | B200: Ладыженская Т.А. | C200: Русский язык | D200: 2007 | E200: Просвещение | F200: 5 | G200: 43
A201: 795 | B201: Ланин Б.А. | C201: Литература 5кл. Ч.1 | D201: 2012 | E201: В-Граф | F201: 5 | G201: 48
... 168 more rows

Sheet выдано
A1: Наименование учреждения образования____МОУ "Бетькинская СОШ"___________________________________________
B3: Информация о наличии учебной литературы в учреждениях образования на 2011-2012 у.г. | D3: используемой в обучении в2012-2013у.г. | F3: 2013
A6: Класс | B6: Предмет | C6: Автор учебника | D6: год изд. | E6: наличие | F6: конт-гент. | G6: выдано | H6: нехватка | I6: изд-во
A8: 1а | B8: Столярова Т.М. | C8: Начальная школа ХХ1 века
A9: 1 | B9: Окружающ.мир | C9: Виноградова Н.Ф. | D9: 2011 | E9: 25 | F9: 16 | G9: 16 | I9: В-Граф
A10: 1 | B10: Литер. чтение | C10: Ефросинина Л.А. | D10: 2011 | E10: 25 | F10: 16 | G10: 16 | I10: В-Граф
A11: 1 | B11: Букварь. 1ч. | C11: Журова Л.Е. | D11: 2010 | E11: 26 | F11: 16 | G11: 16 | I11: В-Граф
A12: 1 | B12: Букварь. 2ч. | C12: Журова Л.Е. | D12: 2010 | E12: 26 | F12: 16 | G12: 16 | I12: В-Граф
A13: 1 | B13: Русский язык. | C13: Иванов С.В. | D13: 2011 | E13: 25 | F13: 16 | G13: 16 | I13: В-Граф
A14: 1 | B14: Математика Ч.1 | C14: Рудницкая В.Н. | D14: 2010 | E14: 26 | F14: 16 | G14: 16 | I14: В-Граф
A15: 1 | B15: Математика Ч.2 | C15: Рудницкая В.Н. | D15: 2010 | E15: 26 | F15: 16 | G15: 16 | I15: В-Граф
A17: 1 | B17: Татар теле | C17: Хайдарова Р.З., Галиева | D17: 2012 | E17: 28 | F17: 16 | G17: 13 | I17: ТМФ
A18: 1 | B18: Татар теле | C18: ХарисовФ.Ф.,Харисова Ч.М. | D18: 2012 | E18: 15 | F18: 3 | G18: 3 | I18: ТКИ
A19: 1 | B19: Алифба | C19: Мияссарова И.Х. и др. | D19: 2012 | E19: 10 | F19: 3 | G19: 3 | I19: М-Вакыт
A21: Класс | B21: Предмет | C21: Автор учебника | D21: год изд. | E21: наличие | F21: конт-гент. | G21: выдано | H21: нехватка | I21: изд-во
A23: 1б | B23: Исаншина Е.А. | C23: Начальная школа ХХ1 века | F23: 16
A24: 1 | B24: Окружающ.мир | C24: Виноградова Н.Ф. | D24: 2011 | E24: 25 | F24: 16 | G24: 16 | I24: В-Граф
A25: 1 | B25: Литер. чтение | C25: Ефросинина Л.А. | D25: 2010 | E25: 26 | F25: 16 | G25: 16 | I25: В-Граф
A26: 1 | B26: Букварь. 1ч. | C26: Журова Л.Е. | D26: 2011 | E26: 25 | F26: 16 | G26: 16 | I26: В-Граф
A27: 1 | B27: Букварь. 2ч. | C27: Журова Л.Е. | D27: 2011 | E27: 25 | F27: 16 | G27: 16 | I27: В-Граф
A28: 1 | B28: Русский язык. | C28: Иванов С.В. | D28: 2011 | E28: 25 | F28: 16 | G28: 16 | I28: В-Граф
A29: 1 | B29: Математика Ч.1 | C29: Рудницкая В.Н. | D29: 2010 | E29: 26 | F29: 16 | G29: 16 | I29: В-Граф
A30: 1 | B30: Математика Ч.2 | C30: Рудницкая В.Н. | D30: 2010 | E30: 26 | F30: 16 | G30: 16 | I30: В-Граф
A32: 1 | B32: Татар теле | C32: Хайдарова Р.З.,Галиева | D32: 2012 | E32: 28 | F32: 16 | G32: 13 | I32: ТМФ
A33: 1 | B33: Татар теле | C33: ХарисовФ.Ф.,Харисова Ч.М. | D33: 2012 | E33: 15 | F33: 3 | G33: 3 | I33: ТКИ
A34: 1 | B34: Алифба | C34: Мияссарова И.Х. и др. | D34: 2012 | E34: 10 | F34: 3 | G34: 3 | I34: М-Вакыт
A36: Класс | B36: Предмет | C36: Автор учебника | D36: год изд. | E36: наличие | F36: конт-гент. | G36: выдано | H36: нехватка | I36: изд-во | J36: остаток
A37: 2а | B37: Хатыпова Г.Р. | C37: Начальная школа ХХ1 века | F37: 18
A38: 1 | B38: Англ.яз Ч1 | C38: Вербицкая М.В.и др | D38: 2012 | E38: 34 | F38: 18 | G38: 18 | I38: В-Граф
A39: 2 | B39: Англ.яз Ч2 | C39: Вербицкая М.В.и др | D39: 2012 | E39: 34 | F39: 18 | G39: 18 | I39: В-Граф
A40: 2 | B40: Окружающ.мир Ч.1 | C40: Виноградова Н.Ф. | D40: 2012 | E40: 25 | F40: 18 | G40: 18 | I40: В-Граф
A41: 2 | B41: Окружающ.мир Ч.2 | C41: Виноградова Н.Ф. | D41: 2012 | E41: 34 | F41: 18 | G41: 18 | I41: В-Граф
A42: 2 | B42: Литер. чтение Ч.1 | C42: Ефросинина Л.А. | D42: 2012 | E42: 34 | F42: 18 | G42: 18 | I42: В-Граф
A43: 2 | B43: Литер. чтение Ч.2 | C43: Ефросинина Л.А. | D43: 2012 | E43: 34 | F43: 18 | G43: 18 | I43: В-Граф
A44: 2 | B44: Русский язык. Ч.1 | C44: Иванов С.В. | D44: 2011 | E44: 25 | F44: 18 | G44: 18 | I44: В-Граф
A45: 3 | B45: Русский язык. Ч.2 | C45: Иванов С.В. | D45: 2011 | E45: 25 | F45: 18 | G45: 18 | I45: В-Граф
A46: 2 | B46: Математика Ч.2 | C46: Рудницкая В.Н. | D46: 2012 | E46: 25 | F46: 18 | G46: 18 | I46: В-Граф
A47: 2 | B47: Математика Ч.1 | C47: Рудницкая В.Н. | D47: 2012 | E47: 34 | F47: 18 | G47: 18 | I47: В-Граф
A48: 2 | B48: Технология | C48: Огерчук Л.Ю. | D48: 2012 | E48: 25 | F48: 18 | G48: 13 | H48: 5 | I48: Рус.слово | K48: 800
A49: 2 | B49: Музыка | C49: Алексеева Л.Л | D49: 2012 | E49: 44 | F49: 18 | G49: 18 | I49: Мнемоз | J49: 7
A51: 2 | B51: Тат. язык р/яз.Ч.1 | C51: Хайдарова Р.З. | D51: 2009 | E51: 63 | F51: 12 | G51: 12 | I51: Магариф
A52: 2 | B52: Тат. язык р/яз.Ч.2 | C52: Хайдарова Р.З. | D52: 2009 | E52: 62 | F52: 12 | G52: 12 | I52: Магариф
A53: 2 | B53: Татар теле | C53: Харисов Ф.Ф.,Харисова Ч.М. | D53: 2012 | E53: 20 | F53: 6 | G53: 6 | I53: ТКИ
A54: 2 | B54: Уку китабы | C54: Ягафарова Р.Х. | D54: 2008 | E54: 20 | F54: 6 | G54: 6 | I54: Магариф | K54: 584
A56: Класс | B56: Предмет | C56: Автор учебника | D56: год изд. | E56: наличие | F56: конт-гент. | G56: выдано | H56: нехватка | I56: изд-во
A57: 2б | B57: Газизова О.А. | C57: Начальная школа ХХ1 века | F57: 17
A58: 1 | B58: Англ.яз Ч.1 | C58: Вербицкая М.В.и др | D58: 2012 | E58: 34 | F58: 17 | G58: 17 | I58: В-Граф
A59: 2 | B59: Англ.яз Ч.2 | C59: Вербицкая М.В.и др | D59: 2012 | E59: 34 | F59: 17 | G59: 17 | I59: В-Граф
A60: 2 | B60: Окруж.мир Ч.1 | C60: Виноградова Н.Ф. | D60: 2012 | E60: 34 | F60: 17 | G60: 17 | I60: В-Граф
A61: 2 | B61: Окруж.мир Ч.2 | C61: Виноградова Н.Ф. | D61: 2012 | E61: 34 | F61: 17 | G61: 17 | I61: В-Граф
A62: 2 | B62: Литер. чтение Ч.1 | C62: Ефросинина Л.А. | D62: 2012 | E62: 34 | F62: 17 | G62: 17 | I62: В-Граф
A63: 2 | B63: Литер. чтение Ч.2 | C63: Ефросинина Л.А. | D63: 2012 | E63: 34 | F63: 17 | G63: 17 | I63: В-Граф
A64: 2 | B64: Русский язык. Ч.1 | C64: Иванов С.В. | D64: 2012 | E64: 20 | F64: 17 | G64: 17 | I64: В-Граф
A65: 2 | B65: Русский язык. Ч.2 | C65: Иванов С.В. | D65: 2012 | E65: 20 | F65: 17 | G65: 17 | I65: В-Граф
A66: 2 | B66: Математика Ч.1 | C66: Рудницкая В.Н. | D66: 2012 | E66: 34 | F66: 17 | G66: 17 | I66: В-Граф
A67: 2 | B67: Математика Ч.2 | C67: Рудницкая В.Н. | D67: 2012 | E67: 34 | F67: 17 | G67: 17 | I67: В-Граф
A68: 2 | B68: Музыка | C68: Алексеева Л.Л | D68: 2012 | E68: 44 | F68: 17 | G68: 17 | I68: В-Граф
A69: 2 | B69: Технология | C69: Огерчук Л.Ю. | D69: 2012 | E69: 25 | F69: 17 | G69: 12 | H69: 5 | I69: Рус.слово
A71: 2 | B71: Тат. язык р/яз.Ч.1 | C71: Хайдарова Р.З. | D71: 2009 | E71: 63 | F71: 17 | G71: 13 | I71: Магариф
A72: 2 | B72: Тат. язык р/яз.Ч.2 | C72: Хайдарова Р.З. | D72: 2009 | E72: 62 | F72: 17 | G72: 13 | I72: Магариф
A73: 2 | B73: Татар теле | C73: Харисов Ф.Ф., Харисова Ч.М. | D73: 2012 | E73: 15 | F73: 4 | G73: 4 | I73: ТКИ
A74: 2 | B74: Уку китабы | C74: Ягафарова Р.Х. | D74: 2008 | E74: 20 | F74: 4 | G74: 4 | I74: Магариф | K74: 584
A76: Класс | B76: Предмет | C76: Автор учебника | D76: год изд. | E76: наличие | F76: конт-гент. | G76: выдано | H76: нехватка | I76: изд-во
A77: 3а | B77: Мигачёва Н.М. | C77: Начальная школа ХХ1 века | F77: 15
A78: 3 | B78: Русский язык. Ч.1 | C78: Иванов С.В. | D78: 2009 | E78: 21 | F78: 15 | G78: 1 | I78: В-Граф
A79: 3 | B79: Русский язык. Ч.2 | C79: Иванов С.В. | D79: 2009 | E79: 21 | F79: 15 | G79: 1 | I79: В-Граф
A80: 3 | B80: Русский язык. Ч.1 | C80: Иванов С.В. | D80: 2012 | E80: 14 | F80: 15 | G80: 14 | H80: 1 | I80: В-Граф
A81: 3 | B81: Русский язык. Ч.2 | C81: Иванов С.В. | D81: 2012 | E81: 14 | F81: 15 | G81: 14 | H81: 1 | I81: В-Граф
A82: 3 | B82: Англ. яз. | C82: Биболетова М.З. | D82: 2006 | E82: 29 | F82: 15 | G82: 15 | I82: Титул
A83: 3 | B83: Окружающ.мир Ч.1 | C83: Виноградова Н.Ф. | D83: 2012 | E83: 14 | F83: 15 | G83: 14 | H83: 1 | I83: В-Граф
A84: 3 | B84: Окружающ.мир Ч.2 | C84: Виноградова Н.Ф. | D84: 2012 | E84: 14 | F84: 15 | G84: 14 | H84: 1 | I84: В-Граф
A85: 3 | B85: Литер. чтение Ч.1 | C85: Ефросинина Л.А. | F85: 15 | G85: 14 | H85: 1 | I85: В-Граф
A86: 3 | B86: Литер. чтение Ч.2 | C86: Ефросинина Л.А. | F86: 15 | G86: 14 | H86: 1 | I86: В-Граф
A87: 3 | B87: Математика Ч.1 | C87: Рудницкая В.Н. | D87: 2012 | E87: 14 | F87: 15 | G87: 14 | H87: 1 | I87: В-Граф
A88: 3 | B88: Математика Ч.2 | C88: Рудницкая В.Н. | D88: 2012 | E88: 14 | F88: 15 | G88: 14 | H88: 1 | I88: В-Граф
A90: 3 | B90: Татарский язык | C90: Хайдарова Р.З. | D90: 2009 | E90: 38 | F90: 15 | G90: 15 | I90: Магариф | K90: 665
A92: Класс | B92: Предмет | C92: Автор учебника | D92: год изд. | E92: наличие | F92: конт-гент. | G92: выдано | H92: нехватка | I92: изд-во
A93: 3б | B93: Гайнатуллина Т.Г. | C93: Школа России | F93: 11
A94: 3 | B94: Англ. яз.3кл | C94: Биболетова М.З. | D94: 2006 | E94: 29 | F94: 11 | G94: 11 | I94: Титул
A95: 3 | B95: Русский язык.Ч.1 | C95: Зеленина Л.М. | D95: 2009 | E95: 33 | F95: 11 | G95: 11 | I95: Просвещ
A96: 3 | B96: Русский язык.Ч.2 | C96: Зеленина Л.М. | D96: 2009 | E96: 33 | F96: 11 | G96: 11 | I96: Просвещ
A97: 3 | B97: Родная речь.Ч.1 | C97: Климанова Л.Ф. | D97: 2007 | E97: 50 | F97: 11 | G97: 11 | I97: Просвещ
A98: 3 | B98: Родная речь.Ч.2 | C98: Климанова Л.Ф | D98: 2007 | E98: 50 | F98: 11 | G98: 11 | I98: Просвещ
A99: 3 | B99: Математика.Ч.1 | C99: Моро М.И. | D99: 2007 | E99: 37 | F99: 11 | G99: 11 | I99: Просвещ
A100: 3 | B100: Математика.Ч.2 | C100: Моро М.И. | D100: 2007 | E100: 37 | F100: 11 | G100: 11 | I100: Просвещ
A101: 3 | B101: Окруж. мир.Ч.1 | C101: Плешаков А.А. | D101: 2008 | E101: 35 | F101: 11 | G101: 11 | I101: Просвещ
A102: 3 | B102: Окруж. мир.Ч.2 | C102: Плешаков А.А. | D102: 2008 | E102: 35 | F102: 11 | G102: 11 | I102: Просвещ
A104: 3 | B104: Тат. яз. для р/яз. | C104: Хайдарова Р.З. | D104: 2009 | E104: 38 | F104: 35 | G104: 11 | I104: Магариф | K104: 665
A106: Класс | B106: Предмет | C106: Автор учебника | D106: год изд. | E106: наличие | F106: конт-гент. | G106: выдано | H106: нехватка | I106: изд-во
A107: 4а | B107: Шакирова Ф.Ф. | C107: Начальная школа ХХ1 века | F107: 16
A108: 4 | B108: Английский язык | C108: Биболетова М.З. | D108: 2007 | E108: 22 | F108: 16 | G108: 16 | I108: Титул
A109: 4 | B109: Окружающ.мир Ч.1 | C109: Виноградова Н.Ф. | D109: 2009 | E109: 21 | F109: 16 | G109: 16
A110: 4 | B110: Окружающ.мир Ч.2 | C110: Виноградова Н.Ф. | D110: 2009 | E110: 21 | F110: 16 | G110: 16 | I110: В-Граф
A111: 4 | B111: Литер. чтение Ч.1 | C111: Ефросинина Л.А. | D111: 2009 | E111: 21 | F111: 16 | G111: 16 | I111: В-Граф
A112: 4 | B112: Литер. чтение Ч.2 | C112: Ефросинина Л.А. | D112: 2009 | E112: 21 | F112: 16 | G112: 16 | I112: В-Граф
A113: 4 | B113: Русский язык. Ч.1 | C113: Иванов С.В. | D113: 2010 | E113: 30 | F113: 16 | G113: 16 | I113: В-Граф
A114: 4 | B114: Русский язык. Ч.2 | C114: Иванов С.В. | D114: 2010 | E114: 30 | F114: 16 | G114: 16 | I114: В-Граф
A115: 4 | B115: Математика | C115: Рудницкая В.Н;Юдачева Т.В. | D115: 2012 | F115: 16 | H115: 16 | I115: В-Граф
A117: 4 | B117: Тат. яз.для р/яз.Ч.1 | C117: Хайдарова Р.З. | D117: 2010 | E117: 32 | F117: 35 | G117: 16 | I117: Магариф
A118: 4 | B118: Тат. яз. для р/яз.Ч.2 | C118: Хайдарова Р.З. | D118: 2010 | E118: 32 | F118: 35 | G118: 16 | I118: Магариф
A120: Класс | B120: Предмет | C120: Автор учебника | D120: год изд. | E120: наличие | F120: конт-гент. | G120: выдано | H120: нехватка | I120: изд-во
A121: 4б | B121: Ивыгина Т.И. | C121: Школа России | F121: 19
A122: 4 | B122: Английский язык | C122: Биболетова М.З. | D122: 2007 | E122: 23 | F122: 19 | G122: 19 | I122: Титул
A123: 4 | B123: Рус.яз. Ч1 | C123: Зеленина Л.М. | D123: 2010 | E123: 26 | F123: 19 | G123: 19 | I123: Просвещ
A124: 4 | B124: Рус.яз. Ч2 | C124: Зеленина Л.М. | D124: 2010 | E124: 26 | F124: 19 | G124: 19 | I124: Просвещ
A125: 4 | B125: Родная речь. Ч.1 | C125: Климанова Л.Ф. | D125: 2009 | E125: 34 | F125: 19 | G125: 19 | I125: Просвещ
A126: 4 | B126: Родная речь. Ч.2 | C126: Климанова Л.Ф. | D126: 2009 | E126: 34 | F126: 19 | G126: 19 | I126: Просвещ
A127: 4 | B127: Математика.Ч.1 | C127: Моро М.И. | D127: 2008 | E127: 41 | F127: 19 | G127: 19 | I127: Просвещ
A128: 4 | B128: Математика.Ч.2 | C128: Моро М.И. | D128: 2008 | E128: 41 | F128: 19 | G128: 19 | I128: Просвещ
A129: 4 | B129: Окруж. мир.Ч.1 | C129: ПлешаковА.А. | D129: 2009 | E129: 32 | F129: 19 | G129: 19 | I129: Просвещ
A130: 4 | B130: Окруж. мир.Ч.2 | C130: ПлешаковА.А. | D130: 2009 | E130: 32 | F130: 19 | G130: 19 | I130: Просвещ
A132: 4 | B132: Тат. яз.для р/яз.Ч.1 | C132: Хайдарова Р.З. | D132: 2010 | E132: 31 | F132: 35 | G132: 19 | I132: Магариф
A133: 4 | B133: Тат. яз. для р/яз.Ч.2 | C133: Хайдарова Р.З. | D133: 2010 | E133: 31 | F133: 35 | G133: 19 | I133: Магариф
A135: Класс | B135: Предмет | C135: Автор учебника | D135: год изд. | E135: наличие | F135: конт-гент. | G135: выдано | H135: нехватка | I135: изд-во
A136: 5а | B136: Косачёва Т.М. | C136: Начальная школа ХХ1 века | D136: 9м 8д | F136: 17
A137: 5 | B137: Истор.др.мира | C137: Андреевская Т.П. | D137: 2011 | E137: 26 | F137: 17 | G137: 17 | I137: В-Граф
A138: 5 | B138: Англ. яз.5-6 кл. | C138: Биболетова М.З. | D138: 2009 | F138: 17 | G138: 7 | I138: Титул | J138: М-Шильна
A139: 5 | B139: Англ. яз.5-6 кл. | C139: Биболетова М.З. | D139: 2008 | F139: 17 | G139: 9 | I139: Титул | J139: Князево
A140: 6 | B140: Англ. яз.5-6 кл. | C140: Биболетова М.З. | D140: 2009 | E140: 22 | F140: 17 | G140: 1 | I140: Титул | J140: Бетьки
A141: 5 | B141: Математика 5кл. | C141: Зубарева И.И. ,Мордкович А.Г. | D141: 2012 | F141: 17 | G141: 17 | I141: В-Граф | K141: 798
A142: 5 | B142: Литература Ч. 1 | C142: Ланин Б.А. и др. | D142: 2012 | E142: 48 | F142: 17 | G142: 17 | I142: В-Граф | K142: 795
A143: 5 | B143: Литература Ч. 2 | C143: Ланин Б.А. и др. | D143: 2012 | E143: 48 | F143: 17 | G143: 17 | I143: В-Граф | K143: 796
A144: 5 | B144: Русс.яз. 5кл. | C144: Разумовская М.М;Львова С.И;Капинос В.И и др. | D144: 2012 | E144: 48 | F144: 17 | G144: 17 | I144: В-Граф
A145: 5 | B145: Технология.Инд.Тех | C145: Тищенко А.Т;Симоненко В.Д | D145: 2012 | E145: 21 | F145: 17 | G145: 17 | I145: В-Граф
A146: 5 | B146: Технология.Вед.дома | C146: Синица Н.В;Симоненко В.Д | D146: 2012 | E146: 14 | F146: 17 | G146: 17 | I146: В-Граф
A147: 5 | B147: Природоведение | C147: Плешаков А.А. | D147: 2005 | E147: 50 | F147: 17 | G147: 17 | I147: Просвещение
A149: 5 | B149: Тат. яз. для р/яз. | C149: Хайдарова Р.З.. | D149: 2006 | E149: 28 | F149: 17 | I149: Магариф
A151: Класс | B151: Предмет | C151: Автор учебника | D151: год изд. | E151: наличие | F151: конт-гент. | G151: выдано | H151: нехватка | I151: изд-во
A152: 5б | B152: Ахметова Л.Д. | C152: Школа России | D152: 7м 7д | F152: 14
A153: 5 | B153: Англ.яз 5 кл. | C153: Биболетова М.З. | D153: 2012 | E153: 31 | F153: 14 | G153: 14 | I153: Титул
A154: 5 | B154: История др. мира | C154: Вигасин А.А. | D154: 2006 | E154: 58 | F154: 14 | G154: 14 | I154: Просвещ
A155: 5 | B155: Всеобщая истори | C155: Михайловский Ф.А. | D155: 2012 | F155: 14 | G155: 14 | I155: Рус. слово
A156: 5 | B156: Математика | C156: Виленкин Н.Я. | D156: 2005 | E156: 50 | F156: 14 | G156: 14 | I156: Мнемоз
A157: 5 | B157: Литература.Ч.1 | C157: Коровина В.Я. | D157: 2006 | E157: 58 | F157: 14 | G157: 14 | I157: Просвещ.
A158: 5 | B158: Литература.Ч.2 | C158: Коровина В.Я. | D158: 2006 | E158: 58 | F158: 14 | G158: 14 | I158: Просвещ.
A159: 5 | B159: Русский язык | C159: Ладыженская Т.А. | D159: 2007 | E159: 43 | F159: 14 | G159: 14 | I159: Просвещ.
A160: 5 | B160: Технология | C160: Павлова М.Б.Сасова И.А. | D160: 2006 | E160: 25 | F160: 14 | G160: 14 | H160: 5 | I160: Вентана-Граф
A161: 5 | B161: Природоведение | C161: Плешаков А.А. | D161: 2005 | E161: 50 | F161: 14 | G161: 14 | I161: Просвещение
A163: 5 | B163: Тат. яз. для р/яз. | C163: Хайдарова Р.З. | D163: 2007 | E163: 30 | F163: 14 | G163: 14 | I163: Магариф
A165: Класс | B165: Предмет | C165: Автор учебника | D165: год изд. | E165: наличие | F165: конт-гент. | G165: выдано | H165: нехватка | I165: изд-во
A166: 5в | B166: Ибрагимова В.А. | C166: Школа России | D166: 10м 8д | F166: 18
A167: 5 | B167: Англ.яз 5 кл. | C167: Биболетова М.З. | D167: 2012 | E167: 31 | F167: 18 | G167: 17 | I167: Титул | K167: Серова
A168: 5 | B168: История др. мира | C168: Михайловский | D168: 2006 | E168: 58 | F168: 18 | G168: 18 | I168: Просвещение
A169: 5 | B169: Математика | C169: Виленкин Н.Я. | D169: 2005 | E169: 50 | F169: 18 | G169: 18 | I169: Мнемозина
A170: 5 | B170: Литература.Ч.1 | C170: Коровина В.Я. | D170: 2006 | E170: 58 | F170: 18 | G170: 18 | I170: Просвещение
A171: 5 | B171: Литература.Ч.2 | C171: Коровина В.Я. | D171: 2006 | E171: 58 | F171: 18 | G171: 18 | I171: Просвещение
A172: 5 | B172: Русский язык | C172: Ладыженская Т.А. | D172: 2007 | E172: 43 | F172: 18 | G172: 18 | I172: Просвещение
A173: 5 | B173: Технология | C173: Павлова М.Б.Сасова И.А. | D173: 2006 | E173: 25 | F173: 18 | G173: 17 | H173: 1 | I173: Вентана-Граф | K173: Серова
A174: 5 | B174: Природоведение | C174: Плешаков А.А. | D174: 2005 | E174: 50 | F174: 18 | G174: 18 | I174: Просвещение
A176: 5 | B176: Тат. яз. для р/яз. | C176: Хайдарова Р.З. | D176: 2007 | E176: 30 | F176: 18 | G176: 17 | I176: Магариф | K176: Серова
A178: Класс | B178: Предмет | C178: Автор учебника | D178: год изд. | E178: наличие | F178: конт-гент. | G178: выдано | H178: нехватка | I178: изд-во
A179: 6а | B179: Нурханова Л.Д. | D179: 8м. 7д. | F179: 15
A180: 6 | B180: Англ.яз | C180: Биболетова М.З | D180: 2009 | F180: 15 | G180: 15 | I180: Титул | K180: Князево
A181: 6 | B181: Русский язык | C181: Баранов М.Т. | D181: 2008 | E181: 40 | F181: 15 | G181: 15 | I181: Просвещение
A182: 6 | B182: История средних век | C182: Бойцов М.А. | D182: 2007 | E182: 45 | F182: 15 | G182: 15 | I182: Русское слово
A183: 6 | B183: Математика | C183: Виленкин Н.Я. | D183: 2006 | E183: 55 | F183: 15 | G183: 15 | I183: Мнемозина
A184: 6 | B184: История России | C184: Данилов А.А. | D184: 2009 | E184: 43 | F184: 15 | G184: 15 | I184: Баласс
A185: 6 | B185: География России | C185: Дронов В.П. | D185: 2009 | E185: 40 | F185: 15 | G185: 15 | I185: Дрофа | L185: 0
A186: 6 | B186: Литература | C186: Полухина В.П,Коровина В.Я | D186: 2009 | E186: 45 | F186: 15 | G186: 15 | I186: Просвещение
A187: 6 | B187: Обществознание | C187: Кравченко А.И. | D187: 2006 | E187: 50 | F187: 15 | G187: 15 | I187: Просвещение
A188: 6 | B188: Биология | C188: Сонин Н.И. | D188: 2005 | E188: 60 | F188: 15 | G188: 15 | I188: Дрофа
A189: 6 | B189: Технология для мал. | C189: Гуревич М.И. | D189: 2007 | E189: 15 | F189: 8 | G189: 7 | H189: 1 | I189: Вентана-Граф
A190: 6 | B190: Технология для дев. | C190: Павлова М.Б. | D190: 2007 | E190: 15 | F190: 7 | G190: 5 | H190: 2 | I190: Вентана-Граф
A192: 6 | B192: Тат. язык для р/яз | C192: Хайдарова Р.З. | D192: 2007 | E192: 20 | F192: 15 | G192: 15 | H192: 7 | I192: Магариф
A193: 6 | B193: История Татарстана | C193: Хузин Ф.Ш | D193: 2012 | E193: 27 | F193: 15 | G193: 15 | I193: Хэтер
A195: Класс | B195: Предмет | C195: Автор учебника | D195: год изд. | E195: наличие | F195: конт-гент. | G195: выдано | H195: нехватка | I195: изд-во
A196: 6б | B196: Аглямзянова Р.Р. | D196: 7м. 7д. | F196: 14
A197: 6 | B197: Англ.яз | C197: Биболетова М.З | D197: 2009 | F197: 14 | G197: 14 | I197: Титул
A198: 6 | B198: Русский язык | C198: Баранов М.Т. | D198: 2008 | E198: 40 | F198: 14 | G198: 14 | I198: Просвещение | J198: 602
A199: 6 | B199: История средних век | C199: Бойцов М.А. | D199: 2007 | E199: 45 | F199: 14 | G199: 14 | I199: Русское слово
A200: 6 | B200: Математика | C200: Виленкин Н.Я. | D200: 2006 | E200: 55 | F200: 14 | G200: 14 | I200: Мнемозина
A201: 6 | B201: История России | C201: Данилов А.А. | D201: 2009 | E201: 43 | F201: 14 | G201: 14 | I201: Баласс
A202: 6 | B202: География России | C202: Дронов В.П. | D202: 2009 | E202: 40 | F202: 14 | G202: 14 | I202: Дрофа
A203: 6 | B203: Литература в 2-х ч | C203: Полухина В.П,Коровина В.Я | D203: 2009 | E203: 45 | F203: 14 | G203: 14 | I203: Просвещение | J203: 661
A204: 6 | B204: Обществознание | C204: Кравченко А.И. | D204: 2006 | E204: 50 | F204: 14 | G204: 14 | I204: Просвещение
A205: 6 | B205: Биология | C205: Сонин Н.И. | D205: 2005 | E205: 60 | F205: 14 | G205: 14 | I205: Дрофа
A206: 6 | B206: Технология для мал. | C206: Гуревич М.И. | D206: 2007 | E206: 15 | F206: 7 | G206: 5 | I206: Вентана-Граф
A207: 6 | B207: Технология для дев. | C207: Павлова М.Б. | D207: 2007 | E207: 15 | F207: 7 | G207: 7 | H207: 2 | I207: Вентана-Граф
A209: 6 | B209: Тат. язык для р/яз | C209: Хайдарова Р.З. | D209: 2007 | E209: 20 | F209: 14 | G209: 14 | H209: 7 | I209: Магариф
A210: 6 | B210: История Татарстана | C210: Хузин Ф.Ш | D210: 2012 | E210: 27 | F210: 14 | G210: 14 | I210: Хэтер
A212: Класс | B212: Предмет | C212: Автор учебника | D212: год изд. | E212: наличие | F212: конт-гент. | G212: выдано | H212: нехватка | I212: изд-во
A213: 7а | B213: Якупова Г.З. | C213: 7м 7д. | D213: 7м. 7д. | F213: 14
A214: 7 | B214: Геометрия 7-9 | C214: Атанасян Л.С. | D214: 2004 | E214: 14 | F214: 14 | G214: 14 | I214: Просвещение
A215: 7 | B215: Русский язык | C215: Баранов М.Т. | D215: 2009 | E215: 38 | F215: 14 | G215: 14 | I215: Просвещение
A216: 7 | B216: Англ. язык | C216: Биболетова М.З. | D216: 2010 | E216: 55 | F216: 14 | G216: 14 | I216: Титул
A217: 7 | B217: Технология (мальч.) | C217: Гуревич М.И. | D217: 2008 | E217: 25 | F217: 7 | G217: 7 | I217: Вентана-Граф
A218: 7 | B218: История Рос. | C218: Данилов А.А. | D218: 2010 | E218: 58 | F218: 14 | G218: 14 | I218: Просвещение
A219: 7 | B219: Новая история | C219: Дмитриева О.В | D219: 2007 | E219: 4 | F219: 14 | G219: 14 | I219: Рус.слово | K219: 2э.из п.Новый; 12э.из 19шк.
A220: 7 | B220: География | C220: Душина И.В. | D220: 2010 | E220: 56 | F220: 14 | G220: 14 | I220: Дрофа
A221: 7 | B221: Общая биология | C221: Захаров В.Б. | D221: 2006 | E221: 12 | F221: 14 | G221: 14 | I221: Дрофа
A222: 7 | B222: Литература | C222: Коровина В.Я. | D222: 2003 | E222: 59 | F222: 14 | G222: 14 | I222: Просвещение
A223: 7 | B223: Обществознание | C223: Кравченко А.И. | D223: 2007 | E223: 30 | F223: 14 | G223: 14 | I223: Просвещение
A224: 7 | B224: Алгебра | C224: Макарычев Ю.Н. | D224: 2010 | E224: 52 | F224: 14 | G224: 14 | I224: Мнемозина
A225: 7 | B225: Технология (дев.) | C225: Павлова М.Б. | D225: 2008 | E225: 25 | F225: 7 | G225: 7 | I225: Вентана-Граф
A226: 7 | B226: Физика | C226: Пёрышкин А.Ф. | D226: 2008 | E226: 40 | F226: 14 | G226: 14 | I226: Дрофа
A228: 7 | B228: Тат. язык для р/яз. | C228: Хайдарова Р.З. | D228: 2007 | E228: 40 | F228: 29 | H228: 17 | I228: Магариф
A229: 7 | B229: История Татарстана | C229: Гилязов И.А | D229: 2012 | E229: 32 | F229: 29 | I229: ТКИ
A231: Класс | B231: Предмет | C231: Автор учебника | D231: год изд. | E231: наличие | F231: конт-гент. | G231: выдано | H231: нехватка | I231: изд-во
A232: 7б | B232: Шарапова Р.М. | D232: 4м. 9д. | F232: 13
A233: 7 | B233: Геометрия 7-9 | C233: Атанасян Л.С. | D233: 2004 | E233: 13 | F233: 13 | G233: 13 | H233: 13 | I233: Просвещение
... 189 more rows

Sheet спис.05г.
B1: инв. № | C1: автор | D1: заглавие | E1: год изд. | F1: класс | G1: кол-во | H1: цена | I1: сумма
A2: 1 | B2: 432 | C2: Власенков А.И | D2: Русский язык | E2: 2005 | F2: 10 | G2: 90 | H2: 57.09 | I2: =G2*H2 -> 5138.10
A3: 2 | B3: 433 | C3: Левитан Е.П | D3: Астрономия | E3: 2005 | F3: 11 | G3: 43 | H3: 65.00 | I3: 2795.00
A4: 3 | B4: 434 | C4: Макарычев Ю.Н. | D4: Алгебра | E4: 2005 | F4: 8 | G4: 46 | H4: 55.41 | I4: 2548.86
A5: 4 | B5: 435 | C5: Пискарёв В.И. | D5: История Татарстана | E5: 2004 | F5: 8 | G5: 30 | H5: 30.80 | I5: 924.00
A6: 5 | B6: 436 | C6: Биболетова М.З. | D6: Английский язык | E6: 2005 | F6: 2 | G6: 50 | H6: 81.20 | I6: 4060.00
A7: 6 | B7: 437 | C7: Верещагина И. Н | D7: Английск. яз.Ч. 1 | E7: 2005 | F7: 2 | G7: 50 | H7: 57.09 | I7: 2854.50
A8: 7 | B8: 438 | C8: Плешаков А.А. | D8: Мир вокруг нас | E8: 2005 | F8: 1 | G8: 50 | H8: 71.36 | I8: 3568.00
A9: 8 | B9: 439 | C9: Верещагина И. Н | D9: Английский язык Ч. 2 | E9: 2005 | F9: 2 | G9: 50 | H9: 57.09 | I9: 2854.50
A10: 9 | B10: 440 | C10: Гилязов И.А. | D10: История Татарстана | E10: 2004 | F10: 7 | G10: 50 | H10: 28.60 | I10: 1430.00
A11: 10 | B11: 441 | C11: Сонин Н.И. | D11: Биология | E11: 2005 | F11: 6 | G11: 60 | H11: 75.25 | I11: 4515.00
A12: 11 | B12: 442 | C12: Плешаков А.А. | D12: Природоведение | E12: 2005 | F12: 5 | G12: 50 | H12: 75.25 | I12: 3762.50
A13: 12 | B13: 443 | C13: Виленкин Н.Я. | D13: Математика | E13: 2005 | F13: 5 | G13: 50 | H13: 92.57 | I13: 4628.50
A14: 13 | B14: 444 | C14: Бархударов С.Г. | D14: Русский язык | E14: 2005 | F14: 9 | G14: 60 | H14: 47.58 | I14: 2854.80
A15: 14 | B15: 445 | C15: Сахипова З.Г. | D15: Солнышко | E15: 2005 | F15: 1 | G15: 42 | H15: 66.51 | I15: 2793.42
A16: 15 | B16: 446 | C16: Чалмаев В.А. | D16: Рус. Лит. Хрестом. Ч.1 | E16: 2005 | F16: 11 | G16: 70 | H16: 87.00 | I16: 6090.00
A17: 16 | B17: 447 | C17: Чалмаев В.А. | D17: Рус. Лит. Хрестом. Ч.2 | E17: 2005 | F17: 11 | G17: 72 | H17: 87.00 | I17: 6264.00
A18: 17 | B18: 448 | C18: Коровина В.Я. | D18: Литература Ч.1 | E18: 2003 | F18: 8 | G18: 17 | H18: 44.00 | I18: 748.00
A19: 18 | B19: 449 | C19: Коровина В.Я. | D19: Литература Ч.2 | E19: 2003 | F19: 8 | G19: 17 | H19: 44.00 | I19: 748.00
A20: 19 | B20: 450 | C20: Ботвинников А.Д | D20: Черчение | E20: 2005 | F20: 7 | G20: 20 | H20: 56.80 | I20: 1136.00
A21: 20 | B21: 451 | C21: Ахметзянов М.Г | D21: Литература Ч.1 | E21: 2002 | F21: 5 | G21: 24 | H21: 53.46 | I21: 1283.04
A22: 21 | B22: 452 | C22: Ахметзянов М.Г | D22: Литература Ч.2 | E22: 2002 | F22: 5 | G22: 24 | H22: 50.00 | I22: 1200.00
A23: 22 | B23: 453 | C23: Хайдарова Р.З. | D23: Татарский язык.Ч.1 | E23: 2005 | F23: 4 | G23: 38 | H23: 35.00 | I23: 1330.00
A24: 23 | B24: 454 | C24: Хайдарова Р.З. | D24: Татарский язык.Ч.2 | E24: 2005 | F24: 4 | G24: 36 | H24: 31.00 | I24: 1116.00
A25: 24 | B25: 455 | C25: Сафиуллина Ф.С. | D25: Татарский язык | E25: 2005 | F25: 4 | G25: 36 | H25: 49.10 | I25: 1767.60
A26: 25 | B26: 456 | C26: Ахмадуллина А.Г | D26: Тат. лит. | E26: 2005 | F26: 11 | G26: 26 | H26: 58.00 | I26: 1508.00
A27: 26 | B27: 457 | C27: Голованова М.В | D27: Родная речь | E27: 2005 | F27: 2 | G27: 15 | H27: 49.50 | I27: 742.50
A28: 27 | B28: 458 | C28: Ахмадуллин А.Г | D28: Хрестоматия.Тат.литер. | E28: 2005 | F28: 10 | G28: 10 | H28: 53.00 | I28: 530.00
A29: 28 | B29: 459 | C29: Сафиуллина Ф.с | D29: Татарский язык | E29: 2005 | F29: 10 | G29: 32 | H29: 48.00 | I29: 1536.00
A30: 29 | B30: 460 | C30: Хасанов | D30: Татарская литература | E30: 2005 | F30: 10 | G30: 10 | H30: 45.00 | I30: 450.00
A31: 30 | B31: 461 | C31: Хабибуллина З.Н. | D31: Татарская литература | E31: 2005 | F31: 8 | G31: 12 | H31: 32.00 | I31: 384.00
A32: 31 | B32: 462 | C32: Галимуллин | D32: Татарская литература | E32: 2005 | F32: 6 | G32: 5 | H32: 35.00 | I32: 175.00
A33: 32 | B33: 463 | C33: Максимов Н.В | D33: татарский язык | E33: 2005 | F33: 6 | G33: 5 | H33: 33.00 | I33: 165.00
A34: 33 | B34: 464 | C34: Мусин Ф.М. | D34: Татарская литература | E34: 2005 | F34: 7 | G34: 5 | H34: 30.00 | I34: 150.00
A35: 34 | B35: 465 | C35: Кашапова М.Ф. | D35: Методич. Пособие | E35: 2004 | F35: 0 | G35: 1 | H35: 58.00 | I35: 58.00
G36: =SUM(G2:G35) -> 1196 | I36: =SUM(I2:I35) -> 72108.32

Sheet измен.по классам
A1: изменённый по классам
I2: Списание из ЭФУЛ декабрь 2012.
A3: инв. № | B3: автор | C3: заглавие | D3: год изд. | E3: изд-во | F3: класс | G3: кол-во | O3: причина
A4: 438 | B4: Плешаков А.А. | C4: Мир вокруг нас | D4: 2005 | E4: Просвещение | F4: 1 | G4: 50
A5: 445 | B5: Сахипова З.Г. | C5: Солнышко | D5: 2005 | E5: С-Петербург | F5: 1 | G5: 42
A6: 491 | B6: Валитова Р.Г. | C6: Тат. яз. | D6: 2006 | E6: Магариф | F6: 1 | G6: 10 | H6: 491 | I6: Валитова Р.Г. | J6: Тат. яз. | K6: 2006 | L6: Магариф | M6: 1 | N6: 10
A7: 493 | B7: Ягафарова Р.Х. | C7: Азбука | D7: 2006 | E7: Магариф | F7: 1 | G7: 10
A8: 527 | B8: Валитова Р.Г. | C8: Алифба | D8: 2004 | E8: Магариф | F8: 1 | G8: 2
A9: 539 | B9: Валитова Р.Г. | C9: Алифба | D9: 2007 | E9: Магариф | F9: 1 | G9: 7 | H9: 539 | I9: Валитова Р.Г. | J9: Алифба | K9: 2007 | L9: Магариф | M9: 1 | N9: 7
A10: 545 | B10: Рамзаева Т.Г | C10: Русский язык | D10: 2007 | E10: Дрофа | F10: 1 | G10: 40
A11: 561 | B11: Бакиева Н.В., Гарипова | C11: Музыкал.букварь1кл. | D11: 2007 | E11: Магариф | F11: 1 | G11: 20 | H11: 561 | I11: Бакиева Н.В., Гарипова | J11: Музыкал.букварь1кл. | K11: 2007 | L11: Магариф | M11: 1 | N11: 20
A12: 567 | B12: Нурмухаметова А. | C12: Азбука | D12: 2007 | E12: Магариф | F12: 1 | G12: 15 | H12: 567 | I12: Нурмухаметова А. | J12: Азбука | K12: 2007 | L12: Магариф | M12: 1 | N12: 15
A13: 582 | B13: Харисов Ф.Ф. | C13: Тат. яз для тат. шк. | D13: 2008 | E13: Магариф | F13: 1 | G13: 50 | H13: 582 | I13: Харисов Ф.Ф. | J13: Тат. яз для тат. шк. | K13: 2008 | L13: Магариф | M13: 1 | N13: 50
A14: 583 | B14: Ягафарова Р.Х. | C14: Тат. яз. Для тат. школ | D14: 2008 | E14: Магариф | F14: 1 | G14: 20
A15: 585 | B15: Сафиуллина Ф.С. | C15: Тат. яз. д/рус.яз. Ч 1 | D15: 2009 | E15: Магариф | F15: 1 | G15: 30 | H15: 585 | I15: Сафиуллина Ф.С. | J15: Тат. яз. д/рус.яз. Ч 1 | K15: 2009 | L15: Магариф | M15: 1 | N15: 30
A16: 586 | B16: Сафиуллина Ф.С. | C16: Тат. яз. д/рус.яз. Ч2 | D16: 2008 | E16: Магариф | F16: 1 | G16: 30
A17: 630 | B17: Валитова Р.Г. | C17: Алифба | D17: 2009 | E17: Магариф | F17: 1 | G17: 18 | H17: 630 | I17: Валитова Р.Г. | J17: Алифба | K17: 2009 | L17: Магариф | M17: 1 | N17: 18
A18: 662 | B18: Ахиярова М.З | C18: Азбука | D18: 2009 | E18: Магариф | F18: 1 | G18: 18 | H18: 662 | I18: Ахиярова М.З | J18: Азбука | K18: 2009 | L18: Магариф | M18: 1 | N18: 18
A19: 676 | B19: Харисов Ф.Ф. | C19: В мире слов и пр. | D19: 2008 | E19: Магариф | F19: 1 | G19: 6
A20: 681 | B20: Ефросинина Л.А. | C20: Литературное чтение | D20: 2010 | E20: В-Граф | F20: 1 | G20: 26
A21: 682 | B21: Рудницкая В.Н. | C21: Математика. Ч.1 | D21: 2010 | E21: В-Граф | F21: 1 | G21: 26
A22: 683 | B22: Рудницкая В.Н. | C22: Математика. Ч.2 | D22: 2010 | E22: В-Граф | F22: 1 | G22: 26
A23: 684 | B23: Журова Л.Е. | C23: Букварь. 1ч. | D23: 2010 | E23: В-Граф | F23: 1 | G23: 26
A24: 685 | B24: Журова Л.Е. | C24: Букварь. 2ч. | D24: 2010 | E24: В-Граф | F24: 1 | G24: 26
A25: 686 | B25: Виноградова Н.Ф. | C25: Окружающий мир | D25: 2010 | E25: В-Граф | F25: 1 | G25: 26
A26: 687 | B26: Иванов С.В. | C26: Русский язык | D26: 2010 | E26: В-Граф | F26: 1 | G26: 26
A27: 724 | B27: Иванов С.В. | C27: Русский язык | D27: 2011 | E27: В-Граф | F27: 1 | G27: 25
A28: 725 | B28: Рудницкая В.Н. | C28: Математика. Ч.1 | D28: 2011 | E28: В-Граф | F28: 1 | G28: 25
A29: 726 | B29: Рудницкая В.Н. | C29: Математика. Ч.2 | D29: 2011 | E29: В-Граф | F29: 1 | G29: 25
A30: 727 | B30: Журова Л.Е. | C30: Букварь. 1ч. | D30: 2011 | E30: В-Граф | F30: 1 | G30: 26
A31: 728 | B31: Журова Л.Е. | C31: Букварь. 2ч. | D31: 2011 | E31: В-Граф | F31: 1 | G31: 26
A32: 729 | B32: Ефросинина Л.А. | C32: Литературное чтение | D32: 2011 | E32: В-Граф | F32: 1 | G32: 25
A33: 730 | B33: Виноградова Н.Ф. | C33: Окружающий мир Ч.1 | D33: 2011 | E33: В-Граф | F33: 1 | G33: 25
A34: 731 | B34: Виноградова Н.Ф. | C34: Окружающий мир Ч.2 | D34: 2011 | E34: В-Граф | F34: 1 | G34: 25
A35: 734 | B35: Горецкий В.Г | C35: Азбука | D35: 2011 | E35: Просвещение | F35: 1 | G35: 25
A36: 735 | B36: Климанова Л.Ф | C36: Литературное чтение | D36: 2011 | E36: Просвещение | F36: 1 | G36: 25
A37: 736 | B37: Плешаков А.А. | C37: Окружающий мир | D37: 2011 | E37: Просвещение | F37: 1 | G37: 15
A38: 737 | B38: Моро М.И | C38: Математика в 2х частях | D38: 2011 | E38: Просвещение | F38: 1 | G38: 25
A39: 738 | B39: Канакина В.П | C39: Русский язык | D39: 2011 | E39: Просвещение | F39: 1 | G39: 25
A40: 743 | B40: Меркин Г.С | C40: Лит.чт 1 кл | D40: 2011 | E40: Рус.слово | F40: 1 | G40: 5
A41: 782 | B41: Мияссарова И.Х. и др. | C41: Элифбэ 1кл. | D41: 2012 | E41: М-Вакыт | F41: 1 | G41: 10
A42: 783 | B42: Харисов Ф.Ф.,Харисова Ч.М. | C42: Тат. яз. 1кл | D42: 2012 | E42: ТКИ | F42: 1 | G42: 15
A43: 804 | B43: Хайдарова Р.З. | C43: Татарский язык | D43: 2012 | E43: Тат.м/ф | F43: 1 | G43: 28
A44: 436 | B44: Биболетова М.З. | C44: Английский язык | D44: 2005 | E44: Титул | F44: 2 | G44: 50 | H44: 436 | I44: Биболетова М.З. | J44: Английский язык | K44: 2005 | L44: Титул | M44: 2 | N44: 50
A45: 437 | B45: Верещагина И. Н | C45: Английск. яз.Ч. 1 | D45: 2005 | E45: Просвещение | F45: 2 | G45: 50 | H45: 437 | I45: Верещагина И. Н | J45: Английск. яз.Ч. 1 | K45: 2005 | L45: Просвещение | M45: 2 | N45: 50
A46: 439 | B46: Верещагина И. Н | C46: Английский язык Ч. 2 | D46: 2005 | E46: Просвещение | F46: 2 | G46: 50
A47: 457 | B47: Голованова М.В | C47: Родная речь | D47: 2005 | E47: Просвещение | F47: 2 | G47: 15
A48: 485 | B48: Моро М.И. | C48: Математика.Ч.1 | D48: 2006 | E48: Просвещение | F48: 2 | G48: 58 | H48: 485 | I48: Моро М.И. | J48: Математика.Ч.1 | K48: 2006 | L48: Просвещение | M48: 2 | N48: 58
A49: 486 | B49: Моро М.И. | C49: Математика.Ч.2 | D49: 2006 | E49: Просвещение | F49: 2 | G49: 58
A50: 518 | B50: Климанова Л.Ф. | C50: Родная речь. Ч.1 | D50: 2006 | E50: Просвещение | F50: 2 | G50: 58 | H50: 518 | I50: Климанова Л.Ф. | J50: Родная речь. Ч.1 | K50: 2006 | L50: Просвещение | M50: 2 | N50: 58
A51: 519 | B51: Климанова Л.Ф. | C51: Родная речь. Ч.2 | D51: 2006 | E51: Просвещение | F51: 2 | G51: 62
A52: 560 | B52: Плешаков А.А. | C52: Окружающий мир. Ч.2 | D52: 2007 | E52: Просвещение | F52: 2 | G52: 9
A53: 572 | B53: Нуриева А. Х | C53: Татар Теле | D53: 2007 | E53: Магариф | F53: 2 | G53: 15 | H53: 572 | I53: Нуриева А. Х | J53: Татар Теле | K53: 2007 | L53: Магариф | M53: 2 | N53: 15
A54: 573 | B54: Плешаков А.А. | C54: Окружающий мир. Ч.1 | D54: 2007 | E54: Просвещение | F54: 2 | G54: 38
A55: 575 | B55: Вагизов С. Г | C55: Книга для чтения 2клЧ. 1 | D55: 2007 | E55: Магариф | F55: 2 | G55: 15 | H55: 575 | I55: Вагизов С. Г | J55: Книга для чтения 2клЧ. 1 | K55: 2007 | L55: Магариф | M55: 2 | N55: 15
A56: 576 | B56: Вагизов С. Г | C56: Книга для чтения Ч. 2 | D56: 2007 | E56: Магариф | F56: 2 | G56: 15
A57: 584 | B57: Ягафарова Р.Х. | C57: Тат. яз. Для тат. школ | D57: 2008 | E57: Магариф | F57: 2 | G57: 20 | H57: 584 | I57: Ягафарова Р.Х. | J57: Тат. яз. Для тат. школ | K57: 2008 | L57: Магариф | M57: 2 | N57: 20
A58: 595 | B58: Рамзаева Т. Г | C58: Русский язык Ч. 1 | D58: 2008 | E58: Дрофа | F58: 2 | G58: 50 | H58: 595 | I58: Рамзаева Т. Г | J58: Русский язык Ч. 1 | K58: 2008 | L58: Дрофа | M58: 2 | N58: 50
A59: 596 | B59: Рамзаева Т. Г | C59: Русский язык Ч. 2 | D59: 2008 | E59: Дрофа | F59: 2 | G59: 50
A60: 628 | B60: Хайдарова Р.З. | C60: Татарский язык. Ч.1 2 кл | D60: 2009 | E60: Магариф | F60: 2 | G60: 63 | H60: 628 | I60: Хайдарова Р.З. | J60: Татарский язык. Ч.1 2 кл | K60: 2009 | L60: Магариф | M60: 2 | N60: 63
A61: 670 | B61: Иванова Л.Ф | C61: Волшебный лес 2 кл | D61: 2009 | E61: Магариф | F61: 2 | G61: 32
A62: 673 | B62: Хайдарова Р.З. | C62: Татарский язык. Ч.2 | D62: 2009 | E62: Магариф | F62: 2 | G62: 62
A63: 715 | B63: Виноградова Н.Ф. | C63: Окружающий мир. Ч.1 | D63: 2011 | E63: В-Граф | F63: 2 | G63: 25
A64: 716 | B64: Виноградова Н.Ф. | C64: Окружающий мир. Ч.2 | D64: 2011 | E64: В-Граф | F64: 2 | G64: 25
A65: 717 | B65: Иванов С.В. | C65: Русский язык. Ч.1 | D65: 2011 | E65: В-Граф | F65: 2 | G65: 25
A66: 718 | B66: Иванов С.В. | C66: Русский язык. Ч.2 | D66: 2011 | E66: В-Граф | F66: 2 | G66: 25
A67: 719 | B67: Ефросинина Л.А. | C67: Литературн чтение Ч.1 | D67: 2011 | E67: В-Граф | F67: 2 | G67: 25
A68: 720 | B68: Ефросинина Л.А. | C68: Литературн чтение Ч.2 | D68: 2011 | E68: В-Граф | F68: 2 | G68: 25
A69: 721 | B69: Рудницкая В.Н. | C69: Математика. Ч.1 | D69: 2011 | E69: В-Граф | F69: 2 | G69: 25
A70: 722 | B70: Рудницкая В.Н. | C70: Математика. Ч.2 | D70: 2011 | E70: В-Граф | F70: 2 | G70: 25
A71: 723 | B71: Зеленина Л.М. | C71: Русский язык.Ч.1 | D71: 2011 | E71: В-Граф | F71: 2 | G71: 15
A72: 771 | B72: Иванов С.В.,Евдокимова | C72: Русский язык 2кл.Ч.1 | D72: 2012 | E72: В-Граф | F72: 2 | G72: 20
A73: 772 | B73: Иванов С.В.,Евдокимова | C73: Русский язык 2кл.Ч.2 | D73: 2012 | E73: В-Граф | F73: 2 | G73: 20
A74: 773 | B74: Ефросинина Л.А. | C74: Литер.чтение 2кл Ч.1 | D74: 2012 | E74: В-Граф | F74: 2 | G74: 34
A75: 774 | B75: Ефросинина Л.А. | C75: Литер.чтение 2кл Ч.2 | D75: 2012 | E75: В-Граф | F75: 2 | G75: 34
A76: 775 | B76: Вербицкая Н.В.,Эббс Б | C76: Английский яз. 2кл.Ч.1 | D76: 2012 | E76: В-Граф | F76: 2 | G76: 34
A77: 776 | B77: Вербицкая Н.В.,Эббс Б | C77: Английский яз. 2кл.Ч.2 | D77: 2012 | E77: В-Граф | F77: 2 | G77: 34
A78: 777 | B78: Рудницкая В.Н.,Юдачёва | C78: Математика 2кл. Ч.1 | D78: 2012 | E78: В-Граф | F78: 2 | G78: 34
A79: 778 | B79: Рудницкая В.Н.,Юдачёва | C79: Математика 2кл. Ч.2 | D79: 2012 | E79: В-Граф | F79: 2 | G79: 34
A80: 779 | B80: Виноградова Н.Ф. | C80: Окруж. мир 2кл. Ч.1 | D80: 2012 | E80: В-Граф | F80: 2 | G80: 34
A81: 780 | B81: Виноградова Н.Ф. | C81: Окруж. мир 2кл. Ч.2 | D81: 2012 | E81: В-Граф | F81: 2 | G81: 34
A82: 781 | B82: Алексеева Л.Л.,Школяр | C82: Музыка 2кл. | D82: 2012 | E82: Мнемозина | F82: 2 | G82: 44
A83: 784 | B83: Харисов Ф.Ф.,Харисова Ч.М. | C83: Тат. яз. 2кл | D83: 2012 | E83: ТКИ | F83: 2 | G83: 20
A84: 800 | B84: Огерчук Л.Ю. | C84: Технология 2кл. | D84: 2012 | E84: Рус.слово | F84: 2 | G84: 25
A85: 808 | B85: Рудницкая В.Н., Юдачёва | C85: Математика 2кл. Ч.1 | D85: 2012 | E85: В-Граф | F85: 2 | G85: 11
A86: 809 | B86: Ивченкова Г.Г., Потапов И.В. | C86: Окруж. Мир 2кл. Ч.1 | D86: 2012 | E86: АСТ | F86: 2 | G86: 2
A87: 810 | B87: Ивченкова Г.Г., Потапов И.В. | C87: Окруж. Мир 2кл. Ч.2 | D87: 2012 | E87: АСТ | F87: 2 | G87: 2
A88: 499 | B88: Биболетова М.З. | C88: Английский язык | D88: 2006 | E88: Титул | F88: 3 | G88: 58
A89: 531 | B89: Климанова Л.Ф. | C89: Родная речь.Ч.1 | D89: 2007 | E89: Просвещение | F89: 3 | G89: 50
A90: 532 | B90: Климанова Л.Ф | C90: Родная речь.Ч.2 | D90: 2007 | E90: Просвещение | F90: 3 | G90: 50
A91: 534 | B91: Моро М.И. | C91: Математика.Ч.1 | D91: 2007 | E91: Просвещение | F91: 3 | G91: 37
A92: 535 | B92: Моро М.И. | C92: Математика.Ч.2 | D92: 2007 | E92: Просвещение | F92: 3 | G92: 37
A93: 577 | B93: Яхин А. Г | C93: Литературн. Чт | D93: 2007 | E93: Магариф | F93: 3 | G93: 20
A94: 599 | B94: ПлешаковА.А. | C94: Окружающий мир.Ч.1 | D94: 2008 | E94: Просвещение | F94: 3 | G94: 35
A95: 600 | B95: ПлешаковА.А. | C95: Окружающий мир.Ч.2 | D95: 2008 | E95: Просвещение | F95: 3 | G95: 35
A96: 629 | B96: Ягафарова Р.Х. | C96: Литературн. Чт | D96: 2009 | E96: Магариф | F96: 3 | G96: 33
A97: 634 | B97: Зеленина Л.М. | C97: Русский язык.Ч.1 | D97: 2009 | E97: Просвещение | F97: 3 | G97: 33
A98: 635 | B98: Зеленина Л.М. | C98: Русский язык.Ч.2 | D98: 2009 | E98: Просвещение | F98: 3 | G98: 33
A99: 636 | B99: Иванов С.В. | C99: Русский язык. Ч.1 | D99: 2009 | E99: В-Граф | F99: 3 | G99: 21
A100: 637 | B100: Иванов С.В. | C100: Русский язык. Ч.2 | D100: 2009 | E100: В-Граф | F100: 3 | G100: 21
A101: 663 | B101: Харисов Ф.Ф. | C101: Тат. яз. Для тат. | D101: 2009 | E101: Магариф | F101: 3 | G101: 30
A102: 665 | B102: Хайдарова Р.З. | C102: Татарский язык.Ч.1 | D102: 2009 | E102: Магариф | F102: 3 | G102: 38
A103: 703 | B103: Иванова Л.Ф | C103: Волшебн.истории 3 кл | D103: 2010 | E103: Магариф | F103: 3 | G103: 10
A104: 705 | B104: Бакиева Н.В.и др. | C104: Уроки музыки 3 кл | D104: 2009 | E104: Магариф | F104: 3 | G104: 1
A105: 759 | B105: Иванов С.В. | C105: Рус.яз.3кл.ч1 | D105: 2012 | E105: В-Граф | F105: 3 | G105: 14
A106: 760 | B106: Иванов С.В.,Евдокимова | C106: Рус.яз.3кл.ч2 | D106: 2012 | E106: В-Граф | F106: 3 | G106: 14
A107: 763 | B107: Рудницкая В.Н.,Юдачёва | C107: Математика 3кл. Ч.1 | D107: 2012 | E107: В-Граф | F107: 3 | G107: 14
A108: 764 | B108: Рудницкая В.Н.,Юдачёва | C108: Математика 3кл. Ч.2 | D108: 2012 | E108: В-Граф | F108: 3 | G108: 14
A109: 765 | B109: Виноградова Н.Ф.,Калинова | C109: Окружающий мир 3кл.ч1 | D109: 2012 | E109: В-Граф | F109: 3 | G109: 14
A110: 766 | B110: Виноградова Н.Ф.,Калинова | C110: Окружающий мир 3кл.ч2 | D110: 2012 | E110: В-Граф | F110: 3 | G110: 14
A111: 793 | B111: Ефросинина Л.А. | C111: Литературное чт.3кл.Ч1 | D111: 2012 | E111: В-Граф | F111: 3 | G111: 14
A112: 794 | B112: Ефросинина Л.А. | C112: Литературное чт.3кл.Ч2 | D112: 2012 | E112: В-Граф | F112: 3 | G112: 14
A113: 806 | B113: Ефросинина Л.А. | C113: Литерат.чтение 3кл.Ч.1 | D113: 2012 | E113: В-Граф | F113: 3 | G113: 32
A114: 807 | B114: Ефросинина Л.А. | C114: Литерат.чтение 3кл. Ч.2 | D114: 2012 | E114: В-Граф | F114: 3 | G114: 32
A115: 453 | B115: Хайдарова Р.З. | C115: Татарский язык.Ч.1 | D115: 2005 | E115: Магариф | F115: 4 | G115: 38 | H115: 453 | I115: Хайдарова Р.З. | J115: Татарский язык.Ч.1 | K115: 2005 | L115: Магариф | M115: 4 | N115: 38
A116: 454 | B116: Хайдарова Р.З. | C116: Татарский язык.Ч.2 | D116: 2005 | E116: Магариф | F116: 4 | G116: 36
A117: 455 | B117: Сафиуллина Ф.С. | C117: Татарский язык | D117: 2005 | E117: Магариф | F117: 4 | G117: 36 | H117: 455 | I117: Сафиуллина Ф.С. | J117: Татарский язык | K117: 2005 | L117: Магариф | M117: 4 | N117: 36
A118: 483 | B118: Бакиева Н.В. | C118: Музыка | D118: 2005 | E118: Магариф | F118: 4 | G118: 25 | H118: 483 | I118: Бакиева Н.В. | J118: Музыка | K118: 2005 | L118: Магариф | M118: 4 | N118: 25
A119: 484 | B119: Ягафарова Р.Х. | C119: Литературн. чтение ч1 | D119: 2005 | E119: Магариф | F119: 4 | G119: 20 | H119: 484 | I119: Ягафарова Р.Х. | J119: Литературн. чтение ч1 | K119: 2005 | L119: Магариф | M119: 4 | N119: 20
A120: 529 | B120: Ягафарова Р.Х. | C120: Литерат. чтение Ч.2. | D120: 2006 | E120: Магариф | F120: 4 | G120: 15 | H120: 529 | I120: Ягафарова Р.Х. | J120: Литерат. чтение Ч.2. | K120: 2006 | L120: Магариф | M120: 4 | N120: 15
A121: 538 | B121: Биболетова М.З. | C121: Английский язык | D121: 2007 | E121: Титул | F121: 4 | G121: 45
A122: 597 | B122: Моро М.И. | C122: Математика.Ч.1 | D122: 2008 | E122: Просвещение | F122: 4 | G122: 41
A123: 598 | B123: Моро М.И. | C123: Математика.Ч.2 | D123: 2008 | E123: Просвещение | F123: 4 | G123: 41
A124: 621 | B124: Яхин А.Г. | C124: Тат. лит для тат.шк. | D124: 2008 | E124: Магариф | F124: 4 | G124: 18
A125: 638 | B125: Ефросинина Л.А. | C125: Литер. чтение. Ч.1 | D125: 2009 | E125: В-Граф | F125: 4 | G125: 21
A126: 639 | B126: Ефросинина Л.А. | C126: Литер. чтение. Ч.2 | D126: 2009 | E126: В-Граф | F126: 4 | G126: 21
A127: 640 | B127: Климанова Л.Ф. | C127: Родная речь. Ч.1 | D127: 2009 | E127: Просвещение | F127: 4 | G127: 34
A128: 641 | B128: Климанова Л.Ф. | C128: Родная речь. Ч.2 | D128: 2009 | E128: Просвещение | F128: 4 | G128: 34
A129: 642 | B129: Виноградова Н.Ф. | C129: Окружающий мир. Ч.1 | D129: 2009 | E129: В-Граф | F129: 4 | G129: 21
A130: 643 | B130: Виноградова Н.Ф. | C130: Окружающий мир. Ч.2 | D130: 2009 | E130: В-Граф | F130: 4 | G130: 21
A131: 644 | B131: ПлешаковА.А. | C131: Окружающий мир.Ч.1 | D131: 2009 | E131: Просвещение | F131: 4 | G131: 32
A132: 645 | B132: ПлешаковА.А. | C132: Окружающий мир.Ч.2 | D132: 2009 | E132: Просвещение | F132: 4 | G132: 32
A133: 664 | B133: Харисов Ф.Ф. | C133: Тат. яз. Для тат. | D133: 2009 | E133: Магариф | F133: 4 | G133: 22
A134: 674 | B134: Ягафарова Р.Х. | C134: Книга для чтения | D134: 2009 | E134: Магариф | F134: 4 | G134: 24
A135: 679 | B135: Зеленина Л.М. | C135: Русский язык. Ч1 | D135: 2010 | E135: Просвещение | F135: 4 | G135: 26
A136: 680 | B136: Зеленина Л.М. | C136: Русский язык. Ч2 | D136: 2010 | E136: Просвещение | F136: 4 | G136: 26
A137: 697 | B137: Иванов С.В. | C137: Русский язык. Ч.1 | D137: 2010 | E137: В-Граф | F137: 4 | G137: 30
A138: 698 | B138: Иванов С.В. | C138: Русский язык. Ч.2 | D138: 2010 | E138: В-Граф | F138: 4 | G138: 30
A139: 701 | B139: Хайдарова Р.З. | C139: Татарский язык.Ч.1 | D139: 2010 | E139: Магариф | F139: 4 | G139: 64
A140: 702 | B140: Хайдарова Р.З. | C140: Татарский язык.Ч.2 | D140: 2010 | E140: Магариф | F140: 4 | G140: 64
A141: 732 | B141: Сахаров А.Н. | C141: Основы религии | D141: 2011 | E141: Рус.слово | F141: 4 | G141: 57
A142: 801 | B142: Студеникин М.Т. | C142: Осн.свет.этики.4кл | D142: 2012 | E142: Рус.слово | F142: 4 | G142: 13
A143: 442 | B143: Плешаков А.А. | C143: Природоведение | D143: 2005 | E143: Дрофа | F143: 5 | G143: 50 | H143: 442 | I143: Плешаков А.А. | J143: Природоведение | K143: 2005 | L143: Дрофа | M143: 5 | N143: 50
A144: 443 | B144: Виленкин Н.Я. | C144: Математика | D144: 2005 | E144: Мнемозина | F144: 5 | G144: 50 | H144: 443 | I144: Виленкин Н.Я. | J144: Математика | K144: 2005 | L144: Мнемозина | M144: 5 | N144: 50
A145: 451 | B145: Ахметзянов М.Г | C145: Литература Ч.1 | D145: 2002 | E145: С-Петербург | F145: 5 | G145: 24
A146: 452 | B146: Ахметзянов М.Г | C146: Литература Ч.2 | D146: 2002 | E146: С-Петербург | F146: 5 | G146: 24
A147: 487 | B147: Залялеева М.Ш. | C147: Литература | D147: 2006 | E147: Магариф | F147: 5 | G147: 5
A148: 496 | B148: Бунеев Р.Н. | C148: Литература.Ч.1. | D148: 2006 | E148: Баласс | F148: 5 | G148: 20
A149: 497 | B149: Бунеев Р.Н. | C149: Литература.Ч.2. | D149: 2006 | E149: Баласс | F149: 5 | G149: 20
A150: 512 | B150: Павлова М.Б.Сасова И.А. | C150: Технология (д.,м.) | D150: 2006 | E150: В-Граф | F150: 5 | G150: 25
A151: 514 | B151: Вигасин А.А. | C151: История др.мира | D151: 2006 | E151: Просвещение | F151: 5 | G151: 58
A152: 515 | B152: Коровина В.Я. | C152: Литература.Ч.1 | D152: 2006 | E152: Просвещение | F152: 5 | G152: 58
A153: 516 | B153: Коровина В.Я. | C153: Литература.Ч.2 | D153: 2006 | E153: Просвещение | F153: 5 | G153: 58
A154: 520 | B154: Хайдарова Р.З. | C154: Татарский язык. | D154: 2006 | E154: Магариф | F154: 5 | G154: 28
A155: 556 | B155: Ладыженская Т.А. | C155: Русский язык | D155: 2007 | E155: Просвещение | F155: 5 | G155: 43
A156: 578 | B156: Хайдарова Р.З. | C156: Татарский язык. | D156: 2007 | E156: Магариф | F156: 5 | G156: 30
A157: 587 | B157: Хасаншина Р.Г. | C157: Татарский язык | D157: 2007 | E157: Магариф | F157: 5 | G157: 30
A158: 601 | B158: Биболетова М.З. | C158: Англиийский язык | D158: 2008 | E158: Титул | F158: 5 | G158: 47
A159: 632 | B159: Биболетова М.З. | C159: Англиийский язык | D159: 2009 | E159: Титул | F159: 5 | G159: 22
A160: 739 | B160: Андреевская Т.П. | C160: История др. мира 5кл. | D160: 2011 | E160: В-Граф | F160: 5 | G160: 26
A161: 755 | B161: Хайдарова Р.З. | C161: Тат.теле 5 кл | D161: 2011 | E161: ТКИ | F161: 5 | G161: 55
A162: 761 | B162: Вербицкая Н.В.,Эббс Б | C162: Английский яз 5кл. Ч1 | D162: 2012 | E162: В-Граф | F162: 5 | G162: 14
A163: 762 | B163: Вербицкая Н.В.,Эббс Б | C163: Английский яз 5кл. Ч2 | D163: 2012 | E163: В-Граф | F163: 5 | G163: 14
A164: 767 | B164: Разумовская М.М.,Львова | C164: Русский язык 5кл. | D164: 2012 | E164: В-Граф | F164: 5 | G164: 48
A165: 768 | B165: Биболетова М.З.,Денисенко | C165: Английский яз. 5кл. | D165: 2012 | E165: В-Граф | F165: 5 | G165: 50
A166: 769 | B166: Тищенко А.Т.Симоненко В.Д. | C166: Технология (мальчики)5 | D166: 2012 | E166: В-Граф | F166: 5 | G166: 21
A167: 770 | B167: Синица Н.В.,Симоненко В.Д. | C167: Технология девочки)5 | D167: 2012 | E167: В-Граф | F167: 5 | G167: 14
A168: 795 | B168: Ланин Б.А. | C168: Литература 5кл. Ч.1 | D168: 2012 | E168: В-Граф | F168: 5 | G168: 48
A169: 796 | B169: Ланин Б.А. | C169: Литература 5кл. Ч.2 | D169: 2012 | E169: В-Граф | F169: 5 | G169: 48
A170: 797 | B170: Виленкин Н.Я. И др. | C170: Математика 5кл | D170: 2012 | E170: В-Граф | F170: 5 | G170: 41
A171: 798 | B171: Зубарева И.И., Мордкович | C171: Математика 5кл | D171: 2012 | E171: Мнемозина | F171: 5 | G171: 58
A172: 799 | B172: Михайловский Ф.А. | C172: Всеобщая история 5кл | D172: 2012 | E172: Рус.слово | F172: 5 | G172: 49
A173: 802 | B173: Сахаров А.Н. и др. | C173: Осн.религии5кл | D173: 2012 | E173: Рус.слово | F173: 5 | G173: 50
A174: 803 | B174: Студеникин М.Т. | C174: Осн.свет.этики5кл | D174: 2012 | E174: Рус.слово | F174: 5 | G174: 20
A175: 441 | B175: Сонин Н.И. | C175: Биология | D175: 2005 | E175: Дрофа | F175: 6 | G175: 60 | H175: 441 | I175: Сонин Н.И. | J175: Биология | K175: 2005 | L175: Дрофа | M175: 6 | N175: 60
A176: 462 | B176: Галимуллин | C176: Татарская литература | D176: 2005 | E176: Магариф | F176: 6 | G176: 5 | H176: 462 | I176: Галимуллин | J176: Татарская литература | K176: 2005 | L176: Магариф | M176: 6 | N176: 5
A177: 463 | B177: Максимов Н.В | C177: татарский язык | D177: 2005 | E177: Магариф | F177: 6 | G177: 5 | H177: 463 | I177: Максимов Н.В | J177: татарский язык | K177: 2005 | L177: Магариф | M177: 6 | N177: 5
A178: 488 | B178: Ганиева Ф.А | C178: Татарская литература | D178: 2006 | E178: Магариф | F178: 6 | G178: 10
A179: 500 | B179: Виленкин Н.Я. | C179: Математика | D179: 2006 | E179: Мнемозина | F179: 6 | G179: 55
A180: 504 | B180: Кравченко А.И. | C180: Обществознание | D180: 2006 | E180: Рус.слово | F180: 6 | G180: 50
A181: 548 | B181: Бойцов М.А. | C181: История ср. веков | D181: 2007 | E181: Рус.слово | F181: 6 | G181: 45
A182: 550 | B182: Хайдарова Р.З. | C182: Татарский язык | D182: 2007 | E182: Магариф | F182: 6 | G182: 20
A183: 554 | B183: Гуревич М.И. | C183: Технология д/мальч. | D183: 2007 | E183: В-Граф | F183: 6 | G183: 15
A184: 555 | B184: Павлова М.Б. | C184: Технология д/девоч. | D184: 2007 | E184: В-Граф | F184: 6 | G184: 15
A185: 602 | B185: Баранов М.Т. | C185: Русский язык | D185: 2008 | E185: Просвещение | F185: 6 | G185: 40
A186: 647 | B186: Кауфман К.И | C186: Счастливый англ. | D186: 2009 | E186: Титул | F186: 6 | G186: 22
A187: 650 | B187: Данилов А.А. | C187: История России | D187: 2009 | E187: Рус.слово | F187: 6 | G187: 43
A188: 652 | B188: Дронов В.П. | C188: География России | D188: 2009 | E188: Просвещение | F188: 6 | G188: 40
A189: 661 | B189: Коровина В.Я. | C189: Литература в 2-х ч. | D189: 2009 | E189: Просвещение | F189: 6 | G189: 45
A190: 789 | B190: Хузин Ф.Ш.,Пискарёв В.И. | C190: История Татарстана 6кл | D190: 2012 | E190: Хэтер | F190: 6 | G190: 27
A191: 440 | B191: Гилязов И.А. | C191: История Татарстана | D191: 2004 | E191: Тарих | F191: 7 | G191: 50
A192: 450 | B192: Ботвинников А.Д | C192: Черчение | D192: 2005 | E192: АСТ | F192: 7 | G192: 20 | H192: 450 | I192: Ботвинников А.Д | J192: Черчение | K192: 2005 | L192: АСТ | M192: 7 | N192: 20
A193: 464 | B193: Мусин Ф.М. | C193: Татарская литература | D193: 2005 | E193: Магариф | F193: 7 | G193: 5 | H193: 464 | I193: Мусин Ф.М. | J193: Татарская литература | K193: 2005 | L193: Магариф | M193: 7 | N193: 5
A194: 480 | B194: Асылгараева Р.А. | C194: Татарский язык | D194: 2005 | E194: Магариф | F194: 7 | G194: 20 | H194: 480 | I194: Асылгараева Р.А. | J194: Татарский язык | K194: 2005 | L194: Магариф | M194: 7 | N194: 20
A195: 482 | B195: Гилязов И.А. | C195: История Татарстана | D195: 2005 | E195: Магариф | F195: 7 | G195: 10 | H195: 482 | I195: Гилязов И.А. | J195: История Татарстана | K195: 2005 | L195: Магариф | M195: 7 | N195: 10
A196: 489 | B196: Хатипов Ф.М | C196: Литература | D196: 2006 | E196: Магариф | F196: 7 | G196: 15
A197: 498 | B197: Захаров В.Б. | C197: Общая биология | D197: 2006 | E197: Дрофа | F197: 7 | G197: 12
A198: 546 | B198: Дмитриева О.В | C198: Новая история | D198: 2007 | E198: Рус.слово | F198: 7 | G198: 3
A199: 549 | B199: Иванова Л.Ф | C199: Англ.яз 7,8,9 №916 | D199: 2007 | E199: ТАИ | F199: 7 | G199: 80
A200: 551 | B200: Кравченко А.И. | C200: Обществознание | D200: 2007 | E200: Рус.слово | F200: 7 | G200: 30
... 146 more rows

Sheet заказ
A1: Автор, наименование издания | B1: Класс | C1: Язык изложение (рус./тат.) | D1: Год издания | E1: Имеется в наличии (экз.) | F1: Нехватка (экз.)
A2: Виноградова Н.Ф.Окруж.мир Ч.1 | B2: 1 | C2: рус | D2: 2012 | E2: 25 | F2: 8
A3: Виноградова Н.Ф.Окруж..мир Ч.2 | B3: 1 | C3: рус | D3: 2012 | E3: 25 | F3: 8
A4: Ефросинина Л.А.Литер. Чтение | B4: 1 | C4: рус | D4: 2012 | E4: 25 | F4: 8
A5: Журова Л.Е. Букварь Ч.1 | B5: 1 | C5: рус | D5: 2012 | E5: 25 | F5: 8
A6: Журова Л.Е. Букварь Ч.2 | B6: 1 | C6: рус | D6: 2012 | E6: 25 | F6: 8
A7: Иванов С.В. Русский язык. Ч.1 | B7: 1 | C7: рус | D7: 2012 | E7: 25 | F7: 8
A8: Иванов С.В. Русский язык. Ч.2 | B8: 1 | C8: рус | D8: 2012 | E8: 25 | F8: 8
A9: Рудницкая В.Н.Математика Ч.1 | B9: 1 | C9: рус | D9: 2012 | E9: 25 | F9: 8
A10: Рудницкая В.Н.Математика Ч.2 | B10: 1 | C10: рус | D10: 2012 | E10: 25 | F10: 8
A11: Усачёва В.О.Музыка | B11: 1 | C11: рус | D11: нов. | E11: нет | F11: 33
A12: Лутцева Е.А. Технология | B12: 1 | C12: рус | D12: нов. | E12: нет | F12: 33
A13: Савенкова Л.Г. ИЗО | B13: 1 | C13: рус | D13: нов. | E13: нет | F13: 33
A14: Петрова Т.В.Физкультура 1-2 кл. | B14: 1 | C14: рус | D14: нов. | E14: нет | F14: 33
A15: Критская Е.Д. Музыка | B15: 1 | C15: рус | D15: нов. | E15: нет | F15: 33
A16: Неменская Л.А. ИЗО | B16: 1 | C16: рус | D16: нов. | E16: нет | F16: 33
A17: Роговцева Н.И. Технология | B17: 1 | C17: рус | D17: нов. | E17: нет | F17: 33
A18: Лях В.И. Физкультура 1-4 кл | B18: 1 | C18: рус | D18: нов. | E18: нет | F18: 33
A19: Хайдарова Р.З.Тат. язык р/яз | B19: 1 | C19: тат | D19: нов | E19: нет | F19: 10
A20: Гарифуллина Ф.Ш.,Мияссарова И.Х.Лит.чт. | B20: 1 | C20: тат | D20: 2012 | E20: нет | F20: 10
A22: Усачёва В.О.Музыка | B22: 2 | C22: рус | D22: нов. | E22: нет | F22: 35
A23: Лутцева Е.А. Технология | B23: 2 | C23: рус | D23: нов. | E23: нет | F23: 35
A24: Савенкова Л.Г. ИЗО | B24: 2 | C24: рус | D24: нов. | E24: нет | F24: 35
A25: Огерчук Л.Ю. Технология | B25: 2 | C25: рус | D25: 2012 | E25: 25 | F25: 10
A26: Хайдарова Р.З.Тат. язык р/яз | B26: 2 | C26: тат | D26: 2012 | E26: нет | F26: 30
A27: Гарифуллина Ф.Ш.,Мияссарова И.Х.Лит.чт. | B27: 2 | C27: тат | D27: 2012 | E27: нет | F27: 10
A29: Виноградова Н.Ф.Окруж.мир Ч.1 | B29: 3 | C29: рус | D29: 2012 | E29: 14 | F29: 25
A30: Виноградова Н.Ф.Окруж..мир Ч.2 | B30: 3 | C30: рус | D30: 2012 | E30: 14 | F30: 25
A31: Иванов С.В. Русский язык. Ч.1 | B31: 3 | C31: рус | D31: 2012 | E31: 14 | F31: 25
A32: Иванов С.В. Русский язык. Ч.2 | B32: 3 | C32: рус | D32: 2012 | E32: 14 | F32: 25
A33: Рудницкая В.Н.Математика Ч.1 | B33: 3 | C33: рус | D33: 2012 | E33: 14 | F33: 25
A34: Рудницкая В.Н.Математика Ч.2 | B34: 3 | C34: рус | D34: 2012 | E34: 14 | F34: 25
A35: Вербицкая М.В. Английский яз.Ч.1 | B35: 3 | C35: англ | D35: 2012 | E35: 14 | F35: 25
A36: Вербицкая М.В. Английский яз. Ч.2 | B36: 3 | C36: англ | D36: 2012 | E36: 14 | F36: 25
A38: Виноградова Н.Ф.Окруж.мир Ч.1 | B38: 4 | C38: рус | D38: 2012 | E38: нет | F38: 39
A39: Виноградова Н.Ф.Окруж..мир Ч.2 | B39: 4 | C39: рус | D39: 2012 | E39: нет | F39: 39
A40: Ефросинина Л.А.Литер. чтение Ч.1 | B40: 4 | C40: рус | D40: 2012 | E40: нет | F40: 39
A41: Ефросинина Л.А.Литер. чтение Ч.2 | B41: 4 | C41: рус | D41: 2012 | E41: нет | F41: 39
A42: Иванов С.В. Русский язык. Ч.1 | B42: 4 | C42: рус | D42: 2012 | E42: нет | F42: 39
A43: Иванов С.В. Русский язык. Ч.2 | B43: 4 | C43: рус | D43: 2012 | E43: нет | F43: 39
A44: Рудницкая В.Н.Математика Ч.1 | B44: 4 | C44: рус | D44: 2012 | E44: нет | F44: 39
A45: Рудницкая В.Н.Математика Ч.2 | B45: 4 | C45: рус | D45: 2012 | E45: нет | F45: 39
A47: Андреевская Т.П. История др. мира | B47: 5 | C47: рус | D47: 2011 | E47: 26 | F47: 13
A48: Плешаков А.А.Природоведение | B48: 5 | C48: рус | D48: 2012 | E48: нет | F48: 22
A49: Летягин А.А./Под.ред.Дронова В.П. География | B49: 5 | C49: рус | D49: нов | E49: нет | F49: 39
A50: Сухова Т.С., Строганов В.И. Биология | B50: 5-6 | C50: рус | D50: нов | E50: нет | F50: 39
A51: Соболева О.Б., Иванов О.В. / Под ред. Бордовского Г.А. Обществознание | B51: 5 | C51: рус | D51: нов | E51: нет | F51: 39
A55: Ланин Б.А., Андрейченко Т.О., Бердышева Л.Р. и др. / Под ред. Ланина Б.А. Литература | B55: 6
A56: Фёдоров С.Е., Искровская Л.В., Гурьянова Ю.В. / Под ред. Мясникова B.C. История Средних веков
A57: Барабанов В.В., Насонова И.П. / Под ред. Бордовского Г.А. Обществознание | B57: 6 | C57: рус | D57: нов | E57: нет | F57: 39
A58: Хайдарова Р.З.Тат. язык для р/яз | B58: 6 | C58: тат | D58: 2007 | E58: 20 | F58: 19
A59: Хузин Ф.Ш. История Татарстана | B59: 6 | C59: рус | D59: 2012 | E59: 27 | F59: 12
A61: Атанасян Л.С.Геометрия 7-9 | B61: 7 | C61: рус | D61: нов | E61: нет | F61: 105
A62: Дмитриева О.В.Всеобщ. истор. | B62: 7 | C62: рус | D62: нов | E62: нет | F62: 39
A63: Коровина В.Я.Литература. Ч.1 | B63: 7 | C63: рус | D63: нов | E63: нет | F63: 39
A64: Коровина В.Я.Литература. Ч.2 | B64: 7 | C64: рус | D64: нов | E64: нет | F64: 39
A65: Захаров В.Б., Сонин Н.И. Биология | B65: 7 | C65: рус | D65: 2006 | E65: 12 | F65: 27
A67: Боголюбов Л.Н. Обществознание 8-9 кл. | B67: 8 | C67: рус | D67: 2009 | E67: 44 | F67: 30
A68: Рудзитис Г.Е. Химия | B68: 8 | C68: рус | D68: нов | E68: нет | F68: 39
A69: Данилов А.А.Истор. Рос. 19век | B69: 8 | C69: рус | D69: нов | E69: нет | F69: 39
A70: Дронов В.П. и др. География России | B70: 8 | C70: рус | D70: нов | E70: нет | F70: 39
A71: Макарычев Ю.Н.Алгебра | B71: 8 | C71: рус | D71: нов | E71: нет | F71: 39
A72: Пёрышкин А.Ф. Физика | B72: 8 | C72: рус | D72: 2009 | E72: 22 | F72: 17
A73: Пискарёв В.И. История Татарстана | B73: 8 | C73: рус | D73: 2012 | E73: 14 | F73: 25
A74: Хайдарова Р.З. Татарский язык | B74: 8 | C74: тат | D74: 2007 | E74: 30 | F74: 9
A76: Алексашкина Л.Н. Всеобщая история. Новейшая история. | B76: 9 | C76: рус | D76: нов | E76: нет | F76: 45
A77: Бархударов С.Г. Русский язык | B77: 9 | C77: рус | D77: нов | E77: нет | F77: 45
A78: Данилов А.А.История России | B78: 9 | C78: рус | D78: нов | E78: нет | F78: 45
A79: Дронов В.П.География | B79: 9 | C79: рус | D79: нов | E79: нет | F79: 45
A80: Коровина В.Я. Литература. Ч.1 | B80: 9 | C80: рус | D80: нов | E80: нет | F80: 45
A81: Коровина В.Я. Литература. Ч.2 | B81: 9 | C81: рус | D81: нов | E81: нет | F81: 45
A82: Рудзитис Г.Е. Химия | B82: 9 | C82: рус | D82: нов | E82: нет | F82: 45
A83: Тростенцова Л.А. Русский язык | B83: 9 | C83: рус | D83: нов | E83: нет | F83: 45
A84: Шестаков В.А.Истор. Отечества | B84: 9 | C84: рус | D84: нов | E84: нет | F84: 45
A85: Хайдарова Р.З.Тат. яз. для рус.яз | B85: 9 | C85: тат | D85: 2007 | E85: 30 | F85: 15
A87: Сахаров А.Н., Боханов История России. Ч.1 | B87: 10 | C87: рус | D87: нов | E87: нет | F87: 20
A88: Сахаров А.Н., Боханов История России. Ч.2 | B88: 10 | C88: рус | D88: нов | E88: нет | F88: 20
A89: Беляев Д.К.Общ.биолог. 10-11 | B89: 10 | C89: рус | D89: нов | E89: нет | F89: 20
A90: Греков В.Ф.Пособие по рус.яз.10-11 | B90: 10 | C90: рус | D90: 2011 | E90: 6 | F90: 14
A91: Никольский С.М. Алгебра | B91: 10 | C91: рус | D91: нов | E91: нет | F91: 20
A93: Никольский С.М. Алгебра | B93: 11 | C93: рус | D93: нов | E93: нет | F93: 20
A94: Литература | B94: 11 | C94: рус | D94: нов | E94: нет | F94: 20
A97: Хасанов М.Х. Тат. литература | B97: 10 | C97: тат | D97: нов | E97: нет | F97: 5
A98: Хасанов М.Х. Тат. лит.Хр. | B98: 10 | C98: тат | D98: нов | E98: нет | F98: 5
A99: Загидуллин И.К.История Тат. | B99: 11 | C99: рус | D99: нов | E99: нет | F99: 20

Sheet спис.ЭФУЛ
B1: Список книг на списание из ЭФУЛ по МБОУ "Бетькинская СОШ" в 2012г.
B3: инв. № | C3: Автор | D3: Название | E3: Год изд. | F3: Изд-во | G3: Класс | H3: Кол-во | I3: причина
A4: 1 | B4: 491 | C4: Валитова Р.Г. | D4: Тат. яз. | E4: 2006 | F4: Магариф | G4: 1 | H4: 10
A5: 2 | B5: 539 | C5: Валитова Р.Г. | D5: Алифба | E5: 2007 | F5: Магариф | G5: 1 | H5: 7
A6: 3 | B6: 561 | C6: Бакиева Н.В., Гарипова | D6: Музыкал.букварь1кл. | E6: 2007 | F6: Магариф | G6: 1 | H6: 20
A7: 4 | B7: 567 | C7: Нурмухаметова А. | D7: Азбука | E7: 2007 | F7: Магариф | G7: 1 | H7: 15
A8: 5 | B8: 582 | C8: Харисов Ф.Ф. | D8: Тат. яз для тат. шк. | E8: 2008 | F8: Магариф | G8: 1 | H8: 50
A9: 6 | B9: 585 | C9: Сафиуллина Ф.С. | D9: Тат. яз. д/рус.яз. Ч 1 | E9: 2009 | F9: Магариф | G9: 1 | H9: 30
A10: 7 | B10: 630 | C10: Валитова Р.Г. | D10: Алифба | E10: 2009 | F10: Магариф | G10: 1 | H10: 18
A11: 8 | B11: 662 | C11: Ахиярова М.З | D11: Азбука | E11: 2009 | F11: Магариф | G11: 1 | H11: 18
A12: 9 | B12: 436 | C12: Биболетова М.З. | D12: Английский язык | E12: 2005 | F12: Титул | G12: 2 | H12: 50
A13: 10 | B13: 437 | C13: Верещагина И. Н | D13: Английск. яз.Ч. 1 | E13: 2005 | F13: Просвещение | G13: 2 | H13: 50
A14: 11 | B14: 485 | C14: Моро М.И. | D14: Математика.Ч.1 | E14: 2006 | F14: Просвещение | G14: 2 | H14: 58
A15: 12 | B15: 518 | C15: Климанова Л.Ф. | D15: Родная речь. Ч.1 | E15: 2006 | F15: Просвещение | G15: 2 | H15: 58
A16: 13 | B16: 572 | C16: Нуриева А. Х | D16: Татар Теле | E16: 2007 | F16: Магариф | G16: 2 | H16: 15
A17: 14 | B17: 575 | C17: Вагизов С. Г | D17: Книга для чтения 2клЧ. 1 | E17: 2007 | F17: Магариф | G17: 2 | H17: 15
A18: 15 | B18: 584 | C18: Ягафарова Р.Х. | D18: Тат. яз. Для тат. школ | E18: 2008 | F18: Магариф | G18: 2 | H18: 20
A19: 16 | B19: 595 | C19: Рамзаева Т. Г | D19: Русский язык Ч. 1 | E19: 2008 | F19: Дрофа | G19: 2 | H19: 50
A20: 17 | B20: 628 | C20: Хайдарова Р.З. | D20: Татарский язык. Ч.1 2 кл | E20: 2009 | F20: Магариф | G20: 2 | H20: 63
A21: 18 | B21: 453 | C21: Хайдарова Р.З. | D21: Татарский язык.Ч.1 | E21: 2005 | F21: Магариф | G21: 4 | H21: 38
A22: 19 | B22: 455 | C22: Сафиуллина Ф.С. | D22: Татарский язык | E22: 2005 | F22: Магариф | G22: 4 | H22: 36
A23: 20 | B23: 483 | C23: Бакиева Н.В. | D23: Музыка | E23: 2005 | F23: Магариф | G23: 4 | H23: 25
A24: 21 | B24: 484 | C24: Ягафарова Р.Х. | D24: Литературн. чтение ч1 | E24: 2005 | F24: Магариф | G24: 4 | H24: 20
A25: 22 | B25: 529 | C25: Ягафарова Р.Х. | D25: Литерат. чтение Ч.2. | E25: 2006 | F25: Магариф | G25: 4 | H25: 15
A26: 23 | B26: 442 | C26: Плешаков А.А. | D26: Природоведение | E26: 2005 | F26: Дрофа | G26: 5 | H26: 50
A27: 24 | B27: 443 | C27: Виленкин Н.Я. | D27: Математика | E27: 2005 | F27: Мнемозина | G27: 5 | H27: 50
A28: 25 | B28: 441 | C28: Сонин Н.И. | D28: Биология | E28: 2005 | F28: Дрофа | G28: 6 | H28: 60
A29: 26 | B29: 462 | C29: Галимуллин | D29: Татарская литература | E29: 2005 | F29: Магариф | G29: 6 | H29: 5
A30: 27 | B30: 463 | C30: Максимов Н.В | D30: татарский язык | E30: 2005 | F30: Магариф | G30: 6 | H30: 5
A31: 28 | B31: 450 | C31: Ботвинников А.Д | D31: Черчение | E31: 2005 | F31: АСТ | G31: 7 | H31: 20
A32: 29 | B32: 464 | C32: Мусин Ф.М. | D32: Татарская литература | E32: 2005 | F32: Магариф | G32: 7 | H32: 5
A33: 30 | B33: 480 | C33: Асылгараева Р.А. | D33: Татарский язык | E33: 2005 | F33: Магариф | G33: 7 | H33: 20
A34: 31 | B34: 482 | C34: Гилязов И.А. | D34: История Татарстана | E34: 2005 | F34: Магариф | G34: 7 | H34: 10
A35: 32 | B35: 434 | C35: Макарычев Ю.Н. | D35: Алгебра | E35: 2005 | F35: Просвещение | G35: 8 | H35: 46
A36: 33 | B36: 461 | C36: Хабибуллина З.Н. | D36: Татарская литература | E36: 2005 | F36: Магариф | G36: 8 | H36: 12
A37: 34 | B37: 466 | C37: Пискарёв В.И. | D37: История Татарстана | E37: 2005 | F37: Магариф | G37: 8 | H37: 20
A38: 35 | B38: 479 | C38: Асылгараева Р.А. | D38: Татарский язык | E38: 2005 | F38: Магариф | G38: 8 | H38: 20
A39: 36 | B39: 444 | C39: Бархударов С.Г. | D39: Русский язык | E39: 2005 | F39: Просвещение | G39: 9 | H39: 60
A40: 37 | B40: 470 | C40: Хабибуллина З.Н. | D40: Тат.лит | E40: 2005 | F40: Магариф | G40: 9 | H40: 25
A41: 38 | B41: 481 | C41: Зиннатуллина К.З. | D41: Тат.яз | E41: 2005 | F41: Магариф | G41: 9 | H41: 25
A42: 39 | B42: 432 | C42: Власенков А.И | D42: Русский язык | E42: 2005 | F42: Просвещение | G42: 10 | H42: 90
A43: 40 | B43: 458 | C43: Ахмадуллин А.Г | D43: Хрестоматия.Тат.литер. | E43: 2005 | F43: Магариф | G43: 10 | H43: 10
A44: 41 | B44: 459 | C44: Сафиуллина Ф.с | D44: Татарский язык | E44: 2005 | F44: Магариф | G44: 10 | H44: 32
A45: 42 | B45: 460 | C45: Хасанов | D45: Татарская литература | E45: 2005 | F45: Магариф | G45: 10 | H45: 10
A46: 43 | B46: 477 | C46: Беляев Д.К. | D46: Общая биология | E46: 2005 | F46: Просвещение | G46: 10 | H46: 30
A47: 44 | B47: 478 | C47: Захаров В.Б. | D47: Общая биология | E47: 2006 | F47: Дрофа | G47: 10 | H47: 49
A48: 45 | B48: 433 | C48: Левитан Е.П | D48: Астрономия | E48: 2005 | F48: Просвещение | G48: 11 | H48: 43
A49: 46 | B49: 446 | C49: Чалмаев В.А. | D49: Рус. Лит. Хрестом. Ч.1 | E49: 2005 | F49: Рус.слово | G49: 11 | H49: 70
A50: 47 | B50: 456 | C50: Ахмадуллина А.Г | D50: Тат. лит. | E50: 2005 | F50: Магариф | G50: 11 | H50: 26
A51: 48 | B51: 471 | C51: Сафиуллина Ф.С | D51: Татарский язык | E51: 2005 | F51: Магариф | G51: 11 | H51: 30
A52: 49 | B52: 517 | C52: Сафиуллина Ф.С | D52: Татарский язык | E52: 2006 | F52: Магариф | G52: 11 | H52: 20
A53: 50 | B53: 580 | C53: Сафиуллина Ф.С | D53: Татарский язык | E53: 2007 | F53: Магариф | G53: 11 | H53: 25
H54: =SUM(H4:H53) -> 1549

Sheet 05-12
A1: Инвентарная книга 2005-2012г.г.
A3: инв. № | B3: автор | C3: заглавие | D3: год изд. | E3: изд-во | F3: класс | G3: кол-во | H3: цена | I3: сумма | J3: № накладной | K3: нет данн
A4: 465 | B4: Кашапова М.Ф. | C4: Методич. Пособие | D4: 2004 | E4: Магариф | F4: 0 | G4: 1 | H4: 58.00 | I4: =G4*H4 -> 58.00 | J4: 04,12,2005 | L4: списать
A5: 467 | B5: Архипов А.П. | C5: Азбука страхования | D5: 2005 | E5: Магариф | F5: 0 | G5: 1 | H5: 55.00 | I5: 55.00 | J5: 09,03,2006 | L5: списать
A6: 468 | B6: Гараева и др. | C6: Язык-ключ к знанию | D6: 2005 | E6: Магариф | F6: 0 | G6: 1 | H6: 30.50 | I6: 30.50 | J6: 09,03,2006 | L6: списать
A7: 469 | B7: Миннуллин К.М. | C7: Песня сквозь годы | D7: 2004 | E7: Магариф | F7: 0 | G7: 1 | H7: 30.00 | I7: 30.00 | J7: 09,03,2006 | L7: списать
A8: 472 | B8: Васильева | C8: Книга для чтения | D8: 2005 | E8: Магариф | F8: 0 | G8: 2 | H8: 74.80 | I8: 149.60 | J8: 27,03,2006 | K8: н/д | L8: списать
A9: 473 | B9: Васильева | C9: Методич. Пособие | D9: 2005 | E9: Магариф | F9: 0 | G9: 2 | H9: 64.90 | I9: 129.80 | J9: 27,03,2006 | K9: н/д | L9: списать
A10: 474 | B10: Абзалов Ф. | C10: Физическая культура | D10: 2005 | E10: Магариф | F10: 0 | G10: 2 | H10: 56.00 | I10: 112.00 | J10: 27,03,2006 | K10: н/д | L10: списать
A11: 475 | B11: Васильева | C11: Учебник | D11: 2005 | E11: Магариф | F11: 0 | G11: 2 | H11: 79.75 | I11: 159.50 | J11: 27,03,2006 | K11: н/д | L11: списать
A12: 476 | B12: Харисова Л.А. | C12: Культура народов Татарстана | D12: 2005 | E12: Магариф | F12: 0 | G12: 10 | H12: 70.00 | I12: 700.00 | J12: 27,03,2006 | K12: н/д | L12: списать
A13: 522 | B13: Без автора | C13: Учебник англ.яз. | D13: 2006 | E13: Магариф | F13: 0 | G13: 1 | H13: 241.40 | I13: 241.40 | K13: н/д | L13: списать
A14: 523 | B14: Без автора | C14: Учебник англ.яз. | D14: 2006 | E14: Магариф | F14: 0 | G14: 1 | H14: 241.40 | I14: 241.40 | K14: н/д | L14: списать
A15: 524 | B15: Без автора | C15: Учебник англ.яз. | D15: 2006 | E15: Магариф | F15: 0 | G15: 1 | H15: 241.40 | I15: 241.40 | K15: н/д | L15: списать
A16: 525 | B16: Без автора | C16: Учебник англ.яз. | D16: 2006 | E16: Магариф | F16: 0 | G16: 1 | H16: 241.40 | I16: 241.40 | K16: н/д | L16: списать
A17: 530 | B17: Рахимов И.И. | C17: Растит.и животный мир | D17: 2006 | E17: Магариф | F17: 0 | G17: 2 | H17: 100.00 | I17: 200.00 | J17: 2007-06-13 | K17: н/д | L17: списать
A18: 540 | B18: Мухерджее | C18: Хартия Земли | D18: 2007 | E18: Магариф | F18: 0 | G18: 11 | H18: 51.00 | I18: 561.00 | J18: 2007-10-04
A19: 541 | B19: Мухерджее | C19: Хартия Земли | D19: 2007 | E19: Магариф | F19: 0 | G19: 11 | H19: 51.00 | I19: 561.00 | J19: 2007-10-04
A20: 542 | B20: Мухерджее | C20: Хартия Земли | D20: 2007 | E20: Магариф | F20: 0 | G20: 11 | H20: 51.00 | I20: 561.00 | J20: 2007-10-04
A21: 543 | B21: Ислаев Ф.Г. | C21: Хартия Земли | D21: 2007 | E21: Магариф | F21: 0 | G21: 11 | H21: 51.00 | I21: 561.00 | J21: 2007-10-04
A22: 566 | B22: Коллектив | C22: Сборник осн.док.по ГО | D22: 2007 | E22: Казань | F22: 0 | G22: 4 | H22: 40.00 | I22: 160.00 | J22: 2008-03-11
A23: 568 | B23: Тагиров И.Р. | C23: История ХХ века | D23: 2005 | E23: Гасыр | F23: 0 | G23: 1 | H23: 150.00 | I23: 150.00 | J23: 2008-03-11 | L23: списать
A24: 593 | B24: Хасаншина Р.Г. | C24: Уроки татарского | D24: 2007 | E24: Магариф | F24: 0 | G24: 8 | H24: 39.00 | I24: 312.00 | J24: 2008-09-09
A25: 594 | B25: Смыков | C25: История России | D25: 2007 | E25: Магариф | F25: 0 | G25: 1 | H25: 280.00 | I25: 280.00 | J25: 2008-09-09
A26: 614 | B26: Филиппов Л.В. | C26: Новйшая история | D26: 2008 | E26: Просвещение | F26: 0 | G26: 1 | H26: 102.10 | I26: 102.10 | J26: 2008-09-22
A27: 615 | B27: Поляков Л.В. | C27: О/знание | D27: 2008 | E27: Просвещение | F27: 0 | G27: 1 | H27: 82.60 | I27: 82.60 | J27: 2008-09-22
A28: 675 | B28: Сафиуллина Ф.С. | C28: Татарско-русск.слов. | D28: 2008 | E28: Магариф | F28: 0 | G28: 27 | H28: 30.00 | I28: 810.00 | J28: 2010-03-10
A29: 708 | B29: Ошкина Г.К. | C29: Я изучаю английский | D29: 2010 | E29: Магариф | F29: 0 | G29: 30 | H29: 120.00 | I29: 3600.00 | J29: №17 от 26.10.2010
A30: 711 | B30: Галиуллин К.Р.,Раскулова Р.И. | C30: Орф.слов.тат.яз | D30: 2010 | E30: Магариф | F30: 0 | G30: 100 | H30: 93.00 | I30: 9300.00 | J30: №17 от 14.02.2011
A31: 712 | B31: Гарифуллин С.Ф. | C31: Рус.тат.англ.слов. | D31: 2010 | E31: Хэтер | F31: 0 | G31: 50 | H31: 180.00 | I31: 9000.00 | J31: №17 от 14.02.2011
A32: 805 | B32: Коллектив | C32: Правила дор.движ | D32: 2012 | E32: Казань | F32: 0 | G32: 14 | H32: 218 | I32: 3052 | J32: №1 от 02.08.2012 | K32: н/д
A33: 438 | B33: Плешаков А.А. | C33: Мир вокруг нас | D33: 2005 | E33: Просвещение | F33: 1 | G33: 50 | H33: 71.36 | I33: 3568.00 | J33: 2005-09-14 | K33: н/д ? | L33: списать
A34: 445 | B34: Сахипова З.Г. | C34: Солнышко | D34: 2005 | E34: С-Петербург | F34: 1 | G34: 42 | H34: 66.51 | I34: 2793.42 | J34: 20,11,2005, | K34: н/д | L34: списать
A35: 491 | B35: Валитова Р.Г. | C35: Тат. яз. | D35: 2006 | E35: Магариф | F35: 1 | G35: 10 | H35: 37.00 | I35: 370.00 | J35: 20,09,2006 | L35: списать
A36: 493 | B36: Ягафарова Р.Х. | C36: Азбука | D36: 2006 | E36: Магариф | F36: 1 | G36: 10 | H36: 57.00 | I36: =G36*H36 -> 570.00 | J36: 20,09,2006 | K36: нет инв № | L36: списать
A37: 519 | B37: Климанова | C37: Родная речь | D37: 2006 | E37: Просвещение | F37: 1 | G37: 58 | H37: 71.59 | I37: 4152.22 | J37: 13,03,2007 | L37: списать
A38: 520 | B38: Климанова | C38: Родная речь | D38: 2006 | E38: Просвещение | F38: 1 | G38: 62 | H38: 71.59 | I38: 4438.58 | J38: 13,03,2007 | L38: списать
A39: 527 | B39: Валитова Р.Г. | C39: Алифба | D39: 2004 | E39: Магариф | F39: 1 | G39: 2 | H39: 25.00 | I39: 50.00 | J39: 2007-06-12 | K39: н/д | L39: списать
A40: 539 | B40: Валитова Р.Г. | C40: Алифба | D40: 2007 | E40: Магариф | F40: 1 | G40: 7 | H40: 42.00 | I40: 294.00 | J40: 2007-09-17 | L40: списать
A41: 545 | B41: Рамзаева Т.Г | C41: Русский язык | D41: 2007 | E41: Дрофа | F41: 1 | G41: 40 | H41: 51.54 | I41: 2061.60 | J41: 2007-10-05 | L41: списать
A42: 561 | B42: Бакиева Н.В., Гарипова | C42: Музыкал.букварь1кл. | D42: 2007 | E42: Магариф | F42: 1 | G42: 20 | H42: 55.20 | I42: 1104.00 | J42: 2007-12-29 | L42: списать
A43: 567 | B43: Нурмухаметова А. | C43: Азбука | D43: 2007 | E43: Магариф | F43: 1 | G43: 15 | H43: 80.00 | I43: 1200.00 | J43: 2008-03-11 | L43: списать
A44: 582 | B44: Харисов Ф.Ф. | C44: Тат. яз для тат. шк. | D44: 2008 | E44: Магариф | F44: 1 | G44: 50 | H44: 41.00 | I44: 2050.00 | J44: 2008-09-09 | L44: списать
A45: 583 | B45: Ягафарова Р.Х. | C45: Тат. яз. Для тат. школ | D45: 2008 | E45: Магариф | F45: 1 | G45: 20 | H45: 41.00 | I45: 820.00 | J45: 2008-09-09 | L45: списать
A46: 585 | B46: Сафиуллина Ф.С. | C46: Тат. яз. д/рус.яз. Ч 1 | D46: 2009 | E46: Магариф | F46: 1 | G46: 30 | H46: 30.00 | I46: 900.00 | J46: 2008-09-09 | L46: списать
A47: 586 | B47: Сафиуллина Ф.С. | C47: Тат. яз. д/рус.яз. Ч2 | D47: 2008 | E47: Магариф | F47: 1 | G47: 30 | H47: 86.00 | I47: 2580.00 | J47: 2008-09-09 | L47: списать
A48: 630 | B48: Валитова Р.Г. | C48: Алифба | D48: 2009 | E48: Магариф | F48: 1 | G48: 18 | H48: 59.04 | I48: 1062.72 | J48: 2009-09-09 | L48: списать
A49: 662 | B49: Ахиярова М.З | C49: Азбука | D49: 2009 | E49: Магариф | F49: 1 | G49: 18 | H49: 150.00 | I49: 2700.00 | J49: 2009-12-12 | L49: списать
A50: 676 | B50: Харисов Ф.Ф. | C50: В мире слов и пр. | D50: 2008 | E50: Магариф | F50: 1 | G50: 6 | H50: 110.00 | I50: 660.00 | J50: 2010-03-10 | L50: списать
A51: 681 | B51: Ефросинина Л.А. | C51: Литературное чтение | D51: 2010 | E51: В-Граф | F51: 1 | G51: 26 | H51: 16.00 | I51: 416.00 | J51: 2010-08-31 | L51: списать
A52: 682 | B52: Рудницкая В.Н. | C52: Математика. Ч.1 | D52: 2010 | E52: В-Граф | F52: 1 | G52: 26 | H52: 162.00 | I52: 4212.00 | J52: 2010-08-31 | L52: списать
A53: 683 | B53: Рудницкая В.Н. | C53: Математика. Ч.2 | D53: 2010 | E53: В-Граф | F53: 1 | G53: 26 | H53: 162.00 | I53: 4212.00 | J53: 2010-08-31 | L53: списать
A54: 684 | B54: Журова Л.Е. | C54: Букварь. 1ч. | D54: 2010 | E54: В-Граф | F54: 1 | G54: 26 | H54: 162.00 | I54: 4212.00 | J54: 2010-08-31 | L54: списать
A55: 685 | B55: Журова Л.Е. | C55: Букварь. 2ч. | D55: 2010 | E55: В-Граф | F55: 1 | G55: 26 | H55: 162.00 | I55: 4212.00 | J55: 2010-08-31 | L55: списать
A56: 686 | B56: Виноградова Н.Ф. | C56: Окружающий мир | D56: 2010 | E56: В-Граф | F56: 1 | G56: 26 | H56: 162.00 | I56: 4212.00 | J56: 2010-08-31 | L56: списать
A57: 687 | B57: Иванов С.В. | C57: Русский язык | D57: 2010 | E57: В-Граф | F57: 1 | G57: 26 | H57: 162.00 | I57: 4212.00 | J57: 2010-08-31 | L57: списать
A58: 724 | B58: Иванов С.В. | C58: Русский язык | D58: 2011 | E58: В-Граф | F58: 1 | G58: 25 | H58: 176.00 | I58: 4400.00 | J58: №1 от16.08.2011
A59: 725 | B59: Рудницкая В.Н. | C59: Математика. Ч.1 | D59: 2011 | E59: В-Граф | F59: 1 | G59: 25 | H59: 176.00 | I59: 4400.00 | J59: №1 от16.08.2011
A60: 726 | B60: Рудницкая В.Н. | C60: Математика. Ч.2 | D60: 2011 | E60: В-Граф | F60: 1 | G60: 25 | H60: 176.00 | I60: 4400.00 | J60: №1 от16.08.2011
A61: 727 | B61: Журова Л.Е. | C61: Букварь. 1ч. | D61: 2011 | E61: В-Граф | F61: 1 | G61: 26 | H61: 176.00 | I61: 4576.00 | J61: №1 от16.08.2011
A62: 728 | B62: Журова Л.Е. | C62: Букварь. 2ч. | D62: 2011 | E62: В-Граф | F62: 1 | G62: 26 | H62: 176.00 | I62: 4576.00 | J62: №1 от16.08.2011
A63: 729 | B63: Ефросинина Л.А. | C63: Литературное чтение | D63: 2011 | E63: В-Граф | F63: 1 | G63: 25 | H63: 176.00 | I63: 4400.00 | J63: №1 от16.08.2011
A64: 730 | B64: Виноградова Н.Ф. | C64: Окружающий мир Ч.1 | D64: 2011 | E64: В-Граф | F64: 1 | G64: 25 | H64: 176.00 | I64: 4400.00 | J64: №1 от16.08.2011
A65: 731 | B65: Виноградова Н.Ф. | C65: Окружающий мир Ч.2 | D65: 2011 | E65: В-Граф | F65: 1 | G65: 25 | H65: 176.00 | I65: 4400.00 | J65: №1 от16.08.2011
A66: 734 | B66: Горецкий В.Г | C66: Азбука | D66: 2011 | E66: Просвещение | F66: 1 | G66: 25 | H66: 271.40 | I66: 6785.00 | J66: №1 от16.08.2011
A67: 735 | B67: Климанова Л.Ф | C67: Литературное чтение | D67: 2011 | E67: Просвещение | F67: 1 | G67: 25 | H67: 220.00 | I67: 5500.00 | J67: №1 от16.08.2011
A68: 736 | B68: Плешаков А.А. | C68: Окружающий мир | D68: 2011 | E68: Просвещение | F68: 1 | G68: 15 | H68: 271.40 | I68: 4071.00 | J68: №1 от16.08.2011
A69: 737 | B69: Моро М.И | C69: Математика в 2х частях | D69: 2011 | E69: Просвещение | F69: 1 | G69: 25 | H69: 271.40 | I69: 6785.00 | J69: №1 от16.08.2011
A70: 738 | B70: Канакина В.П | C70: Русский язык | D70: 2011 | E70: Просвещение | F70: 1 | G70: 25 | H70: 135.70 | I70: =G70*H70 -> 3392.50 | J70: №1 от16.08.2011
A71: 743 | B71: Меркин Г.С | C71: Лит.чт 1 кл | D71: 2011 | E71: Рус.слово | F71: 1 | G71: 5 | H71: 218.00 | I71: 1090.00 | J71: №1 от16.08.2011
A72: 782 | B72: Мияссарова И.Х. и др. | C72: Элифбэ 1кл. | D72: 2012 | E72: М-Вакыт | F72: 1 | G72: 10 | H72: 185.00 | I72: 1850.00 | J72: №0002888от 07.08.12
A73: 783 | B73: Харисов Ф.Ф.,Харисова Ч.М. | C73: Тат. яз. 1кл | D73: 2012 | E73: ТКИ | F73: 1 | G73: 15 | H73: 178.00 | I73: 2670.00 | J73: №0002888от 07.08.12
A74: 804 | B74: Хайдарова Р.З. | C74: Татарский язык | D74: 2012 | E74: Тат.м/ф | F74: 1 | G74: 28 | H74: 149 | I74: 4172 | J74: №000747 от 18.09.2012
A75: 436 | B75: Биболетова М.З. | C75: Английский язык | D75: 2005 | E75: Титул | F75: 2 | G75: 50 | H75: 81.20 | I75: 4060.00 | J75: 2005-09-14 | L75: списать
A76: 437 | B76: Верещагина И. Н | C76: Английск. яз.Ч. 1 | D76: 2005 | E76: Просвещение | F76: 2 | G76: 50 | H76: 57.09 | I76: 2854.50 | J76: 2005-09-14 | L76: списать
A77: 439 | B77: Верещагина И. Н | C77: Английский язык Ч. 2 | D77: 2005 | E77: Просвещение | F77: 2 | G77: 50 | H77: 57.09 | I77: 2854.50 | J77: 2005-09-14 | L77: списать
A78: 457 | B78: Голованова М.В | C78: Родная речь | D78: 2005 | E78: Просвещение | F78: 2 | G78: 15 | H78: 49.50 | I78: 742.50 | J78: 20,11,2005, | L78: списать
A79: 485 | B79: Моро М.И. | C79: Математика.Ч.1 | D79: 2006 | E79: Просвещение | F79: 2 | G79: 58 | H79: 60.01 | I79: 3480.58 | J79: 20,09,2006 | L79: списать
A80: 486 | B80: Моро М.И. | C80: Математика.Ч.2 | D80: 2006 | E80: Просвещение | F80: 2 | G80: 58 | H80: 60.01 | I80: 3480.58 | J80: 20,09,2006 | L80: списать
A81: 518 | B81: Климанова Л.Ф. | C81: Родная речь. Ч.1 | D81: 2006 | E81: Просвещение | F81: 2 | G81: 58 | H81: 71.59 | I81: 4152.22 | J81: 2007-03-13 | L81: списать
A82: 519 | B82: Климанова Л.Ф. | C82: Родная речь. Ч.2 | D82: 2006 | E82: Просвещение | F82: 2 | G82: 62 | H82: 71.59 | I82: 4438.58 | J82: 2007-03-13 | L82: списать
A83: 560 | B83: Плешаков А.А. | C83: Окружающий мир. Ч.2 | D83: 2007 | E83: Просвещение | F83: 2 | G83: 9 | H83: 71.51 | I83: 643.59 | J83: 2007-11-13 | L83: списать
A84: 572 | B84: Нуриева А. Х | C84: Татар Теле | D84: 2007 | E84: Магариф | F84: 2 | G84: 15 | H84: 37.00 | I84: 555.00 | J84: 2008-03-11 | L84: списать
A85: 573 | B85: Плешаков А.А. | C85: Окружающий мир. Ч.1 | D85: 2007 | E85: Просвещение | F85: 2 | G85: 38 | H85: 71.51 | I85: 2717.38 | J85: 2008-03-11 | L85: списать
A86: 575 | B86: Вагизов С. Г | C86: Книга для чтения 2клЧ. 1 | D86: 2007 | E86: Магариф | F86: 2 | G86: 15 | H86: 36.00 | I86: 540.00 | J86: 2008-03-17 | L86: списать
A87: 576 | B87: Вагизов С. Г | C87: Книга для чтения Ч. 2 | D87: 2007 | E87: Магариф | F87: 2 | G87: 15 | H87: 36.00 | I87: 540.00 | J87: 2008-03-17 | L87: списать
A88: 584 | B88: Ягафарова Р.Х. | C88: Тат. яз. Для тат. школ | D88: 2008 | E88: Магариф | F88: 2 | G88: 20 | H88: 61.00 | I88: 1220.00 | J88: 2008-09-09 | L88: списать
A89: 595 | B89: Рамзаева Т. Г | C89: Русский язык Ч. 1 | D89: 2008 | E89: Дрофа | F89: 2 | G89: 50 | H89: 76.00 | I89: 3800.00 | J89: 2008-09-22 | L89: списать
A90: 596 | B90: Рамзаева Т. Г | C90: Русский язык Ч. 2 | D90: 2008 | E90: Дрофа | F90: 2 | G90: 50 | H90: 76.00 | I90: 3800.00 | J90: 2008-09-22 | L90: списать
A91: 628 | B91: Хайдарова Р.З. | C91: Татарский язык. Ч.1 2 кл | D91: 2009 | E91: Магариф | F91: 2 | G91: 63 | H91: 53.99 | I91: 3401.37 | J91: 2009-09-09 | L91: списать
A92: 670 | B92: Иванова Л.Ф | C92: Волшебный лес 2 кл | D92: 2009 | E92: Магариф | F92: 2 | G92: 32 | H92: 100.00 | I92: 3200.00 | J92: 2009-12-12
A93: 673 | B93: Хайдарова Р.З. | C93: Татарский язык. Ч.2 | D93: 2009 | E93: Магариф | F93: 2 | G93: 62 | H93: 54.00 | I93: 3348.00 | J93: 2010-03-10
A94: 715 | B94: Виноградова Н.Ф. | C94: Окружающий мир. Ч.1 | D94: 2011 | E94: В-Граф | F94: 2 | G94: 25 | H94: 184.00 | I94: 4600.00 | J94: №1 от16.08.2011
A95: 716 | B95: Виноградова Н.Ф. | C95: Окружающий мир. Ч.2 | D95: 2011 | E95: В-Граф | F95: 2 | G95: 25 | H95: 184.00 | I95: 4600.00 | J95: №1 от16.08.2011
A96: 717 | B96: Иванов С.В. | C96: Русский язык. Ч.1 | D96: 2011 | E96: В-Граф | F96: 2 | G96: 25 | H96: 184.00 | I96: 4600.00 | J96: №1 от16.08.2011
A97: 718 | B97: Иванов С.В. | C97: Русский язык. Ч.2 | D97: 2011 | E97: В-Граф | F97: 2 | G97: 25 | H97: 184.00 | I97: 4600.00 | J97: №1 от16.08.2011
A98: 719 | B98: Ефросинина Л.А. | C98: Литературн чтение Ч.1 | D98: 2011 | E98: В-Граф | F98: 2 | G98: 25 | H98: 184.00 | I98: 4600.00 | J98: №1 от16.08.2011
A99: 720 | B99: Ефросинина Л.А. | C99: Литературн чтение Ч.2 | D99: 2011 | E99: В-Граф | F99: 2 | G99: 25 | H99: 184.00 | I99: 4600.00 | J99: №1 от16.08.2011
A100: 721 | B100: Рудницкая В.Н. | C100: Математика. Ч.1 | D100: 2011 | E100: В-Граф | F100: 2 | G100: 25 | H100: 184.00 | I100: 4600.00 | J100: №1 от16.08.2011
A101: 722 | B101: Рудницкая В.Н. | C101: Математика. Ч.2 | D101: 2011 | E101: В-Граф | F101: 2 | G101: 25 | H101: 184.00 | I101: 4600.00 | J101: №1 от16.08.2011
A102: 723 | B102: Зеленина Л.М. | C102: Русский язык.Ч.1 | D102: 2011 | E102: В-Граф | F102: 2 | G102: 15 | H102: 121.00 | I102: =G102*H102 -> 1815.00 | J102: №1 от16.08.2011
A103: 771 | B103: Иванов С.В.,Евдокимова | C103: Русский язык 2кл.Ч.1 | D103: 2012 | E103: В-Граф | F103: 2 | G103: 20 | H103: 222.00 | I103: 4440.00 | J103: №76 от 10.07.2012
A104: 772 | B104: Иванов С.В.,Евдокимова | C104: Русский язык 2кл.Ч.2 | D104: 2012 | E104: В-Граф | F104: 2 | G104: 20 | H104: 222.00 | I104: 4440.00 | J104: №76 от 10.07.2012
A105: 773 | B105: Ефросинина Л.А. | C105: Литер.чтение 2кл Ч.1 | D105: 2012 | E105: В-Граф | F105: 2 | G105: 34 | H105: 222.00 | I105: 7548.00 | J105: №76 от 10.07.2012
A106: 774 | B106: Ефросинина Л.А. | C106: Литер.чтение 2кл Ч.2 | D106: 2012 | E106: В-Граф | F106: 2 | G106: 34 | H106: 222.00 | I106: 7548.00 | J106: №76 от 10.07.2012
A107: 775 | B107: Вербицкая Н.В.,Эббс Б | C107: Английский яз. 2кл.Ч.1 | D107: 2012 | E107: В-Граф | F107: 2 | G107: 34 | H107: 244.00 | I107: 8296.00 | J107: №76 от 10.07.2012
A108: 776 | B108: Вербицкая Н.В.,Эббс Б | C108: Английский яз. 2кл.Ч.2 | D108: 2012 | E108: В-Граф | F108: 2 | G108: 34 | H108: 228.00 | I108: 7752.00 | J108: №76 от 10.07.2012
A109: 777 | B109: Рудницкая В.Н.,Юдачёва | C109: Математика 2кл. Ч.1 | D109: 2012 | E109: В-Граф | F109: 2 | G109: 34 | H109: 222.00 | I109: 7548.00 | J109: №76 от 10.07.2012
A110: 778 | B110: Рудницкая В.Н.,Юдачёва | C110: Математика 2кл. Ч.2 | D110: 2012 | E110: В-Граф | F110: 2 | G110: 34 | H110: 222.00 | I110: 7548.00 | J110: №76 от 10.07.2012
A111: 779 | B111: Виноградова Н.Ф. | C111: Окруж. мир 2кл. Ч.1 | D111: 2012 | E111: В-Граф | F111: 2 | G111: 34 | H111: 222.00 | I111: 7548.00 | J111: №76 от 10.07.2012
A112: 780 | B112: Виноградова Н.Ф. | C112: Окруж. мир 2кл. Ч.2 | D112: 2012 | E112: В-Граф | F112: 2 | G112: 34 | H112: 222.00 | I112: 7548.00 | J112: №76 от 10.07.2012
A113: 781 | B113: Алексеева Л.Л.,Школяр | C113: Музыка 2кл. | D113: 2012 | E113: Мнемозина | F113: 2 | G113: 44 | H113: 141.90 | I113: 6243.60 | J113: №76 от 10.07.2012 | K113: н/д
A114: 784 | B114: Харисов Ф.Ф.,Харисова Ч.М. | C114: Тат. яз. 2кл | D114: 2012 | E114: ТКИ | F114: 2 | G114: 20 | H114: 185.00 | I114: 3700.00 | J114: №0002888от 07.08.12
A115: 800 | B115: Огерчук Л.Ю. | C115: Технология 2кл. | D115: 2012 | E115: Рус.слово | F115: 2 | G115: 25 | H115: 192.00 | I115: 4800.00 | J115: №1247 от 15.08.2012
A116: 808 | B116: Рудницкая В.Н., Юдачёва | C116: Математика 2кл. Ч.1 | D116: 2012 | E116: В-Граф | F116: 2 | G116: 11 | H116: 222 | I116: 2442 | J116: №1907 от 28.08.2012
A117: 809 | B117: Ивченкова Г.Г., Потапов И.В. | C117: Окруж. Мир 2кл. Ч.1 | D117: 2012 | E117: АСТ | F117: 2 | G117: 2 | H117: 139 | I117: 278 | J117: №1907 от 28.08.2012
A118: 810 | B118: Ивченкова Г.Г., Потапов И.В. | C118: Окруж. Мир 2кл. Ч.2 | D118: 2012 | E118: АСТ | F118: 2 | G118: 2 | H118: 153 | I118: 306 | J118: №1907 от 28.08.2012
A119: 499 | B119: Биболетова М.З. | C119: Английский язык | D119: 2006 | E119: Титул | F119: 3 | G119: 58 | H119: 89.00 | I119: 5162.00 | J119: 20,09,2006
A120: 531 | B120: Климанова Л.Ф. | C120: Родная речь.Ч.1 | D120: 2007 | E120: Просвещение | F120: 3 | G120: 50 | H120: 81.05 | I120: 4052.50 | J120: 2007-08-15
A121: 532 | B121: Климанова Л.Ф | C121: Родная речь.Ч.2 | D121: 2007 | E121: Просвещение | F121: 3 | G121: 50 | H121: 81.05 | I121: 4052.50 | J121: 2007-08-15
A122: 534 | B122: Моро М.И. | C122: Математика.Ч.1 | D122: 2007 | E122: Просвещение | F122: 3 | G122: 37 | H122: 67.97 | I122: 2514.89 | J122: 2007-08-15
A123: 535 | B123: Моро М.И. | C123: Математика.Ч.2 | D123: 2007 | E123: Просвещение | F123: 3 | G123: 37 | H123: 67.97 | I123: 2514.89 | J123: 2007-08-15
A124: 577 | B124: Яхин А. Г | C124: Литературн. Чт | D124: 2007 | E124: Магариф | F124: 3 | G124: 20 | H124: 57.00 | I124: 1140.00 | J124: 2008-03-17
A125: 599 | B125: ПлешаковА.А. | C125: Окружающий мир.Ч.1 | D125: 2008 | E125: Просвещение | F125: 3 | G125: 35 | H125: 76.90 | I125: 2691.50 | J125: 2008-09-22
A126: 600 | B126: ПлешаковА.А. | C126: Окружающий мир.Ч.2 | D126: 2008 | E126: Просвещение | F126: 3 | G126: 35 | H126: 76.90 | I126: 2691.50 | J126: 2008-09-22
A127: 629 | B127: Ягафарова Р.Х. | C127: Литературн. Чт | D127: 2009 | E127: Магариф | F127: 3 | G127: 33 | H127: 58.03 | I127: 1914.99 | J127: 2009-09-09
A128: 634 | B128: Зеленина Л.М. | C128: Русский язык.Ч.1 | D128: 2009 | E128: Просвещение | F128: 3 | G128: 33 | H128: 100.00 | I128: 3300.00 | J128: 2009-12-12
A129: 635 | B129: Зеленина Л.М. | C129: Русский язык.Ч.2 | D129: 2009 | E129: Просвещение | F129: 3 | G129: 33 | H129: 100.00 | I129: 3300.00 | J129: 2009-12-12
A130: 636 | B130: Иванов С.В. | C130: Русский язык. Ч.1 | D130: 2009 | E130: В-Граф | F130: 3 | G130: 21 | H130: 136.00 | I130: 2856.00 | J130: 2009-12-12
A131: 637 | B131: Иванов С.В. | C131: Русский язык. Ч.2 | D131: 2009 | E131: В-Граф | F131: 3 | G131: 21 | H131: 136.00 | I131: 2856.00 | J131: 2009-12-12
A132: 663 | B132: Харисов Ф.Ф. | C132: Тат. яз. Для тат. | D132: 2009 | E132: Магариф | F132: 3 | G132: 30 | H132: 53.00 | I132: 1590.00 | J132: 2009-12-12
A133: 665 | B133: Хайдарова Р.З. | C133: Татарский язык.Ч.1 | D133: 2009 | E133: Магариф | F133: 3 | G133: 38 | H133: 60.00 | I133: 2280.00 | J133: 2009-12-12
A134: 703 | B134: Иванова Л.Ф | C134: Волшебн.истории 3 кл | D134: 2010 | E134: Магариф | F134: 3 | G134: 10 | H134: 133.00 | I134: =G134*H134 -> 1330.00 | J134: №348(17) 13.09..2010
A135: 705 | B135: Бакиева Н.В.и др. | C135: Уроки музыки 3 кл | D135: 2009 | E135: Магариф | F135: 3 | G135: 1 | H135: 69.00 | I135: 69.00 | J135: №348(17) 13.09..2010
A136: 759 | B136: Иванов С.В. | C136: Рус.яз.3кл.ч1 | D136: 2012 | E136: В-Граф | F136: 3 | G136: 14 | H136: 222.00 | I136: 3108.00 | J136: №75 от 10.07.2012
A137: 760 | B137: Иванов С.В.,Евдокимова | C137: Рус.яз.3кл.ч2 | D137: 2012 | E137: В-Граф | F137: 3 | G137: 14 | H137: 222.00 | I137: 3108.00 | J137: №75 от 10.07.2012
A138: 763 | B138: Рудницкая В.Н.,Юдачёва | C138: Математика 3кл. Ч.1 | D138: 2012 | E138: В-Граф | F138: 3 | G138: 14 | H138: 222.00 | I138: 3108.00 | J138: №75 от 10.07.2012
A139: 764 | B139: Рудницкая В.Н.,Юдачёва | C139: Математика 3кл. Ч.2 | D139: 2012 | E139: В-Граф | F139: 3 | G139: 14 | H139: 222.00 | I139: 3108.00 | J139: №75 от 10.07.2012
A140: 765 | B140: Виноградова Н.Ф.,Калинова | C140: Окружающий мир 3кл.ч1 | D140: 2012 | E140: В-Граф | F140: 3 | G140: 14 | H140: 222.00 | I140: 3108.00 | J140: №75 от 10.07.2012
A141: 766 | B141: Виноградова Н.Ф.,Калинова | C141: Окружающий мир 3кл.ч2 | D141: 2012 | E141: В-Граф | F141: 3 | G141: 14 | H141: 222.00 | I141: 3108.00 | J141: №75 от 10.07.2012
A142: 793 | B142: Ефросинина Л.А. | C142: Литературное чт.3кл.Ч1 | D142: 2012 | E142: В-Граф | F142: 3 | G142: 14 | H142: 222.00 | I142: 3108.00 | J142: №1248 от 15.08.2012
A143: 794 | B143: Ефросинина Л.А. | C143: Литературное чт.3кл.Ч2 | D143: 2012 | E143: В-Граф | F143: 3 | G143: 14 | H143: 222.00 | I143: 3108.00 | J143: №1248 от 15.08.2012
A144: 806 | B144: Ефросинина Л.А. | C144: Литерат.чтение 3кл.Ч.1 | D144: 2012 | E144: В-Граф | F144: 3 | G144: 32 | H144: 222 | I144: 7104 | J144: №1907 от 28.08.2012
A145: 807 | B145: Ефросинина Л.А. | C145: Литерат.чтение 3кл. Ч.2 | D145: 2012 | E145: В-Граф | F145: 3 | G145: 32 | H145: 222 | I145: 7104 | J145: №1907 от 28.08.2012
A146: 453 | B146: Хайдарова Р.З. | C146: Татарский язык.Ч.1 | D146: 2005 | E146: Магариф | F146: 4 | G146: 38 | H146: 35.00 | I146: 1330.00 | J146: 03,12,2005, | L146: списать
A147: 454 | B147: Хайдарова Р.З. | C147: Татарский язык.Ч.2 | D147: 2005 | E147: Магариф | F147: 4 | G147: 36 | H147: 31.00 | I147: 1116.00 | J147: 03,12,2005, | L147: списать
A148: 455 | B148: Сафиуллина Ф.С. | C148: Татарский язык | D148: 2005 | E148: Магариф | F148: 4 | G148: 36 | H148: 49.10 | I148: 1767.60 | J148: 03,12,2005, | L148: списать
A149: 483 | B149: Бакиева Н.В. | C149: Музыка | D149: 2005 | E149: Магариф | F149: 4 | G149: 25 | H149: 32.00 | I149: =G149*H149 -> 800.00 | J149: 12,06,2006 | L149: списать
A150: 484 | B150: Ягафарова Р.Х. | C150: Литературн. чтение ч1 | D150: 2005 | E150: Магариф | F150: 4 | G150: 20 | H150: 34.00 | I150: 680.00 | J150: 12,06,2006 | L150: списать
A151: 529 | B151: Ягафарова Р.Х. | C151: Литерат. чтение Ч.2. | D151: 2006 | E151: Магариф | F151: 4 | G151: 15 | H151: 34.00 | I151: 510.00 | J151: 2007-06-13 | L151: списать
A152: 538 | B152: Биболетова М.З. | C152: Английский язык | D152: 2007 | E152: Титул | F152: 4 | G152: 45 | H152: 109.45 | I152: 4925.25 | J152: 2007-09-16
A153: 597 | B153: Моро М.И. | C153: Математика.Ч.1 | D153: 2008 | E153: Просвещение | F153: 4 | G153: 41 | H153: 74.30 | I153: 3046.30 | J153: 2008-09-22
A154: 598 | B154: Моро М.И. | C154: Математика.Ч.2 | D154: 2008 | E154: Просвещение | F154: 4 | G154: 41 | H154: 74.30 | I154: 3046.30 | J154: 2008-09-22
A155: 621 | B155: Яхин А.Г. | C155: Тат. лит для тат.шк. | D155: 2008 | E155: Магариф | F155: 4 | G155: 18 | H155: 95.00 | I155: 1710.00 | J155: 2008-12-19
A156: 638 | B156: Ефросинина Л.А. | C156: Литер. чтение. Ч.1 | D156: 2009 | E156: В-Граф | F156: 4 | G156: 21 | H156: 136.00 | I156: 2856.00 | J156: 2009-12-12
A157: 639 | B157: Ефросинина Л.А. | C157: Литер. чтение. Ч.2 | D157: 2009 | E157: В-Граф | F157: 4 | G157: 21 | H157: 136.00 | I157: 2856.00 | J157: 2009-12-12
A158: 640 | B158: Климанова Л.Ф. | C158: Родная речь. Ч.1 | D158: 2009 | E158: Просвещение | F158: 4 | G158: 34 | H158: 100.00 | I158: 3400.00 | J158: 2009-12-12
A159: 641 | B159: Климанова Л.Ф. | C159: Родная речь. Ч.2 | D159: 2009 | E159: Просвещение | F159: 4 | G159: 34 | H159: 100.00 | I159: 3400.00 | J159: 2009-12-12
A160: 642 | B160: Виноградова Н.Ф. | C160: Окружающий мир. Ч.1 | D160: 2009 | E160: В-Граф | F160: 4 | G160: 21 | H160: 136.00 | I160: 2856.00 | J160: 2009-12-12
A161: 643 | B161: Виноградова Н.Ф. | C161: Окружающий мир. Ч.2 | D161: 2009 | E161: В-Граф | F161: 4 | G161: 21 | H161: 136.00 | I161: 2856.00 | J161: 2009-12-12
A162: 644 | B162: ПлешаковА.А. | C162: Окружающий мир.Ч.1 | D162: 2009 | E162: Просвещение | F162: 4 | G162: 32 | H162: 100.00 | I162: 3200.00 | J162: 2009-12-12
A163: 645 | B163: ПлешаковА.А. | C163: Окружающий мир.Ч.2 | D163: 2009 | E163: Просвещение | F163: 4 | G163: 32 | H163: 100.00 | I163: 3200.00 | J163: 2009-12-12
A164: 664 | B164: Харисов Ф.Ф. | C164: Тат. яз. Для тат. | D164: 2009 | E164: Магариф | F164: 4 | G164: 22 | H164: 58.00 | I164: 1276.00 | J164: 2009-12-12
A165: 674 | B165: Ягафарова Р.Х. | C165: Книга для чтения | D165: 2009 | E165: Магариф | F165: 4 | G165: 24 | H165: 49.00 | I165: 1176.00 | J165: 2010-03-10
A166: 679 | B166: Зеленина Л.М. | C166: Русский язык. Ч1 | D166: 2010 | E166: Просвещение | F166: 4 | G166: 26 | H166: 109.70 | I166: 2852.20 | J166: 2010-08-31
A167: 680 | B167: Зеленина Л.М. | C167: Русский язык. Ч2 | D167: 2010 | E167: Просвещение | F167: 4 | G167: 26 | H167: 109.70 | I167: 2852.20 | J167: 2010-08-31
A168: 697 | B168: Иванов С.В. | C168: Русский язык. Ч.1 | D168: 2010 | E168: В-Граф | F168: 4 | G168: 30 | H168: 170.01 | I168: 5100.30 | J168: 2010-08-31
A169: 698 | B169: Иванов С.В. | C169: Русский язык. Ч.2 | D169: 2010 | E169: В-Граф | F169: 4 | G169: 30 | H169: 170.01 | I169: 5100.30 | J169: 2010-08-31
A170: 701 | B170: Хайдарова Р.З. | C170: Татарский язык.Ч.1 | D170: 2010 | E170: Магариф | F170: 4 | G170: 64 | H170: 70.00 | I170: 4480.00 | J170: №348(17) 13.09..2010
A171: 702 | B171: Хайдарова Р.З. | C171: Татарский язык.Ч.2 | D171: 2010 | E171: Магариф | F171: 4 | G171: 64 | H171: 67.00 | I171: 4288.00 | J171: №348(17) 13.09..2010
A172: 732 | B172: Сахаров А.Н. | C172: Основы религии | D172: 2011 | E172: Рус.слово | F172: 4 | G172: 57 | H172: 206.00 | I172: 11742.00 | J172: №1 от16.08.2011
A173: 801 | B173: Студеникин М.Т. | C173: Осн.свет.этики.4кл | D173: 2012 | E173: Рус.слово | F173: 4 | G173: 13 | H173: 206.00 | I173: 2678.00 | J173: №1249 от 15.08.12
A174: 442 | B174: Плешаков А.А. | C174: Природоведение | D174: 2005 | E174: Дрофа | F174: 5 | G174: 50 | H174: 75.25 | I174: 3762.50 | J174: 2005-11-20 | L174: списать
A175: 443 | B175: Виленкин Н.Я. | C175: Математика | D175: 2005 | E175: Мнемозина | F175: 5 | G175: 50 | H175: 92.57 | I175: 4628.50 | J175: 20,11,2005, | L175: списать
A176: 451 | B176: Ахметзянов М.Г | C176: Литература Ч.1 | D176: 2002 | E176: С-Петербург | F176: 5 | G176: 24 | H176: 53.46 | I176: 1283.04 | J176: 20,11,2005, | K176: н/д | L176: списать
A177: 452 | B177: Ахметзянов М.Г | C177: Литература Ч.2 | D177: 2002 | E177: С-Петербург | F177: 5 | G177: 24 | H177: 50.00 | I177: 1200.00 | J177: 20,11,2005, | K177: н/д | L177: списать
A178: 487 | B178: Залялеева М.Ш. | C178: Литература | D178: 2006 | E178: Магариф | F178: 5 | G178: 5 | H178: 53.00 | I178: 265.00 | J178: 20,09,2006
A179: 496 | B179: Бунеев Р.Н. | C179: Литература.Ч.1. | D179: 2006 | E179: Баласс | F179: 5 | G179: 20 | H179: 88.00 | I179: 1760.00 | J179: 20,09,2006
A180: 497 | B180: Бунеев Р.Н. | C180: Литература.Ч.2. | D180: 2006 | E180: Баласс | F180: 5 | G180: 20 | H180: 88.00 | I180: 1760.00 | J180: 20,09,2006
A181: 512 | B181: Павлова М.Б.Сасова И.А. | C181: Технология (д.,м.) | D181: 2006 | E181: В-Граф | F181: 5 | G181: 25 | H181: 68.00 | I181: 1700.00 | J181: 2006-11-14
A182: 514 | B182: Вигасин А.А. | C182: История др.мира | D182: 2006 | E182: Просвещение | F182: 5 | G182: 58 | H182: 84.22 | I182: 4884.76 | J182: 2006-11-14
A183: 515 | B183: Коровина В.Я. | C183: Литература.Ч.1 | D183: 2006 | E183: Просвещение | F183: 5 | G183: 58 | H183: 68.43 | I183: 3968.94 | J183: 2006-11-14
A184: 516 | B184: Коровина В.Я. | C184: Литература.Ч.2 | D184: 2006 | E184: Просвещение | F184: 5 | G184: 58 | H184: 68.43 | I184: 3968.94 | J184: 2006-11-14
A185: 520 | B185: Хайдарова Р.З. | C185: Татарский язык. | D185: 2006 | E185: Магариф | F185: 5 | G185: 28 | H185: 54.00 | I185: 1512.00 | J185: 2007-03-13
A186: 556 | B186: Ладыженская Т.А. | C186: Русский язык | D186: 2007 | E186: Просвещение | F186: 5 | G186: 43 | H186: 81.05 | I186: 3485.15 | J186: 2007-11-13
A187: 578 | B187: Хайдарова Р.З. | C187: Татарский язык. | D187: 2007 | E187: Магариф | F187: 5 | G187: 30 | H187: 54.00 | I187: 1620.00 | J187: 2008-03-17
A188: 587 | B188: Хасаншина Р.Г. | C188: Татарский язык | D188: 2007 | E188: Магариф | F188: 5 | G188: 30 | H188: 102.00 | I188: 3060.00 | J188: 2008-09-09
A189: 601 | B189: Биболетова М.З. | C189: Англиийский язык | D189: 2008 | E189: Титул | F189: 5 | G189: 47 | H189: 152.00 | I189: 7144.00 | J189: 2008-09-22
A190: 632 | B190: Биболетова М.З. | C190: Англиийский язык | D190: 2009 | E190: Титул | F190: 5 | G190: 22 | H190: 174.60 | I190: 3841.20 | J190: 2009-12-12
A191: 739 | B191: Андреевская Т.П. | C191: История др. мира 5кл. | D191: 2011 | E191: В-Граф | F191: 5 | G191: 26 | H191: 166.00 | I191: 4316.00 | J191: №1 от16.08.2011
A192: 755 | B192: Хайдарова Р.З. | C192: Тат.теле 5 кл | D192: 2011 | E192: ТКИ | F192: 5 | G192: 55 | H192: 110.00 | I192: 6050.00 | J192: №1/514Т от 08.12.2011
A193: 761 | B193: Вербицкая Н.В.,Эббс Б | C193: Английский яз 5кл. Ч1 | D193: 2012 | E193: В-Граф | F193: 5 | G193: 14 | H193: 250.00 | I193: 3500.00 | J193: №75 от 10.07.2012
A194: 762 | B194: Вербицкая Н.В.,Эббс Б | C194: Английский яз 5кл. Ч2 | D194: 2012 | E194: В-Граф | F194: 5 | G194: 14 | H194: 232.00 | I194: 3248.00 | J194: №75 от 10.07.2012
A195: 767 | B195: Разумовская М.М.,Львова | C195: Русский язык 5кл. | D195: 2012 | E195: В-Граф | F195: 5 | G195: 48 | H195: 181.94 | I195: 8733.12 | J195: №75 от 10.07.2012
A196: 768 | B196: Биболетова М.З.,Денисенко | C196: Английский яз. 5кл. | D196: 2012 | E196: В-Граф | F196: 5 | G196: 50 | H196: 307.00 | I196: 15350.00 | J196: №75 от 10.07.2012
A197: 769 | B197: Тищенко А.Т.Симоненко В.Д. | C197: Технология (мальчики)5 | D197: 2012 | E197: В-Граф | F197: 5 | G197: 21 | H197: 212.00 | I197: 4452.00 | J197: №75 от 10.07.2012 | K197: н/д
A198: 770 | B198: Синица Н.В.,Симоненко В.Д. | C198: Технология девочки)5 | D198: 2012 | E198: В-Граф | F198: 5 | G198: 14 | H198: 212.00 | I198: 2968.00 | J198: №75 от 10.07.2012 | K198: н/д
A199: 795 | B199: Ланин Б.А. | C199: Литература 5кл. Ч.1 | D199: 2012 | E199: В-Граф | F199: 5 | G199: 48 | H199: 200.00 | I199: 9600.00 | J199: №1248 от 15.08.2012
A200: 796 | B200: Ланин Б.А. | C200: Литература 5кл. Ч.2 | D200: 2012 | E200: В-Граф | F200: 5 | G200: 48 | H200: 200.00 | I200: 9600.00 | J200: №1248 от 15.08.2012
A201: 797 | B201: Виленкин Н.Я. И др. | C201: Математика 5кл | D201: 2012 | E201: В-Граф | F201: 5 | G201: 41 | H201: 208.12 | I201: 8532.92 | J201: №1248 от 15.08.2012
... 176 more rows

Sheet 06-12
A1: Инвентарная книга 2005-2012г.г. | C1: нига 2006/12г.г.
A3: инв. № | B3: автор | C3: заглавие | D3: год изд. | E3: изд-во | F3: класс | G3: кол-во | H3: цена | I3: сумма | J3: № накладной | K3: нет данн
A4: 540 | B4: Мухерджее | C4: Хартия Земли | D4: 2007 | E4: Магариф | F4: 0 | G4: 11 | H4: 51.00 | I4: =G4*H4 -> 561.00 | J4: 2007-10-04
A5: 541 | B5: Мухерджее | C5: Хартия Земли | D5: 2007 | E5: Магариф | F5: 0 | G5: 11 | H5: 51.00 | I5: 561.00 | J5: 2007-10-04
A6: 542 | B6: Мухерджее | C6: Хартия Земли | D6: 2007 | E6: Магариф | F6: 0 | G6: 11 | H6: 51.00 | I6: 561.00 | J6: 2007-10-04
A7: 543 | B7: Ислаев Ф.Г. | C7: Хартия Земли | D7: 2007 | E7: Магариф | F7: 0 | G7: 11 | H7: 51.00 | I7: 561.00 | J7: 2007-10-04
A8: 566 | B8: Коллектив | C8: Сборник осн.док.по ГО | D8: 2007 | E8: Казань | F8: 0 | G8: 4 | H8: 40.00 | I8: 160.00 | J8: 2008-03-11
A9: 593 | B9: Хасаншина Р.Г. | C9: Уроки татарского | D9: 2007 | E9: Магариф | F9: 0 | G9: 8 | H9: 39.00 | I9: 312.00 | J9: 2008-09-09
A10: 594 | B10: Смыков | C10: История России | D10: 2007 | E10: Магариф | F10: 0 | G10: 1 | H10: 280.00 | I10: 280.00 | J10: 2008-09-09
A11: 614 | B11: Филиппов Л.В. | C11: Новйшая история | D11: 2008 | E11: Просвещение | F11: 0 | G11: 1 | H11: 102.10 | I11: 102.10 | J11: 2008-09-22
A12: 615 | B12: Поляков Л.В. | C12: О/знание | D12: 2008 | E12: Просвещение | F12: 0 | G12: 1 | H12: 82.60 | I12: 82.60 | J12: 2008-09-22
A13: 675 | B13: Сафиуллина Ф.С. | C13: Татарско-русск.слов. | D13: 2008 | E13: Магариф | F13: 0 | G13: 27 | H13: 30.00 | I13: 810.00 | J13: 2010-03-10
A14: 708 | B14: Ошкина Г.К. | C14: Я изучаю английский | D14: 2010 | E14: Магариф | F14: 0 | G14: 30 | H14: 120.00 | I14: 3600.00 | J14: №17 от 26.10.2010
A15: 711 | B15: Галиуллин К.Р.,Раскулова Р.И. | C15: Орф.слов.тат.яз | D15: 2010 | E15: Магариф | F15: 0 | G15: 100 | H15: 93.00 | I15: 9300.00 | J15: №17 от 14.02.2011
A16: 712 | B16: Гарифуллин С.Ф. | C16: Рус.тат.англ.слов. | D16: 2010 | E16: Хэтер | F16: 0 | G16: 50 | H16: 180.00 | I16: 9000.00 | J16: №17 от 14.02.2011
A17: 805 | B17: Коллектив | C17: Правила дор.движ | D17: 2012 | E17: Казань | F17: 0 | G17: 14 | H17: 218 | I17: 3052 | J17: №1 от 02.08.2012 | K17: н/д
A18: 676 | B18: Харисов Ф.Ф. | C18: В мире слов и пр. | D18: 2008 | E18: Магариф | F18: 1 | G18: 6 | H18: 110.00 | I18: 660.00 | J18: 2010-03-10
A19: 681 | B19: Ефросинина Л.А. | C19: Литературное чтение | D19: 2010 | E19: В-Граф | F19: 1 | G19: 26 | H19: 16.00 | I19: 416.00 | J19: 2010-08-31
A20: 682 | B20: Рудницкая В.Н. | C20: Математика. Ч.1 | D20: 2010 | E20: В-Граф | F20: 1 | G20: 26 | H20: 162.00 | I20: 4212.00 | J20: 2010-08-31
A21: 683 | B21: Рудницкая В.Н. | C21: Математика. Ч.2 | D21: 2010 | E21: В-Граф | F21: 1 | G21: 26 | H21: 162.00 | I21: 4212.00 | J21: 2010-08-31
A22: 684 | B22: Журова Л.Е. | C22: Букварь. 1ч. | D22: 2010 | E22: В-Граф | F22: 1 | G22: 26 | H22: 162.00 | I22: 4212.00 | J22: 2010-08-31
A23: 685 | B23: Журова Л.Е. | C23: Букварь. 2ч. | D23: 2010 | E23: В-Граф | F23: 1 | G23: 26 | H23: 162.00 | I23: 4212.00 | J23: 2010-08-31
A24: 686 | B24: Виноградова Н.Ф. | C24: Окружающий мир | D24: 2010 | E24: В-Граф | F24: 1 | G24: 26 | H24: 162.00 | I24: 4212.00 | J24: 2010-08-31
A25: 687 | B25: Иванов С.В. | C25: Русский язык | D25: 2010 | E25: В-Граф | F25: 1 | G25: 26 | H25: 162.00 | I25: 4212.00 | J25: 2010-08-31
A26: 724 | B26: Иванов С.В. | C26: Русский язык | D26: 2011 | E26: В-Граф | F26: 1 | G26: 25 | H26: 176.00 | I26: 4400.00 | J26: №1 от16.08.2011
A27: 725 | B27: Рудницкая В.Н. | C27: Математика. Ч.1 | D27: 2011 | E27: В-Граф | F27: 1 | G27: 25 | H27: 176.00 | I27: 4400.00 | J27: №1 от16.08.2011
A28: 726 | B28: Рудницкая В.Н. | C28: Математика. Ч.2 | D28: 2011 | E28: В-Граф | F28: 1 | G28: 25 | H28: 176.00 | I28: 4400.00 | J28: №1 от16.08.2011
A29: 727 | B29: Журова Л.Е. | C29: Букварь. 1ч. | D29: 2011 | E29: В-Граф | F29: 1 | G29: 26 | H29: 176.00 | I29: 4576.00 | J29: №1 от16.08.2011
A30: 728 | B30: Журова Л.Е. | C30: Букварь. 2ч. | D30: 2011 | E30: В-Граф | F30: 1 | G30: 26 | H30: 176.00 | I30: 4576.00 | J30: №1 от16.08.2011
A31: 729 | B31: Ефросинина Л.А. | C31: Литературное чтение | D31: 2011 | E31: В-Граф | F31: 1 | G31: 25 | H31: 176.00 | I31: 4400.00 | J31: №1 от16.08.2011
A32: 730 | B32: Виноградова Н.Ф. | C32: Окружающий мир Ч.1 | D32: 2011 | E32: В-Граф | F32: 1 | G32: 25 | H32: 176.00 | I32: 4400.00 | J32: №1 от16.08.2011
A33: 731 | B33: Виноградова Н.Ф. | C33: Окружающий мир Ч.2 | D33: 2011 | E33: В-Граф | F33: 1 | G33: 25 | H33: 176.00 | I33: 4400.00 | J33: №1 от16.08.2011
A34: 734 | B34: Горецкий В.Г | C34: Азбука | D34: 2011 | E34: Просвещение | F34: 1 | G34: 25 | H34: 271.40 | I34: 6785.00 | J34: №1 от16.08.2011
A35: 735 | B35: Климанова Л.Ф | C35: Литературное чтение | D35: 2011 | E35: Просвещение | F35: 1 | G35: 25 | H35: 220.00 | I35: 5500.00 | J35: №1 от16.08.2011
A36: 736 | B36: Плешаков А.А. | C36: Окружающий мир | D36: 2011 | E36: Просвещение | F36: 1 | G36: 15 | H36: 271.40 | I36: 4071.00 | J36: №1 от16.08.2011
A37: 737 | B37: Моро М.И | C37: Математика в 2х частях | D37: 2011 | E37: Просвещение | F37: 1 | G37: 25 | H37: 271.40 | I37: 6785.00 | J37: №1 от16.08.2011
A38: 738 | B38: Канакина В.П | C38: Русский язык | D38: 2011 | E38: Просвещение | F38: 1 | G38: 25 | H38: 135.70 | I38: 3392.50 | J38: №1 от16.08.2011
A39: 743 | B39: Меркин Г.С | C39: Лит.чт 1 кл | D39: 2011 | E39: Рус.слово | F39: 1 | G39: 5 | H39: 218.00 | I39: 1090.00 | J39: №1 от16.08.2011
A40: 782 | B40: Мияссарова И.Х. и др. | C40: Элифбэ 1кл. | D40: 2012 | E40: М-Вакыт | F40: 1 | G40: 10 | H40: 185.00 | I40: 1850.00 | J40: №0002888от 07.08.12
A41: 783 | B41: Харисов Ф.Ф.,Харисова Ч.М. | C41: Тат. яз. 1кл | D41: 2012 | E41: ТКИ | F41: 1 | G41: 15 | H41: 178.00 | I41: 2670.00 | J41: №0002888от 07.08.12
A42: 804 | B42: Хайдарова Р.З. | C42: Татарский язык | D42: 2012 | E42: Тат.м/ф | F42: 1 | G42: 28 | H42: 149 | I42: 4172 | J42: №000747 от 18.09.2012
A43: 560 | B43: Плешаков А.А. | C43: Окружающий мир. Ч.2 | D43: 2007 | E43: Просвещение | F43: 2 | G43: 9 | H43: 71.51 | I43: 643.59 | J43: 2007-11-13
A44: 573 | B44: Плешаков А.А. | C44: Окружающий мир. Ч.1 | D44: 2007 | E44: Просвещение | F44: 2 | G44: 38 | H44: 71.51 | I44: 2717.38 | J44: 2008-03-11
A45: 670 | B45: Иванова Л.Ф | C45: Волшебный лес 2 кл | D45: 2009 | E45: Магариф | F45: 2 | G45: 32 | H45: 100.00 | I45: 3200.00 | J45: 2009-12-12
A46: 673 | B46: Хайдарова Р.З. | C46: Татарский язык. Ч.2 | D46: 2009 | E46: Магариф | F46: 2 | G46: 62 | H46: 54.00 | I46: 3348.00 | J46: 2010-03-10
A47: 715 | B47: Виноградова Н.Ф. | C47: Окружающий мир. Ч.1 | D47: 2011 | E47: В-Граф | F47: 2 | G47: 25 | H47: 184.00 | I47: 4600.00 | J47: №1 от16.08.2011
A48: 716 | B48: Виноградова Н.Ф. | C48: Окружающий мир. Ч.2 | D48: 2011 | E48: В-Граф | F48: 2 | G48: 25 | H48: 184.00 | I48: 4600.00 | J48: №1 от16.08.2011
A49: 717 | B49: Иванов С.В. | C49: Русский язык. Ч.1 | D49: 2011 | E49: В-Граф | F49: 2 | G49: 25 | H49: 184.00 | I49: 4600.00 | J49: №1 от16.08.2011
A50: 718 | B50: Иванов С.В. | C50: Русский язык. Ч.2 | D50: 2011 | E50: В-Граф | F50: 2 | G50: 25 | H50: 184.00 | I50: 4600.00 | J50: №1 от16.08.2011
A51: 719 | B51: Ефросинина Л.А. | C51: Литературн чтение Ч.1 | D51: 2011 | E51: В-Граф | F51: 2 | G51: 25 | H51: 184.00 | I51: 4600.00 | J51: №1 от16.08.2011
A52: 720 | B52: Ефросинина Л.А. | C52: Литературн чтение Ч.2 | D52: 2011 | E52: В-Граф | F52: 2 | G52: 25 | H52: 184.00 | I52: 4600.00 | J52: №1 от16.08.2011
A53: 721 | B53: Рудницкая В.Н. | C53: Математика. Ч.1 | D53: 2011 | E53: В-Граф | F53: 2 | G53: 25 | H53: 184.00 | I53: 4600.00 | J53: №1 от16.08.2011
A54: 722 | B54: Рудницкая В.Н. | C54: Математика. Ч.2 | D54: 2011 | E54: В-Граф | F54: 2 | G54: 25 | H54: 184.00 | I54: 4600.00 | J54: №1 от16.08.2011
A55: 723 | B55: Зеленина Л.М. | C55: Русский язык.Ч.1 | D55: 2011 | E55: В-Граф | F55: 2 | G55: 15 | H55: 121.00 | I55: 1815.00 | J55: №1 от16.08.2011
A56: 771 | B56: Иванов С.В.,Евдокимова | C56: Русский язык 2кл.Ч.1 | D56: 2012 | E56: В-Граф | F56: 2 | G56: 20 | H56: 222.00 | I56: 4440.00 | J56: №76 от 10.07.2012
A57: 772 | B57: Иванов С.В.,Евдокимова | C57: Русский язык 2кл.Ч.2 | D57: 2012 | E57: В-Граф | F57: 2 | G57: 20 | H57: 222.00 | I57: 4440.00 | J57: №76 от 10.07.2012
A58: 773 | B58: Ефросинина Л.А. | C58: Литер.чтение 2кл Ч.1 | D58: 2012 | E58: В-Граф | F58: 2 | G58: 34 | H58: 222.00 | I58: 7548.00 | J58: №76 от 10.07.2012
A59: 774 | B59: Ефросинина Л.А. | C59: Литер.чтение 2кл Ч.2 | D59: 2012 | E59: В-Граф | F59: 2 | G59: 34 | H59: 222.00 | I59: 7548.00 | J59: №76 от 10.07.2012
A60: 775 | B60: Вербицкая Н.В.,Эббс Б | C60: Английский яз. 2кл.Ч.1 | D60: 2012 | E60: В-Граф | F60: 2 | G60: 34 | H60: 244.00 | I60: 8296.00 | J60: №76 от 10.07.2012
A61: 776 | B61: Вербицкая Н.В.,Эббс Б | C61: Английский яз. 2кл.Ч.2 | D61: 2012 | E61: В-Граф | F61: 2 | G61: 34 | H61: 228.00 | I61: 7752.00 | J61: №76 от 10.07.2012
A62: 777 | B62: Рудницкая В.Н.,Юдачёва | C62: Математика 2кл. Ч.1 | D62: 2012 | E62: В-Граф | F62: 2 | G62: 34 | H62: 222.00 | I62: 7548.00 | J62: №76 от 10.07.2012
A63: 778 | B63: Рудницкая В.Н.,Юдачёва | C63: Математика 2кл. Ч.2 | D63: 2012 | E63: В-Граф | F63: 2 | G63: 34 | H63: 222.00 | I63: 7548.00 | J63: №76 от 10.07.2012
A64: 779 | B64: Виноградова Н.Ф. | C64: Окруж. мир 2кл. Ч.1 | D64: 2012 | E64: В-Граф | F64: 2 | G64: 34 | H64: 222.00 | I64: 7548.00 | J64: №76 от 10.07.2012
A65: 780 | B65: Виноградова Н.Ф. | C65: Окруж. мир 2кл. Ч.2 | D65: 2012 | E65: В-Граф | F65: 2 | G65: 34 | H65: 222.00 | I65: 7548.00 | J65: №76 от 10.07.2012
A66: 781 | B66: Алексеева Л.Л.,Школяр | C66: Музыка 2кл. | D66: 2012 | E66: Мнемозина | F66: 2 | G66: 44 | H66: 141.90 | I66: 6243.60 | J66: №76 от 10.07.2012 | K66: н/д
A67: 784 | B67: Харисов Ф.Ф.,Харисова Ч.М. | C67: Тат. яз. 2кл | D67: 2012 | E67: ТКИ | F67: 2 | G67: 20 | H67: 185.00 | I67: 3700.00 | J67: №0002888от 07.08.12
A68: 800 | B68: Огерчук Л.Ю. | C68: Технология 2кл. | D68: 2012 | E68: Рус.слово | F68: 2 | G68: 25 | H68: 192.00 | I68: =G68*H68 -> 4800.00 | J68: №1247 от 15.08.2012
A69: 808 | B69: Рудницкая В.Н., Юдачёва | C69: Математика 2кл. Ч.1 | D69: 2012 | E69: В-Граф | F69: 2 | G69: 11 | H69: 222 | I69: 2442 | J69: №1907 от 28.08.2012
A70: 809 | B70: Ивченкова Г.Г., Потапов И.В. | C70: Окруж. Мир 2кл. Ч.1 | D70: 2012 | E70: АСТ | F70: 2 | G70: 2 | H70: 139 | I70: 278 | J70: №1907 от 28.08.2012
A71: 810 | B71: Ивченкова Г.Г., Потапов И.В. | C71: Окруж. Мир 2кл. Ч.2 | D71: 2012 | E71: АСТ | F71: 2 | G71: 2 | H71: 153 | I71: 306 | J71: №1907 от 28.08.2012
A72: 499 | B72: Биболетова М.З. | C72: Английский язык | D72: 2006 | E72: Титул | F72: 3 | G72: 58 | H72: 89.00 | I72: 5162.00 | J72: 20,09,2006
A73: 531 | B73: Климанова Л.Ф. | C73: Родная речь.Ч.1 | D73: 2007 | E73: Просвещение | F73: 3 | G73: 50 | H73: 81.05 | I73: 4052.50 | J73: 2007-08-15
A74: 532 | B74: Климанова Л.Ф | C74: Родная речь.Ч.2 | D74: 2007 | E74: Просвещение | F74: 3 | G74: 50 | H74: 81.05 | I74: 4052.50 | J74: 2007-08-15
A75: 534 | B75: Моро М.И. | C75: Математика.Ч.1 | D75: 2007 | E75: Просвещение | F75: 3 | G75: 37 | H75: 67.97 | I75: 2514.89 | J75: 2007-08-15
A76: 535 | B76: Моро М.И. | C76: Математика.Ч.2 | D76: 2007 | E76: Просвещение | F76: 3 | G76: 37 | H76: 67.97 | I76: 2514.89 | J76: 2007-08-15
A77: 577 | B77: Яхин А. Г | C77: Литературн. Чт | D77: 2007 | E77: Магариф | F77: 3 | G77: 20 | H77: 57.00 | I77: 1140.00 | J77: 2008-03-17
A78: 599 | B78: ПлешаковА.А. | C78: Окружающий мир.Ч.1 | D78: 2008 | E78: Просвещение | F78: 3 | G78: 35 | H78: 76.90 | I78: 2691.50 | J78: 2008-09-22
A79: 600 | B79: ПлешаковА.А. | C79: Окружающий мир.Ч.2 | D79: 2008 | E79: Просвещение | F79: 3 | G79: 35 | H79: 76.90 | I79: 2691.50 | J79: 2008-09-22
A80: 629 | B80: Ягафарова Р.Х. | C80: Литературн. Чт | D80: 2009 | E80: Магариф | F80: 3 | G80: 33 | H80: 58.03 | I80: 1914.99 | J80: 2009-09-09
A81: 634 | B81: Зеленина Л.М. | C81: Русский язык.Ч.1 | D81: 2009 | E81: Просвещение | F81: 3 | G81: 33 | H81: 100.00 | I81: 3300.00 | J81: 2009-12-12
A82: 635 | B82: Зеленина Л.М. | C82: Русский язык.Ч.2 | D82: 2009 | E82: Просвещение | F82: 3 | G82: 33 | H82: 100.00 | I82: 3300.00 | J82: 2009-12-12
A83: 636 | B83: Иванов С.В. | C83: Русский язык. Ч.1 | D83: 2009 | E83: В-Граф | F83: 3 | G83: 21 | H83: 136.00 | I83: 2856.00 | J83: 2009-12-12
A84: 637 | B84: Иванов С.В. | C84: Русский язык. Ч.2 | D84: 2009 | E84: В-Граф | F84: 3 | G84: 21 | H84: 136.00 | I84: 2856.00 | J84: 2009-12-12
A85: 663 | B85: Харисов Ф.Ф. | C85: Тат. яз. Для тат. | D85: 2009 | E85: Магариф | F85: 3 | G85: 30 | H85: 53.00 | I85: 1590.00 | J85: 2009-12-12
A86: 665 | B86: Хайдарова Р.З. | C86: Татарский язык.Ч.1 | D86: 2009 | E86: Магариф | F86: 3 | G86: 38 | H86: 60.00 | I86: 2280.00 | J86: 2009-12-12
A87: 703 | B87: Иванова Л.Ф | C87: Волшебн.истории 3 кл | D87: 2010 | E87: Магариф | F87: 3 | G87: 10 | H87: 133.00 | I87: 1330.00 | J87: №348(17) 13.09..2010
A88: 705 | B88: Бакиева Н.В.и др. | C88: Уроки музыки 3 кл | D88: 2009 | E88: Магариф | F88: 3 | G88: 1 | H88: 69.00 | I88: 69.00 | J88: №348(17) 13.09..2010
A89: 759 | B89: Иванов С.В. | C89: Рус.яз.3кл.ч1 | D89: 2012 | E89: В-Граф | F89: 3 | G89: 14 | H89: 222.00 | I89: 3108.00 | J89: №75 от 10.07.2012
A90: 760 | B90: Иванов С.В.,Евдокимова | C90: Рус.яз.3кл.ч2 | D90: 2012 | E90: В-Граф | F90: 3 | G90: 14 | H90: 222.00 | I90: 3108.00 | J90: №75 от 10.07.2012
A91: 763 | B91: Рудницкая В.Н.,Юдачёва | C91: Математика 3кл. Ч.1 | D91: 2012 | E91: В-Граф | F91: 3 | G91: 14 | H91: 222.00 | I91: 3108.00 | J91: №75 от 10.07.2012
A92: 764 | B92: Рудницкая В.Н.,Юдачёва | C92: Математика 3кл. Ч.2 | D92: 2012 | E92: В-Граф | F92: 3 | G92: 14 | H92: 222.00 | I92: 3108.00 | J92: №75 от 10.07.2012
A93: 765 | B93: Виноградова Н.Ф.,Калинова | C93: Окружающий мир 3кл.ч1 | D93: 2012 | E93: В-Граф | F93: 3 | G93: 14 | H93: 222.00 | I93: 3108.00 | J93: №75 от 10.07.2012
A94: 766 | B94: Виноградова Н.Ф.,Калинова | C94: Окружающий мир 3кл.ч2 | D94: 2012 | E94: В-Граф | F94: 3 | G94: 14 | H94: 222.00 | I94: 3108.00 | J94: №75 от 10.07.2012
A95: 793 | B95: Ефросинина Л.А. | C95: Литературное чт.3кл.Ч1 | D95: 2012 | E95: В-Граф | F95: 3 | G95: 14 | H95: 222.00 | I95: 3108.00 | J95: №1248 от 15.08.2012
A96: 794 | B96: Ефросинина Л.А. | C96: Литературное чт.3кл.Ч2 | D96: 2012 | E96: В-Граф | F96: 3 | G96: 14 | H96: 222.00 | I96: 3108.00 | J96: №1248 от 15.08.2012
A97: 806 | B97: Ефросинина Л.А. | C97: Литерат.чтение 3кл.Ч.1 | D97: 2012 | E97: В-Граф | F97: 3 | G97: 32 | H97: 222 | I97: 7104 | J97: №1907 от 28.08.2012
A98: 807 | B98: Ефросинина Л.А. | C98: Литерат.чтение 3кл. Ч.2 | D98: 2012 | E98: В-Граф | F98: 3 | G98: 32 | H98: 222 | I98: 7104 | J98: №1907 от 28.08.2012
A99: 538 | B99: Биболетова М.З. | C99: Английский язык | D99: 2007 | E99: Титул | F99: 4 | G99: 45 | H99: 109.45 | I99: 4925.25 | J99: 2007-09-16
A100: 597 | B100: Моро М.И. | C100: Математика.Ч.1 | D100: 2008 | E100: Просвещение | F100: 4 | G100: 41 | H100: 74.30 | I100: 3046.30 | J100: 2008-09-22
A101: 598 | B101: Моро М.И. | C101: Математика.Ч.2 | D101: 2008 | E101: Просвещение | F101: 4 | G101: 41 | H101: 74.30 | I101: 3046.30 | J101: 2008-09-22
A102: 621 | B102: Яхин А.Г. | C102: Тат. лит для тат.шк. | D102: 2008 | E102: Магариф | F102: 4 | G102: 18 | H102: 95.00 | I102: 1710.00 | J102: 2008-12-19
A103: 638 | B103: Ефросинина Л.А. | C103: Литер. чтение. Ч.1 | D103: 2009 | E103: В-Граф | F103: 4 | G103: 21 | H103: 136.00 | I103: 2856.00 | J103: 2009-12-12
A104: 639 | B104: Ефросинина Л.А. | C104: Литер. чтение. Ч.2 | D104: 2009 | E104: В-Граф | F104: 4 | G104: 21 | H104: 136.00 | I104: 2856.00 | J104: 2009-12-12
A105: 640 | B105: Климанова Л.Ф. | C105: Родная речь. Ч.1 | D105: 2009 | E105: Просвещение | F105: 4 | G105: 34 | H105: 100.00 | I105: 3400.00 | J105: 2009-12-12
A106: 641 | B106: Климанова Л.Ф. | C106: Родная речь. Ч.2 | D106: 2009 | E106: Просвещение | F106: 4 | G106: 34 | H106: 100.00 | I106: 3400.00 | J106: 2009-12-12
A107: 642 | B107: Виноградова Н.Ф. | C107: Окружающий мир. Ч.1 | D107: 2009 | E107: В-Граф | F107: 4 | G107: 21 | H107: 136.00 | I107: 2856.00 | J107: 2009-12-12
A108: 643 | B108: Виноградова Н.Ф. | C108: Окружающий мир. Ч.2 | D108: 2009 | E108: В-Граф | F108: 4 | G108: 21 | H108: 136.00 | I108: 2856.00 | J108: 2009-12-12
A109: 644 | B109: ПлешаковА.А. | C109: Окружающий мир.Ч.1 | D109: 2009 | E109: Просвещение | F109: 4 | G109: 32 | H109: 100.00 | I109: 3200.00 | J109: 2009-12-12
A110: 645 | B110: ПлешаковА.А. | C110: Окружающий мир.Ч.2 | D110: 2009 | E110: Просвещение | F110: 4 | G110: 32 | H110: 100.00 | I110: 3200.00 | J110: 2009-12-12
A111: 664 | B111: Харисов Ф.Ф. | C111: Тат. яз. Для тат. | D111: 2009 | E111: Магариф | F111: 4 | G111: 22 | H111: 58.00 | I111: 1276.00 | J111: 2009-12-12
A112: 674 | B112: Ягафарова Р.Х. | C112: Книга для чтения | D112: 2009 | E112: Магариф | F112: 4 | G112: 24 | H112: 49.00 | I112: 1176.00 | J112: 2010-03-10
A113: 679 | B113: Зеленина Л.М. | C113: Русский язык. Ч1 | D113: 2010 | E113: Просвещение | F113: 4 | G113: 26 | H113: 109.70 | I113: 2852.20 | J113: 2010-08-31
A114: 680 | B114: Зеленина Л.М. | C114: Русский язык. Ч2 | D114: 2010 | E114: Просвещение | F114: 4 | G114: 26 | H114: 109.70 | I114: 2852.20 | J114: 2010-08-31
A115: 697 | B115: Иванов С.В. | C115: Русский язык. Ч.1 | D115: 2010 | E115: В-Граф | F115: 4 | G115: 30 | H115: 170.01 | I115: 5100.30 | J115: 2010-08-31
A116: 698 | B116: Иванов С.В. | C116: Русский язык. Ч.2 | D116: 2010 | E116: В-Граф | F116: 4 | G116: 30 | H116: 170.01 | I116: 5100.30 | J116: 2010-08-31
A117: 701 | B117: Хайдарова Р.З. | C117: Татарский язык.Ч.1 | D117: 2010 | E117: Магариф | F117: 4 | G117: 64 | H117: 70.00 | I117: 4480.00 | J117: №348(17) 13.09..2010
A118: 702 | B118: Хайдарова Р.З. | C118: Татарский язык.Ч.2 | D118: 2010 | E118: Магариф | F118: 4 | G118: 64 | H118: 67.00 | I118: 4288.00 | J118: №348(17) 13.09..2010
A119: 732 | B119: Сахаров А.Н. | C119: Основы религии | D119: 2011 | E119: Рус.слово | F119: 4 | G119: 57 | H119: 206.00 | I119: 11742.00 | J119: №1 от16.08.2011
A120: 801 | B120: Студеникин М.Т. | C120: Осн.свет.этики.4кл | D120: 2012 | E120: Рус.слово | F120: 4 | G120: 13 | H120: 206.00 | I120: 2678.00 | J120: №1249 от 15.08.12
A121: 487 | B121: Залялеева М.Ш. | C121: Литература | D121: 2006 | E121: Магариф | F121: 5 | G121: 5 | H121: 53.00 | I121: 265.00 | J121: 20,09,2006
A122: 496 | B122: Бунеев Р.Н. | C122: Литература.Ч.1. | D122: 2006 | E122: Баласс | F122: 5 | G122: 20 | H122: 88.00 | I122: 1760.00 | J122: 20,09,2006
A123: 497 | B123: Бунеев Р.Н. | C123: Литература.Ч.2. | D123: 2006 | E123: Баласс | F123: 5 | G123: 20 | H123: 88.00 | I123: 1760.00 | J123: 20,09,2006
A124: 512 | B124: Павлова М.Б.Сасова И.А. | C124: Технология (д.,м.) | D124: 2006 | E124: В-Граф | F124: 5 | G124: 25 | H124: 68.00 | I124: 1700.00 | J124: 2006-11-14
A125: 514 | B125: Вигасин А.А. | C125: История др.мира | D125: 2006 | E125: Просвещение | F125: 5 | G125: 58 | H125: 84.22 | I125: 4884.76 | J125: 2006-11-14
A126: 515 | B126: Коровина В.Я. | C126: Литература.Ч.1 | D126: 2006 | E126: Просвещение | F126: 5 | G126: 58 | H126: 68.43 | I126: 3968.94 | J126: 2006-11-14
A127: 516 | B127: Коровина В.Я. | C127: Литература.Ч.2 | D127: 2006 | E127: Просвещение | F127: 5 | G127: 58 | H127: 68.43 | I127: 3968.94 | J127: 2006-11-14
A128: 520 | B128: Хайдарова Р.З. | C128: Татарский язык. | D128: 2006 | E128: Магариф | F128: 5 | G128: 28 | H128: 54.00 | I128: 1512.00 | J128: 2007-03-13
A129: 556 | B129: Ладыженская Т.А. | C129: Русский язык | D129: 2007 | E129: Просвещение | F129: 5 | G129: 43 | H129: 81.05 | I129: 3485.15 | J129: 2007-11-13
A130: 578 | B130: Хайдарова Р.З. | C130: Татарский язык. | D130: 2007 | E130: Магариф | F130: 5 | G130: 30 | H130: 54.00 | I130: 1620.00 | J130: 2008-03-17
A131: 587 | B131: Хасаншина Р.Г. | C131: Татарский язык | D131: 2007 | E131: Магариф | F131: 5 | G131: 30 | H131: 102.00 | I131: 3060.00 | J131: 2008-09-09
A132: 601 | B132: Биболетова М.З. | C132: Англиийский язык | D132: 2008 | E132: Титул | F132: 5 | G132: 47 | H132: 152.00 | I132: =G132*H132 -> 7144.00 | J132: 2008-09-22
A133: 632 | B133: Биболетова М.З. | C133: Англиийский язык | D133: 2009 | E133: Титул | F133: 5 | G133: 22 | H133: 174.60 | I133: 3841.20 | J133: 2009-12-12
A134: 739 | B134: Андреевская Т.П. | C134: История др. мира 5кл. | D134: 2011 | E134: В-Граф | F134: 5 | G134: 26 | H134: 166.00 | I134: 4316.00 | J134: №1 от16.08.2011
A135: 755 | B135: Хайдарова Р.З. | C135: Тат.теле 5 кл | D135: 2011 | E135: ТКИ | F135: 5 | G135: 55 | H135: 110.00 | I135: 6050.00 | J135: №1/514Т от 08.12.2011
A136: 761 | B136: Вербицкая Н.В.,Эббс Б | C136: Английский яз 5кл. Ч1 | D136: 2012 | E136: В-Граф | F136: 5 | G136: 14 | H136: 250.00 | I136: 3500.00 | J136: №75 от 10.07.2012
A137: 762 | B137: Вербицкая Н.В.,Эббс Б | C137: Английский яз 5кл. Ч2 | D137: 2012 | E137: В-Граф | F137: 5 | G137: 14 | H137: 232.00 | I137: 3248.00 | J137: №75 от 10.07.2012
A138: 767 | B138: Разумовская М.М.,Львова | C138: Русский язык 5кл. | D138: 2012 | E138: В-Граф | F138: 5 | G138: 48 | H138: 181.94 | I138: 8733.12 | J138: №75 от 10.07.2012
A139: 768 | B139: Биболетова М.З.,Денисенко | C139: Английский яз. 5кл. | D139: 2012 | E139: В-Граф | F139: 5 | G139: 50 | H139: 307.00 | I139: 15350.00 | J139: №75 от 10.07.2012
A140: 769 | B140: Тищенко А.Т.Симоненко В.Д. | C140: Технология (мальчики)5 | D140: 2012 | E140: В-Граф | F140: 5 | G140: 21 | H140: 212.00 | I140: 4452.00 | J140: №75 от 10.07.2012 | K140: н/д
A141: 770 | B141: Синица Н.В.,Симоненко В.Д. | C141: Технология девочки)5 | D141: 2012 | E141: В-Граф | F141: 5 | G141: 14 | H141: 212.00 | I141: 2968.00 | J141: №75 от 10.07.2012 | K141: н/д
A142: 795 | B142: Ланин Б.А. | C142: Литература 5кл. Ч.1 | D142: 2012 | E142: В-Граф | F142: 5 | G142: 48 | H142: 200.00 | I142: 9600.00 | J142: №1248 от 15.08.2012
A143: 796 | B143: Ланин Б.А. | C143: Литература 5кл. Ч.2 | D143: 2012 | E143: В-Граф | F143: 5 | G143: 48 | H143: 200.00 | I143: 9600.00 | J143: №1248 от 15.08.2012
A144: 797 | B144: Виленкин Н.Я. И др. | C144: Математика 5кл | D144: 2012 | E144: В-Граф | F144: 5 | G144: 41 | H144: 208.12 | I144: 8532.92 | J144: №1248 от 15.08.2012
A145: 798 | B145: Зубарева И.И., Мордкович | C145: Математика 5кл | D145: 2012 | E145: Мнемозина | F145: 5 | G145: 58 | H145: 210.21 | I145: 12192.18 | J145: №1248 от 15.08.2012
A146: 799 | B146: Михайловский Ф.А. | C146: Всеобщая история 5кл | D146: 2012 | E146: Рус.слово | F146: 5 | G146: 49 | H146: 264.00 | I146: 12936.00 | J146: №1248 от 15.08.2012
A147: 802 | B147: Сахаров А.Н. и др. | C147: Осн.религии5кл | D147: 2012 | E147: Рус.слово | F147: 5 | G147: 50 | H147: 206.00 | I147: 10300.00 | J147: №1249 от 15.08.12
